Workbook

Sheet Version History (hidden)
D2: Version Histrory
A4: History
A6: Version | B6: Date | C6: Author | D6: Details of modifications introduced

Sheet Quality Assurance (hidden)
D2: Quality Assurance
A4: Workbook QA
A6: Verified by | B6: Enter name of reviewer
A7: Date | B7: Enter date review completed
A8: Version | B8: Enter version of workbook checked
A9: Status | B9: QA completed but issues to resolve
A11: Type of QA | B11: Self-check by author | C11: Yes
B12: Internal QA - informal | C12: Yes
B13: Internal QA - formal | C13: Yes
B14: External QA | C14: Yes
A16: Objective of QA | B16: Check input data | C16: Yes
B17: Check calculations | C17: Yes
B18: Check methodology | C18: Yes
B19: Check implementation | C19: Yes
A21: QA results delivery format | B21: Report | C21: Yes
B22: Presentation | C22: Yes
B23: Notes to spreadsheet | C23: Yes
A25: QA notes
A27: Sheet | B27: Issue | C27: Details | D27: Status (issue resolved?)

Sheet Style Guidelines (hidden)
H2: Style Guidelines
A3: NB Use Window Unfreeze Panes (on each worksheet) to have row 1 scroll with the rest of the worksheet
A5: Styles
B8: Input | C8: 100 | E8: An input to the model that it is expected the user will change (change at will)
B10: Output | C10: 100 | E10: A key result from this part of the model (in particular one that will be used elsewhere in the model)
B12: Highlight | C12: 100 | E12: A cell that is highlighted for uncertainty
B14: Note or Source | C14: Note | E14: A note (NB smaller than standard font size)
B16: Un-format | E16: Going back to default Excel formatting
B18: Advanced user styles
B20: Input assumption | C20: 100 | E20: An input to the model that it is expected the user will change (change at will)
B22: Input Data | C22: 100 | E22: A piece of real data (only change if you have better data)
B24: Checksum | C24: 0 | E24: A side calculation intended solely to cross check a result (and which therefore should not be referenced anywhere else in the model)
B26: Note | C26: Note | E26: A note (NB smaller than standard font size)
B28: Source | C28: Source | E28: A source
B30: Named range | C30: Name | E30: An Excel Name applying to one or more adjacent cells (use Insert Name Create to actually create the Excel Names)
B32: H1 | C32: Title | E32: Heading level 1
B34: H2 | C34: Title | E34: Heading level 2
B36: H3 | C36: Title | E36: Heading level 3
B38: H4 | C38: Title | E38: Heading level 4

Sheet Contents
F2: =Workbook.Title -> mmWave fixed links clearance cost model
A4: Information
A6: Title | B6: mmWave fixed links clearance cost model
A7: Project | B7: Enabling mmWave spectrum for new uses
A8: Objective | B8: Estimate the cost of moving fixed links out of the 26GHz and 40 GHz bands
A9: Status | B9: Statement model
A10: Confidentiality | B10: Approved for release
A15: Contents
A17: Section | B17: Worksheet | C17: Description
A18: Inputs | B18: Spectrum cost inputs | C18: Input data assumptions for spectrum equipement and site costs
B19: MCT CostTrends | C19: Input data for cost trends
A20: Calculations | B20: Cost Trend Calc | C20: Estimates the increase in cost input assumptions since 2015 publication of plum report
B21: Cost calculations | C21: Estimates opex and capex for different equipment & site assumptions
B22: Cost_SiteRural | C22: Estimates the annualised capex cost for a new rural site
B23: Cost_SiteUrban | C23: Estimates the annualised capex cost for a new urban site
B24: Discounted cost_(all years) | C24: Estimates the overall present costs for replacing equipment and adding hop assuming a specific year economic lifetime
B25: Composite cost scenarios | C25: Estimates overall costs for different cost scenarios
A26: Outputs | B26: Costs By HDA grouping | C26: Determines final costs for different high density area options, dependent on existing fixed links
A30: Terms and conditions
B31: mmWave fixed links clearance cost model
A32: The terms and conditions on which OFCOM is making the model available are set out below.
A33: The mmWave fixed links clearance cost model provided has been developed to help understand the potential cost of revoking fixed link licences in the 26 GHz And 40 GHz spectrum band as part of Ofcom's consultation on Enabling mmWave spectrum for new uses.
A34: All right, title and interest in the provided model (the ‘Model’) constructed in Excel to understand the cost to licensees of clearance of fixed links are owned by OFCOM. Such title and interest is protected by United Kingdom intellectual property laws and international treaty provisions. While you may freely use the Model for the purposes for which it is provided, as set out in the accompanying model documentation, OFCOM notes that any other use of the Model may not result in the correct functioning of the Model. No representation or warranty is given as to the accuracy, completeness or correctness of the provided Model and it is provided 'as is'. It is provided without any representation or endorsement made and without warranty of any kind, whether express or implied, including but not limited to the implied warranties of satisfactory quality, fitness for a particular purpose, non-infringement, compatibility, security and accuracy.
A35: OFCOM does not accept any responsibility for any loss, disruption or damage to your data or your computer system which may occur whilst using the Model or material derived from the Model. OFCOM does not warrant that the functions contained in the Model will be uninterrupted or error free. Also, OFCOM does not warrant that defects will be corrected, or that the Model provided is free of viruses. In no event will OFCOM be liable for any loss or damage including, without limitation, indirect or consequential loss or damage, or any loss or damages whatsoever arising from use or loss of use of, data or profits arising out of or in connection with the use or otherwise of the provided Model. By using this Model, you agree to the above.

Sheet Styles
H2: Style Guidelines
A5: Styles
B8: Input data | C8: 100 | E8: Input data (e.g. RFS data, inflation, etc)
B10: Input assumption or parameter | C10: 100 | E10: Input assumptions or parameters (e.g. for a scenario or control sheet)
B12: Feed internal | C12: 100 | E12: Feed cell from within this workbook
B14: Feed external | C14: 100 | E14: Feed cell from a different workbook
B16: Confidential | C16: 100 | E16: Confidential data, to be removed or randomized before publication
B18: Randomized | C18: 100 | E18: Randomized data
B20: Calculation | C20: 100 | E20: Intermediate calculation (not final output)
B22: Model logic | C22: 100 | E22: Cells required for model logic (e.g. year counters)
B24: Intentionally blank | E24: Cells left intentionally blank
B26: Output | C26: 100 | E26: A key result from this part of the model (in particular one that will be used elsewhere in the model)
B28: Highlight | C28: 100 | E28: A cell that is highlighted for uncertainty
B30: QA highlight | C30: 100 | E30: A cell that is highlighted for quality assurance
B32: Check pass | C32: TRUE | E32: A side calculation intended solely to cross check a result (and which therefore should not be referenced anywhere else in the model)
B33: Check fail | C33: FALSE
B35: Note or source | C35: Text | E35: Note/source
B37: Named range | E37: Cells which are part of a named range
B39: Name | C39: named_range_1 | E39: An Excel Name applying to one or more adjacent cells (use Insert Name Create to actually create the Excel Names)
B41: Un-format | E41: Going back to default Excel formatting

Sheet Inputs --->

Sheet Spectrum cost inputs
A1: Cost inputs
D4: Live | F4: Base scenario
B5: Site sharing - Rural sites | C5: Site occupants | D5: 3 | F5: 3
B6: Site sharing - Urban sites | C6: Site occupants | D6: 1 | F6: 1
B8: Equipment costs | C8: £ / link | D8: 9000 | E8: Equipment | F8: 9000
B9: Planning and administrative costs | C9: £ / link | D9: 3500 | F9: 3500
B10: Deloyment cost | C10: £ / link | D10: 1000 | F10: 1000
B12: Site construction - Rural | C12: £ / site | D12: 100000 | E12: sitecost_rural | F12: 100000
B13: Site construction - Urban | C13: £ / site | D13: 50000 | E13: sitecost_urban | F13: 50000
B15: Site rental - Rural | C15: £ / site / pa | D15: 9000 | F15: 9000
B16: Site rental - Urban | C16: £ / site / pa | D16: 5000 | F16: 5000
B18: Installation and commissioning | C18: % of annual capital costs | D18: 0.5 | F18: 0.5
B19: Accommodation and power | C19: % of annual capital costs | D19: 0.5 | F19: 0.5
B20: Maintenance | C20: % of total capital costs | D20: 0.12 | F20: 0.12
B22: Lifetime of structures | C22: Years | D22: 20 | F22: 20
B23: Base Equipment life time | C23: Years | D23: 12 | F23: 12
B24: Time horizon | C24: Years | D24: 20 | F24: 20
B27: Finance rate | D27: 0.057 | E27: finance_rate_input | F27: 0.057
B28: Discount rate | D28: 0.035 | E28: discount_rate_input | F28: 0.035
B30: # years utilisation of revocation period | D30: 5 | F30: 5

Sheet MCT Cost Trends
A1: Source: 2021 MCT model
A2: https://www.ofcom.org.uk/consultations-and-statements/category-2/2021-26-wholesale-voice-markets-review
A3: https://www.ofcom.org.uk/__data/assets/file/0028/216793/mct-model-2021-26-wholesale-voice-markets-review.zip
A4: Cost model, "Unit investment Worksheet"
H7: 1990/91 | I7: 1991/92 | J7: 1992/93 | K7: 1993/94 | L7: 1994/95 | M7: 1995/96 | N7: 1996/97 | O7: 1997/98 | P7: 1998/99 | Q7: 1999/00 | R7: 2000/01 | S7: 2001/02 | T7: 2002/03 | U7: 2003/04 | V7: 2004/05 | W7: 2005/06 | X7: 2006/07 | Y7: 2007/08 | Z7: 2008/09 | AA7: 2009/10 | AB7: 2010/11 | AC7: 2011/12 | AD7: 2012/13 | AE7: 2013/14 | AF7: 2014/15 | AG7: 2015/16 | AH7: 2016/17 | AI7: 2017/18 | AJ7: 2018/19 | AK7: 2019/20 | AL7: 2020/21 | AM7: 2021/22 | AN7: 2022/23 | AO7: 2023/24 | AP7: 2024/25 | AQ7: 2025/26 | AR7: 2026/27 | AS7: 2027/28 | AT7: 2028/29 | AU7: 2029/30 | AV7: 2030/31 | AW7: 2031/32 | AX7: 2032/33 | AY7: 2033/34 | AZ7: 2034/35 | BA7: 2035/36 | BB7: 2036/37 | BC7: 2037/38 | BD7: 2038/39 | BE7: 2039/40
H8: 1990 | I8: 1991 | J8: 1992 | K8: 1993 | L8: 1994 | M8: 1995 | N8: 1996 | O8: 1997 | P8: 1998 | Q8: 1999 | R8: 2000 | S8: 2001 | T8: 2002 | U8: 2003 | V8: 2004 | W8: 2005 | X8: 2006 | Y8: 2007 | Z8: 2008 | AA8: 2009 | AB8: 2010 | AC8: 2011 | AD8: 2012 | AE8: 2013 | AF8: 2014 | AG8: 2015 | AH8: 2016 | AI8: 2017 | AJ8: 2018 | AK8: 2019 | AL8: 2020 | AM8: 2021 | AN8: 2022 | AO8: 2023 | AP8: 2024 | AQ8: 2025 | AR8: 2026 | AS8: 2027 | AT8: 2028 | AU8: 2029 | AV8: 2030 | AW8: 2031 | AX8: 2032 | AY8: 2033 | AZ8: 2034 | BA8: 2035 | BB8: 2036 | BC8: 2037 | BD8: 2038 | BE8: 2039
A9: Base MEA investment price trend (excluding capacity changes or RAN/Site sharing adjustments) | H9: Source: Retained from 2011 MCT model | AA9: Source: Orange and blue cells below indicate amendments based on s135 responses | AF9: Source: Long-term values out to 2020/21 extended to 2026/27
A10: 1 | B10: spare | C10: spare | E10: %
A11: 2 | B11: Cell sites | C11: Macrocell: site acquisition and preparation and lease | E11: % | H11: 0 | I11: 0 | J11: 0 | K11: 0 | L11: 0 | M11: 0 | N11: 0 | O11: 0 | P11: 0 | Q11: 0 | R11: 0 | S11: 0 | T11: 0 | U11: 0 | V11: 0 | W11: 0 | X11: 0 | Y11: 0 | Z11: 0.01 | AA11: -0.15 | AB11: -0.15 | AC11: -0.15 | AD11: 0.007 | AE11: 0.007 | AF11: 0.02 | AG11: 0.005 | AH11: 0.005 | AI11: 0.005 | AJ11: 0 | AK11: 0 | AL11: 0 | AM11: 0 | AN11: 0 | AO11: 0 | AP11: 0 | AQ11: 0 | AR11: 0 | AS11: 0 | AT11: 0 | AU11: 0 | AV11: 0 | AW11: 0 | AX11: 0 | AY11: 0 | AZ11: 0 | BA11: 0 | BB11: 0 | BC11: 0 | BD11: 0 | BE11: 0
A12: 3 | B12: 2G cell site equipment | C12: Macrocell: equipment (omni sector) | E12: % | H12: -0.05 | I12: -0.05 | J12: -0.05 | K12: -0.05 | L12: -0.05 | M12: -0.05 | N12: -0.05 | O12: -0.05 | P12: -0.0772 | Q12: -0.0669 | R12: -0.07 | S12: -0.06 | T12: -0.05 | U12: -0.05 | V12: -0.05 | W12: -0.25 | X12: -0.2 | Y12: -0.2 | Z12: -0.15 | AA12: -0.4208 | AB12: -0.4208 | AC12: -0.4208 | AD12: -0.04 | AE12: -0.04 | AF12: -0.04 | AG12: -0.04 | AH12: -0.04 | AI12: -0.04 | AJ12: -0.04 | AK12: -0.04 | AL12: -0.02 | AM12: -0.01 | AN12: -0.005 | AO12: -0.0025 | AP12: -0.00125 | AQ12: -0.000625 | AR12: -0.0003125 | AS12: 0 | AT12: 0 | AU12: 0 | AV12: 0 | AW12: 0 | AX12: 0 | AY12: 0 | AZ12: 0 | BA12: 0 | BB12: 0 | BC12: 0 | BD12: 0 | BE12: 0
A13: 4 | B13: spare | C13: spare | E13: %
A14: 5 | B14: 2G cell site equipment | C14: Macrocell: equipment (2 sector) | E14: % | H14: -0.05 | I14: -0.05 | J14: -0.05 | K14: -0.05 | L14: -0.05 | M14: -0.05 | N14: -0.05 | O14: -0.05 | P14: -0.0772 | Q14: -0.0669 | R14: -0.07 | S14: -0.06 | T14: -0.05 | U14: -0.05 | V14: -0.05 | W14: -0.25 | X14: -0.2 | Y14: -0.2 | Z14: -0.15 | AA14: -0.4 | AB14: -0.4 | AC14: -0.4 | AD14: -0.057 | AE14: -0.057 | AF14: -0.04 | AG14: -0.04 | AH14: -0.04 | AI14: -0.04 | AJ14: -0.04 | AK14: -0.04 | AL14: -0.02 | AM14: -0.01 | AN14: -0.005 | AO14: -0.0025 | AP14: -0.00125 | AQ14: -0.000625 | AR14: -0.0003125 | AS14: 0 | AT14: 0 | AU14: 0 | AV14: 0 | AW14: 0 | AX14: 0 | AY14: 0 | AZ14: 0 | BA14: 0 | BB14: 0 | BC14: 0 | BD14: 0 | BE14: 0
A15: 6 | B15: spare | C15: spare | E15: %
A16: 7 | B16: 2G cell site equipment | C16: Macrocell: equipment (3 sector) | E16: % | H16: -0.05 | I16: -0.05 | J16: -0.05 | K16: -0.05 | L16: -0.05 | M16: -0.05 | N16: -0.05 | O16: -0.05 | P16: -0.0772 | Q16: -0.0669 | R16: -0.07 | S16: -0.06 | T16: -0.05 | U16: -0.05 | V16: -0.05 | W16: -0.25 | X16: -0.2 | Y16: -0.2 | Z16: -0.15 | AA16: -0.3201 | AB16: -0.3201 | AC16: -0.3201 | AD16: -0.034 | AE16: -0.034 | AF16: -0.04 | AG16: -0.04 | AH16: -0.04 | AI16: -0.04 | AJ16: -0.04 | AK16: -0.04 | AL16: -0.02 | AM16: -0.01 | AN16: -0.005 | AO16: -0.0025 | AP16: -0.00125 | AQ16: -0.000625 | AR16: -0.0003125 | AS16: 0 | AT16: 0 | AU16: 0 | AV16: 0 | AW16: 0 | AX16: 0 | AY16: 0 | AZ16: 0 | BA16: 0 | BB16: 0 | BC16: 0 | BD16: 0 | BE16: 0
A17: 8 | B17: Cell sites | C17: Microcell: site acquisition and preparation and lease | E17: % | H17: 0 | I17: 0 | J17: 0 | K17: 0 | L17: 0 | M17: 0 | N17: 0 | O17: 0 | P17: 0 | Q17: 0 | R17: 0 | S17: 0 | T17: 0 | U17: 0 | V17: 0 | W17: 0 | X17: 0 | Y17: 0 | Z17: 0.01 | AA17: -0.15 | AB17: -0.15 | AC17: -0.15 | AD17: 0.007 | AE17: 0.007 | AF17: 0.02 | AG17: 0.005 | AH17: 0.005 | AI17: 0.005 | AJ17: 0 | AK17: 0 | AL17: 0 | AM17: 0 | AN17: 0 | AO17: 0 | AP17: 0 | AQ17: 0 | AR17: 0 | AS17: 0 | AT17: 0 | AU17: 0 | AV17: 0 | AW17: 0 | AX17: 0 | AY17: 0 | AZ17: 0 | BA17: 0 | BB17: 0 | BC17: 0 | BD17: 0 | BE17: 0
A18: 9 | B18: 2G cell site equipment | C18: Microcell: equipment | E18: % | H18: -0.05 | I18: -0.05 | J18: -0.05 | K18: -0.05 | L18: -0.05 | M18: -0.05 | N18: -0.05 | O18: -0.05 | P18: -0.0772 | Q18: -0.0669 | R18: -0.07 | S18: -0.06 | T18: -0.05 | U18: -0.05 | V18: -0.05 | W18: -0.25 | X18: -0.2 | Y18: -0.2 | Z18: -0.15 | AA18: -0.2456 | AB18: -0.2456 | AC18: -0.2456 | AD18: 0.041 | AE18: 0.041 | AF18: -0.04 | AG18: -0.04 | AH18: -0.04 | AI18: -0.04 | AJ18: -0.04 | AK18: -0.04 | AL18: -0.02 | AM18: -0.01 | AN18: -0.005 | AO18: -0.0025 | AP18: -0.00125 | AQ18: -0.000625 | AR18: -0.0003125 | AS18: 0 | AT18: 0 | AU18: 0 | AV18: 0 | AW18: 0 | AX18: 0 | AY18: 0 | AZ18: 0 | BA18: 0 | BB18: 0 | BC18: 0 | BD18: 0 | BE18: 0
A19: 10 | B19: Cell sites | C19: Picocell: site acquisition and preparation and lease | E19: % | H19: 0 | I19: 0 | J19: 0 | K19: 0 | L19: 0 | M19: 0 | N19: 0 | O19: 0 | P19: 0 | Q19: 0 | R19: 0 | S19: 0 | T19: 0 | U19: 0 | V19: 0 | W19: 0 | X19: 0 | Y19: 0 | Z19: 0.01 | AA19: -0.15 | AB19: -0.15 | AC19: -0.15 | AD19: 0.007 | AE19: 0.007 | AF19: 0.02 | AG19: 0.005 | AH19: 0.005 | AI19: 0.005 | AJ19: 0 | AK19: 0 | AL19: 0 | AM19: 0 | AN19: 0 | AO19: 0 | AP19: 0 | AQ19: 0 | AR19: 0 | AS19: 0 | AT19: 0 | AU19: 0 | AV19: 0 | AW19: 0 | AX19: 0 | AY19: 0 | AZ19: 0 | BA19: 0 | BB19: 0 | BC19: 0 | BD19: 0 | BE19: 0
A20: 11 | B20: 2G cell site equipment | C20: Picocell: equipment | E20: % | H20: -0.05 | I20: -0.05 | J20: -0.05 | K20: -0.05 | L20: -0.05 | M20: -0.05 | N20: -0.05 | O20: -0.05 | P20: -0.0772 | Q20: -0.0669 | R20: -0.07 | S20: -0.06 | T20: -0.05 | U20: -0.05 | V20: -0.05 | W20: -0.25 | X20: -0.2 | Y20: -0.2 | Z20: -0.15 | AA20: -0.4208 | AB20: -0.4208 | AC20: -0.4208 | AD20: -0.04 | AE20: -0.04 | AF20: -0.04 | AG20: -0.04 | AH20: -0.04 | AI20: -0.04 | AJ20: -0.04 | AK20: -0.04 | AL20: -0.02 | AM20: -0.01 | AN20: -0.005 | AO20: -0.0025 | AP20: -0.00125 | AQ20: -0.000625 | AR20: -0.0003125 | AS20: 0 | AT20: 0 | AU20: 0 | AV20: 0 | AW20: 0 | AX20: 0 | AY20: 0 | AZ20: 0 | BA20: 0 | BB20: 0 | BC20: 0 | BD20: 0 | BE20: 0
A21: 12 | B21: 2G TRXs | C21: Macrocell: additional TRXs | E21: % | H21: 0 | I21: 0 | J21: 0 | K21: -0.05 | L21: -0.05 | M21: -0.05 | N21: -0.1 | O21: -0.1 | P21: -0.3 | Q21: -0.3 | R21: -0.15 | S21: -0.1 | T21: -0.05 | U21: -0.05 | V21: -0.05 | W21: -0.25 | X21: -0.2 | Y21: -0.2 | Z21: -0.15 | AA21: -0.0562 | AB21: -0.0562 | AC21: -0.0562 | AD21: -0.008 | AE21: -0.008 | AF21: -0.015 | AG21: -0.015 | AH21: -0.015 | AI21: -0.015 | AJ21: -0.015 | AK21: -0.015 | AL21: 0 | AM21: 0 | AN21: 0 | AO21: 0 | AP21: 0 | AQ21: 0 | AR21: 0 | AS21: 0 | AT21: 0 | AU21: 0 | AV21: 0 | AW21: 0 | AX21: 0 | AY21: 0 | AZ21: 0 | BA21: 0 | BB21: 0 | BC21: 0 | BD21: 0 | BE21: 0
A22: 13 | B22: 2G TRXs | C22: Microcell: additional TRXs | E22: % | H22: 0 | I22: 0 | J22: 0 | K22: -0.05 | L22: -0.05 | M22: -0.05 | N22: -0.1 | O22: -0.1 | P22: -0.3 | Q22: -0.3 | R22: -0.15 | S22: -0.1 | T22: -0.05 | U22: -0.05 | V22: -0.05 | W22: -0.25 | X22: -0.2 | Y22: -0.2 | Z22: -0.15 | AA22: -0.0562 | AB22: -0.0562 | AC22: -0.0562 | AD22: -0.008 | AE22: -0.008 | AF22: -0.015 | AG22: -0.015 | AH22: -0.015 | AI22: -0.015 | AJ22: -0.015 | AK22: -0.015 | AL22: 0 | AM22: 0 | AN22: 0 | AO22: 0 | AP22: 0 | AQ22: 0 | AR22: 0 | AS22: 0 | AT22: 0 | AU22: 0 | AV22: 0 | AW22: 0 | AX22: 0 | AY22: 0 | AZ22: 0 | BA22: 0 | BB22: 0 | BC22: 0 | BD22: 0 | BE22: 0
A23: 14 | B23: 2G TRXs | C23: Picocell: additional TRXs | E23: % | H23: 0 | I23: 0 | J23: 0 | K23: -0.05 | L23: -0.05 | M23: -0.05 | N23: -0.1 | O23: -0.1 | P23: -0.3 | Q23: -0.3 | R23: -0.15 | S23: -0.1 | T23: -0.05 | U23: -0.05 | V23: -0.05 | W23: -0.25 | X23: -0.2 | Y23: -0.2 | Z23: -0.15 | AA23: -0.0562 | AB23: -0.0562 | AC23: -0.0562 | AD23: -0.008 | AE23: -0.008 | AF23: -0.015 | AG23: -0.015 | AH23: -0.015 | AI23: -0.015 | AJ23: -0.015 | AK23: -0.015 | AL23: 0 | AM23: 0 | AN23: 0 | AO23: 0 | AP23: 0 | AQ23: 0 | AR23: 0 | AS23: 0 | AT23: 0 | AU23: 0 | AV23: 0 | AW23: 0 | AX23: 0 | AY23: 0 | AZ23: 0 | BA23: 0 | BB23: 0 | BC23: 0 | BD23: 0 | BE23: 0
A24: 15 | B24: 2G BSCs | C24: BSC: base unit | E24: % | H24: -0.05 | I24: -0.05 | J24: -0.05 | K24: -0.05 | L24: -0.05 | M24: -0.05 | N24: -0.1 | O24: -0.1 | P24: -0.16 | Q24: -0.12 | R24: -0.1 | S24: -0.09 | T24: -0.07 | U24: -0.06 | V24: -0.04 | W24: -0.4 | X24: -0.4 | Y24: -0.4 | Z24: -0.4 | AA24: 0.055 | AB24: 0.055 | AC24: 0.055 | AD24: -0.266 | AE24: -0.266 | AF24: -0.01 | AG24: -0.01 | AH24: -0.01 | AI24: -0.01 | AJ24: -0.01 | AK24: -0.01 | AL24: -0.005 | AM24: -0.0025 | AN24: -0.00125 | AO24: -0.000625 | AP24: -0.0003125 | AQ24: -0.00015625 | AR24: -7.8125e-05 | AS24: 0 | AT24: 0 | AU24: 0 | AV24: 0 | AW24: 0 | AX24: 0 | AY24: 0 | AZ24: 0 | BA24: 0 | BB24: 0 | BC24: 0 | BD24: 0 | BE24: 0
A25: 16 | B25: 2G BSCs | C25: BSC: BS-facing port increment | E25: % | H25: -0.05 | I25: -0.05 | J25: -0.05 | K25: -0.05 | L25: -0.05 | M25: -0.05 | N25: -0.1 | O25: -0.1 | P25: -0.16 | Q25: -0.12 | R25: -0.1 | S25: -0.09 | T25: -0.07 | U25: -0.06 | V25: -0.04 | W25: -0.4 | X25: -0.4 | Y25: -0.4 | Z25: -0.4 | AA25: 0.055 | AB25: 0.055 | AC25: 0.055 | AD25: -0.266 | AE25: -0.266 | AF25: -0.01 | AG25: -0.01 | AH25: -0.01 | AI25: -0.01 | AJ25: -0.01 | AK25: -0.01 | AL25: -0.005 | AM25: -0.0025 | AN25: -0.00125 | AO25: -0.000625 | AP25: -0.0003125 | AQ25: -0.00015625 | AR25: -7.8125e-05 | AS25: 0 | AT25: 0 | AU25: 0 | AV25: 0 | AW25: 0 | AX25: 0 | AY25: 0 | AZ25: 0 | BA25: 0 | BB25: 0 | BC25: 0 | BD25: 0 | BE25: 0
A26: 17 | B26: 2G BSCs | C26: BSC: Core-facing port increment | E26: % | H26: -0.05 | I26: -0.05 | J26: -0.05 | K26: -0.05 | L26: -0.05 | M26: -0.05 | N26: -0.1 | O26: -0.1 | P26: -0.16 | Q26: -0.12 | R26: -0.1 | S26: -0.09 | T26: -0.07 | U26: -0.06 | V26: -0.04 | W26: -0.4 | X26: -0.4 | Y26: -0.4 | Z26: -0.4 | AA26: 0.055 | AB26: 0.055 | AC26: 0.055 | AD26: -0.266 | AE26: -0.266 | AF26: -0.01 | AG26: -0.01 | AH26: -0.01 | AI26: -0.01 | AJ26: -0.01 | AK26: -0.01 | AL26: -0.005 | AM26: -0.0025 | AN26: -0.00125 | AO26: -0.000625 | AP26: -0.0003125 | AQ26: -0.00015625 | AR26: -7.8125e-05 | AS26: 0 | AT26: 0 | AU26: 0 | AV26: 0 | AW26: 0 | AX26: 0 | AY26: 0 | AZ26: 0 | BA26: 0 | BB26: 0 | BC26: 0 | BD26: 0 | BE26: 0
A27: 18 | B27: 2G BSCs | C27: Packet control units | E27: % | H27: -0.05 | I27: -0.05 | J27: -0.05 | K27: -0.05 | L27: -0.05 | M27: -0.05 | N27: -0.1 | O27: -0.1 | P27: -0.16 | Q27: -0.12 | R27: -0.1 | S27: -0.09 | T27: -0.07 | U27: -0.06 | V27: -0.04 | W27: -0.4 | X27: -0.4 | Y27: -0.4 | Z27: -0.4 | AA27: 0.055 | AB27: 0.055 | AC27: 0.055 | AD27: -0.266 | AE27: -0.266 | AF27: -0.01 | AG27: -0.01 | AH27: -0.01 | AI27: -0.01 | AJ27: -0.01 | AK27: -0.01 | AL27: -0.005 | AM27: -0.0025 | AN27: -0.00125 | AO27: -0.000625 | AP27: -0.0003125 | AQ27: -0.00015625 | AR27: -7.8125e-05 | AS27: 0 | AT27: 0 | AU27: 0 | AV27: 0 | AW27: 0 | AX27: 0 | AY27: 0 | AZ27: 0 | BA27: 0 | BB27: 0 | BC27: 0 | BD27: 0 | BE27: 0
A28: 19 | B28: 2G MSCs | C28: MSC: processor | E28: % | H28: -0.05 | I28: -0.05 | J28: -0.05 | K28: -0.05 | L28: -0.05 | M28: -0.05 | N28: -0.1 | O28: -0.1 | P28: -0.16 | Q28: -0.12 | R28: -0.1 | S28: -0.09 | T28: -0.07 | U28: -0.06 | V28: -0.04 | W28: -0.04 | X28: -0.04 | Y28: -0.04 | Z28: -0.04 | AA28: -0.03333333333 | AB28: -0.02666666667 | AC28: -0.02 | AD28: -0.02 | AE28: -0.02 | AF28: -0.02 | AG28: -0.02 | AH28: -0.02 | AI28: -0.02 | AJ28: -0.02 | AK28: -0.02 | AL28: -0.01 | AM28: -0.01 | AN28: -0.01 | AO28: -0.01 | AP28: -0.01 | AQ28: -0.01 | AR28: -0.01 | AS28: 0 | AT28: 0 | AU28: 0 | AV28: 0 | AW28: 0 | AX28: 0 | AY28: 0 | AZ28: 0 | BA28: 0 | BB28: 0 | BC28: 0 | BD28: 0 | BE28: 0
A29: 20 | B29: 2G MSCs | C29: Software | E29: % | H29: -0.05 | I29: -0.05 | J29: -0.05 | K29: -0.05 | L29: -0.05 | M29: -0.05 | N29: -0.05 | O29: -0.05 | P29: -0.05 | Q29: -0.05 | R29: -0.05 | S29: -0.05 | T29: -0.05 | U29: -0.05 | V29: -0.05 | W29: -0.05 | X29: -0.05 | Y29: -0.05 | Z29: -0.05 | AA29: -0.04166666667 | AB29: -0.03333333333 | AC29: -0.025 | AD29: -0.025 | AE29: -0.025 | AF29: -0.025 | AG29: -0.025 | AH29: -0.025 | AI29: -0.025 | AJ29: -0.025 | AK29: -0.025 | AL29: -0.0125 | AM29: -0.0125 | AN29: -0.0125 | AO29: -0.0125 | AP29: -0.0125 | AQ29: -0.0125 | AR29: -0.0125 | AS29: 0 | AT29: 0 | AU29: 0 | AV29: 0 | AW29: 0 | AX29: 0 | AY29: 0 | AZ29: 0 | BA29: 0 | BB29: 0 | BC29: 0 | BD29: 0 | BE29: 0
A30: 21 | B30: 2G MSCs | C30: Interconnect interface | E30: % | H30: -0.05 | I30: -0.05 | J30: -0.05 | K30: -0.05 | L30: -0.05 | M30: -0.05 | N30: -0.05 | O30: -0.05 | P30: -0.05 | Q30: -0.05 | R30: -0.05 | S30: -0.05 | T30: -0.05 | U30: -0.05 | V30: -0.05 | W30: -0.05 | X30: -0.05 | Y30: -0.05 | Z30: -0.05 | AA30: -0.04166666667 | AB30: -0.03333333333 | AC30: -0.025 | AD30: -0.025 | AE30: -0.025 | AF30: -0.025 | AG30: -0.025 | AH30: -0.025 | AI30: -0.025 | AJ30: -0.025 | AK30: -0.025 | AL30: -0.0125 | AM30: -0.0125 | AN30: -0.0125 | AO30: -0.0125 | AP30: -0.0125 | AQ30: -0.0125 | AR30: -0.0125 | AS30: 0 | AT30: 0 | AU30: 0 | AV30: 0 | AW30: 0 | AX30: 0 | AY30: 0 | AZ30: 0 | BA30: 0 | BB30: 0 | BC30: 0 | BD30: 0 | BE30: 0
A31: 22 | B31: 2G MSCs | C31: Switching Support Plant | E31: % | H31: -0.05 | I31: -0.05 | J31: -0.05 | K31: -0.05 | L31: -0.05 | M31: -0.05 | N31: -0.05 | O31: -0.05 | P31: -0.05 | Q31: -0.05 | R31: -0.05 | S31: -0.05 | T31: -0.05 | U31: -0.05 | V31: -0.05 | W31: -0.05 | X31: -0.05 | Y31: -0.05 | Z31: -0.05 | AA31: -0.04166666667 | AB31: -0.03333333333 | AC31: -0.025 | AD31: -0.025 | AE31: -0.025 | AF31: -0.025 | AG31: -0.025 | AH31: -0.025 | AI31: -0.025 | AJ31: -0.025 | AK31: -0.025 | AL31: -0.0125 | AM31: -0.0125 | AN31: -0.0125 | AO31: -0.0125 | AP31: -0.0125 | AQ31: -0.0125 | AR31: -0.0125 | AS31: 0 | AT31: 0 | AU31: 0 | AV31: 0 | AW31: 0 | AX31: 0 | AY31: 0 | AZ31: 0 | BA31: 0 | BB31: 0 | BC31: 0 | BD31: 0 | BE31: 0
A32: 23 | B32: Main switch sites | C32: Buildings (switch building preparation) | E32: % | H32: 0 | I32: 0 | J32: 0 | K32: 0 | L32: 0 | M32: 0 | N32: 0 | O32: 0 | P32: 0 | Q32: 0 | R32: 0 | S32: 0 | T32: 0 | U32: 0 | V32: 0 | W32: 0 | X32: 0 | Y32: 0 | Z32: 0.01 | AA32: -0.15 | AB32: -0.15 | AC32: -0.15 | AD32: 0.007 | AE32: 0.007 | AF32: 0.02 | AG32: 0.005 | AH32: 0.005 | AI32: 0.005 | AJ32: 0 | AK32: 0 | AL32: 0 | AM32: 0 | AN32: 0 | AO32: 0 | AP32: 0 | AQ32: 0 | AR32: 0 | AS32: 0 | AT32: 0 | AU32: 0 | AV32: 0 | AW32: 0 | AX32: 0 | AY32: 0 | AZ32: 0 | BA32: 0 | BB32: 0 | BC32: 0 | BD32: 0 | BE32: 0
A33: 24 | B33: Main switch sites | C33: Site lease | E33: % | H33: 0 | I33: 0 | J33: 0 | K33: 0 | L33: 0 | M33: 0 | N33: 0 | O33: 0 | P33: 0 | Q33: 0 | R33: 0 | S33: 0 | T33: 0 | U33: 0 | V33: 0 | W33: 0 | X33: 0 | Y33: 0 | Z33: 0.01 | AA33: -0.15 | AB33: -0.15 | AC33: -0.15 | AD33: 0.007 | AE33: 0.007 | AF33: 0.02 | AG33: 0.005 | AH33: 0.005 | AI33: 0.005 | AJ33: 0 | AK33: 0 | AL33: 0 | AM33: 0 | AN33: 0 | AO33: 0 | AP33: 0 | AQ33: 0 | AR33: 0 | AS33: 0 | AT33: 0 | AU33: 0 | AV33: 0 | AW33: 0 | AX33: 0 | AY33: 0 | AZ33: 0 | BA33: 0 | BB33: 0 | BC33: 0 | BD33: 0 | BE33: 0
A34: 25 | B34: 2G MSC ports - BSC-facing | C34: MSC: BSC-facing port increment | E34: % | H34: -0.05 | I34: -0.05 | J34: -0.05 | K34: -0.05 | L34: -0.05 | M34: -0.05 | N34: -0.1 | O34: -0.1 | P34: -0.16 | Q34: -0.12 | R34: -0.1 | S34: -0.09 | T34: -0.07 | U34: -0.06 | V34: -0.04 | W34: -0.04 | X34: -0.04 | Y34: -0.04 | Z34: -0.04 | AA34: -0.03333333333 | AB34: -0.02666666667 | AC34: -0.02 | AD34: -0.02 | AE34: -0.02 | AF34: -0.02 | AG34: -0.02 | AH34: -0.02 | AI34: -0.02 | AJ34: -0.02 | AK34: -0.02 | AL34: -0.01 | AM34: -0.01 | AN34: -0.01 | AO34: -0.01 | AP34: -0.01 | AQ34: -0.01 | AR34: -0.01 | AS34: 0 | AT34: 0 | AU34: 0 | AV34: 0 | AW34: 0 | AX34: 0 | AY34: 0 | AZ34: 0 | BA34: 0 | BB34: 0 | BC34: 0 | BD34: 0 | BE34: 0
A35: 26 | B35: 2G MSC ports - Interconnect facing | C35: MSC: interconnect-facing port increment | E35: % | H35: -0.05 | I35: -0.05 | J35: -0.05 | K35: -0.05 | L35: -0.05 | M35: -0.05 | N35: -0.1 | O35: -0.1 | P35: -0.16 | Q35: -0.12 | R35: -0.1 | S35: -0.09 | T35: -0.07 | U35: -0.06 | V35: -0.04 | W35: -0.04 | X35: -0.04 | Y35: -0.04 | Z35: -0.04 | AA35: -0.03333333333 | AB35: -0.02666666667 | AC35: -0.02 | AD35: -0.02 | AE35: -0.02 | AF35: -0.02 | AG35: -0.02 | AH35: -0.02 | AI35: -0.02 | AJ35: -0.02 | AK35: -0.02 | AL35: -0.01 | AM35: -0.01 | AN35: -0.01 | AO35: -0.01 | AP35: -0.01 | AQ35: -0.01 | AR35: -0.01 | AS35: 0 | AT35: 0 | AU35: 0 | AV35: 0 | AW35: 0 | AX35: 0 | AY35: 0 | AZ35: 0 | BA35: 0 | BB35: 0 | BC35: 0 | BD35: 0 | BE35: 0
A36: 27 | B36: 2G MSC ports - Interswitch facing | C36: MSC: switch-facing port increment | E36: % | H36: -0.05 | I36: -0.05 | J36: -0.05 | K36: -0.05 | L36: -0.05 | M36: -0.05 | N36: -0.1 | O36: -0.1 | P36: -0.16 | Q36: -0.12 | R36: -0.1 | S36: -0.09 | T36: -0.07 | U36: -0.06 | V36: -0.04 | W36: -0.04 | X36: -0.04 | Y36: -0.04 | Z36: -0.04 | AA36: -0.03333333333 | AB36: -0.02666666667 | AC36: -0.02 | AD36: -0.02 | AE36: -0.02 | AF36: -0.02 | AG36: -0.02 | AH36: -0.02 | AI36: -0.02 | AJ36: -0.02 | AK36: -0.02 | AL36: -0.01 | AM36: -0.01 | AN36: -0.01 | AO36: -0.01 | AP36: -0.01 | AQ36: -0.01 | AR36: -0.01 | AS36: 0 | AT36: 0 | AU36: 0 | AV36: 0 | AW36: 0 | AX36: 0 | AY36: 0 | AZ36: 0 | BA36: 0 | BB36: 0 | BC36: 0 | BD36: 0 | BE36: 0
A37: 28 | B37: Core transmission | C37: Core transmission in 2Mbit/s circuits | E37: % | H37: 0 | I37: 0 | J37: 0 | K37: 0 | L37: 0 | M37: 0 | N37: 0 | O37: 0 | P37: 0 | Q37: 0 | R37: 0 | S37: 0 | T37: 0 | U37: 0 | V37: 0 | W37: 0 | X37: 0 | Y37: 0 | Z37: 0 | AA37: 0 | AB37: 0 | AC37: 0 | AD37: 0 | AE37: 0 | AF37: 0 | AG37: 0 | AH37: 0 | AI37: 0 | AJ37: 0 | AK37: 0 | AL37: 0 | AM37: 0 | AN37: 0 | AO37: 0 | AP37: 0 | AQ37: 0 | AR37: 0 | AS37: 0 | AT37: 0 | AU37: 0 | AV37: 0 | AW37: 0 | AX37: 0 | AY37: 0 | AZ37: 0 | BA37: 0 | BB37: 0 | BC37: 0 | BD37: 0 | BE37: 0
A38: 29 | B38: HLRs | C38: HLR | E38: % | H38: -0.05 | I38: -0.05 | J38: -0.05 | K38: -0.05 | L38: -0.05 | M38: -0.05 | N38: -0.1 | O38: -0.1 | P38: -0.16 | Q38: -0.12 | R38: -0.1 | S38: -0.09 | T38: -0.07 | U38: -0.06 | V38: -0.04 | W38: -0.04 | X38: -0.04 | Y38: -0.04 | Z38: -0.04 | AA38: -0.03333333333 | AB38: -0.02666666667 | AC38: -0.02 | AD38: -0.02 | AE38: -0.02 | AF38: -0.02 | AG38: -0.02 | AH38: -0.02 | AI38: -0.02 | AJ38: -0.02 | AK38: -0.02 | AL38: -0.01 | AM38: -0.01 | AN38: -0.01 | AO38: -0.01 | AP38: -0.01 | AQ38: -0.01 | AR38: -0.01 | AS38: 0 | AT38: 0 | AU38: 0 | AV38: 0 | AW38: 0 | AX38: 0 | AY38: 0 | AZ38: 0 | BA38: 0 | BB38: 0 | BC38: 0 | BD38: 0 | BE38: 0
A39: 30 | B39: Transit switches | C39: Transit switches | E39: % | H39: -0.05 | I39: -0.05 | J39: -0.05 | K39: -0.05 | L39: -0.05 | M39: -0.05 | N39: -0.1 | O39: -0.1 | P39: -0.16 | Q39: -0.12 | R39: -0.1 | S39: -0.09 | T39: -0.07 | U39: -0.06 | V39: -0.04 | W39: -0.04 | X39: -0.04 | Y39: -0.04 | Z39: -0.04 | AA39: -0.03333333333 | AB39: -0.02666666667 | AC39: -0.02 | AD39: -0.02 | AE39: -0.02 | AF39: -0.02 | AG39: -0.02 | AH39: -0.02 | AI39: -0.02 | AJ39: -0.02 | AK39: -0.02 | AL39: -0.01 | AM39: -0.01 | AN39: -0.01 | AO39: -0.01 | AP39: -0.01 | AQ39: -0.01 | AR39: -0.01 | AS39: 0 | AT39: 0 | AU39: 0 | AV39: 0 | AW39: 0 | AX39: 0 | AY39: 0 | AZ39: 0 | BA39: 0 | BB39: 0 | BC39: 0 | BD39: 0 | BE39: 0
A40: 31 | B40: spare | C40: spare | E40: %
A41: 32 | B41: 2G Licence fees | C41: Annual GSM licence fee | E41: % | H41: 0 | I41: 0 | J41: 0 | K41: 0 | L41: 0 | M41: 0 | N41: 0 | O41: 0 | P41: 0 | Q41: 0 | R41: 0 | S41: 0 | T41: 0 | U41: 0 | V41: 0 | W41: 0 | X41: 0 | Y41: 0 | Z41: 0 | AA41: 0 | AB41: 0 | AC41: 0 | AD41: 0 | AE41: 0 | AF41: 0 | AG41: 0 | AH41: 0 | AI41: 0 | AJ41: 0 | AK41: 0 | AL41: 0 | AM41: 0 | AN41: 0 | AO41: 0 | AP41: 0 | AQ41: 0 | AR41: 0 | AS41: 0 | AT41: 0 | AU41: 0 | AV41: 0 | AW41: 0 | AX41: 0 | AY41: 0 | AZ41: 0 | BA41: 0 | BB41: 0 | BC41: 0 | BD41: 0 | BE41: 0
A42: 33 | B42: 2G NMS | C42: Network management | E42: % | H42: -0.05 | I42: -0.05 | J42: -0.05 | K42: -0.05 | L42: -0.05 | M42: -0.05 | N42: -0.05 | O42: -0.05 | P42: -0.05 | Q42: -0.05 | R42: -0.05 | S42: -0.05 | T42: -0.05 | U42: -0.05 | V42: -0.05 | W42: -0.05 | X42: -0.05 | Y42: -0.05 | Z42: -0.05 | AA42: -0.04166666667 | AB42: -0.03333333333 | AC42: -0.025 | AD42: -0.025 | AE42: -0.025 | AF42: -0.025 | AG42: -0.025 | AH42: -0.025 | AI42: -0.025 | AJ42: -0.025 | AK42: -0.025 | AL42: -0.0125 | AM42: -0.0125 | AN42: -0.0125 | AO42: -0.0125 | AP42: -0.0125 | AQ42: -0.0125 | AR42: -0.0125 | AS42: 0 | AT42: 0 | AU42: 0 | AV42: 0 | AW42: 0 | AX42: 0 | AY42: 0 | AZ42: 0 | BA42: 0 | BB42: 0 | BC42: 0 | BD42: 0 | BE42: 0
A43: 34 | B43: 2G GSN | C43: 2G SGSN | E43: % | H43: -0.05 | I43: -0.05 | J43: -0.05 | K43: -0.05 | L43: -0.05 | M43: -0.05 | N43: -0.1 | O43: -0.1 | P43: -0.16 | Q43: -0.12 | R43: -0.1 | S43: -0.09 | T43: -0.07 | U43: -0.06 | V43: -0.04 | W43: -0.04 | X43: -0.04 | Y43: -0.04 | Z43: -0.04 | AA43: -0.03333333333 | AB43: -0.02666666667 | AC43: -0.02 | AD43: -0.02 | AE43: -0.02 | AF43: -0.02 | AG43: -0.02 | AH43: -0.02 | AI43: -0.02 | AJ43: -0.02 | AK43: -0.02 | AL43: -0.01 | AM43: -0.01 | AN43: -0.01 | AO43: -0.01 | AP43: -0.01 | AQ43: -0.01 | AR43: -0.01 | AS43: 0 | AT43: 0 | AU43: 0 | AV43: 0 | AW43: 0 | AX43: 0 | AY43: 0 | AZ43: 0 | BA43: 0 | BB43: 0 | BC43: 0 | BD43: 0 | BE43: 0
A44: 35 | B44: 2G GSN | C44: 2G GGSN | E44: % | H44: -0.05 | I44: -0.05 | J44: -0.05 | K44: -0.05 | L44: -0.05 | M44: -0.05 | N44: -0.1 | O44: -0.1 | P44: -0.16 | Q44: -0.12 | R44: -0.1 | S44: -0.09 | T44: -0.07 | U44: -0.06 | V44: -0.04 | W44: -0.04 | X44: -0.04 | Y44: -0.04 | Z44: -0.04 | AA44: -0.03333333333 | AB44: -0.02666666667 | AC44: -0.02 | AD44: -0.02 | AE44: -0.02 | AF44: -0.02 | AG44: -0.02 | AH44: -0.02 | AI44: -0.02 | AJ44: -0.02 | AK44: -0.02 | AL44: -0.01 | AM44: -0.01 | AN44: -0.01 | AO44: -0.01 | AP44: -0.01 | AQ44: -0.01 | AR44: -0.01 | AS44: 0 | AT44: 0 | AU44: 0 | AV44: 0 | AW44: 0 | AX44: 0 | AY44: 0 | AZ44: 0 | BA44: 0 | BB44: 0 | BC44: 0 | BD44: 0 | BE44: 0
A45: 36 | B45: SMSC | C45: SMSC | E45: % | H45: -0.05 | I45: -0.05 | J45: -0.05 | K45: -0.05 | L45: -0.05 | M45: -0.05 | N45: -0.1 | O45: -0.1 | P45: -0.16 | Q45: -0.12 | R45: -0.1 | S45: -0.09 | T45: -0.07 | U45: -0.06 | V45: -0.04 | W45: -0.04 | X45: -0.04 | Y45: -0.04 | Z45: -0.04 | AA45: -0.03333333333 | AB45: -0.2 | AC45: -0.2 | AD45: -0.2 | AE45: -0.2 | AF45: -0.02 | AG45: -0.02 | AH45: -0.02 | AI45: -0.02 | AJ45: -0.02 | AK45: -0.02 | AL45: -0.01 | AM45: -0.01 | AN45: -0.01 | AO45: -0.01 | AP45: -0.01 | AQ45: -0.01 | AR45: -0.01 | AS45: 0 | AT45: 0 | AU45: 0 | AV45: 0 | AW45: 0 | AX45: 0 | AY45: 0 | AZ45: 0 | BA45: 0 | BB45: 0 | BC45: 0 | BD45: 0 | BE45: 0
A46: 37 | B46: Backhaul | C46: 2 Mbit/s microwave link | E46: % | H46: -0.05 | I46: -0.05 | J46: -0.05 | K46: -0.05 | L46: -0.05 | M46: -0.05 | N46: -0.02 | O46: -0.02 | P46: -0.02 | Q46: -0.02 | R46: -0.02 | S46: -0.02 | T46: -0.02 | U46: -0.02 | V46: -0.02 | W46: -0.02 | X46: -0.02 | Y46: -0.02 | Z46: -0.02 | AA46: -0.02 | AB46: -0.05 | AC46: -0.05 | AD46: -0.05 | AE46: -0.05 | AF46: -0.025 | AG46: -0.025 | AH46: -0.025 | AI46: -0.025 | AJ46: -0.025 | AK46: -0.025 | AL46: -0.01 | AM46: -0.01 | AN46: -0.01 | AO46: -0.01 | AP46: -0.01 | AQ46: -0.01 | AR46: -0.01 | AS46: 0 | AT46: 0 | AU46: 0 | AV46: 0 | AW46: 0 | AX46: 0 | AY46: 0 | AZ46: 0 | BA46: 0 | BB46: 0 | BC46: 0 | BD46: 0 | BE46: 0
A47: 38 | B47: Backhaul | C47: 8 Mbit/s microwave link | E47: % | H47: -0.05 | I47: -0.05 | J47: -0.05 | K47: -0.05 | L47: -0.05 | M47: -0.05 | N47: -0.02 | O47: -0.02 | P47: -0.02 | Q47: -0.02 | R47: -0.02 | S47: -0.02 | T47: -0.02 | U47: -0.02 | V47: -0.02 | W47: -0.02 | X47: -0.02 | Y47: -0.02 | Z47: -0.02 | AA47: -0.02 | AB47: -0.05 | AC47: -0.05 | AD47: -0.05 | AE47: -0.05 | AF47: -0.025 | AG47: -0.025 | AH47: -0.025 | AI47: -0.025 | AJ47: -0.025 | AK47: -0.025 | AL47: -0.01 | AM47: -0.01 | AN47: -0.01 | AO47: -0.01 | AP47: -0.01 | AQ47: -0.01 | AR47: -0.01 | AS47: 0 | AT47: 0 | AU47: 0 | AV47: 0 | AW47: 0 | AX47: 0 | AY47: 0 | AZ47: 0 | BA47: 0 | BB47: 0 | BC47: 0 | BD47: 0 | BE47: 0
A48: 39 | B48: Backhaul | C48: 16 Mbit/s microwave link | E48: % | H48: -0.05 | I48: -0.05 | J48: -0.05 | K48: -0.05 | L48: -0.05 | M48: -0.05 | N48: -0.02 | O48: -0.02 | P48: -0.02 | Q48: -0.02 | R48: -0.02 | S48: -0.02 | T48: -0.02 | U48: -0.02 | V48: -0.02 | W48: -0.02 | X48: -0.02 | Y48: -0.02 | Z48: -0.02 | AA48: -0.02 | AB48: -0.05 | AC48: -0.05 | AD48: -0.05 | AE48: -0.05 | AF48: -0.025 | AG48: -0.025 | AH48: -0.025 | AI48: -0.025 | AJ48: -0.025 | AK48: -0.025 | AL48: -0.01 | AM48: -0.01 | AN48: -0.01 | AO48: -0.01 | AP48: -0.01 | AQ48: -0.01 | AR48: -0.01 | AS48: 0 | AT48: 0 | AU48: 0 | AV48: 0 | AW48: 0 | AX48: 0 | AY48: 0 | AZ48: 0 | BA48: 0 | BB48: 0 | BC48: 0 | BD48: 0 | BE48: 0
A49: 40 | B49: Backhaul | C49: 32 Mbit/s microwave link | E49: % | H49: -0.05 | I49: -0.05 | J49: -0.05 | K49: -0.05 | L49: -0.05 | M49: -0.05 | N49: -0.02 | O49: -0.02 | P49: -0.02 | Q49: -0.02 | R49: -0.02 | S49: -0.02 | T49: -0.02 | U49: -0.02 | V49: -0.02 | W49: -0.02 | X49: -0.02 | Y49: -0.02 | Z49: -0.02 | AA49: -0.02 | AB49: -0.05 | AC49: -0.05 | AD49: -0.05 | AE49: -0.05 | AF49: -0.025 | AG49: -0.025 | AH49: -0.025 | AI49: -0.025 | AJ49: -0.025 | AK49: -0.025 | AL49: -0.01 | AM49: -0.01 | AN49: -0.01 | AO49: -0.01 | AP49: -0.01 | AQ49: -0.01 | AR49: -0.01 | AS49: 0 | AT49: 0 | AU49: 0 | AV49: 0 | AW49: 0 | AX49: 0 | AY49: 0 | AZ49: 0 | BA49: 0 | BB49: 0 | BC49: 0 | BD49: 0 | BE49: 0
A50: 41 | B50: spare | C50: spare | E50: %
A51: 42 | B51: 3G cell site equipment | C51: Macrocell equipment | E51: % | H51: -0.05 | I51: -0.05 | J51: -0.05 | K51: -0.05 | L51: -0.05 | M51: -0.05 | N51: -0.05 | O51: -0.05 | P51: -0.05 | Q51: -0.05 | R51: -0.05 | S51: -0.05 | T51: -0.05 | U51: -0.05 | V51: -0.05 | W51: -0.25 | X51: -0.2 | Y51: -0.2 | Z51: -0.15 | AA51: -0.3882 | AB51: -0.3882 | AC51: -0.3882 | AD51: -0.069 | AE51: -0.069 | AF51: -0.025 | AG51: -0.025 | AH51: -0.025 | AI51: -0.025 | AJ51: -0.025 | AK51: -0.025 | AL51: -0.01 | AM51: -0.01 | AN51: -0.01 | AO51: -0.01 | AP51: -0.01 | AQ51: -0.01 | AR51: -0.01 | AS51: 0 | AT51: 0 | AU51: 0 | AV51: 0 | AW51: 0 | AX51: 0 | AY51: 0 | AZ51: 0 | BA51: 0 | BB51: 0 | BC51: 0 | BD51: 0 | BE51: 0
A52: 43 | B52: 3G cell site equipment | C52: Microcell equipment | E52: % | H52: -0.05 | I52: -0.05 | J52: -0.05 | K52: -0.05 | L52: -0.05 | M52: -0.05 | N52: -0.05 | O52: -0.05 | P52: -0.05 | Q52: -0.05 | R52: -0.05 | S52: -0.05 | T52: -0.05 | U52: -0.05 | V52: -0.05 | W52: -0.25 | X52: -0.2 | Y52: -0.2 | Z52: -0.15 | AA52: -0.3882 | AB52: -0.3882 | AC52: -0.3882 | AD52: -0.069 | AE52: -0.069 | AF52: -0.025 | AG52: -0.025 | AH52: -0.025 | AI52: -0.025 | AJ52: -0.025 | AK52: -0.025 | AL52: -0.01 | AM52: -0.01 | AN52: -0.01 | AO52: -0.01 | AP52: -0.01 | AQ52: -0.01 | AR52: -0.01 | AS52: 0 | AT52: 0 | AU52: 0 | AV52: 0 | AW52: 0 | AX52: 0 | AY52: 0 | AZ52: 0 | BA52: 0 | BB52: 0 | BC52: 0 | BD52: 0 | BE52: 0
A53: 44 | B53: 3G cell site equipment | C53: Picocell equipment | E53: % | H53: -0.05 | I53: -0.05 | J53: -0.05 | K53: -0.05 | L53: -0.05 | M53: -0.05 | N53: -0.05 | O53: -0.05 | P53: -0.05 | Q53: -0.05 | R53: -0.05 | S53: -0.05 | T53: -0.05 | U53: -0.05 | V53: -0.05 | W53: -0.25 | X53: -0.2 | Y53: -0.2 | Z53: -0.15 | AA53: -0.3882 | AB53: -0.3882 | AC53: -0.3882 | AD53: -0.069 | AE53: -0.069 | AF53: -0.025 | AG53: -0.025 | AH53: -0.025 | AI53: -0.025 | AJ53: -0.025 | AK53: -0.025 | AL53: -0.01 | AM53: -0.01 | AN53: -0.01 | AO53: -0.01 | AP53: -0.01 | AQ53: -0.01 | AR53: -0.01 | AS53: 0 | AT53: 0 | AU53: 0 | AV53: 0 | AW53: 0 | AX53: 0 | AY53: 0 | AZ53: 0 | BA53: 0 | BB53: 0 | BC53: 0 | BD53: 0 | BE53: 0
A54: 45 | B54: 3G site upgrade | C54: Macro site upgrade | E54: % | H54: 0 | I54: 0 | J54: 0 | K54: 0 | L54: 0 | M54: 0 | N54: 0 | O54: 0 | P54: 0 | Q54: 0 | R54: 0 | S54: 0 | T54: 0 | U54: 0 | V54: 0 | W54: 0 | X54: 0 | Y54: 0 | Z54: 0.01 | AA54: -0.0982 | AB54: -0.0982 | AC54: -0.0982 | AD54: -0.033 | AE54: -0.033 | AF54: 0.02 | AG54: 0.005 | AH54: 0.005 | AI54: 0.005 | AJ54: 0 | AK54: 0 | AL54: 0 | AM54: 0 | AN54: 0 | AO54: 0 | AP54: 0 | AQ54: 0 | AR54: 0 | AS54: 0 | AT54: 0 | AU54: 0 | AV54: 0 | AW54: 0 | AX54: 0 | AY54: 0 | AZ54: 0 | BA54: 0 | BB54: 0 | BC54: 0 | BD54: 0 | BE54: 0
A55: 46 | B55: 3G site upgrade | C55: Micro site upgrade | E55: % | H55: 0 | I55: 0 | J55: 0 | K55: 0 | L55: 0 | M55: 0 | N55: 0 | O55: 0 | P55: 0 | Q55: 0 | R55: 0 | S55: 0 | T55: 0 | U55: 0 | V55: 0 | W55: 0 | X55: 0 | Y55: 0 | Z55: 0.01 | AA55: -0.268 | AB55: -0.268 | AC55: -0.268 | AD55: -0.007 | AE55: -0.007 | AF55: 0.02 | AG55: 0.005 | AH55: 0.005 | AI55: 0.005 | AJ55: 0 | AK55: 0 | AL55: 0 | AM55: 0 | AN55: 0 | AO55: 0 | AP55: 0 | AQ55: 0 | AR55: 0 | AS55: 0 | AT55: 0 | AU55: 0 | AV55: 0 | AW55: 0 | AX55: 0 | AY55: 0 | AZ55: 0 | BA55: 0 | BB55: 0 | BC55: 0 | BD55: 0 | BE55: 0
A56: 47 | B56: 3G site upgrade | C56: Pico site upgrade | E56: % | H56: 0 | I56: 0 | J56: 0 | K56: 0 | L56: 0 | M56: 0 | N56: 0 | O56: 0 | P56: 0 | Q56: 0 | R56: 0 | S56: 0 | T56: 0 | U56: 0 | V56: 0 | W56: 0 | X56: 0 | Y56: 0 | Z56: 0.01 | AA56: -0.15 | AB56: -0.15 | AC56: -0.15 | AD56: 0.007 | AE56: 0.007 | AF56: 0.02 | AG56: 0.005 | AH56: 0.005 | AI56: 0.005 | AJ56: 0 | AK56: 0 | AL56: 0 | AM56: 0 | AN56: 0 | AO56: 0 | AP56: 0 | AQ56: 0 | AR56: 0 | AS56: 0 | AT56: 0 | AU56: 0 | AV56: 0 | AW56: 0 | AX56: 0 | AY56: 0 | AZ56: 0 | BA56: 0 | BB56: 0 | BC56: 0 | BD56: 0 | BE56: 0
A57: 48 | B57: 3G cell site equipment | C57: Macrocell: additional carriers | E57: % | H57: 0 | I57: 0 | J57: 0 | K57: 0 | L57: 0 | M57: 0 | N57: 0 | O57: 0 | P57: 0 | Q57: 0 | R57: 0 | S57: 0 | T57: -0.05 | U57: -0.05 | V57: -0.05 | W57: -0.05 | X57: -0.05 | Y57: -0.05 | Z57: -0.05 | AA57: 0.1158 | AB57: 0.1158 | AC57: 0.1158 | AD57: -0.059 | AE57: -0.059 | AF57: -0.025 | AG57: -0.025 | AH57: -0.025 | AI57: -0.025 | AJ57: -0.025 | AK57: -0.025 | AL57: -0.01 | AM57: -0.01 | AN57: -0.01 | AO57: -0.01 | AP57: -0.01 | AQ57: -0.01 | AR57: -0.01 | AS57: 0 | AT57: 0 | AU57: 0 | AV57: 0 | AW57: 0 | AX57: 0 | AY57: 0 | AZ57: 0 | BA57: 0 | BB57: 0 | BC57: 0 | BD57: 0 | BE57: 0
A58: 49 | B58: 3G cell site equipment | C58: Microcell: additional carriers | E58: % | H58: 0 | I58: 0 | J58: 0 | K58: 0 | L58: 0 | M58: 0 | N58: 0 | O58: 0 | P58: 0 | Q58: 0 | R58: 0 | S58: 0 | T58: -0.05 | U58: -0.05 | V58: -0.05 | W58: -0.05 | X58: -0.05 | Y58: -0.05 | Z58: -0.05 | AA58: 0.1158 | AB58: 0.1158 | AC58: 0.1158 | AD58: -0.059 | AE58: -0.059 | AF58: -0.025 | AG58: -0.025 | AH58: -0.025 | AI58: -0.025 | AJ58: -0.025 | AK58: -0.025 | AL58: -0.01 | AM58: -0.01 | AN58: -0.01 | AO58: -0.01 | AP58: -0.01 | AQ58: -0.01 | AR58: -0.01 | AS58: 0 | AT58: 0 | AU58: 0 | AV58: 0 | AW58: 0 | AX58: 0 | AY58: 0 | AZ58: 0 | BA58: 0 | BB58: 0 | BC58: 0 | BD58: 0 | BE58: 0
A59: 50 | B59: 3G cell site equipment | C59: Picocell: additional carriers | E59: % | H59: 0 | I59: 0 | J59: 0 | K59: 0 | L59: 0 | M59: 0 | N59: 0 | O59: 0 | P59: 0 | Q59: 0 | R59: 0 | S59: 0 | T59: -0.05 | U59: -0.05 | V59: -0.05 | W59: -0.05 | X59: -0.05 | Y59: -0.05 | Z59: -0.05 | AA59: 0.1158 | AB59: 0.1158 | AC59: 0.1158 | AD59: -0.059 | AE59: -0.059 | AF59: -0.025 | AG59: -0.025 | AH59: -0.025 | AI59: -0.025 | AJ59: -0.025 | AK59: -0.025 | AL59: -0.01 | AM59: -0.01 | AN59: -0.01 | AO59: -0.01 | AP59: -0.01 | AQ59: -0.01 | AR59: -0.01 | AS59: 0 | AT59: 0 | AU59: 0 | AV59: 0 | AW59: 0 | AX59: 0 | AY59: 0 | AZ59: 0 | BA59: 0 | BB59: 0 | BC59: 0 | BD59: 0 | BE59: 0
A60: 51 | B60: 3G cell site equipment | C60: Macrocell: additional sectors | E60: % | H60: 0 | I60: 0 | J60: 0 | K60: 0 | L60: 0 | M60: 0 | N60: 0 | O60: 0 | P60: 0 | Q60: 0 | R60: 0 | S60: 0 | T60: -0.05 | U60: -0.05 | V60: -0.05 | W60: -0.05 | X60: -0.05 | Y60: -0.05 | Z60: -0.05 | AA60: -0.1314 | AB60: -0.1314 | AC60: -0.1314 | AD60: -0.059 | AE60: -0.059 | AF60: -0.025 | AG60: -0.025 | AH60: -0.025 | AI60: -0.025 | AJ60: -0.025 | AK60: -0.025 | AL60: -0.01 | AM60: -0.01 | AN60: -0.01 | AO60: -0.01 | AP60: -0.01 | AQ60: -0.01 | AR60: -0.01 | AS60: 0 | AT60: 0 | AU60: 0 | AV60: 0 | AW60: 0 | AX60: 0 | AY60: 0 | AZ60: 0 | BA60: 0 | BB60: 0 | BC60: 0 | BD60: 0 | BE60: 0
A61: 52 | B61: 3G cell site equipment | C61: Microcell: additional sectors | E61: % | H61: 0 | I61: 0 | J61: 0 | K61: 0 | L61: 0 | M61: 0 | N61: 0 | O61: 0 | P61: 0 | Q61: 0 | R61: 0 | S61: 0 | T61: -0.05 | U61: -0.05 | V61: -0.05 | W61: -0.05 | X61: -0.05 | Y61: -0.05 | Z61: -0.05 | AA61: -0.1314 | AB61: -0.1314 | AC61: -0.1314 | AD61: -0.059 | AE61: -0.059 | AF61: -0.025 | AG61: -0.025 | AH61: -0.025 | AI61: -0.025 | AJ61: -0.025 | AK61: -0.025 | AL61: -0.01 | AM61: -0.01 | AN61: -0.01 | AO61: -0.01 | AP61: -0.01 | AQ61: -0.01 | AR61: -0.01 | AS61: 0 | AT61: 0 | AU61: 0 | AV61: 0 | AW61: 0 | AX61: 0 | AY61: 0 | AZ61: 0 | BA61: 0 | BB61: 0 | BC61: 0 | BD61: 0 | BE61: 0
A62: 53 | B62: 3G cell site equipment | C62: Picocell: additional sectors | E62: % | H62: 0 | I62: 0 | J62: 0 | K62: 0 | L62: 0 | M62: 0 | N62: 0 | O62: 0 | P62: 0 | Q62: 0 | R62: 0 | S62: 0 | T62: -0.05 | U62: -0.05 | V62: -0.05 | W62: -0.05 | X62: -0.05 | Y62: -0.05 | Z62: -0.05 | AA62: -0.1314 | AB62: -0.1314 | AC62: -0.1314 | AD62: -0.059 | AE62: -0.059 | AF62: -0.025 | AG62: -0.025 | AH62: -0.025 | AI62: -0.025 | AJ62: -0.025 | AK62: -0.025 | AL62: -0.01 | AM62: -0.01 | AN62: -0.01 | AO62: -0.01 | AP62: -0.01 | AQ62: -0.01 | AR62: -0.01 | AS62: 0 | AT62: 0 | AU62: 0 | AV62: 0 | AW62: 0 | AX62: 0 | AY62: 0 | AZ62: 0 | BA62: 0 | BB62: 0 | BC62: 0 | BD62: 0 | BE62: 0
A63: 54 | B63: 3G RNCs | C63: RNC: base unit | E63: % | H63: 0 | I63: 0 | J63: 0 | K63: 0 | L63: 0 | M63: 0 | N63: 0 | O63: 0 | P63: 0 | Q63: 0 | R63: 0 | S63: 0 | T63: -0.05 | U63: -0.05 | V63: -0.05 | W63: -0.35 | X63: -0.35 | Y63: -0.4 | Z63: -0.4 | AA63: -0.055 | AB63: -0.055 | AC63: -0.055 | AD63: -0.055 | AE63: -0.055 | AF63: -0.025 | AG63: -0.025 | AH63: -0.025 | AI63: -0.025 | AJ63: -0.025 | AK63: -0.025 | AL63: -0.01 | AM63: -0.01 | AN63: -0.01 | AO63: -0.01 | AP63: -0.01 | AQ63: -0.01 | AR63: -0.01 | AS63: 0 | AT63: 0 | AU63: 0 | AV63: 0 | AW63: 0 | AX63: 0 | AY63: 0 | AZ63: 0 | BA63: 0 | BB63: 0 | BC63: 0 | BD63: 0 | BE63: 0
A64: 55 | B64: 3G RNCs | C64: RNC: NodeB-facing port increment | E64: % | H64: 0 | I64: 0 | J64: 0 | K64: 0 | L64: 0 | M64: 0 | N64: 0 | O64: 0 | P64: 0 | Q64: 0 | R64: 0 | S64: 0 | T64: -0.05 | U64: -0.05 | V64: -0.05 | W64: -0.35 | X64: -0.35 | Y64: -0.4 | Z64: -0.4 | AA64: -0.055 | AB64: -0.055 | AC64: -0.055 | AD64: -0.055 | AE64: -0.055 | AF64: -0.025 | AG64: -0.025 | AH64: -0.025 | AI64: -0.025 | AJ64: -0.025 | AK64: -0.025 | AL64: -0.01 | AM64: -0.01 | AN64: -0.01 | AO64: -0.01 | AP64: -0.01 | AQ64: -0.01 | AR64: -0.01 | AS64: 0 | AT64: 0 | AU64: 0 | AV64: 0 | AW64: 0 | AX64: 0 | AY64: 0 | AZ64: 0 | BA64: 0 | BB64: 0 | BC64: 0 | BD64: 0 | BE64: 0
A65: 56 | B65: 3G RNCs | C65: RNC: Core-facing port increment | E65: % | H65: 0 | I65: 0 | J65: 0 | K65: 0 | L65: 0 | M65: 0 | N65: 0 | O65: 0 | P65: 0 | Q65: 0 | R65: 0 | S65: 0 | T65: -0.05 | U65: -0.05 | V65: -0.05 | W65: -0.35 | X65: -0.35 | Y65: -0.4 | Z65: -0.4 | AA65: -0.055 | AB65: -0.055 | AC65: -0.055 | AD65: -0.055 | AE65: -0.055 | AF65: -0.025 | AG65: -0.025 | AH65: -0.025 | AI65: -0.025 | AJ65: -0.025 | AK65: -0.025 | AL65: -0.01 | AM65: -0.01 | AN65: -0.01 | AO65: -0.01 | AP65: -0.01 | AQ65: -0.01 | AR65: -0.01 | AS65: 0 | AT65: 0 | AU65: 0 | AV65: 0 | AW65: 0 | AX65: 0 | AY65: 0 | AZ65: 0 | BA65: 0 | BB65: 0 | BC65: 0 | BD65: 0 | BE65: 0
A66: 57 | B66: 2G/3G layered core nodes | C66: MSC server | E66: % | H66: 0 | I66: 0 | J66: 0 | K66: 0 | L66: 0 | M66: 0 | N66: 0 | O66: 0 | P66: 0 | Q66: 0 | R66: 0 | S66: 0 | T66: -0.05 | U66: -0.05 | V66: -0.05 | W66: -0.05 | X66: -0.05 | Y66: -0.05 | Z66: -0.05 | AA66: -0.05 | AB66: -0.05 | AC66: -0.05 | AD66: -0.05 | AE66: -0.05 | AF66: -0.025 | AG66: -0.025 | AH66: -0.025 | AI66: -0.025 | AJ66: -0.025 | AK66: -0.025 | AL66: -0.01 | AM66: -0.01 | AN66: -0.01 | AO66: -0.01 | AP66: -0.01 | AQ66: -0.01 | AR66: -0.01 | AS66: 0 | AT66: 0 | AU66: 0 | AV66: 0 | AW66: 0 | AX66: 0 | AY66: 0 | AZ66: 0 | BA66: 0 | BB66: 0 | BC66: 0 | BD66: 0 | BE66: 0
A67: 58 | B67: 2G/3G layered core nodes | C67: Media gateway | E67: % | H67: 0 | I67: 0 | J67: 0 | K67: 0 | L67: 0 | M67: 0 | N67: 0 | O67: 0 | P67: 0 | Q67: 0 | R67: 0 | S67: 0 | T67: -0.05 | U67: -0.05 | V67: -0.05 | W67: -0.05 | X67: -0.05 | Y67: -0.05 | Z67: -0.05 | AA67: -0.05 | AB67: -0.05 | AC67: -0.05 | AD67: -0.05 | AE67: -0.05 | AF67: -0.025 | AG67: -0.025 | AH67: -0.025 | AI67: -0.025 | AJ67: -0.025 | AK67: -0.025 | AL67: -0.01 | AM67: -0.01 | AN67: -0.01 | AO67: -0.01 | AP67: -0.01 | AQ67: -0.01 | AR67: -0.01 | AS67: 0 | AT67: 0 | AU67: 0 | AV67: 0 | AW67: 0 | AX67: 0 | AY67: 0 | AZ67: 0 | BA67: 0 | BB67: 0 | BC67: 0 | BD67: 0 | BE67: 0
A68: 59 | B68: 3G MSCs | C68: Interconnect interface | E68: % | H68: 0 | I68: 0 | J68: 0 | K68: 0 | L68: 0 | M68: 0 | N68: 0 | O68: 0 | P68: 0 | Q68: 0 | R68: 0 | S68: 0 | T68: -0.05 | U68: -0.05 | V68: -0.05 | W68: -0.05 | X68: -0.05 | Y68: -0.05 | Z68: -0.05 | AA68: -0.05 | AB68: -0.05 | AC68: -0.05 | AD68: -0.05 | AE68: -0.05 | AF68: -0.025 | AG68: -0.025 | AH68: -0.025 | AI68: -0.025 | AJ68: -0.025 | AK68: -0.025 | AL68: -0.01 | AM68: -0.01 | AN68: -0.01 | AO68: -0.01 | AP68: -0.01 | AQ68: -0.01 | AR68: -0.01 | AS68: 0 | AT68: 0 | AU68: 0 | AV68: 0 | AW68: 0 | AX68: 0 | AY68: 0 | AZ68: 0 | BA68: 0 | BB68: 0 | BC68: 0 | BD68: 0 | BE68: 0
A69: 60 | B69: 3G MSCs | C69: Switching Support Plant | E69: % | H69: 0 | I69: 0 | J69: 0 | K69: 0 | L69: 0 | M69: 0 | N69: 0 | O69: 0 | P69: 0 | Q69: 0 | R69: 0 | S69: 0 | T69: -0.05 | U69: -0.05 | V69: -0.05 | W69: -0.05 | X69: -0.05 | Y69: -0.05 | Z69: -0.05 | AA69: -0.05 | AB69: -0.05 | AC69: -0.05 | AD69: -0.05 | AE69: -0.05 | AF69: -0.025 | AG69: -0.025 | AH69: -0.025 | AI69: -0.025 | AJ69: -0.025 | AK69: -0.025 | AL69: -0.01 | AM69: -0.01 | AN69: -0.01 | AO69: -0.01 | AP69: -0.01 | AQ69: -0.01 | AR69: -0.01 | AS69: 0 | AT69: 0 | AU69: 0 | AV69: 0 | AW69: 0 | AX69: 0 | AY69: 0 | AZ69: 0 | BA69: 0 | BB69: 0 | BC69: 0 | BD69: 0 | BE69: 0
A70: 61 | B70: 3G MSC ports - RNC-facing | C70: MSC: BSC-facing port increment | E70: % | H70: 0 | I70: 0 | J70: 0 | K70: 0 | L70: 0 | M70: 0 | N70: 0 | O70: 0 | P70: 0 | Q70: 0 | R70: 0 | S70: 0 | T70: -0.05 | U70: -0.05 | V70: -0.05 | W70: -0.05 | X70: -0.05 | Y70: -0.05 | Z70: -0.05 | AA70: -0.05 | AB70: -0.05 | AC70: -0.05 | AD70: -0.05 | AE70: -0.05 | AF70: -0.025 | AG70: -0.025 | AH70: -0.025 | AI70: -0.025 | AJ70: -0.025 | AK70: -0.025 | AL70: -0.01 | AM70: -0.01 | AN70: -0.01 | AO70: -0.01 | AP70: -0.01 | AQ70: -0.01 | AR70: -0.01 | AS70: 0 | AT70: 0 | AU70: 0 | AV70: 0 | AW70: 0 | AX70: 0 | AY70: 0 | AZ70: 0 | BA70: 0 | BB70: 0 | BC70: 0 | BD70: 0 | BE70: 0
A71: 62 | B71: 3G MSC ports - Interconnect facing | C71: MSC: interconnect-facing port increment | E71: % | H71: 0 | I71: 0 | J71: 0 | K71: 0 | L71: 0 | M71: 0 | N71: 0 | O71: 0 | P71: 0 | Q71: 0 | R71: 0 | S71: 0 | T71: -0.05 | U71: -0.05 | V71: -0.05 | W71: -0.05 | X71: -0.05 | Y71: -0.05 | Z71: -0.05 | AA71: -0.05 | AB71: -0.05 | AC71: -0.05 | AD71: -0.05 | AE71: -0.05 | AF71: -0.025 | AG71: -0.025 | AH71: -0.025 | AI71: -0.025 | AJ71: -0.025 | AK71: -0.025 | AL71: -0.01 | AM71: -0.01 | AN71: -0.01 | AO71: -0.01 | AP71: -0.01 | AQ71: -0.01 | AR71: -0.01 | AS71: 0 | AT71: 0 | AU71: 0 | AV71: 0 | AW71: 0 | AX71: 0 | AY71: 0 | AZ71: 0 | BA71: 0 | BB71: 0 | BC71: 0 | BD71: 0 | BE71: 0
A72: 63 | B72: 3G MSC ports - Interswitch facing | C72: MSC: switch-facing port increment | E72: % | H72: 0 | I72: 0 | J72: 0 | K72: 0 | L72: 0 | M72: 0 | N72: 0 | O72: 0 | P72: 0 | Q72: 0 | R72: 0 | S72: 0 | T72: -0.05 | U72: -0.05 | V72: -0.05 | W72: -0.05 | X72: -0.05 | Y72: -0.05 | Z72: -0.05 | AA72: -0.05 | AB72: -0.05 | AC72: -0.05 | AD72: -0.05 | AE72: -0.05 | AF72: -0.025 | AG72: -0.025 | AH72: -0.025 | AI72: -0.025 | AJ72: -0.025 | AK72: -0.025 | AL72: -0.01 | AM72: -0.01 | AN72: -0.01 | AO72: -0.01 | AP72: -0.01 | AQ72: -0.01 | AR72: -0.01 | AS72: 0 | AT72: 0 | AU72: 0 | AV72: 0 | AW72: 0 | AX72: 0 | AY72: 0 | AZ72: 0 | BA72: 0 | BB72: 0 | BC72: 0 | BD72: 0 | BE72: 0
A73: 64 | B73: 3G NMS | C73: Network management | E73: % | H73: 0 | I73: 0 | J73: 0 | K73: 0 | L73: 0 | M73: 0 | N73: 0 | O73: 0 | P73: 0 | Q73: 0 | R73: 0 | S73: 0 | T73: -0.05 | U73: -0.05 | V73: -0.05 | W73: -0.05 | X73: -0.05 | Y73: -0.05 | Z73: -0.05 | AA73: -0.05 | AB73: -0.05 | AC73: -0.05 | AD73: -0.05 | AE73: -0.05 | AF73: -0.025 | AG73: -0.025 | AH73: -0.025 | AI73: -0.025 | AJ73: -0.025 | AK73: -0.025 | AL73: -0.01 | AM73: -0.01 | AN73: -0.01 | AO73: -0.01 | AP73: -0.01 | AQ73: -0.01 | AR73: -0.01 | AS73: 0 | AT73: 0 | AU73: 0 | AV73: 0 | AW73: 0 | AX73: 0 | AY73: 0 | AZ73: 0 | BA73: 0 | BB73: 0 | BC73: 0 | BD73: 0 | BE73: 0
A74: 65 | B74: 3G GSN | C74: 3G SGSN | E74: % | H74: -0.05 | I74: -0.05 | J74: -0.05 | K74: -0.05 | L74: -0.05 | M74: -0.05 | N74: -0.1 | O74: -0.1 | P74: -0.16 | Q74: -0.12 | R74: -0.1 | S74: -0.09 | T74: -0.07 | U74: -0.06 | V74: -0.04 | W74: -0.04 | X74: -0.04 | Y74: -0.04 | Z74: -0.04 | AA74: -0.03333333333 | AB74: -0.02666666667 | AC74: -0.02 | AD74: -0.02 | AE74: -0.02 | AF74: -0.02 | AG74: -0.02 | AH74: -0.02 | AI74: -0.02 | AJ74: -0.02 | AK74: -0.02 | AL74: -0.01 | AM74: -0.01 | AN74: -0.01 | AO74: -0.01 | AP74: -0.01 | AQ74: -0.01 | AR74: -0.01 | AS74: 0 | AT74: 0 | AU74: 0 | AV74: 0 | AW74: 0 | AX74: 0 | AY74: 0 | AZ74: 0 | BA74: 0 | BB74: 0 | BC74: 0 | BD74: 0 | BE74: 0
A75: 66 | B75: 3G GSN | C75: 3G GGSN | E75: % | H75: -0.05 | I75: -0.05 | J75: -0.05 | K75: -0.05 | L75: -0.05 | M75: -0.05 | N75: -0.1 | O75: -0.1 | P75: -0.16 | Q75: -0.12 | R75: -0.1 | S75: -0.09 | T75: -0.07 | U75: -0.06 | V75: -0.04 | W75: -0.04 | X75: -0.04 | Y75: -0.04 | Z75: -0.04 | AA75: -0.03333333333 | AB75: -0.02666666667 | AC75: -0.02 | AD75: -0.02 | AE75: -0.02 | AF75: -0.02 | AG75: -0.02 | AH75: -0.02 | AI75: -0.02 | AJ75: -0.02 | AK75: -0.02 | AL75: -0.01 | AM75: -0.01 | AN75: -0.01 | AO75: -0.01 | AP75: -0.01 | AQ75: -0.01 | AR75: -0.01 | AS75: 0 | AT75: 0 | AU75: 0 | AV75: 0 | AW75: 0 | AX75: 0 | AY75: 0 | AZ75: 0 | BA75: 0 | BB75: 0 | BC75: 0 | BD75: 0 | BE75: 0
A76: 67 | B76: spare | C76: spare | E76: %
A77: 68 | B77: Backhaul | C77: Base unit | E77: % | H77: -0.05 | I77: -0.05 | J77: -0.05 | K77: -0.05 | L77: -0.05 | M77: -0.05 | N77: -0.1 | O77: -0.1 | P77: -0.1 | Q77: -0.1 | R77: -0.1 | S77: -0.1 | T77: -0.1 | U77: -0.1 | V77: -0.1 | W77: -0.1 | X77: -0.1 | Y77: -0.05 | Z77: -0.05 | AA77: -0.05 | AB77: -0.05 | AC77: -0.05 | AD77: -0.05 | AE77: -0.05 | AF77: -0.025 | AG77: -0.05 | AH77: -0.05 | AI77: -0.05 | AJ77: -0.05 | AK77: -0.03 | AL77: -0.01 | AM77: -0.01 | AN77: -0.01 | AO77: -0.01 | AP77: -0.01 | AQ77: -0.01 | AR77: -0.01 | AS77: 0 | AT77: 0 | AU77: 0 | AV77: 0 | AW77: 0 | AX77: 0 | AY77: 0 | AZ77: 0 | BA77: 0 | BB77: 0 | BC77: 0 | BD77: 0 | BE77: 0
A78: 69 | B78: Remote switching sites | C78: Remote switching sites (BSC and RNC) | E78: % | H78: 0 | I78: 0 | J78: 0 | K78: 0 | L78: 0 | M78: 0 | N78: 0 | O78: 0 | P78: 0 | Q78: 0 | R78: 0.01 | S78: 0.01 | T78: 0.01 | U78: 0.01 | V78: 0.01 | W78: 0.01 | X78: 0.01 | Y78: 0.01 | Z78: 0.01 | AA78: 0.01 | AB78: 0.01 | AC78: 0.01 | AD78: 0.01 | AE78: 0.01 | AF78: 0.01 | AG78: 0.01 | AH78: 0.01 | AI78: 0.01 | AJ78: 0.01 | AK78: 0.01 | AL78: 0.01 | AM78: 0.01 | AN78: 0.01 | AO78: 0.01 | AP78: 0.01 | AQ78: 0.01 | AR78: 0.01 | AS78: 0 | AT78: 0 | AU78: 0 | AV78: 0 | AW78: 0 | AX78: 0 | AY78: 0 | AZ78: 0 | BA78: 0 | BB78: 0 | BC78: 0 | BD78: 0 | BE78: 0
A79: 70 | B79: 3G Licence fees | C79: UMTS licence fee in 2004/05 | E79: %
A80: 71 | B80: 3G Licence fees | C80: UMTS licence fee in 2012/13 | E80: %
A81: 72 | B81: spare | C81: spare | E81: %
A82: 73 | B82: spare | C82: spare | E82: %
A83: 74 | B83: Cell sites | C83: Transformation sites | E83: % | H83: 0 | I83: 0 | J83: 0 | K83: 0 | L83: 0 | M83: 0 | N83: 0 | O83: 0 | P83: 0 | Q83: 0 | R83: 0 | S83: 0 | T83: 0 | U83: 0 | V83: 0 | W83: 0 | X83: 0 | Y83: 0 | Z83: 0.01 | AA83: -0.15 | AB83: -0.15 | AC83: -0.15 | AD83: 0.007 | AE83: 0.007 | AF83: 0.02 | AG83: 0.005 | AH83: 0.005 | AI83: 0.005 | AJ83: 0 | AK83: 0 | AL83: 0 | AM83: 0 | AN83: 0 | AO83: 0 | AP83: 0 | AQ83: 0 | AR83: 0 | AS83: 0 | AT83: 0 | AU83: 0 | AV83: 0 | AW83: 0 | AX83: 0 | AY83: 0 | AZ83: 0 | BA83: 0 | BB83: 0 | BC83: 0 | BD83: 0 | BE83: 0
A84: 75 | B84: spare | C84: spare | E84: %
A85: 76 | B85: HSPA 3.6 upgrade | C85: HSPA 3.6 site upgrade | E85: % | H85: 0 | I85: 0 | J85: 0 | K85: 0 | L85: 0 | M85: 0 | N85: 0 | O85: 0 | P85: 0 | Q85: 0 | R85: 0 | S85: 0 | T85: 0 | U85: 0 | V85: 0 | W85: 0 | X85: 0 | Y85: -0.05 | Z85: -0.05 | AA85: -0.05 | AB85: -0.05 | AC85: -0.05 | AD85: -0.05 | AE85: -0.05 | AF85: -0.05 | AG85: -0.05 | AH85: -0.05 | AI85: -0.05 | AJ85: -0.05 | AK85: -0.03 | AL85: -0.01 | AM85: -0.01 | AN85: -0.01 | AO85: -0.01 | AP85: -0.01 | AQ85: -0.01 | AR85: -0.01 | AS85: 0 | AT85: 0 | AU85: 0 | AV85: 0 | AW85: 0 | AX85: 0 | AY85: 0 | AZ85: 0 | BA85: 0 | BB85: 0 | BC85: 0 | BD85: 0 | BE85: 0
A86: 77 | B86: HSPA 7.2 upgrade | C86: HSPA 7.2 site upgrade | E86: % | H86: 0 | I86: 0 | J86: 0 | K86: 0 | L86: 0 | M86: 0 | N86: 0 | O86: 0 | P86: 0 | Q86: 0 | R86: 0 | S86: 0 | T86: 0 | U86: 0 | V86: 0 | W86: 0 | X86: 0 | Y86: -0.05 | Z86: -0.05 | AA86: -0.05 | AB86: -0.05 | AC86: -0.05 | AD86: -0.05 | AE86: -0.05 | AF86: -0.05 | AG86: -0.05 | AH86: -0.05 | AI86: -0.05 | AJ86: -0.05 | AK86: -0.03 | AL86: -0.01 | AM86: -0.01 | AN86: -0.01 | AO86: -0.01 | AP86: -0.01 | AQ86: -0.01 | AR86: -0.01 | AS86: 0 | AT86: 0 | AU86: 0 | AV86: 0 | AW86: 0 | AX86: 0 | AY86: 0 | AZ86: 0 | BA86: 0 | BB86: 0 | BC86: 0 | BD86: 0 | BE86: 0
A87: 78 | B87: HSPA 14.4 upgrade | C87: HSPA 14.4 site upgrade | E87: % | H87: 0 | I87: 0 | J87: 0 | K87: 0 | L87: 0 | M87: 0 | N87: 0 | O87: 0 | P87: 0 | Q87: 0 | R87: 0 | S87: 0 | T87: 0 | U87: 0 | V87: 0 | W87: 0 | X87: 0 | Y87: -0.05 | Z87: -0.05 | AA87: -0.05 | AB87: -0.05 | AC87: -0.05 | AD87: -0.05 | AE87: -0.05 | AF87: -0.05 | AG87: -0.05 | AH87: -0.05 | AI87: -0.05 | AJ87: -0.05 | AK87: -0.03 | AL87: -0.01 | AM87: -0.01 | AN87: -0.01 | AO87: -0.01 | AP87: -0.01 | AQ87: -0.01 | AR87: -0.01 | AS87: 0 | AT87: 0 | AU87: 0 | AV87: 0 | AW87: 0 | AX87: 0 | AY87: 0 | AZ87: 0 | BA87: 0 | BB87: 0 | BC87: 0 | BD87: 0 | BE87: 0
A88: 79 | B88: HSPA 21 upgrade | C88: HSPA 21 site upgrade | E88: % | AD88: -0.05 | AE88: -0.05 | AF88: -0.05 | AG88: -0.05 | AH88: -0.05 | AI88: -0.05 | AJ88: -0.05 | AK88: -0.03 | AL88: -0.01 | AM88: -0.01 | AN88: -0.01 | AO88: -0.01 | AP88: -0.01 | AQ88: -0.01 | AR88: -0.01 | AS88: 0 | AT88: 0 | AU88: 0 | AV88: 0 | AW88: 0 | AX88: 0 | AY88: 0 | AZ88: 0 | BA88: 0 | BB88: 0 | BC88: 0 | BD88: 0 | BE88: 0
A89: 80 | B89: HSPA 42 upgrade | C89: HSPA 42 site upgrade | E89: % | AD89: -0.05 | AE89: -0.05 | AF89: -0.05 | AG89: -0.05 | AH89: -0.05 | AI89: -0.05 | AJ89: -0.05 | AK89: -0.03 | AL89: -0.01 | AM89: -0.01 | AN89: -0.01 | AO89: -0.01 | AP89: -0.01 | AQ89: -0.01 | AR89: -0.01 | AS89: 0 | AT89: 0 | AU89: 0 | AV89: 0 | AW89: 0 | AX89: 0 | AY89: 0 | AZ89: 0 | BA89: 0 | BB89: 0 | BC89: 0 | BD89: 0 | BE89: 0
A90: 81 | B90: HSPA 84 upgrade | C90: HSPA 84 site upgrade | E90: % | H90: 0 | I90: 0 | J90: 0 | K90: 0 | L90: 0 | M90: 0 | N90: 0 | O90: 0 | P90: 0 | Q90: 0 | R90: 0 | S90: 0 | T90: 0 | U90: 0 | V90: 0 | W90: 0 | X90: 0 | Y90: -0.05 | Z90: -0.05 | AA90: -0.05 | AB90: -0.05 | AC90: -0.05 | AD90: -0.05 | AE90: -0.05 | AF90: -0.05 | AG90: -0.05 | AH90: -0.05 | AI90: -0.05 | AJ90: -0.05 | AK90: -0.03 | AL90: -0.01 | AM90: -0.01 | AN90: -0.01 | AO90: -0.01 | AP90: -0.01 | AQ90: -0.01 | AR90: -0.01 | AS90: 0 | AT90: 0 | AU90: 0 | AV90: 0 | AW90: 0 | AX90: 0 | AY90: 0 | AZ90: 0 | BA90: 0 | BB90: 0 | BC90: 0 | BD90: 0 | BE90: 0
A91: 82 | B91: 3G cell site equipment | C91: HSPA site upgrade spare | E91: % | H91: 0 | I91: 0 | J91: 0 | K91: 0 | L91: 0 | M91: 0 | N91: 0 | O91: 0 | P91: 0 | Q91: 0 | R91: 0 | S91: 0 | T91: 0 | U91: 0 | V91: 0 | W91: 0 | X91: 0 | Y91: -0.05 | Z91: -0.05 | AA91: -0.05 | AB91: -0.05 | AC91: -0.05 | AD91: -0.05 | AE91: -0.05 | AF91: -0.05 | AG91: -0.05 | AH91: -0.05 | AI91: -0.05 | AJ91: -0.05 | AK91: -0.03 | AL91: -0.01 | AM91: -0.01 | AN91: -0.01 | AO91: -0.01 | AP91: -0.01 | AQ91: -0.01 | AR91: -0.01 | AS91: 0 | AT91: 0 | AU91: 0 | AV91: 0 | AW91: 0 | AX91: 0 | AY91: 0 | AZ91: 0 | BA91: 0 | BB91: 0 | BC91: 0 | BD91: 0 | BE91: 0
A92: 83 | B92: Backhaul | C92: Leased Ethernet (100Mbit/s) | E92: % | AC92: -0.02 | AD92: -0.02 | AE92: -0.02 | AF92: -0.02 | AG92: -0.02 | AH92: -0.02 | AI92: -0.02 | AJ92: -0.02 | AK92: -0.02 | AL92: -0.02 | AM92: -0.02 | AN92: -0.02 | AO92: -0.02 | AP92: -0.02 | AQ92: -0.02 | AR92: -0.02 | AS92: 0 | AT92: 0 | AU92: 0 | AV92: 0 | AW92: 0 | AX92: 0 | AY92: 0 | AZ92: 0 | BA92: 0 | BB92: 0 | BC92: 0 | BD92: 0 | BE92: 0
A93: 84 | B93: Backhaul | C93: Leased Ethernet (300Mbit/s) | E93: % | AC93: -0.02 | AD93: -0.02 | AE93: -0.02 | AF93: -0.02 | AG93: -0.02 | AH93: -0.02 | AI93: -0.02 | AJ93: -0.02 | AK93: -0.02 | AL93: -0.02 | AM93: -0.02 | AN93: -0.02 | AO93: -0.02 | AP93: -0.02 | AQ93: -0.02 | AR93: -0.02 | AS93: 0 | AT93: 0 | AU93: 0 | AV93: 0 | AW93: 0 | AX93: 0 | AY93: 0 | AZ93: 0 | BA93: 0 | BB93: 0 | BC93: 0 | BD93: 0 | BE93: 0
A94: 85 | B94: Backhaul | C94: Owned microwave (100Mbit/s) | E94: % | AC94: -0.05 | AD94: -0.078 | AE94: -0.078 | AF94: -0.025 | AG94: -0.025 | AH94: -0.025 | AI94: -0.025 | AJ94: -0.025 | AK94: -0.025 | AL94: -0.01 | AM94: -0.01 | AN94: -0.01 | AO94: -0.01 | AP94: -0.01 | AQ94: -0.01 | AR94: -0.01 | AS94: 0 | AT94: 0 | AU94: 0 | AV94: 0 | AW94: 0 | AX94: 0 | AY94: 0 | AZ94: 0 | BA94: 0 | BB94: 0 | BC94: 0 | BD94: 0 | BE94: 0
A95: 86 | B95: Backhaul | C95: Owned microwave (300Mbit/s) | E95: % | AC95: -0.05 | AD95: -0.078 | AE95: -0.078 | AF95: -0.025 | AG95: -0.025 | AH95: -0.025 | AI95: -0.025 | AJ95: -0.025 | AK95: -0.025 | AL95: -0.01 | AM95: -0.01 | AN95: -0.01 | AO95: -0.01 | AP95: -0.01 | AQ95: -0.01 | AR95: -0.01 | AS95: 0 | AT95: 0 | AU95: 0 | AV95: 0 | AW95: 0 | AX95: 0 | AY95: 0 | AZ95: 0 | BA95: 0 | BB95: 0 | BC95: 0 | BD95: 0 | BE95: 0
A96: 87 | B96: Cell sites | C96: Shared sites | E96: % | H96: 0 | I96: 0 | J96: 0 | K96: 0 | L96: 0 | M96: 0 | N96: 0 | O96: 0 | P96: 0 | Q96: 0 | R96: 0 | S96: 0 | T96: 0 | U96: 0 | V96: 0 | W96: 0 | X96: 0 | Y96: 0 | Z96: 0.01 | AA96: -0.15 | AB96: -0.15 | AC96: -0.15 | AD96: 0.007 | AE96: 0.007 | AF96: 0.02 | AG96: 0.005 | AH96: 0.005 | AI96: 0.005 | AJ96: 0 | AK96: 0 | AL96: 0 | AM96: 0 | AN96: 0 | AO96: 0 | AP96: 0 | AQ96: 0 | AR96: 0 | AS96: 0 | AT96: 0 | AU96: 0 | AV96: 0 | AW96: 0 | AX96: 0 | AY96: 0 | AZ96: 0 | BA96: 0 | BB96: 0 | BC96: 0 | BD96: 0 | BE96: 0
A97: 88 | B97: spare | C97: spare | E97: %
A98: 89 | B98: Backhaul | C98: Ethernet microwave link (defunct) | E98: % | H98: 0 | I98: 0 | J98: 0 | K98: 0 | L98: 0 | M98: 0 | N98: 0 | O98: 0 | P98: 0 | Q98: 0 | R98: 0 | S98: 0 | T98: 0 | U98: 0 | V98: 0 | W98: 0 | X98: 0 | Y98: 0 | Z98: 0 | AA98: 0 | AB98: -0.02 | AC98: -0.02 | AD98: -0.02 | AE98: -0.02 | AF98: -0.02 | AG98: -0.02 | AH98: -0.02 | AI98: -0.02 | AJ98: -0.02 | AK98: -0.02 | AL98: -0.02 | AM98: -0.02 | AN98: -0.02 | AO98: -0.02 | AP98: -0.02 | AQ98: -0.02 | AR98: -0.02 | AS98: 0 | AT98: 0 | AU98: 0 | AV98: 0 | AW98: 0 | AX98: 0 | AY98: 0 | AZ98: 0 | BA98: 0 | BB98: 0 | BC98: 0 | BD98: 0 | BE98: 0
A99: 90 | B99: spare | C99: spare | E99: %
A100: 91 | B100: VMS | C100: VMS Platform | E100: % | H100: -0.05 | I100: -0.05 | J100: -0.05 | K100: -0.05 | L100: -0.05 | M100: -0.05 | N100: -0.05 | O100: -0.05 | P100: -0.05 | Q100: -0.05 | R100: -0.05 | S100: -0.05 | T100: -0.05 | U100: -0.05 | V100: -0.05 | W100: -0.05 | X100: -0.05 | Y100: -0.05 | Z100: -0.05 | AA100: -0.05 | AB100: -0.05 | AC100: -0.05 | AD100: -0.05 | AE100: -0.05 | AF100: -0.05 | AG100: -0.05 | AH100: -0.05 | AI100: -0.05 | AJ100: -0.05 | AK100: -0.05 | AL100: -0.05 | AM100: -0.05 | AN100: -0.05 | AO100: -0.05 | AP100: -0.05 | AQ100: -0.05 | AR100: -0.05 | AS100: 0 | AT100: 0 | AU100: 0 | AV100: 0 | AW100: 0 | AX100: 0 | AY100: 0 | AZ100: 0 | BA100: 0 | BB100: 0 | BC100: 0 | BD100: 0 | BE100: 0
A101: 92 | B101: Backhaul | C101: High-speed backhaul hub | E101: % | AC101: -0.02 | AD101: -0.041 | AE101: -0.041 | AF101: -0.02 | AG101: -0.02 | AH101: -0.02 | AI101: -0.02 | AJ101: -0.02 | AK101: -0.02 | AL101: -0.02 | AM101: -0.02 | AN101: -0.02 | AO101: -0.02 | AP101: -0.02 | AQ101: -0.02 | AR101: -0.02 | AS101: 0 | AT101: 0 | AU101: 0 | AV101: 0 | AW101: 0 | AX101: 0 | AY101: 0 | AZ101: 0 | BA101: 0 | BB101: 0 | BC101: 0 | BD101: 0 | BE101: 0
A102: 93 | B102: Backhaul | C102: High-speed leased backhaul link (1000Mbit/s) | E102: % | AC102: -0.02 | AD102: -0.12 | AE102: -0.12 | AF102: -0.02 | AG102: -0.02 | AH102: -0.02 | AI102: -0.02 | AJ102: -0.02 | AK102: -0.02 | AL102: -0.02 | AM102: -0.02 | AN102: -0.02 | AO102: -0.02 | AP102: -0.02 | AQ102: -0.02 | AR102: -0.02 | AS102: 0 | AT102: 0 | AU102: 0 | AV102: 0 | AW102: 0 | AX102: 0 | AY102: 0 | AZ102: 0 | BA102: 0 | BB102: 0 | BC102: 0 | BD102: 0 | BE102: 0
A103: 94 | B103: spare | C103: spare | E103: %
A104: 95 | B104: spare | C104: spare | E104: %
A105: 96 | B105: spare | C105: spare | E105: %
A106: 97 | B106: Main switch sites (allocated to voice) | C106: Buildings (switch building preparation) - allocated to voice services | E106: % | F106: TRUE | H106: 0 | I106: 0 | J106: 0 | K106: 0 | L106: 0 | M106: 0 | N106: 0 | O106: 0 | P106: 0 | Q106: 0 | R106: 0 | S106: 0 | T106: 0 | U106: 0 | V106: 0 | W106: 0 | X106: 0 | Y106: 0 | Z106: 0 | AA106: 0 | AB106: 0 | AC106: 0 | AD106: 0 | AE106: 0 | AF106: 0 | AG106: 0 | AH106: 0 | AI106: 0 | AJ106: 0 | AK106: 0 | AL106: 0 | AM106: 0 | AN106: 0 | AO106: 0 | AP106: 0 | AQ106: 0 | AR106: 0 | AS106: 0 | AT106: 0 | AU106: 0 | AV106: 0 | AW106: 0 | AX106: 0 | AY106: 0 | AZ106: 0 | BA106: 0 | BB106: 0 | BC106: 0 | BD106: 0 | BE106: 0
A107: 98 | B107: Main switch sites (allocated to voice) | C107: Site lease - allocated to voice services | E107: % | H107: 0 | I107: 0 | J107: 0 | K107: 0 | L107: 0 | M107: 0 | N107: 0 | O107: 0 | P107: 0 | Q107: 0 | R107: 0 | S107: 0 | T107: 0 | U107: 0 | V107: 0 | W107: 0 | X107: 0 | Y107: 0 | Z107: 0 | AA107: 0 | AB107: 0 | AC107: 0 | AD107: 0 | AE107: 0 | AF107: 0 | AG107: 0 | AH107: 0 | AI107: 0 | AJ107: 0 | AK107: 0 | AL107: 0 | AM107: 0 | AN107: 0 | AO107: 0 | AP107: 0 | AQ107: 0 | AR107: 0 | AS107: 0 | AT107: 0 | AU107: 0 | AV107: 0 | AW107: 0 | AX107: 0 | AY107: 0 | AZ107: 0 | BA107: 0 | BB107: 0 | BC107: 0 | BD107: 0 | BE107: 0
A108: 99 | B108: Main switch sites (allocated to data) | C108: Buildings (switch building preparation) - allocated to data services | E108: % | H108: 0 | I108: 0 | J108: 0 | K108: 0 | L108: 0 | M108: 0 | N108: 0 | O108: 0 | P108: 0 | Q108: 0 | R108: 0 | S108: 0 | T108: 0 | U108: 0 | V108: 0 | W108: 0 | X108: 0 | Y108: 0 | Z108: 0 | AA108: 0 | AB108: 0 | AC108: 0 | AD108: 0 | AE108: 0 | AF108: 0 | AG108: 0 | AH108: 0 | AI108: 0 | AJ108: 0 | AK108: 0 | AL108: 0 | AM108: 0 | AN108: 0 | AO108: 0 | AP108: 0 | AQ108: 0 | AR108: 0 | AS108: 0 | AT108: 0 | AU108: 0 | AV108: 0 | AW108: 0 | AX108: 0 | AY108: 0 | AZ108: 0 | BA108: 0 | BB108: 0 | BC108: 0 | BD108: 0 | BE108: 0
A109: 100 | B109: Main switch sites (allocated to data) | C109: Site lease - allocated to data services | E109: % | H109: 0 | I109: 0 | J109: 0 | K109: 0 | L109: 0 | M109: 0 | N109: 0 | O109: 0 | P109: 0 | Q109: 0 | R109: 0 | S109: 0 | T109: 0 | U109: 0 | V109: 0 | W109: 0 | X109: 0 | Y109: 0 | Z109: 0 | AA109: 0 | AB109: 0 | AC109: 0 | AD109: 0 | AE109: 0 | AF109: 0 | AG109: 0 | AH109: 0 | AI109: 0 | AJ109: 0 | AK109: 0 | AL109: 0 | AM109: 0 | AN109: 0 | AO109: 0 | AP109: 0 | AQ109: 0 | AR109: 0 | AS109: 0 | AT109: 0 | AU109: 0 | AV109: 0 | AW109: 0 | AX109: 0 | AY109: 0 | AZ109: 0 | BA109: 0 | BB109: 0 | BC109: 0 | BD109: 0 | BE109: 0
A110: 101 | B110: 4G cell site equipment | C110: Macro eNodeB | E110: % | AD110: 0.032 | AE110: 0.032 | AF110: -0.025 | AG110: -0.025 | AH110: -0.025 | AI110: -0.025 | AJ110: -0.025 | AK110: -0.025 | AL110: -0.01 | AM110: -0.01 | AN110: -0.01 | AO110: -0.01 | AP110: -0.01 | AQ110: -0.01 | AR110: -0.01 | AS110: 0 | AT110: 0 | AU110: 0 | AV110: 0 | AW110: 0 | AX110: 0 | AY110: 0 | AZ110: 0 | BA110: 0 | BB110: 0 | BC110: 0 | BD110: 0 | BE110: 0
A111: 102 | B111: 4G cell site equipment | C111: Micro eNodeB | E111: % | AD111: 0.032 | AE111: 0.032 | AF111: -0.025 | AG111: -0.025 | AH111: -0.025 | AI111: -0.025 | AJ111: -0.025 | AK111: -0.025 | AL111: -0.01 | AM111: -0.01 | AN111: -0.01 | AO111: -0.01 | AP111: -0.01 | AQ111: -0.01 | AR111: -0.01 | AS111: 0 | AT111: 0 | AU111: 0 | AV111: 0 | AW111: 0 | AX111: 0 | AY111: 0 | AZ111: 0 | BA111: 0 | BB111: 0 | BC111: 0 | BD111: 0 | BE111: 0
A112: 103 | B112: 4G cell site equipment | C112: Pico eNodeB | E112: % | AD112: 0.032 | AE112: 0.032 | AF112: -0.025 | AG112: -0.025 | AH112: -0.025 | AI112: -0.025 | AJ112: -0.025 | AK112: -0.025 | AL112: -0.01 | AM112: -0.01 | AN112: -0.01 | AO112: -0.01 | AP112: -0.01 | AQ112: -0.01 | AR112: -0.01 | AS112: 0 | AT112: 0 | AU112: 0 | AV112: 0 | AW112: 0 | AX112: 0 | AY112: 0 | AZ112: 0 | BA112: 0 | BB112: 0 | BC112: 0 | BD112: 0 | BE112: 0
A113: 104 | B113: 4G cell site equipment | C113: 4G Macrocell: additional carriers | E113: % | AD113: -0.02 | AE113: -0.02 | AF113: -0.025 | AG113: -0.025 | AH113: -0.025 | AI113: -0.025 | AJ113: -0.025 | AK113: 0 | AL113: 0 | AM113: 0 | AN113: 0 | AO113: 0 | AP113: 0 | AQ113: 0 | AR113: 0 | AS113: 0 | AT113: 0 | AU113: 0 | AV113: 0 | AW113: 0 | AX113: 0 | AY113: 0 | AZ113: 0 | BA113: 0 | BB113: 0 | BC113: 0 | BD113: 0 | BE113: 0
A114: 105 | B114: 4G cell site equipment | C114: 4G Microcell: additional carriers | E114: % | AD114: -0.02 | AE114: -0.02 | AF114: -0.025 | AG114: -0.025 | AH114: -0.025 | AI114: -0.025 | AJ114: -0.025 | AK114: 0 | AL114: 0 | AM114: 0 | AN114: 0 | AO114: 0 | AP114: 0 | AQ114: 0 | AR114: 0 | AS114: 0 | AT114: 0 | AU114: 0 | AV114: 0 | AW114: 0 | AX114: 0 | AY114: 0 | AZ114: 0 | BA114: 0 | BB114: 0 | BC114: 0 | BD114: 0 | BE114: 0
A115: 106 | B115: 4G cell site equipment | C115: 4G Picocell: additional carriers | E115: % | AD115: -0.02 | AE115: -0.02 | AF115: -0.025 | AG115: -0.025 | AH115: -0.025 | AI115: -0.025 | AJ115: -0.025 | AK115: 0 | AL115: 0 | AM115: 0 | AN115: 0 | AO115: 0 | AP115: 0 | AQ115: 0 | AR115: 0 | AS115: 0 | AT115: 0 | AU115: 0 | AV115: 0 | AW115: 0 | AX115: 0 | AY115: 0 | AZ115: 0 | BA115: 0 | BB115: 0 | BC115: 0 | BD115: 0 | BE115: 0
A116: 107 | B116: 4G site upgrade | C116: Macro site upgrade | E116: % | AD116: -0.009 | AE116: -0.009 | AF116: 0.02 | AG116: 0.005 | AH116: 0.005 | AI116: 0.005 | AJ116: 0 | AK116: 0 | AL116: 0 | AM116: 0 | AN116: 0 | AO116: 0 | AP116: 0 | AQ116: 0 | AR116: 0 | AS116: 0 | AT116: 0 | AU116: 0 | AV116: 0 | AW116: 0 | AX116: 0 | AY116: 0 | AZ116: 0 | BA116: 0 | BB116: 0 | BC116: 0 | BD116: 0 | BE116: 0
A117: 108 | B117: 4G site upgrade | C117: Micro site upgrade | E117: % | AD117: -0.009 | AE117: -0.009 | AF117: 0.02 | AG117: 0.005 | AH117: 0.005 | AI117: 0.005 | AJ117: 0 | AK117: 0 | AL117: 0 | AM117: 0 | AN117: 0 | AO117: 0 | AP117: 0 | AQ117: 0 | AR117: 0 | AS117: 0 | AT117: 0 | AU117: 0 | AV117: 0 | AW117: 0 | AX117: 0 | AY117: 0 | AZ117: 0 | BA117: 0 | BB117: 0 | BC117: 0 | BD117: 0 | BE117: 0
A118: 109 | B118: 4G site upgrade | C118: Pico site upgrade | E118: % | AD118: -0.009 | AE118: -0.009 | AF118: 0.02 | AG118: 0.005 | AH118: 0.005 | AI118: 0.005 | AJ118: 0 | AK118: 0 | AL118: 0 | AM118: 0 | AN118: 0 | AO118: 0 | AP118: 0 | AQ118: 0 | AR118: 0 | AS118: 0 | AT118: 0 | AU118: 0 | AV118: 0 | AW118: 0 | AX118: 0 | AY118: 0 | AZ118: 0 | BA118: 0 | BB118: 0 | BC118: 0 | BD118: 0 | BE118: 0
A119: 110 | B119: Backhaul | C119: Leased Ethernet (500Mbit/s) | E119: % | AD119: -0.02 | AE119: -0.02 | AF119: -0.02 | AG119: -0.02 | AH119: -0.02 | AI119: -0.02 | AJ119: -0.02 | AK119: -0.02 | AL119: -0.02 | AM119: -0.02 | AN119: -0.02 | AO119: -0.02 | AP119: -0.02 | AQ119: -0.02 | AR119: -0.02 | AS119: 0 | AT119: 0 | AU119: 0 | AV119: 0 | AW119: 0 | AX119: 0 | AY119: 0 | AZ119: 0 | BA119: 0 | BB119: 0 | BC119: 0 | BD119: 0 | BE119: 0
A120: 111 | B120: Backhaul | C120: Owned microwave (500Mbit/s) | E120: % | AD120: -0.078 | AE120: -0.078 | AF120: -0.025 | AG120: -0.025 | AH120: -0.025 | AI120: -0.025 | AJ120: -0.025 | AK120: -0.025 | AL120: -0.01 | AM120: -0.01 | AN120: -0.01 | AO120: -0.01 | AP120: -0.01 | AQ120: -0.01 | AR120: -0.01 | AS120: 0 | AT120: 0 | AU120: 0 | AV120: 0 | AW120: 0 | AX120: 0 | AY120: 0 | AZ120: 0 | BA120: 0 | BB120: 0 | BC120: 0 | BD120: 0 | BE120: 0
A121: 112 | B121: Cell sites | C121: Infrastructure sharing macro site upgrade | E121: % | AD121: -0.178 | AE121: -0.178 | AF121: 0.02 | AG121: 0.005 | AH121: 0.005 | AI121: 0.005 | AJ121: 0 | AK121: 0 | AL121: 0 | AM121: 0 | AN121: 0 | AO121: 0 | AP121: 0 | AQ121: 0 | AR121: 0 | AS121: 0 | AT121: 0 | AU121: 0 | AV121: 0 | AW121: 0 | AX121: 0 | AY121: 0 | AZ121: 0 | BA121: 0 | BB121: 0 | BC121: 0 | BD121: 0 | BE121: 0
A122: 113 | B122: Cell sites | C122: Infrastructure sharing micro site upgrade | E122: % | AD122: -0.178 | AE122: -0.178 | AF122: 0.02 | AG122: 0.005 | AH122: 0.005 | AI122: 0.005 | AJ122: 0 | AK122: 0 | AL122: 0 | AM122: 0 | AN122: 0 | AO122: 0 | AP122: 0 | AQ122: 0 | AR122: 0 | AS122: 0 | AT122: 0 | AU122: 0 | AV122: 0 | AW122: 0 | AX122: 0 | AY122: 0 | AZ122: 0 | BA122: 0 | BB122: 0 | BC122: 0 | BD122: 0 | BE122: 0
A123: 114 | B123: Cell sites | C123: Infrastructure sharing pico site upgrade | E123: % | AD123: -0.178 | AE123: -0.178 | AF123: 0.02 | AG123: 0.005 | AH123: 0.005 | AI123: 0.005 | AJ123: 0 | AK123: 0 | AL123: 0 | AM123: 0 | AN123: 0 | AO123: 0 | AP123: 0 | AQ123: 0 | AR123: 0 | AS123: 0 | AT123: 0 | AU123: 0 | AV123: 0 | AW123: 0 | AX123: 0 | AY123: 0 | AZ123: 0 | BA123: 0 | BB123: 0 | BC123: 0 | BD123: 0 | BE123: 0
A124: 115 | B124: spare | C124: spare | E124: %
A125: 116 | B125: spare | C125: spare | E125: %
A126: 117 | B126: spare | C126: spare | E126: %
A127: 118 | B127: spare | C127: spare | E127: %
A128: 119 | B128: spare | C128: spare | E128: %
A129: 120 | B129: spare | C129: spare | E129: %
A130: 121 | B130: spare | C130: spare | E130: %
A131: 122 | B131: spare | C131: spare | E131: %
A132: 123 | B132: spare | C132: spare | E132: %
A133: 124 | B133: spare | C133: spare | E133: %
A134: 125 | B134: spare | C134: spare | E134: %
A135: 126 | B135: spare | C135: spare | E135: %
A136: 127 | B136: spare | C136: spare | E136: %
A137: 128 | B137: spare | C137: spare | E137: %
A138: 129 | B138: Core transmission | C138: Next-generation backbone links | E138: % | AC138: 0 | AD138: 0 | AE138: 0 | AF138: 0 | AG138: 0 | AH138: 0 | AI138: 0 | AJ138: 0 | AK138: 0 | AL138: 0 | AM138: 0 | AN138: 0 | AO138: 0 | AP138: 0 | AQ138: 0 | AR138: 0 | AS138: 0 | AT138: 0 | AU138: 0 | AV138: 0 | AW138: 0 | AX138: 0 | AY138: 0 | AZ138: 0 | BA138: 0 | BB138: 0 | BC138: 0 | BD138: 0 | BE138: 0
A139: 130 | B139: Core transmission | C139: Next-generation backbone km | E139: % | AC139: 0 | AD139: 0 | AE139: 0 | AF139: 0 | AG139: 0 | AH139: 0 | AI139: 0 | AJ139: 0 | AK139: 0 | AL139: 0 | AM139: 0 | AN139: 0 | AO139: 0 | AP139: 0 | AQ139: 0 | AR139: 0 | AS139: 0 | AT139: 0 | AU139: 0 | AV139: 0 | AW139: 0 | AX139: 0 | AY139: 0 | AZ139: 0 | BA139: 0 | BB139: 0 | BC139: 0 | BD139: 0 | BE139: 0
A140: 131 | B140: 4G core network | C140: MME | E140: % | AC140: 0 | AD140: 0 | AE140: 0 | AF140: 0 | AG140: 0 | AH140: 0 | AI140: 0 | AJ140: 0 | AK140: 0 | AL140: 0 | AM140: 0 | AN140: 0 | AO140: 0 | AP140: 0 | AQ140: 0 | AR140: 0 | AS140: 0 | AT140: 0 | AU140: 0 | AV140: 0 | AW140: 0 | AX140: 0 | AY140: 0 | AZ140: 0 | BA140: 0 | BB140: 0 | BC140: 0 | BD140: 0 | BE140: 0
A141: 132 | B141: 4G core network | C141: Serving Gateway (SGW) | E141: % | AC141: 0 | AD141: 0 | AE141: 0 | AF141: 0 | AG141: 0 | AH141: 0 | AI141: 0 | AJ141: 0 | AK141: 0 | AL141: 0 | AM141: 0 | AN141: 0 | AO141: 0 | AP141: 0 | AQ141: 0 | AR141: 0 | AS141: 0 | AT141: 0 | AU141: 0 | AV141: 0 | AW141: 0 | AX141: 0 | AY141: 0 | AZ141: 0 | BA141: 0 | BB141: 0 | BC141: 0 | BD141: 0 | BE141: 0
A142: 133 | B142: 4G core network | C142: MME software | E142: % | AC142: 0 | AD142: 0 | AE142: 0 | AF142: 0 | AG142: 0 | AH142: 0 | AI142: 0 | AJ142: 0 | AK142: 0 | AL142: 0 | AM142: 0 | AN142: 0 | AO142: 0 | AP142: 0 | AQ142: 0 | AR142: 0 | AS142: 0 | AT142: 0 | AU142: 0 | AV142: 0 | AW142: 0 | AX142: 0 | AY142: 0 | AZ142: 0 | BA142: 0 | BB142: 0 | BC142: 0 | BD142: 0 | BE142: 0
A143: 134 | B143: 4G core network | C143: Data traffic manager | E143: % | F143: TRUE | AC143: 0 | AD143: 0 | AE143: 0 | AF143: 0 | AG143: 0 | AH143: 0 | AI143: 0 | AJ143: 0 | AK143: 0 | AL143: 0 | AM143: 0 | AN143: 0 | AO143: 0 | AP143: 0 | AQ143: 0 | AR143: 0 | AS143: 0 | AT143: 0 | AU143: 0 | AV143: 0 | AW143: 0 | AX143: 0 | AY143: 0 | AZ143: 0 | BA143: 0 | BB143: 0 | BC143: 0 | BD143: 0 | BE143: 0
A144: 135 | B144: VoLTE network | C144: Call server hardware | E144: % | AC144: 0 | AD144: 0 | AE144: 0 | AF144: 0 | AG144: 0 | AH144: 0 | AI144: 0 | AJ144: 0 | AK144: 0 | AL144: 0 | AM144: 0 | AN144: 0 | AO144: 0 | AP144: 0 | AQ144: 0 | AR144: 0 | AS144: 0 | AT144: 0 | AU144: 0 | AV144: 0 | AW144: 0 | AX144: 0 | AY144: 0 | AZ144: 0 | BA144: 0 | BB144: 0 | BC144: 0 | BD144: 0 | BE144: 0
A145: 136 | B145: VoLTE network | C145: Call server software | E145: % | AC145: 0 | AD145: 0 | AE145: 0 | AF145: 0 | AG145: 0 | AH145: 0 | AI145: 0 | AJ145: 0 | AK145: 0 | AL145: 0 | AM145: 0 | AN145: 0 | AO145: 0 | AP145: 0 | AQ145: 0 | AR145: 0 | AS145: 0 | AT145: 0 | AU145: 0 | AV145: 0 | AW145: 0 | AX145: 0 | AY145: 0 | AZ145: 0 | BA145: 0 | BB145: 0 | BC145: 0 | BD145: 0 | BE145: 0
A146: 137 | B146: VoLTE network | C146: TAS | E146: % | AC146: 0 | AD146: 0 | AE146: 0 | AF146: 0 | AG146: 0 | AH146: 0 | AI146: 0 | AJ146: 0 | AK146: 0 | AL146: 0 | AM146: 0 | AN146: 0 | AO146: 0 | AP146: 0 | AQ146: 0 | AR146: 0 | AS146: 0 | AT146: 0 | AU146: 0 | AV146: 0 | AW146: 0 | AX146: 0 | AY146: 0 | AZ146: 0 | BA146: 0 | BB146: 0 | BC146: 0 | BD146: 0 | BE146: 0
A147: 138 | B147: VoLTE network | C147: SBC hardware | E147: % | AC147: 0 | AD147: 0 | AE147: 0 | AF147: 0 | AG147: 0 | AH147: 0 | AI147: 0 | AJ147: 0 | AK147: 0 | AL147: 0 | AM147: 0 | AN147: 0 | AO147: 0 | AP147: 0 | AQ147: 0 | AR147: 0 | AS147: 0 | AT147: 0 | AU147: 0 | AV147: 0 | AW147: 0 | AX147: 0 | AY147: 0 | AZ147: 0 | BA147: 0 | BB147: 0 | BC147: 0 | BD147: 0 | BE147: 0
A148: 139 | B148: VoLTE network | C148: SBC software | E148: % | AC148: 0 | AD148: 0 | AE148: 0 | AF148: 0 | AG148: 0 | AH148: 0 | AI148: 0 | AJ148: 0 | AK148: 0 | AL148: 0 | AM148: 0 | AN148: 0 | AO148: 0 | AP148: 0 | AQ148: 0 | AR148: 0 | AS148: 0 | AT148: 0 | AU148: 0 | AV148: 0 | AW148: 0 | AX148: 0 | AY148: 0 | AZ148: 0 | BA148: 0 | BB148: 0 | BC148: 0 | BD148: 0 | BE148: 0
A149: 140 | B149: VoLTE network | C149: VoLTE upgrades to HLR | E149: % | AC149: 0 | AD149: 0 | AE149: 0 | AF149: 0 | AG149: 0 | AH149: 0 | AI149: 0 | AJ149: 0 | AK149: 0 | AL149: 0 | AM149: 0 | AN149: 0 | AO149: 0 | AP149: 0 | AQ149: 0 | AR149: 0 | AS149: 0 | AT149: 0 | AU149: 0 | AV149: 0 | AW149: 0 | AX149: 0 | AY149: 0 | AZ149: 0 | BA149: 0 | BB149: 0 | BC149: 0 | BD149: 0 | BE149: 0
A150: 141 | B150: VoLTE network | C150: VoLTE upgrades to MSC-S | E150: % | AC150: 0 | AD150: 0 | AE150: 0 | AF150: 0 | AG150: 0 | AH150: 0 | AI150: 0 | AJ150: 0 | AK150: 0 | AL150: 0 | AM150: 0 | AN150: 0 | AO150: 0 | AP150: 0 | AQ150: 0 | AR150: 0 | AS150: 0 | AT150: 0 | AU150: 0 | AV150: 0 | AW150: 0 | AX150: 0 | AY150: 0 | AZ150: 0 | BA150: 0 | BB150: 0 | BC150: 0 | BD150: 0 | BE150: 0
A151: 142 | B151: VoLTE network | C151: VoLTE upgrades to NMS | E151: % | AC151: 0 | AD151: 0 | AE151: 0 | AF151: 0 | AG151: 0 | AH151: 0 | AI151: 0 | AJ151: 0 | AK151: 0 | AL151: 0 | AM151: 0 | AN151: 0 | AO151: 0 | AP151: 0 | AQ151: 0 | AR151: 0 | AS151: 0 | AT151: 0 | AU151: 0 | AV151: 0 | AW151: 0 | AX151: 0 | AY151: 0 | AZ151: 0 | BA151: 0 | BB151: 0 | BC151: 0 | BD151: 0 | BE151: 0
A152: 143 | B152: 4G core network | C152: NMS | E152: % | F152: TRUE | AC152: 0 | AD152: 0 | AE152: -0.05 | AF152: -0.025 | AG152: -0.025 | AH152: -0.025 | AI152: -0.025 | AJ152: -0.025 | AK152: -0.025 | AL152: -0.01 | AM152: -0.01 | AN152: -0.01 | AO152: -0.01 | AP152: -0.01 | AQ152: -0.01 | AR152: -0.01 | AS152: 0 | AT152: 0 | AU152: 0 | AV152: 0 | AW152: 0 | AX152: 0 | AY152: 0 | AZ152: 0 | BA152: 0 | BB152: 0 | BC152: 0 | BD152: 0 | BE152: 0
A153: 144 | B153: HLRs | C153: HSS | E153: % | AC153: 0 | AD153: 0 | AE153: 0 | AF153: 0 | AG153: 0 | AH153: 0 | AI153: 0 | AJ153: 0 | AK153: 0 | AL153: 0 | AM153: 0 | AN153: 0 | AO153: 0 | AP153: 0 | AQ153: 0 | AR153: 0 | AS153: 0 | AT153: 0 | AU153: 0 | AV153: 0 | AW153: 0 | AX153: 0 | AY153: 0 | AZ153: 0 | BA153: 0 | BB153: 0 | BC153: 0 | BD153: 0 | BE153: 0
A154: 145 | B154: 4G core network | C154: spare | E154: %
A155: 146 | B155: 4G core network | C155: spare | E155: %
A156: 147 | B156: 4G core network | C156: spare | E156: %
A157: 148 | B157: 4G core network | C157: spare | E157: %
A158: 149 | B158: 4G Licence fee | C158: 4G spectrum annual payments | E158: % | AC158: 0 | AD158: 0 | AE158: 0 | AF158: 0 | AG158: 0 | AH158: 0 | AI158: 0 | AJ158: 0 | AK158: 0 | AL158: 0 | AM158: 0 | AN158: 0 | AO158: 0 | AP158: 0 | AQ158: 0 | AR158: 0 | AS158: 0 | AT158: 0 | AU158: 0 | AV158: 0 | AW158: 0 | AX158: 0 | AY158: 0 | AZ158: 0 | BA158: 0 | BB158: 0 | BC158: 0 | BD158: 0 | BE158: 0
A159: 150 | B159: 4G Licence fee | C159: 4G auction payments | E159: % | AC159: 0 | AD159: 0 | AE159: 0 | AF159: 0 | AG159: 0 | AH159: 0 | AI159: 0 | AJ159: 0 | AK159: 0 | AL159: 0 | AM159: 0 | AN159: 0 | AO159: 0 | AP159: 0 | AQ159: 0 | AR159: 0 | AS159: 0 | AT159: 0 | AU159: 0 | AV159: 0 | AW159: 0 | AX159: 0 | AY159: 0 | AZ159: 0 | BA159: 0 | BB159: 0 | BC159: 0 | BD159: 0 | BE159: 0
A160: 148 | B160: 4G core network | C160: spare | E160: %
A161: 149 | B161: 4G Licence fee | C161: 4G spectrum annual payments | E161: % | H161: 0 | I161: 0 | J161: 0 | K161: 0 | L161: 0 | M161: 0 | N161: 0 | O161: 0 | P161: 0 | Q161: 0 | R161: 0 | S161: 0 | T161: 0 | U161: 0 | V161: 0 | W161: 0 | X161: 0 | Y161: 0 | Z161: 0 | AA161: 0 | AB161: 0 | AC161: 0 | AD161: 0 | AE161: 0 | AF161: -0.7561688535 | AG161: 0 | AH161: 0 | AI161: 0 | AJ161: 0 | AK161: 0 | AL161: 0 | AM161: 0 | AN161: 0 | AO161: 0 | AP161: 0 | AQ161: 0 | AR161: 0 | AS161: 0 | AT161: 0 | AU161: 0 | AV161: 0 | AW161: 0 | AX161: 0 | AY161: 0 | AZ161: 0 | BA161: 0 | BB161: 0 | BC161: 0 | BD161: 0 | BE161: 0
A162: 150 | B162: 4G Licence fee | C162: 4G auction payments | E162: %

Sheet Calculations --->

Sheet Cost Trend calc
A1: Cost trend calculation
AD3: 2015 | AE3: =AD3+1 -> 2016 | AF3: =AE3+1 -> 2017 | AG3: 2018 | AH3: 2019 | AI3: 2020 | AJ3: 2021 | AK3: 2022 | AL3: 2023 | AM3: 2024 | AN3: 2025 | AO3: 2026 | AP3: 2027 | AQ3: 2028 | AR3: 2029 | AS3: 2030 | AT3: 2031 | AU3: 2032 | AV3: 2033 | AW3: 2034 | AX3: 2035 | AY3: 2036 | AZ3: 2037 | BA3: 2038 | BB3: 2039
C4: CPI input - Annual change | D4: CPI data Link | AD4: 0 | AE4: 0.7 | AF4: 2.7 | AG4: 2.5 | AH4: 1.8 | AI4: 0.9 | AJ4: 2.6 | AK4: 9.1
B6: Annual change | C6: Equipment (MCT model) | D6: E | AD6: =AVERAGEIF($D$24:$D$172,$D$6,AD$24:AD$172) -> -0.0265 | AE6: =AVERAGEIF($D$24:$D$172,$D$6,AE$24:AE$172) -> -0.0265 | AF6: -0.0265 | AG6: -0.0265 | AH6: -0.0245 | AI6: -0.012 | AJ6: -0.012 | AK6: -0.012 | AL6: -0.012 | AM6: -0.012 | AN6: -0.012 | AO6: -0.012 | AP6: 0 | AQ6: 0 | AR6: 0 | AS6: 0 | AT6: 0 | AU6: 0 | AV6: 0 | AW6: 0 | AX6: 0 | AY6: 0 | AZ6: 0 | BA6: 0 | BB6: 0
C7: Site (MCT model) | D7: S | AD7: =AVERAGEIF($D$24:$D$172,$D$7,AD$24:AD$172) -> 0.005 | AE7: 0.005 | AF7: 0.005 | AG7: 0 | AH7: 0 | AI7: 0 | AJ7: 0 | AK7: 0 | AL7: 0 | AM7: 0 | AN7: 0 | AO7: 0 | AP7: 0 | AQ7: 0 | AR7: 0 | AS7: 0 | AT7: 0 | AU7: 0 | AV7: 0 | AW7: 0 | AX7: 0 | AY7: 0 | AZ7: 0 | BA7: 0 | BB7: 0
C8: CPI | D8: CPI | AD8: =AD4/100 -> 0 | AE8: 0.007 | AF8: 0.027 | AG8: 0.025 | AH8: 0.018 | AI8: 0.009 | AJ8: 0.026 | AK8: =AK4/100 -> 0.091
B11: Index | C11: Equipment | AC11: 1 | AD11: =AC11*(1+AD6) -> 0.9735 | AE11: =AD11*(1+AE6) -> 0.94770225 | AF11: 0.9225881404 | AG11: 0.8981395547 | AH11: 0.8761351356 | AI11: 0.8656215139 | AJ11: 0.8552340558 | AK11: 0.8449712471
C12: Site | AC12: 1 | AD12: 1.005 | AE12: 1.010025 | AF12: 1.015075125 | AG12: 1.015075125 | AH12: 1.015075125 | AI12: 1.015075125 | AJ12: 1.015075125 | AK12: 1.015075125
C13: CPI | AC13: 1 | AD13: 1 | AE13: 1.007 | AF13: 1.034189 | AG13: 1.060043725 | AH13: 1.079124512 | AI13: 1.088836633 | AJ13: 1.117146385 | AK13: 1.218806706
C15: Combined increase over the period 2015-2022 for site costs
C16: Cost trend adjustment factor for site costs | AJ16: =AJ12*AJ13 -> 1.133987507 | AK16: =AK12*AK13 -> 1.23718037
D20: Identification of fixed link costs, Equipment (E ) or Site (S)
E21: ='MCT Cost Trends'!H8 -> 1990 | F21: ='MCT Cost Trends'!I8 -> 1991 | G21: ='MCT Cost Trends'!J8 -> 1992 | H21: ='MCT Cost Trends'!K8 -> 1993 | I21: ='MCT Cost Trends'!L8 -> 1994 | J21: ='MCT Cost Trends'!M8 -> 1995 | K21: ='MCT Cost Trends'!N8 -> 1996 | L21: ='MCT Cost Trends'!O8 -> 1997 | M21: ='MCT Cost Trends'!P8 -> 1998 | N21: ='MCT Cost Trends'!Q8 -> 1999 | O21: ='MCT Cost Trends'!R8 -> 2000 | P21: ='MCT Cost Trends'!S8 -> 2001 | Q21: ='MCT Cost Trends'!T8 -> 2002 | R21: ='MCT Cost Trends'!U8 -> 2003 | S21: ='MCT Cost Trends'!V8 -> 2004 | T21: ='MCT Cost Trends'!W8 -> 2005 | U21: ='MCT Cost Trends'!X8 -> 2006 | V21: ='MCT Cost Trends'!Y8 -> 2007 | W21: ='MCT Cost Trends'!Z8 -> 2008 | X21: ='MCT Cost Trends'!AA8 -> 2009 | Y21: ='MCT Cost Trends'!AB8 -> 2010 | Z21: ='MCT Cost Trends'!AC8 -> 2011 | AA21: ='MCT Cost Trends'!AD8 -> 2012 | AB21: ='MCT Cost Trends'!AE8 -> 2013 | AC21: ='MCT Cost Trends'!AF8 -> 2014 | AD21: ='MCT Cost Trends'!AG8 -> 2015 | AE21: ='MCT Cost Trends'!AH8 -> 2016 | AF21: ='MCT Cost Trends'!AI8 -> 2017 | AG21: ='MCT Cost Trends'!AJ8 -> 2018 | AH21: ='MCT Cost Trends'!AK8 -> 2019 | AI21: ='MCT Cost Trends'!AL8 -> 2020 | AJ21: ='MCT Cost Trends'!AM8 -> 2021 | AK21: ='MCT Cost Trends'!AN8 -> 2022 | AL21: ='MCT Cost Trends'!AO8 -> 2023 | AM21: ='MCT Cost Trends'!AP8 -> 2024 | AN21: ='MCT Cost Trends'!AQ8 -> 2025 | AO21: ='MCT Cost Trends'!AR8 -> 2026 | AP21: ='MCT Cost Trends'!AS8 -> 2027 | AQ21: ='MCT Cost Trends'!AT8 -> 2028 | AR21: ='MCT Cost Trends'!AU8 -> 2029 | AS21: ='MCT Cost Trends'!AV8 -> 2030 | AT21: ='MCT Cost Trends'!AW8 -> 2031 | AU21: ='MCT Cost Trends'!AX8 -> 2032 | AV21: ='MCT Cost Trends'!AY8 -> 2033 | AW21: ='MCT Cost Trends'!AZ8 -> 2034 | AX21: ='MCT Cost Trends'!BA8 -> 2035 | AY21: ='MCT Cost Trends'!BB8 -> 2036 | AZ21: ='MCT Cost Trends'!BC8 -> 2037 | BA21: ='MCT Cost Trends'!BD8 -> 2038 | BB21: ='MCT Cost Trends'!BE8 -> 2039
E22: ='MCT Cost Trends'!H9 -> Source: Retained from 2011 MCT model | F22: ='MCT Cost Trends'!I9 -> 0 | G22: ='MCT Cost Trends'!J9 -> 0 | H22: ='MCT Cost Trends'!K9 -> 0 | I22: ='MCT Cost Trends'!L9 -> 0 | J22: ='MCT Cost Trends'!M9 -> 0 | K22: ='MCT Cost Trends'!N9 -> 0 | L22: ='MCT Cost Trends'!O9 -> 0 | M22: ='MCT Cost Trends'!P9 -> 0 | N22: ='MCT Cost Trends'!Q9 -> 0 | O22: ='MCT Cost Trends'!R9 -> 0 | P22: ='MCT Cost Trends'!S9 -> 0 | Q22: ='MCT Cost Trends'!T9 -> 0 | R22: ='MCT Cost Trends'!U9 -> 0 | S22: ='MCT Cost Trends'!V9 -> 0 | T22: ='MCT Cost Trends'!W9 -> 0 | U22: ='MCT Cost Trends'!X9 -> 0 | V22: ='MCT Cost Trends'!Y9 -> 0 | W22: ='MCT Cost Trends'!Z9 -> 0 | X22: ='MCT Cost Trends'!AA9 -> Source: Orange and blue cells below indicate amendments based on s135 responses | Y22: ='MCT Cost Trends'!AB9 -> 0 | Z22: ='MCT Cost Trends'!AC9 -> 0 | AA22: ='MCT Cost Trends'!AD9 -> 0 | AB22: ='MCT Cost Trends'!AE9 -> 0 | AC22: ='MCT Cost Trends'!AF9 -> Source: Long-term values out to 2020/21 extended to 2026/27 | AD22: ='MCT Cost Trends'!AG9 -> 0 | AE22: ='MCT Cost Trends'!AH9 -> 0 | AF22: ='MCT Cost Trends'!AI9 -> 0 | AG22: ='MCT Cost Trends'!AJ9 -> 0 | AH22: ='MCT Cost Trends'!AK9 -> 0 | AI22: ='MCT Cost Trends'!AL9 -> 0 | AJ22: ='MCT Cost Trends'!AM9 -> 0 | AK22: ='MCT Cost Trends'!AN9 -> 0 | AL22: ='MCT Cost Trends'!AO9 -> 0 | AM22: ='MCT Cost Trends'!AP9 -> 0 | AN22: ='MCT Cost Trends'!AQ9 -> 0 | AO22: ='MCT Cost Trends'!AR9 -> 0 | AP22: ='MCT Cost Trends'!AS9 -> 0 | AQ22: ='MCT Cost Trends'!AT9 -> 0 | AR22: ='MCT Cost Trends'!AU9 -> 0 | AS22: ='MCT Cost Trends'!AV9 -> 0 | AT22: ='MCT Cost Trends'!AW9 -> 0 | AU22: ='MCT Cost Trends'!AX9 -> 0 | AV22: ='MCT Cost Trends'!AY9 -> 0 | AW22: ='MCT Cost Trends'!AZ9 -> 0 | AX22: ='MCT Cost Trends'!BA9 -> 0 | AY22: ='MCT Cost Trends'!BB9 -> 0 | AZ22: ='MCT Cost Trends'!BC9 -> 0 | BA22: ='MCT Cost Trends'!BD9 -> 0 | BB22: ='MCT Cost Trends'!BE9 -> 0
A23: 1 | B23: spare | C23: spare
A24: 2 | B24: Cell sites | C24: Macrocell: site acquisition and preparation and lease | D24: S | E24: ='MCT Cost Trends'!H11 -> 0 | F24: ='MCT Cost Trends'!I11 -> 0 | G24: ='MCT Cost Trends'!J11 -> 0 | H24: ='MCT Cost Trends'!K11 -> 0 | I24: ='MCT Cost Trends'!L11 -> 0 | J24: ='MCT Cost Trends'!M11 -> 0 | K24: ='MCT Cost Trends'!N11 -> 0 | L24: ='MCT Cost Trends'!O11 -> 0 | M24: ='MCT Cost Trends'!P11 -> 0 | N24: ='MCT Cost Trends'!Q11 -> 0 | O24: ='MCT Cost Trends'!R11 -> 0 | P24: ='MCT Cost Trends'!S11 -> 0 | Q24: ='MCT Cost Trends'!T11 -> 0 | R24: ='MCT Cost Trends'!U11 -> 0 | S24: ='MCT Cost Trends'!V11 -> 0 | T24: ='MCT Cost Trends'!W11 -> 0 | U24: ='MCT Cost Trends'!X11 -> 0 | V24: ='MCT Cost Trends'!Y11 -> 0 | W24: ='MCT Cost Trends'!Z11 -> 0.01 | X24: ='MCT Cost Trends'!AA11 -> -0.15 | Y24: ='MCT Cost Trends'!AB11 -> -0.15 | Z24: ='MCT Cost Trends'!AC11 -> -0.15 | AA24: ='MCT Cost Trends'!AD11 -> 0.007 | AB24: ='MCT Cost Trends'!AE11 -> 0.007 | AC24: ='MCT Cost Trends'!AF11 -> 0.02 | AD24: ='MCT Cost Trends'!AG11 -> 0.005 | AE24: ='MCT Cost Trends'!AH11 -> 0.005 | AF24: ='MCT Cost Trends'!AI11 -> 0.005 | AG24: ='MCT Cost Trends'!AJ11 -> 0 | AH24: ='MCT Cost Trends'!AK11 -> 0 | AI24: ='MCT Cost Trends'!AL11 -> 0 | AJ24: ='MCT Cost Trends'!AM11 -> 0 | AK24: ='MCT Cost Trends'!AN11 -> 0 | AL24: ='MCT Cost Trends'!AO11 -> 0 | AM24: ='MCT Cost Trends'!AP11 -> 0 | AN24: ='MCT Cost Trends'!AQ11 -> 0 | AO24: ='MCT Cost Trends'!AR11 -> 0 | AP24: ='MCT Cost Trends'!AS11 -> 0 | AQ24: ='MCT Cost Trends'!AT11 -> 0 | AR24: ='MCT Cost Trends'!AU11 -> 0 | AS24: ='MCT Cost Trends'!AV11 -> 0 | AT24: ='MCT Cost Trends'!AW11 -> 0 | AU24: ='MCT Cost Trends'!AX11 -> 0 | AV24: ='MCT Cost Trends'!AY11 -> 0 | AW24: ='MCT Cost Trends'!AZ11 -> 0 | AX24: ='MCT Cost Trends'!BA11 -> 0 | AY24: ='MCT Cost Trends'!BB11 -> 0 | AZ24: ='MCT Cost Trends'!BC11 -> 0 | BA24: ='MCT Cost Trends'!BD11 -> 0 | BB24: ='MCT Cost Trends'!BE11 -> 0
A25: 3 | B25: 2G cell site equipment | C25: Macrocell: equipment (omni sector)
A26: 4 | B26: spare | C26: spare
A27: 5 | B27: 2G cell site equipment | C27: Macrocell: equipment (2 sector)
A28: 6 | B28: spare | C28: spare
A29: 7 | B29: 2G cell site equipment | C29: Macrocell: equipment (3 sector)
A30: 8 | B30: Cell sites | C30: Microcell: site acquisition and preparation and lease | D30: S | E30: ='MCT Cost Trends'!H17 -> 0 | F30: ='MCT Cost Trends'!I17 -> 0 | G30: ='MCT Cost Trends'!J17 -> 0 | H30: ='MCT Cost Trends'!K17 -> 0 | I30: ='MCT Cost Trends'!L17 -> 0 | J30: ='MCT Cost Trends'!M17 -> 0 | K30: ='MCT Cost Trends'!N17 -> 0 | L30: ='MCT Cost Trends'!O17 -> 0 | M30: ='MCT Cost Trends'!P17 -> 0 | N30: ='MCT Cost Trends'!Q17 -> 0 | O30: ='MCT Cost Trends'!R17 -> 0 | P30: ='MCT Cost Trends'!S17 -> 0 | Q30: ='MCT Cost Trends'!T17 -> 0 | R30: ='MCT Cost Trends'!U17 -> 0 | S30: ='MCT Cost Trends'!V17 -> 0 | T30: ='MCT Cost Trends'!W17 -> 0 | U30: ='MCT Cost Trends'!X17 -> 0 | V30: ='MCT Cost Trends'!Y17 -> 0 | W30: ='MCT Cost Trends'!Z17 -> 0.01 | X30: ='MCT Cost Trends'!AA17 -> -0.15 | Y30: ='MCT Cost Trends'!AB17 -> -0.15 | Z30: ='MCT Cost Trends'!AC17 -> -0.15 | AA30: ='MCT Cost Trends'!AD17 -> 0.007 | AB30: ='MCT Cost Trends'!AE17 -> 0.007 | AC30: ='MCT Cost Trends'!AF17 -> 0.02 | AD30: ='MCT Cost Trends'!AG17 -> 0.005 | AE30: ='MCT Cost Trends'!AH17 -> 0.005 | AF30: ='MCT Cost Trends'!AI17 -> 0.005 | AG30: ='MCT Cost Trends'!AJ17 -> 0 | AH30: ='MCT Cost Trends'!AK17 -> 0 | AI30: ='MCT Cost Trends'!AL17 -> 0 | AJ30: ='MCT Cost Trends'!AM17 -> 0 | AK30: ='MCT Cost Trends'!AN17 -> 0 | AL30: ='MCT Cost Trends'!AO17 -> 0 | AM30: ='MCT Cost Trends'!AP17 -> 0 | AN30: ='MCT Cost Trends'!AQ17 -> 0 | AO30: ='MCT Cost Trends'!AR17 -> 0 | AP30: ='MCT Cost Trends'!AS17 -> 0 | AQ30: ='MCT Cost Trends'!AT17 -> 0 | AR30: ='MCT Cost Trends'!AU17 -> 0 | AS30: ='MCT Cost Trends'!AV17 -> 0 | AT30: ='MCT Cost Trends'!AW17 -> 0 | AU30: ='MCT Cost Trends'!AX17 -> 0 | AV30: ='MCT Cost Trends'!AY17 -> 0 | AW30: ='MCT Cost Trends'!AZ17 -> 0 | AX30: ='MCT Cost Trends'!BA17 -> 0 | AY30: ='MCT Cost Trends'!BB17 -> 0 | AZ30: ='MCT Cost Trends'!BC17 -> 0 | BA30: ='MCT Cost Trends'!BD17 -> 0 | BB30: ='MCT Cost Trends'!BE17 -> 0
A31: 9 | B31: 2G cell site equipment | C31: Microcell: equipment
A32: 10 | B32: Cell sites | C32: Picocell: site acquisition and preparation and lease | D32: S | E32: ='MCT Cost Trends'!H19 -> 0 | F32: ='MCT Cost Trends'!I19 -> 0 | G32: ='MCT Cost Trends'!J19 -> 0 | H32: ='MCT Cost Trends'!K19 -> 0 | I32: ='MCT Cost Trends'!L19 -> 0 | J32: ='MCT Cost Trends'!M19 -> 0 | K32: ='MCT Cost Trends'!N19 -> 0 | L32: ='MCT Cost Trends'!O19 -> 0 | M32: ='MCT Cost Trends'!P19 -> 0 | N32: ='MCT Cost Trends'!Q19 -> 0 | O32: ='MCT Cost Trends'!R19 -> 0 | P32: ='MCT Cost Trends'!S19 -> 0 | Q32: ='MCT Cost Trends'!T19 -> 0 | R32: ='MCT Cost Trends'!U19 -> 0 | S32: ='MCT Cost Trends'!V19 -> 0 | T32: ='MCT Cost Trends'!W19 -> 0 | U32: ='MCT Cost Trends'!X19 -> 0 | V32: ='MCT Cost Trends'!Y19 -> 0 | W32: ='MCT Cost Trends'!Z19 -> 0.01 | X32: ='MCT Cost Trends'!AA19 -> -0.15 | Y32: ='MCT Cost Trends'!AB19 -> -0.15 | Z32: ='MCT Cost Trends'!AC19 -> -0.15 | AA32: ='MCT Cost Trends'!AD19 -> 0.007 | AB32: ='MCT Cost Trends'!AE19 -> 0.007 | AC32: ='MCT Cost Trends'!AF19 -> 0.02 | AD32: ='MCT Cost Trends'!AG19 -> 0.005 | AE32: ='MCT Cost Trends'!AH19 -> 0.005 | AF32: ='MCT Cost Trends'!AI19 -> 0.005 | AG32: ='MCT Cost Trends'!AJ19 -> 0 | AH32: ='MCT Cost Trends'!AK19 -> 0 | AI32: ='MCT Cost Trends'!AL19 -> 0 | AJ32: ='MCT Cost Trends'!AM19 -> 0 | AK32: ='MCT Cost Trends'!AN19 -> 0 | AL32: ='MCT Cost Trends'!AO19 -> 0 | AM32: ='MCT Cost Trends'!AP19 -> 0 | AN32: ='MCT Cost Trends'!AQ19 -> 0 | AO32: ='MCT Cost Trends'!AR19 -> 0 | AP32: ='MCT Cost Trends'!AS19 -> 0 | AQ32: ='MCT Cost Trends'!AT19 -> 0 | AR32: ='MCT Cost Trends'!AU19 -> 0 | AS32: ='MCT Cost Trends'!AV19 -> 0 | AT32: ='MCT Cost Trends'!AW19 -> 0 | AU32: ='MCT Cost Trends'!AX19 -> 0 | AV32: ='MCT Cost Trends'!AY19 -> 0 | AW32: ='MCT Cost Trends'!AZ19 -> 0 | AX32: ='MCT Cost Trends'!BA19 -> 0 | AY32: ='MCT Cost Trends'!BB19 -> 0 | AZ32: ='MCT Cost Trends'!BC19 -> 0 | BA32: ='MCT Cost Trends'!BD19 -> 0 | BB32: ='MCT Cost Trends'!BE19 -> 0
A33: 11 | B33: 2G cell site equipment | C33: Picocell: equipment
A34: 12 | B34: 2G TRXs | C34: Macrocell: additional TRXs
A35: 13 | B35: 2G TRXs | C35: Microcell: additional TRXs
A36: 14 | B36: 2G TRXs | C36: Picocell: additional TRXs
A37: 15 | B37: 2G BSCs | C37: BSC: base unit
A38: 16 | B38: 2G BSCs | C38: BSC: BS-facing port increment
A39: 17 | B39: 2G BSCs | C39: BSC: Core-facing port increment
A40: 18 | B40: 2G BSCs | C40: Packet control units
A41: 19 | B41: 2G MSCs | C41: MSC: processor
A42: 20 | B42: 2G MSCs | C42: Software
A43: 21 | B43: 2G MSCs | C43: Interconnect interface
A44: 22 | B44: 2G MSCs | C44: Switching Support Plant
A45: 23 | B45: Main switch sites | C45: Buildings (switch building preparation)
A46: 24 | B46: Main switch sites | C46: Site lease
A47: 25 | B47: 2G MSC ports - BSC-facing | C47: MSC: BSC-facing port increment
A48: 26 | B48: 2G MSC ports - Interconnect facing | C48: MSC: interconnect-facing port increment
A49: 27 | B49: 2G MSC ports - Interswitch facing | C49: MSC: switch-facing port increment
A50: 28 | B50: Core transmission | C50: Core transmission in 2Mbit/s circuits
A51: 29 | B51: HLRs | C51: HLR
A52: 30 | B52: Transit switches | C52: Transit switches
A53: 31 | B53: spare | C53: spare
A54: 32 | B54: 2G Licence fees | C54: Annual GSM licence fee
A55: 33 | B55: 2G NMS | C55: Network management
A56: 34 | B56: 2G GSN | C56: 2G SGSN
A57: 35 | B57: 2G GSN | C57: 2G GGSN
A58: 36 | B58: SMSC | C58: SMSC
A59: 37 | B59: Backhaul | C59: 2 Mbit/s microwave link | D59: E | E59: ='MCT Cost Trends'!H46 -> -0.05 | F59: ='MCT Cost Trends'!I46 -> -0.05 | G59: ='MCT Cost Trends'!J46 -> -0.05 | H59: ='MCT Cost Trends'!K46 -> -0.05 | I59: ='MCT Cost Trends'!L46 -> -0.05 | J59: ='MCT Cost Trends'!M46 -> -0.05 | K59: ='MCT Cost Trends'!N46 -> -0.02 | L59: ='MCT Cost Trends'!O46 -> -0.02 | M59: ='MCT Cost Trends'!P46 -> -0.02 | N59: ='MCT Cost Trends'!Q46 -> -0.02 | O59: ='MCT Cost Trends'!R46 -> -0.02 | P59: ='MCT Cost Trends'!S46 -> -0.02 | Q59: ='MCT Cost Trends'!T46 -> -0.02 | R59: ='MCT Cost Trends'!U46 -> -0.02 | S59: ='MCT Cost Trends'!V46 -> -0.02 | T59: ='MCT Cost Trends'!W46 -> -0.02 | U59: ='MCT Cost Trends'!X46 -> -0.02 | V59: ='MCT Cost Trends'!Y46 -> -0.02 | W59: ='MCT Cost Trends'!Z46 -> -0.02 | X59: ='MCT Cost Trends'!AA46 -> -0.02 | Y59: ='MCT Cost Trends'!AB46 -> -0.05 | Z59: ='MCT Cost Trends'!AC46 -> -0.05 | AA59: ='MCT Cost Trends'!AD46 -> -0.05 | AB59: ='MCT Cost Trends'!AE46 -> -0.05 | AC59: ='MCT Cost Trends'!AF46 -> -0.025 | AD59: ='MCT Cost Trends'!AG46 -> -0.025 | AE59: ='MCT Cost Trends'!AH46 -> -0.025 | AF59: ='MCT Cost Trends'!AI46 -> -0.025 | AG59: ='MCT Cost Trends'!AJ46 -> -0.025 | AH59: ='MCT Cost Trends'!AK46 -> -0.025 | AI59: ='MCT Cost Trends'!AL46 -> -0.01 | AJ59: ='MCT Cost Trends'!AM46 -> -0.01 | AK59: ='MCT Cost Trends'!AN46 -> -0.01 | AL59: ='MCT Cost Trends'!AO46 -> -0.01 | AM59: ='MCT Cost Trends'!AP46 -> -0.01 | AN59: ='MCT Cost Trends'!AQ46 -> -0.01 | AO59: ='MCT Cost Trends'!AR46 -> -0.01 | AP59: ='MCT Cost Trends'!AS46 -> 0 | AQ59: ='MCT Cost Trends'!AT46 -> 0 | AR59: ='MCT Cost Trends'!AU46 -> 0 | AS59: ='MCT Cost Trends'!AV46 -> 0 | AT59: ='MCT Cost Trends'!AW46 -> 0 | AU59: ='MCT Cost Trends'!AX46 -> 0 | AV59: ='MCT Cost Trends'!AY46 -> 0 | AW59: ='MCT Cost Trends'!AZ46 -> 0 | AX59: ='MCT Cost Trends'!BA46 -> 0 | AY59: ='MCT Cost Trends'!BB46 -> 0 | AZ59: ='MCT Cost Trends'!BC46 -> 0 | BA59: ='MCT Cost Trends'!BD46 -> 0 | BB59: ='MCT Cost Trends'!BE46 -> 0
A60: 38 | B60: Backhaul | C60: 8 Mbit/s microwave link | D60: E | E60: ='MCT Cost Trends'!H47 -> -0.05 | F60: ='MCT Cost Trends'!I47 -> -0.05 | G60: ='MCT Cost Trends'!J47 -> -0.05 | H60: ='MCT Cost Trends'!K47 -> -0.05 | I60: ='MCT Cost Trends'!L47 -> -0.05 | J60: ='MCT Cost Trends'!M47 -> -0.05 | K60: ='MCT Cost Trends'!N47 -> -0.02 | L60: ='MCT Cost Trends'!O47 -> -0.02 | M60: ='MCT Cost Trends'!P47 -> -0.02 | N60: ='MCT Cost Trends'!Q47 -> -0.02 | O60: ='MCT Cost Trends'!R47 -> -0.02 | P60: ='MCT Cost Trends'!S47 -> -0.02 | Q60: ='MCT Cost Trends'!T47 -> -0.02 | R60: ='MCT Cost Trends'!U47 -> -0.02 | S60: ='MCT Cost Trends'!V47 -> -0.02 | T60: ='MCT Cost Trends'!W47 -> -0.02 | U60: ='MCT Cost Trends'!X47 -> -0.02 | V60: ='MCT Cost Trends'!Y47 -> -0.02 | W60: ='MCT Cost Trends'!Z47 -> -0.02 | X60: ='MCT Cost Trends'!AA47 -> -0.02 | Y60: ='MCT Cost Trends'!AB47 -> -0.05 | Z60: ='MCT Cost Trends'!AC47 -> -0.05 | AA60: ='MCT Cost Trends'!AD47 -> -0.05 | AB60: ='MCT Cost Trends'!AE47 -> -0.05 | AC60: ='MCT Cost Trends'!AF47 -> -0.025 | AD60: ='MCT Cost Trends'!AG47 -> -0.025 | AE60: ='MCT Cost Trends'!AH47 -> -0.025 | AF60: ='MCT Cost Trends'!AI47 -> -0.025 | AG60: ='MCT Cost Trends'!AJ47 -> -0.025 | AH60: ='MCT Cost Trends'!AK47 -> -0.025 | AI60: ='MCT Cost Trends'!AL47 -> -0.01 | AJ60: ='MCT Cost Trends'!AM47 -> -0.01 | AK60: ='MCT Cost Trends'!AN47 -> -0.01 | AL60: ='MCT Cost Trends'!AO47 -> -0.01 | AM60: ='MCT Cost Trends'!AP47 -> -0.01 | AN60: ='MCT Cost Trends'!AQ47 -> -0.01 | AO60: ='MCT Cost Trends'!AR47 -> -0.01 | AP60: ='MCT Cost Trends'!AS47 -> 0 | AQ60: ='MCT Cost Trends'!AT47 -> 0 | AR60: ='MCT Cost Trends'!AU47 -> 0 | AS60: ='MCT Cost Trends'!AV47 -> 0 | AT60: ='MCT Cost Trends'!AW47 -> 0 | AU60: ='MCT Cost Trends'!AX47 -> 0 | AV60: ='MCT Cost Trends'!AY47 -> 0 | AW60: ='MCT Cost Trends'!AZ47 -> 0 | AX60: ='MCT Cost Trends'!BA47 -> 0 | AY60: ='MCT Cost Trends'!BB47 -> 0 | AZ60: ='MCT Cost Trends'!BC47 -> 0 | BA60: ='MCT Cost Trends'!BD47 -> 0 | BB60: ='MCT Cost Trends'!BE47 -> 0
A61: 39 | B61: Backhaul | C61: 16 Mbit/s microwave link | D61: E | E61: ='MCT Cost Trends'!H48 -> -0.05 | F61: ='MCT Cost Trends'!I48 -> -0.05 | G61: ='MCT Cost Trends'!J48 -> -0.05 | H61: ='MCT Cost Trends'!K48 -> -0.05 | I61: ='MCT Cost Trends'!L48 -> -0.05 | J61: ='MCT Cost Trends'!M48 -> -0.05 | K61: ='MCT Cost Trends'!N48 -> -0.02 | L61: ='MCT Cost Trends'!O48 -> -0.02 | M61: ='MCT Cost Trends'!P48 -> -0.02 | N61: ='MCT Cost Trends'!Q48 -> -0.02 | O61: ='MCT Cost Trends'!R48 -> -0.02 | P61: ='MCT Cost Trends'!S48 -> -0.02 | Q61: ='MCT Cost Trends'!T48 -> -0.02 | R61: ='MCT Cost Trends'!U48 -> -0.02 | S61: ='MCT Cost Trends'!V48 -> -0.02 | T61: ='MCT Cost Trends'!W48 -> -0.02 | U61: ='MCT Cost Trends'!X48 -> -0.02 | V61: ='MCT Cost Trends'!Y48 -> -0.02 | W61: ='MCT Cost Trends'!Z48 -> -0.02 | X61: ='MCT Cost Trends'!AA48 -> -0.02 | Y61: ='MCT Cost Trends'!AB48 -> -0.05 | Z61: ='MCT Cost Trends'!AC48 -> -0.05 | AA61: ='MCT Cost Trends'!AD48 -> -0.05 | AB61: ='MCT Cost Trends'!AE48 -> -0.05 | AC61: ='MCT Cost Trends'!AF48 -> -0.025 | AD61: ='MCT Cost Trends'!AG48 -> -0.025 | AE61: ='MCT Cost Trends'!AH48 -> -0.025 | AF61: ='MCT Cost Trends'!AI48 -> -0.025 | AG61: ='MCT Cost Trends'!AJ48 -> -0.025 | AH61: ='MCT Cost Trends'!AK48 -> -0.025 | AI61: ='MCT Cost Trends'!AL48 -> -0.01 | AJ61: ='MCT Cost Trends'!AM48 -> -0.01 | AK61: ='MCT Cost Trends'!AN48 -> -0.01 | AL61: ='MCT Cost Trends'!AO48 -> -0.01 | AM61: ='MCT Cost Trends'!AP48 -> -0.01 | AN61: ='MCT Cost Trends'!AQ48 -> -0.01 | AO61: ='MCT Cost Trends'!AR48 -> -0.01 | AP61: ='MCT Cost Trends'!AS48 -> 0 | AQ61: ='MCT Cost Trends'!AT48 -> 0 | AR61: ='MCT Cost Trends'!AU48 -> 0 | AS61: ='MCT Cost Trends'!AV48 -> 0 | AT61: ='MCT Cost Trends'!AW48 -> 0 | AU61: ='MCT Cost Trends'!AX48 -> 0 | AV61: ='MCT Cost Trends'!AY48 -> 0 | AW61: ='MCT Cost Trends'!AZ48 -> 0 | AX61: ='MCT Cost Trends'!BA48 -> 0 | AY61: ='MCT Cost Trends'!BB48 -> 0 | AZ61: ='MCT Cost Trends'!BC48 -> 0 | BA61: ='MCT Cost Trends'!BD48 -> 0 | BB61: ='MCT Cost Trends'!BE48 -> 0
A62: 40 | B62: Backhaul | C62: 32 Mbit/s microwave link | D62: E | E62: ='MCT Cost Trends'!H49 -> -0.05 | F62: ='MCT Cost Trends'!I49 -> -0.05 | G62: ='MCT Cost Trends'!J49 -> -0.05 | H62: ='MCT Cost Trends'!K49 -> -0.05 | I62: ='MCT Cost Trends'!L49 -> -0.05 | J62: ='MCT Cost Trends'!M49 -> -0.05 | K62: ='MCT Cost Trends'!N49 -> -0.02 | L62: ='MCT Cost Trends'!O49 -> -0.02 | M62: ='MCT Cost Trends'!P49 -> -0.02 | N62: ='MCT Cost Trends'!Q49 -> -0.02 | O62: ='MCT Cost Trends'!R49 -> -0.02 | P62: ='MCT Cost Trends'!S49 -> -0.02 | Q62: ='MCT Cost Trends'!T49 -> -0.02 | R62: ='MCT Cost Trends'!U49 -> -0.02 | S62: ='MCT Cost Trends'!V49 -> -0.02 | T62: ='MCT Cost Trends'!W49 -> -0.02 | U62: ='MCT Cost Trends'!X49 -> -0.02 | V62: ='MCT Cost Trends'!Y49 -> -0.02 | W62: ='MCT Cost Trends'!Z49 -> -0.02 | X62: ='MCT Cost Trends'!AA49 -> -0.02 | Y62: ='MCT Cost Trends'!AB49 -> -0.05 | Z62: ='MCT Cost Trends'!AC49 -> -0.05 | AA62: ='MCT Cost Trends'!AD49 -> -0.05 | AB62: ='MCT Cost Trends'!AE49 -> -0.05 | AC62: ='MCT Cost Trends'!AF49 -> -0.025 | AD62: ='MCT Cost Trends'!AG49 -> -0.025 | AE62: ='MCT Cost Trends'!AH49 -> -0.025 | AF62: ='MCT Cost Trends'!AI49 -> -0.025 | AG62: ='MCT Cost Trends'!AJ49 -> -0.025 | AH62: ='MCT Cost Trends'!AK49 -> -0.025 | AI62: ='MCT Cost Trends'!AL49 -> -0.01 | AJ62: ='MCT Cost Trends'!AM49 -> -0.01 | AK62: ='MCT Cost Trends'!AN49 -> -0.01 | AL62: ='MCT Cost Trends'!AO49 -> -0.01 | AM62: ='MCT Cost Trends'!AP49 -> -0.01 | AN62: ='MCT Cost Trends'!AQ49 -> -0.01 | AO62: ='MCT Cost Trends'!AR49 -> -0.01 | AP62: ='MCT Cost Trends'!AS49 -> 0 | AQ62: ='MCT Cost Trends'!AT49 -> 0 | AR62: ='MCT Cost Trends'!AU49 -> 0 | AS62: ='MCT Cost Trends'!AV49 -> 0 | AT62: ='MCT Cost Trends'!AW49 -> 0 | AU62: ='MCT Cost Trends'!AX49 -> 0 | AV62: ='MCT Cost Trends'!AY49 -> 0 | AW62: ='MCT Cost Trends'!AZ49 -> 0 | AX62: ='MCT Cost Trends'!BA49 -> 0 | AY62: ='MCT Cost Trends'!BB49 -> 0 | AZ62: ='MCT Cost Trends'!BC49 -> 0 | BA62: ='MCT Cost Trends'!BD49 -> 0 | BB62: ='MCT Cost Trends'!BE49 -> 0
A63: 41 | B63: spare | C63: spare
A64: 42 | B64: 3G cell site equipment | C64: Macrocell equipment
A65: 43 | B65: 3G cell site equipment | C65: Microcell equipment
A66: 44 | B66: 3G cell site equipment | C66: Picocell equipment
A67: 45 | B67: 3G site upgrade | C67: Macro site upgrade
A68: 46 | B68: 3G site upgrade | C68: Micro site upgrade
A69: 47 | B69: 3G site upgrade | C69: Pico site upgrade
A70: 48 | B70: 3G cell site equipment | C70: Macrocell: additional carriers
A71: 49 | B71: 3G cell site equipment | C71: Microcell: additional carriers
A72: 50 | B72: 3G cell site equipment | C72: Picocell: additional carriers
A73: 51 | B73: 3G cell site equipment | C73: Macrocell: additional sectors
A74: 52 | B74: 3G cell site equipment | C74: Microcell: additional sectors
A75: 53 | B75: 3G cell site equipment | C75: Picocell: additional sectors
A76: 54 | B76: 3G RNCs | C76: RNC: base unit
A77: 55 | B77: 3G RNCs | C77: RNC: NodeB-facing port increment
A78: 56 | B78: 3G RNCs | C78: RNC: Core-facing port increment
A79: 57 | B79: 2G/3G layered core nodes | C79: MSC server
A80: 58 | B80: 2G/3G layered core nodes | C80: Media gateway
A81: 59 | B81: 3G MSCs | C81: Interconnect interface
A82: 60 | B82: 3G MSCs | C82: Switching Support Plant
A83: 61 | B83: 3G MSC ports - RNC-facing | C83: MSC: BSC-facing port increment
A84: 62 | B84: 3G MSC ports - Interconnect facing | C84: MSC: interconnect-facing port increment
A85: 63 | B85: 3G MSC ports - Interswitch facing | C85: MSC: switch-facing port increment
A86: 64 | B86: 3G NMS | C86: Network management
A87: 65 | B87: 3G GSN | C87: 3G SGSN
A88: 66 | B88: 3G GSN | C88: 3G GGSN
A89: 67 | B89: spare | C89: spare
A90: 68 | B90: Backhaul | C90: Base unit | D90: E | E90: ='MCT Cost Trends'!H77 -> -0.05 | F90: ='MCT Cost Trends'!I77 -> -0.05 | G90: ='MCT Cost Trends'!J77 -> -0.05 | H90: ='MCT Cost Trends'!K77 -> -0.05 | I90: ='MCT Cost Trends'!L77 -> -0.05 | J90: ='MCT Cost Trends'!M77 -> -0.05 | K90: ='MCT Cost Trends'!N77 -> -0.1 | L90: ='MCT Cost Trends'!O77 -> -0.1 | M90: ='MCT Cost Trends'!P77 -> -0.1 | N90: ='MCT Cost Trends'!Q77 -> -0.1 | O90: ='MCT Cost Trends'!R77 -> -0.1 | P90: ='MCT Cost Trends'!S77 -> -0.1 | Q90: ='MCT Cost Trends'!T77 -> -0.1 | R90: ='MCT Cost Trends'!U77 -> -0.1 | S90: ='MCT Cost Trends'!V77 -> -0.1 | T90: ='MCT Cost Trends'!W77 -> -0.1 | U90: ='MCT Cost Trends'!X77 -> -0.1 | V90: ='MCT Cost Trends'!Y77 -> -0.05 | W90: ='MCT Cost Trends'!Z77 -> -0.05 | X90: ='MCT Cost Trends'!AA77 -> -0.05 | Y90: ='MCT Cost Trends'!AB77 -> -0.05 | Z90: ='MCT Cost Trends'!AC77 -> -0.05 | AA90: ='MCT Cost Trends'!AD77 -> -0.05 | AB90: ='MCT Cost Trends'!AE77 -> -0.05 | AC90: ='MCT Cost Trends'!AF77 -> -0.025 | AD90: ='MCT Cost Trends'!AG77 -> -0.05 | AE90: ='MCT Cost Trends'!AH77 -> -0.05 | AF90: ='MCT Cost Trends'!AI77 -> -0.05 | AG90: ='MCT Cost Trends'!AJ77 -> -0.05 | AH90: ='MCT Cost Trends'!AK77 -> -0.03 | AI90: ='MCT Cost Trends'!AL77 -> -0.01 | AJ90: ='MCT Cost Trends'!AM77 -> -0.01 | AK90: ='MCT Cost Trends'!AN77 -> -0.01 | AL90: ='MCT Cost Trends'!AO77 -> -0.01 | AM90: ='MCT Cost Trends'!AP77 -> -0.01 | AN90: ='MCT Cost Trends'!AQ77 -> -0.01 | AO90: ='MCT Cost Trends'!AR77 -> -0.01 | AP90: ='MCT Cost Trends'!AS77 -> 0 | AQ90: ='MCT Cost Trends'!AT77 -> 0 | AR90: ='MCT Cost Trends'!AU77 -> 0 | AS90: ='MCT Cost Trends'!AV77 -> 0 | AT90: ='MCT Cost Trends'!AW77 -> 0 | AU90: ='MCT Cost Trends'!AX77 -> 0 | AV90: ='MCT Cost Trends'!AY77 -> 0 | AW90: ='MCT Cost Trends'!AZ77 -> 0 | AX90: ='MCT Cost Trends'!BA77 -> 0 | AY90: ='MCT Cost Trends'!BB77 -> 0 | AZ90: ='MCT Cost Trends'!BC77 -> 0 | BA90: ='MCT Cost Trends'!BD77 -> 0 | BB90: ='MCT Cost Trends'!BE77 -> 0 | BC90: ='MCT Cost Trends'!BF80 -> 0
A91: 69 | B91: Remote switching sites | C91: Remote switching sites (BSC and RNC)
A92: 70 | B92: 3G Licence fees | C92: UMTS licence fee in 2004/05
A93: 71 | B93: 3G Licence fees | C93: UMTS licence fee in 2012/13
A94: 72 | B94: spare | C94: spare
A95: 73 | B95: spare | C95: spare
A96: 74 | B96: Cell sites | C96: Transformation sites
A97: 75 | B97: spare | C97: spare
A98: 76 | B98: HSPA 3.6 upgrade | C98: HSPA 3.6 site upgrade
A99: 77 | B99: HSPA 7.2 upgrade | C99: HSPA 7.2 site upgrade
A100: 78 | B100: HSPA 14.4 upgrade | C100: HSPA 14.4 site upgrade
A101: 79 | B101: HSPA 21 upgrade | C101: HSPA 21 site upgrade
A102: 80 | B102: HSPA 42 upgrade | C102: HSPA 42 site upgrade
A103: 81 | B103: HSPA 84 upgrade | C103: HSPA 84 site upgrade
A104: 82 | B104: 3G cell site equipment | C104: HSPA site upgrade spare
A105: 83 | B105: Backhaul | C105: Leased Ethernet (100Mbit/s)
A106: 84 | B106: Backhaul | C106: Leased Ethernet (300Mbit/s)
A107: 85 | B107: Backhaul | C107: Owned microwave (100Mbit/s) | D107: E | E107: ='MCT Cost Trends'!H94 -> 0 | F107: ='MCT Cost Trends'!I94 -> 0 | G107: ='MCT Cost Trends'!J94 -> 0 | H107: ='MCT Cost Trends'!K94 -> 0 | I107: ='MCT Cost Trends'!L94 -> 0 | J107: ='MCT Cost Trends'!M94 -> 0 | K107: ='MCT Cost Trends'!N94 -> 0 | L107: ='MCT Cost Trends'!O94 -> 0 | M107: ='MCT Cost Trends'!P94 -> 0 | N107: ='MCT Cost Trends'!Q94 -> 0 | O107: ='MCT Cost Trends'!R94 -> 0 | P107: ='MCT Cost Trends'!S94 -> 0 | Q107: ='MCT Cost Trends'!T94 -> 0 | R107: ='MCT Cost Trends'!U94 -> 0 | S107: ='MCT Cost Trends'!V94 -> 0 | T107: ='MCT Cost Trends'!W94 -> 0 | U107: ='MCT Cost Trends'!X94 -> 0 | V107: ='MCT Cost Trends'!Y94 -> 0 | W107: ='MCT Cost Trends'!Z94 -> 0 | X107: ='MCT Cost Trends'!AA94 -> 0 | Y107: ='MCT Cost Trends'!AB94 -> 0 | Z107: ='MCT Cost Trends'!AC94 -> -0.05 | AA107: ='MCT Cost Trends'!AD94 -> -0.078 | AB107: ='MCT Cost Trends'!AE94 -> -0.078 | AC107: ='MCT Cost Trends'!AF94 -> -0.025 | AD107: ='MCT Cost Trends'!AG94 -> -0.025 | AE107: ='MCT Cost Trends'!AH94 -> -0.025 | AF107: ='MCT Cost Trends'!AI94 -> -0.025 | AG107: ='MCT Cost Trends'!AJ94 -> -0.025 | AH107: ='MCT Cost Trends'!AK94 -> -0.025 | AI107: ='MCT Cost Trends'!AL94 -> -0.01 | AJ107: ='MCT Cost Trends'!AM94 -> -0.01 | AK107: ='MCT Cost Trends'!AN94 -> -0.01 | AL107: ='MCT Cost Trends'!AO94 -> -0.01 | AM107: ='MCT Cost Trends'!AP94 -> -0.01 | AN107: ='MCT Cost Trends'!AQ94 -> -0.01 | AO107: ='MCT Cost Trends'!AR94 -> -0.01 | AP107: ='MCT Cost Trends'!AS94 -> 0 | AQ107: ='MCT Cost Trends'!AT94 -> 0 | AR107: ='MCT Cost Trends'!AU94 -> 0 | AS107: ='MCT Cost Trends'!AV94 -> 0 | AT107: ='MCT Cost Trends'!AW94 -> 0 | AU107: ='MCT Cost Trends'!AX94 -> 0 | AV107: ='MCT Cost Trends'!AY94 -> 0 | AW107: ='MCT Cost Trends'!AZ94 -> 0 | AX107: ='MCT Cost Trends'!BA94 -> 0 | AY107: ='MCT Cost Trends'!BB94 -> 0 | AZ107: ='MCT Cost Trends'!BC94 -> 0 | BA107: ='MCT Cost Trends'!BD94 -> 0 | BB107: ='MCT Cost Trends'!BE94 -> 0
A108: 86 | B108: Backhaul | C108: Owned microwave (300Mbit/s) | D108: E | E108: ='MCT Cost Trends'!H95 -> 0 | F108: ='MCT Cost Trends'!I95 -> 0 | G108: ='MCT Cost Trends'!J95 -> 0 | H108: ='MCT Cost Trends'!K95 -> 0 | I108: ='MCT Cost Trends'!L95 -> 0 | J108: ='MCT Cost Trends'!M95 -> 0 | K108: ='MCT Cost Trends'!N95 -> 0 | L108: ='MCT Cost Trends'!O95 -> 0 | M108: ='MCT Cost Trends'!P95 -> 0 | N108: ='MCT Cost Trends'!Q95 -> 0 | O108: ='MCT Cost Trends'!R95 -> 0 | P108: ='MCT Cost Trends'!S95 -> 0 | Q108: ='MCT Cost Trends'!T95 -> 0 | R108: ='MCT Cost Trends'!U95 -> 0 | S108: ='MCT Cost Trends'!V95 -> 0 | T108: ='MCT Cost Trends'!W95 -> 0 | U108: ='MCT Cost Trends'!X95 -> 0 | V108: ='MCT Cost Trends'!Y95 -> 0 | W108: ='MCT Cost Trends'!Z95 -> 0 | X108: ='MCT Cost Trends'!AA95 -> 0 | Y108: ='MCT Cost Trends'!AB95 -> 0 | Z108: ='MCT Cost Trends'!AC95 -> -0.05 | AA108: ='MCT Cost Trends'!AD95 -> -0.078 | AB108: ='MCT Cost Trends'!AE95 -> -0.078 | AC108: ='MCT Cost Trends'!AF95 -> -0.025 | AD108: ='MCT Cost Trends'!AG95 -> -0.025 | AE108: ='MCT Cost Trends'!AH95 -> -0.025 | AF108: ='MCT Cost Trends'!AI95 -> -0.025 | AG108: ='MCT Cost Trends'!AJ95 -> -0.025 | AH108: ='MCT Cost Trends'!AK95 -> -0.025 | AI108: ='MCT Cost Trends'!AL95 -> -0.01 | AJ108: ='MCT Cost Trends'!AM95 -> -0.01 | AK108: ='MCT Cost Trends'!AN95 -> -0.01 | AL108: ='MCT Cost Trends'!AO95 -> -0.01 | AM108: ='MCT Cost Trends'!AP95 -> -0.01 | AN108: ='MCT Cost Trends'!AQ95 -> -0.01 | AO108: ='MCT Cost Trends'!AR95 -> -0.01 | AP108: ='MCT Cost Trends'!AS95 -> 0 | AQ108: ='MCT Cost Trends'!AT95 -> 0 | AR108: ='MCT Cost Trends'!AU95 -> 0 | AS108: ='MCT Cost Trends'!AV95 -> 0 | AT108: ='MCT Cost Trends'!AW95 -> 0 | AU108: ='MCT Cost Trends'!AX95 -> 0 | AV108: ='MCT Cost Trends'!AY95 -> 0 | AW108: ='MCT Cost Trends'!AZ95 -> 0 | AX108: ='MCT Cost Trends'!BA95 -> 0 | AY108: ='MCT Cost Trends'!BB95 -> 0 | AZ108: ='MCT Cost Trends'!BC95 -> 0 | BA108: ='MCT Cost Trends'!BD95 -> 0 | BB108: ='MCT Cost Trends'!BE95 -> 0
A109: 87 | B109: Cell sites | C109: Shared sites | D109: S | E109: ='MCT Cost Trends'!H96 -> 0 | F109: ='MCT Cost Trends'!I96 -> 0 | G109: ='MCT Cost Trends'!J96 -> 0 | H109: ='MCT Cost Trends'!K96 -> 0 | I109: ='MCT Cost Trends'!L96 -> 0 | J109: ='MCT Cost Trends'!M96 -> 0 | K109: ='MCT Cost Trends'!N96 -> 0 | L109: ='MCT Cost Trends'!O96 -> 0 | M109: ='MCT Cost Trends'!P96 -> 0 | N109: ='MCT Cost Trends'!Q96 -> 0 | O109: ='MCT Cost Trends'!R96 -> 0 | P109: ='MCT Cost Trends'!S96 -> 0 | Q109: ='MCT Cost Trends'!T96 -> 0 | R109: ='MCT Cost Trends'!U96 -> 0 | S109: ='MCT Cost Trends'!V96 -> 0 | T109: ='MCT Cost Trends'!W96 -> 0 | U109: ='MCT Cost Trends'!X96 -> 0 | V109: ='MCT Cost Trends'!Y96 -> 0 | W109: ='MCT Cost Trends'!Z96 -> 0.01 | X109: ='MCT Cost Trends'!AA96 -> -0.15 | Y109: ='MCT Cost Trends'!AB96 -> -0.15 | Z109: ='MCT Cost Trends'!AC96 -> -0.15 | AA109: ='MCT Cost Trends'!AD96 -> 0.007 | AB109: ='MCT Cost Trends'!AE96 -> 0.007 | AC109: ='MCT Cost Trends'!AF96 -> 0.02 | AD109: ='MCT Cost Trends'!AG96 -> 0.005 | AE109: ='MCT Cost Trends'!AH96 -> 0.005 | AF109: ='MCT Cost Trends'!AI96 -> 0.005 | AG109: ='MCT Cost Trends'!AJ96 -> 0 | AH109: ='MCT Cost Trends'!AK96 -> 0 | AI109: ='MCT Cost Trends'!AL96 -> 0 | AJ109: ='MCT Cost Trends'!AM96 -> 0 | AK109: ='MCT Cost Trends'!AN96 -> 0 | AL109: ='MCT Cost Trends'!AO96 -> 0 | AM109: ='MCT Cost Trends'!AP96 -> 0 | AN109: ='MCT Cost Trends'!AQ96 -> 0 | AO109: ='MCT Cost Trends'!AR96 -> 0 | AP109: ='MCT Cost Trends'!AS96 -> 0 | AQ109: ='MCT Cost Trends'!AT96 -> 0 | AR109: ='MCT Cost Trends'!AU96 -> 0 | AS109: ='MCT Cost Trends'!AV96 -> 0 | AT109: ='MCT Cost Trends'!AW96 -> 0 | AU109: ='MCT Cost Trends'!AX96 -> 0 | AV109: ='MCT Cost Trends'!AY96 -> 0 | AW109: ='MCT Cost Trends'!AZ96 -> 0 | AX109: ='MCT Cost Trends'!BA96 -> 0 | AY109: ='MCT Cost Trends'!BB96 -> 0 | AZ109: ='MCT Cost Trends'!BC96 -> 0 | BA109: ='MCT Cost Trends'!BD96 -> 0 | BB109: ='MCT Cost Trends'!BE96 -> 0
A110: 88 | B110: spare | C110: spare
A111: 89 | B111: Backhaul | C111: Ethernet microwave link (defunct)
A112: 90 | B112: spare | C112: spare
A113: 91 | B113: VMS | C113: VMS Platform
A114: 92 | B114: Backhaul | C114: High-speed backhaul hub | D114: E | E114: ='MCT Cost Trends'!H101 -> 0 | F114: ='MCT Cost Trends'!I101 -> 0 | G114: ='MCT Cost Trends'!J101 -> 0 | H114: ='MCT Cost Trends'!K101 -> 0 | I114: ='MCT Cost Trends'!L101 -> 0 | J114: ='MCT Cost Trends'!M101 -> 0 | K114: ='MCT Cost Trends'!N101 -> 0 | L114: ='MCT Cost Trends'!O101 -> 0 | M114: ='MCT Cost Trends'!P101 -> 0 | N114: ='MCT Cost Trends'!Q101 -> 0 | O114: ='MCT Cost Trends'!R101 -> 0 | P114: ='MCT Cost Trends'!S101 -> 0 | Q114: ='MCT Cost Trends'!T101 -> 0 | R114: ='MCT Cost Trends'!U101 -> 0 | S114: ='MCT Cost Trends'!V101 -> 0 | T114: ='MCT Cost Trends'!W101 -> 0 | U114: ='MCT Cost Trends'!X101 -> 0 | V114: ='MCT Cost Trends'!Y101 -> 0 | W114: ='MCT Cost Trends'!Z101 -> 0 | X114: ='MCT Cost Trends'!AA101 -> 0 | Y114: ='MCT Cost Trends'!AB101 -> 0 | Z114: ='MCT Cost Trends'!AC101 -> -0.02 | AA114: ='MCT Cost Trends'!AD101 -> -0.041 | AB114: ='MCT Cost Trends'!AE101 -> -0.041 | AC114: ='MCT Cost Trends'!AF101 -> -0.02 | AD114: ='MCT Cost Trends'!AG101 -> -0.02 | AE114: ='MCT Cost Trends'!AH101 -> -0.02 | AF114: ='MCT Cost Trends'!AI101 -> -0.02 | AG114: ='MCT Cost Trends'!AJ101 -> -0.02 | AH114: ='MCT Cost Trends'!AK101 -> -0.02 | AI114: ='MCT Cost Trends'!AL101 -> -0.02 | AJ114: ='MCT Cost Trends'!AM101 -> -0.02 | AK114: ='MCT Cost Trends'!AN101 -> -0.02 | AL114: ='MCT Cost Trends'!AO101 -> -0.02 | AM114: ='MCT Cost Trends'!AP101 -> -0.02 | AN114: ='MCT Cost Trends'!AQ101 -> -0.02 | AO114: ='MCT Cost Trends'!AR101 -> -0.02 | AP114: ='MCT Cost Trends'!AS101 -> 0 | AQ114: ='MCT Cost Trends'!AT101 -> 0 | AR114: ='MCT Cost Trends'!AU101 -> 0 | AS114: ='MCT Cost Trends'!AV101 -> 0 | AT114: ='MCT Cost Trends'!AW101 -> 0 | AU114: ='MCT Cost Trends'!AX101 -> 0 | AV114: ='MCT Cost Trends'!AY101 -> 0 | AW114: ='MCT Cost Trends'!AZ101 -> 0 | AX114: ='MCT Cost Trends'!BA101 -> 0 | AY114: ='MCT Cost Trends'!BB101 -> 0 | AZ114: ='MCT Cost Trends'!BC101 -> 0 | BA114: ='MCT Cost Trends'!BD101 -> 0 | BB114: ='MCT Cost Trends'!BE101 -> 0
A115: 93 | B115: Backhaul | C115: High-speed leased backhaul link (1000Mbit/s) | D115: E | E115: ='MCT Cost Trends'!H102 -> 0 | F115: ='MCT Cost Trends'!I102 -> 0 | G115: ='MCT Cost Trends'!J102 -> 0 | H115: ='MCT Cost Trends'!K102 -> 0 | I115: ='MCT Cost Trends'!L102 -> 0 | J115: ='MCT Cost Trends'!M102 -> 0 | K115: ='MCT Cost Trends'!N102 -> 0 | L115: ='MCT Cost Trends'!O102 -> 0 | M115: ='MCT Cost Trends'!P102 -> 0 | N115: ='MCT Cost Trends'!Q102 -> 0 | O115: ='MCT Cost Trends'!R102 -> 0 | P115: ='MCT Cost Trends'!S102 -> 0 | Q115: ='MCT Cost Trends'!T102 -> 0 | R115: ='MCT Cost Trends'!U102 -> 0 | S115: ='MCT Cost Trends'!V102 -> 0 | T115: ='MCT Cost Trends'!W102 -> 0 | U115: ='MCT Cost Trends'!X102 -> 0 | V115: ='MCT Cost Trends'!Y102 -> 0 | W115: ='MCT Cost Trends'!Z102 -> 0 | X115: ='MCT Cost Trends'!AA102 -> 0 | Y115: ='MCT Cost Trends'!AB102 -> 0 | Z115: ='MCT Cost Trends'!AC102 -> -0.02 | AA115: ='MCT Cost Trends'!AD102 -> -0.12 | AB115: ='MCT Cost Trends'!AE102 -> -0.12 | AC115: ='MCT Cost Trends'!AF102 -> -0.02 | AD115: ='MCT Cost Trends'!AG102 -> -0.02 | AE115: ='MCT Cost Trends'!AH102 -> -0.02 | AF115: ='MCT Cost Trends'!AI102 -> -0.02 | AG115: ='MCT Cost Trends'!AJ102 -> -0.02 | AH115: ='MCT Cost Trends'!AK102 -> -0.02 | AI115: ='MCT Cost Trends'!AL102 -> -0.02 | AJ115: ='MCT Cost Trends'!AM102 -> -0.02 | AK115: ='MCT Cost Trends'!AN102 -> -0.02 | AL115: ='MCT Cost Trends'!AO102 -> -0.02 | AM115: ='MCT Cost Trends'!AP102 -> -0.02 | AN115: ='MCT Cost Trends'!AQ102 -> -0.02 | AO115: ='MCT Cost Trends'!AR102 -> -0.02 | AP115: ='MCT Cost Trends'!AS102 -> 0 | AQ115: ='MCT Cost Trends'!AT102 -> 0 | AR115: ='MCT Cost Trends'!AU102 -> 0 | AS115: ='MCT Cost Trends'!AV102 -> 0 | AT115: ='MCT Cost Trends'!AW102 -> 0 | AU115: ='MCT Cost Trends'!AX102 -> 0 | AV115: ='MCT Cost Trends'!AY102 -> 0 | AW115: ='MCT Cost Trends'!AZ102 -> 0 | AX115: ='MCT Cost Trends'!BA102 -> 0 | AY115: ='MCT Cost Trends'!BB102 -> 0 | AZ115: ='MCT Cost Trends'!BC102 -> 0 | BA115: ='MCT Cost Trends'!BD102 -> 0 | BB115: ='MCT Cost Trends'!BE102 -> 0
A116: 94 | B116: spare | C116: spare
A117: 95 | B117: spare | C117: spare
A118: 96 | B118: spare | C118: spare
A119: 97 | B119: Main switch sites (allocated to voice) | C119: Buildings (switch building preparation) - allocated to voice services
A120: 98 | B120: Main switch sites (allocated to voice) | C120: Site lease - allocated to voice services
A121: 99 | B121: Main switch sites (allocated to data) | C121: Buildings (switch building preparation) - allocated to data services
A122: 100 | B122: Main switch sites (allocated to data) | C122: Site lease - allocated to data services
A123: 101 | B123: 4G cell site equipment | C123: Macro eNodeB
A124: 102 | B124: 4G cell site equipment | C124: Micro eNodeB
A125: 103 | B125: 4G cell site equipment | C125: Pico eNodeB
A126: 104 | B126: 4G cell site equipment | C126: 4G Macrocell: additional carriers
A127: 105 | B127: 4G cell site equipment | C127: 4G Microcell: additional carriers
A128: 106 | B128: 4G cell site equipment | C128: 4G Picocell: additional carriers
A129: 107 | B129: 4G site upgrade | C129: Macro site upgrade
A130: 108 | B130: 4G site upgrade | C130: Micro site upgrade
A131: 109 | B131: 4G site upgrade | C131: Pico site upgrade
A132: 110 | B132: Backhaul | C132: Leased Ethernet (500Mbit/s)
A133: 111 | B133: Backhaul | C133: Owned microwave (500Mbit/s) | D133: E | E133: ='MCT Cost Trends'!H120 -> 0 | F133: ='MCT Cost Trends'!I120 -> 0 | G133: ='MCT Cost Trends'!J120 -> 0 | H133: ='MCT Cost Trends'!K120 -> 0 | I133: ='MCT Cost Trends'!L120 -> 0 | J133: ='MCT Cost Trends'!M120 -> 0 | K133: ='MCT Cost Trends'!N120 -> 0 | L133: ='MCT Cost Trends'!O120 -> 0 | M133: ='MCT Cost Trends'!P120 -> 0 | N133: ='MCT Cost Trends'!Q120 -> 0 | O133: ='MCT Cost Trends'!R120 -> 0 | P133: ='MCT Cost Trends'!S120 -> 0 | Q133: ='MCT Cost Trends'!T120 -> 0 | R133: ='MCT Cost Trends'!U120 -> 0 | S133: ='MCT Cost Trends'!V120 -> 0 | T133: ='MCT Cost Trends'!W120 -> 0 | U133: ='MCT Cost Trends'!X120 -> 0 | V133: ='MCT Cost Trends'!Y120 -> 0 | W133: ='MCT Cost Trends'!Z120 -> 0 | X133: ='MCT Cost Trends'!AA120 -> 0 | Y133: ='MCT Cost Trends'!AB120 -> 0 | Z133: ='MCT Cost Trends'!AC120 -> 0 | AA133: ='MCT Cost Trends'!AD120 -> -0.078 | AB133: ='MCT Cost Trends'!AE120 -> -0.078 | AC133: ='MCT Cost Trends'!AF120 -> -0.025 | AD133: ='MCT Cost Trends'!AG120 -> -0.025 | AE133: ='MCT Cost Trends'!AH120 -> -0.025 | AF133: ='MCT Cost Trends'!AI120 -> -0.025 | AG133: ='MCT Cost Trends'!AJ120 -> -0.025 | AH133: ='MCT Cost Trends'!AK120 -> -0.025 | AI133: ='MCT Cost Trends'!AL120 -> -0.01 | AJ133: ='MCT Cost Trends'!AM120 -> -0.01 | AK133: ='MCT Cost Trends'!AN120 -> -0.01 | AL133: ='MCT Cost Trends'!AO120 -> -0.01 | AM133: ='MCT Cost Trends'!AP120 -> -0.01 | AN133: ='MCT Cost Trends'!AQ120 -> -0.01 | AO133: ='MCT Cost Trends'!AR120 -> -0.01 | AP133: ='MCT Cost Trends'!AS120 -> 0 | AQ133: ='MCT Cost Trends'!AT120 -> 0 | AR133: ='MCT Cost Trends'!AU120 -> 0 | AS133: ='MCT Cost Trends'!AV120 -> 0 | AT133: ='MCT Cost Trends'!AW120 -> 0 | AU133: ='MCT Cost Trends'!AX120 -> 0 | AV133: ='MCT Cost Trends'!AY120 -> 0 | AW133: ='MCT Cost Trends'!AZ120 -> 0 | AX133: ='MCT Cost Trends'!BA120 -> 0 | AY133: ='MCT Cost Trends'!BB120 -> 0 | AZ133: ='MCT Cost Trends'!BC120 -> 0 | BA133: ='MCT Cost Trends'!BD120 -> 0 | BB133: ='MCT Cost Trends'!BE120 -> 0
A134: 112 | B134: Cell sites | C134: Infrastructure sharing macro site upgrade
A135: 113 | B135: Cell sites | C135: Infrastructure sharing micro site upgrade
A136: 114 | B136: Cell sites | C136: Infrastructure sharing pico site upgrade
A137: 115 | B137: spare | C137: spare
A138: 116 | B138: spare | C138: spare
A139: 117 | B139: spare | C139: spare
A140: 118 | B140: spare | C140: spare
A141: 119 | B141: spare | C141: spare
A142: 120 | B142: spare | C142: spare
A143: 121 | B143: spare | C143: spare
A144: 122 | B144: spare | C144: spare
A145: 123 | B145: spare | C145: spare
A146: 124 | B146: spare | C146: spare
A147: 125 | B147: spare | C147: spare
A148: 126 | B148: spare | C148: spare
A149: 127 | B149: spare | C149: spare
A150: 128 | B150: spare | C150: spare
A151: 129 | B151: Core transmission | C151: Next-generation backbone links
A152: 130 | B152: Core transmission | C152: Next-generation backbone km
A153: 131 | B153: 4G core network | C153: MME
A154: 132 | B154: 4G core network | C154: Serving Gateway (SGW)
A155: 133 | B155: 4G core network | C155: MME software
A156: 134 | B156: 4G core network | C156: Data traffic manager
A157: 135 | B157: VoLTE network | C157: Call server hardware
A158: 136 | B158: VoLTE network | C158: Call server software
A159: 137 | B159: VoLTE network | C159: TAS
A160: 138 | B160: VoLTE network | C160: SBC hardware
A161: 139 | B161: VoLTE network | C161: SBC software
A162: 140 | B162: VoLTE network | C162: VoLTE upgrades to HLR
A163: 141 | B163: VoLTE network | C163: VoLTE upgrades to MSC-S
A164: 142 | B164: VoLTE network | C164: VoLTE upgrades to NMS
A165: 143 | B165: 4G core network | C165: NMS
A166: 144 | B166: HLRs | C166: HSS
A167: 145 | B167: 4G core network | C167: spare
A168: 146 | B168: 4G core network | C168: spare
A169: 147 | B169: 4G core network | C169: spare
A170: 148 | B170: 4G core network | C170: spare
A171: 149 | B171: 4G Licence fee | C171: 4G spectrum annual payments
A172: 150 | B172: 4G Licence fee | C172: 4G auction payments

Sheet Cost calculations
A1: Cost calculations
B4: OPEX percentages
B6: Installation cost | C6: ='Spectrum cost inputs'!D18 -> 0.5 | D6: per_installation_cost | E6: Of capex
B7: Infrastructure cost | C7: ='Spectrum cost inputs'!D19 -> 0.5 | D7: per_infrastructure_cost | E7: Of annualised capex
B8: Maintenance cost | C8: ='Spectrum cost inputs'!D20 -> 0.12 | D8: per_maintenance_cost | E8: Of capex
B11: Annualised equipment cost (exc, installation) | C11: =-PMT(finance_rate_Input,'Spectrum cost inputs'!D23,Equipment,,1) -> 998.9668664
B13: Cost for additional hop above 20 GHz
C15: Site cost - construction | D15: Site cost - rental
C16: CAPEX | D16: OPEX
B17: Rural | C17: =sitecost_rural -> 100000 | D17: ='Spectrum cost inputs'!D15/'Spectrum cost inputs'!D5 -> 3000
B18: Urban | C18: =sitecost_urban -> 50000 | D18: ='Spectrum cost inputs'!D16/'Spectrum cost inputs'!D6 -> 5000
B22: Apply cost trend to site costs & Urban rental costs
B23: Exclude equipment installation cost from opex as included in capex | C23: CAPEX | D23: OPEX | E23: CAPEX | F23: OPEX | G23: OPEX
B24: Rural | C24: =C17*'Cost Trend calc'!$AK$16 -> 123718.037 | D24: =D17 -> 3000 | E24: =Equipment -> 9000 | F24: =+per_infrastructure_cost*+$C$11+per_maintenance_cost*'Cost calculations'!E24 -> 1579.483433 | G24: =SUMIF($C$23:$F$23, $G$23,C24:F24) -> 4579.483433
B25: Urban | C25: =C18*'Cost Trend calc'!$AK$16 -> 61859.01848 | D25: =D18*'Cost Trend calc'!$AK$16 -> 6185.901848 | E25: =Equipment -> 9000 | F25: =+per_infrastructure_cost*+$C$11+per_maintenance_cost*'Cost calculations'!E25 -> 1579.483433 | G25: =SUMIF($C$23:$F$23, $G$23,C25:F25) -> 7765.385281
B27: Note that opex costs do not change for the non 12 year equipment lifetime scenarios - They are always calculated from the annualised cost assuming a 12 year lifetime
B30: Cost of replacing equipment
C31: Site cost - construction | D31: Site cost - rental | E31: Equipment cost - capital | F31: Installation cost (% of equipment cost | G31: ='Spectrum cost inputs'!B9 -> Planning and administrative costs | H31: ='Spectrum cost inputs'!B10 -> Deloyment cost | I31: Total capex
C32: CAPEX | D32: OPEX | E32: CAPEX | F32: CAPEX | I32: CAPEX
E33: =Equipment -> 9000 | F33: =per_installation_cost -> 0.5 | G33: ='Spectrum cost inputs'!D9 -> 3500 | H33: ='Spectrum cost inputs'!D10 -> 1000 | I33: =E33+F33*E33+G33+H33 -> 18000

Sheet Cost_SiteUrban
A1: Cost of a rural site
B4: Finance rate | C4: =finance_rate_Input -> 0.057 | D4: finance_rate
B5: Discount rate | C5: =discount_rate_input -> 0.035 | D5: discount_rate
B7: Capital cost for equipment | C7: =Equipment -> 9000 | D7: equipment_capital
B8: Capital cost (including installation) | C8: ='Cost calculations'!I33 -> 18000 | D8: equipment_capital_ins
B9: Capital cost - rural site | C9: ='Cost calculations'!C24 -> 123718.037 | D9: rural_site_capital
B10: Capital cost - urban site | C10: ='Cost calculations'!C25 -> 61859.01848 | D10: urban_site_capital
B12: Lifetime of structures | C12: ='Spectrum cost inputs'!D22 -> 20 | D12: structure_lifetime
B17: Estimating costs for a new site
C19: Year
C20: 1 | D20: 2 | E20: 3 | F20: 4 | G20: 5 | H20: 6 | I20: 7 | J20: 8 | K20: 9 | L20: 10 | M20: 11 | N20: 12 | O20: 13 | P20: 14 | Q20: 15 | R20: 16 | S20: 17 | T20: 18 | U20: 19 | V20: 20
B21: Annualised capital cost
A23: Remaining lifetime | B23: Depreciation
A24: =structure_lifetime-LEFT(B24,2) -> 20 | B24: 0 year old | C24: =IF(C$20<=$A24,urban_site_capital/structure_lifetime,0) -> 3092.950924 | D24: =IF(D$20<=$A24,urban_site_capital/structure_lifetime,0) -> 3092.950924 | E24: 3092.950924 | F24: 3092.950924 | G24: 3092.950924 | H24: 3092.950924 | I24: 3092.950924 | J24: 3092.950924 | K24: 3092.950924 | L24: 3092.950924 | M24: 3092.950924 | N24: 3092.950924 | O24: 3092.950924 | P24: 3092.950924 | Q24: 3092.950924 | R24: 3092.950924 | S24: 3092.950924 | T24: 3092.950924 | U24: 3092.950924 | V24: 3092.950924
B26: Financing cost
A27: =structure_lifetime-LEFT(B27,2) -> 20 | B27: 0 year old | C27: =SUM(C24:$V24)*finance_rate -> 3525.964053 | D27: =SUM(D24:$V24)*finance_rate -> 3349.665851 | E27: =SUM(E24:$V24)*finance_rate -> 3173.367648 | F27: =SUM(F24:$V24)*finance_rate -> 2997.069445 | G27: =SUM(G24:$V24)*finance_rate -> 2820.771243 | H27: =SUM(H24:$V24)*finance_rate -> 2644.47304 | I27: =SUM(I24:$V24)*finance_rate -> 2468.174837 | J27: =SUM(J24:$V24)*finance_rate -> 2291.876635 | K27: =SUM(K24:$V24)*finance_rate -> 2115.578432 | L27: =SUM(L24:$V24)*finance_rate -> 1939.280229 | M27: =SUM(M24:$V24)*finance_rate -> 1762.982027 | N27: =SUM(N24:$V24)*finance_rate -> 1586.683824 | O27: =SUM(O24:$V24)*finance_rate -> 1410.385621 | P27: =SUM(P24:$V24)*finance_rate -> 1234.087419 | Q27: =SUM(Q24:$V24)*finance_rate -> 1057.789216 | R27: =SUM(R24:$V24)*finance_rate -> 881.4910133 | S27: =SUM(S24:$V24)*finance_rate -> 705.1928107 | T27: =SUM(T24:$V24)*finance_rate -> 528.894608 | U27: =SUM(U24:$V24)*finance_rate -> 352.5964053 | V27: =SUM(V24:$V24)*finance_rate -> 176.2982027
B29: Depreciaton + financing cost
A30: =structure_lifetime-LEFT(B30,2) -> 20 | B30: 0 year old | C30: =C24+C27 -> 6618.914977 | D30: =D24+D27 -> 6442.616775 | E30: 6266.318572 | F30: 6090.020369 | G30: 5913.722167 | H30: 5737.423964 | I30: 5561.125761 | J30: 5384.827559 | K30: 5208.529356 | L30: 5032.231153 | M30: 4855.932951 | N30: 4679.634748 | O30: 4503.336545 | P30: 4327.038343 | Q30: 4150.74014 | R30: 3974.441937 | S30: 3798.143735 | T30: 3621.845532 | U30: 3445.547329 | V30: 3269.249127

Sheet Cost_SiteRural
A1: Cost of a rural site
B4: Finance rate | C4: =finance_rate_Input -> 0.057 | D4: finance_rate
B5: Discount rate | C5: =discount_rate_input -> 0.035 | D5: discount_rate
B7: Capital cost (including installation) | C7: ='Cost calculations'!I33 -> 18000 | D7: equipment_capital_ins
B8: Capital cost - rural site | C8: ='Cost calculations'!C24 -> 123718.037 | D8: rural_site_capital
B9: Capital cost - urban site | C9: ='Cost calculations'!C25 -> 61859.01848 | D9: urban_site_capital
B11: Lifetime of structures | C11: ='Spectrum cost inputs'!D22 -> 20 | D11: structure_lifetime
B16: Estimating costs for a new site
C18: Year
C19: 1 | D19: 2 | E19: 3 | F19: 4 | G19: 5 | H19: 6 | I19: 7 | J19: 8 | K19: 9 | L19: 10 | M19: 11 | N19: 12 | O19: 13 | P19: 14 | Q19: 15 | R19: 16 | S19: 17 | T19: 18 | U19: 19 | V19: 20
B20: Annualised capital cost
A22: Remaining lifetime | B22: Depreciation
A23: =structure_lifetime-LEFT(B23,2) -> 20 | B23: 0 year old | C23: =IF(C$19<=$A23,rural_site_capital/structure_lifetime,0) -> 6185.901848 | D23: =IF(D$19<=$A23,rural_site_capital/structure_lifetime,0) -> 6185.901848 | E23: 6185.901848 | F23: 6185.901848 | G23: 6185.901848 | H23: 6185.901848 | I23: 6185.901848 | J23: 6185.901848 | K23: 6185.901848 | L23: 6185.901848 | M23: 6185.901848 | N23: 6185.901848 | O23: 6185.901848 | P23: 6185.901848 | Q23: 6185.901848 | R23: 6185.901848 | S23: 6185.901848 | T23: 6185.901848 | U23: 6185.901848 | V23: 6185.901848
B25: Financing cost
A26: =structure_lifetime-LEFT(B26,2) -> 20 | B26: 0 year old | C26: =SUM(C23:$V23)*finance_rate -> 7051.928107 | D26: =SUM(D23:$V23)*finance_rate -> 6699.331701 | E26: =SUM(E23:$V23)*finance_rate -> 6346.735296 | F26: =SUM(F23:$V23)*finance_rate -> 5994.138891 | G26: =SUM(G23:$V23)*finance_rate -> 5641.542485 | H26: =SUM(H23:$V23)*finance_rate -> 5288.94608 | I26: =SUM(I23:$V23)*finance_rate -> 4936.349675 | J26: =SUM(J23:$V23)*finance_rate -> 4583.753269 | K26: =SUM(K23:$V23)*finance_rate -> 4231.156864 | L26: =SUM(L23:$V23)*finance_rate -> 3878.560459 | M26: =SUM(M23:$V23)*finance_rate -> 3525.964053 | N26: =SUM(N23:$V23)*finance_rate -> 3173.367648 | O26: =SUM(O23:$V23)*finance_rate -> 2820.771243 | P26: =SUM(P23:$V23)*finance_rate -> 2468.174837 | Q26: =SUM(Q23:$V23)*finance_rate -> 2115.578432 | R26: =SUM(R23:$V23)*finance_rate -> 1762.982027 | S26: =SUM(S23:$V23)*finance_rate -> 1410.385621 | T26: =SUM(T23:$V23)*finance_rate -> 1057.789216 | U26: =SUM(U23:$V23)*finance_rate -> 705.1928107 | V26: =SUM(V23:$V23)*finance_rate -> 352.5964053
B28: Depreciaton + financing cost
A29: =structure_lifetime-LEFT(B29,2) -> 20 | B29: 0 year old | C29: =C23+C26 -> 13237.82995 | D29: =D23+D26 -> 12885.23355 | E29: 12532.63714 | F29: 12180.04074 | G29: 11827.44433 | H29: 11474.84793 | I29: 11122.25152 | J29: 10769.65512 | K29: 10417.05871 | L29: 10064.46231 | M29: 9711.865901 | N29: 9359.269496 | O29: 9006.673091 | P29: 8654.076685 | Q29: 8301.48028 | R29: 7948.883875 | S29: 7596.287469 | T29: 7243.691064 | U29: 6891.094659 | V29: 6538.498253

Sheet Discounted cost_7years
A1: Discounted Cost (7 year lifetime)
B4: Finance rate | C4: =finance_rate_Input -> 0.057 | D4: finance_rate
B5: Discount rate | C5: =discount_rate_input -> 0.035 | D5: discount_rate
B7: Capital cost (including installation) | C7: ='Cost calculations'!I33 -> 18000 | D7: equipment_capital_ins
B8: Capital cost - rural site | C8: ='Cost calculations'!C24 -> 123718.037 | D8: rural_site_capital
B9: Capital cost - urban site | C9: ='Cost calculations'!C25 -> 61859.01848 | D9: urban_site_capital
B10: Deployment cost | C10: ='Cost calculations'!H33 -> 1000 | D10: deployment_capital
B12: Lifetime of new equipment | C12: 7 | D12: equipment_lifetime
C14: Years
C15: 1 | D15: 2 | E15: 3 | F15: 4 | G15: 5 | H15: 6 | I15: 7 | J15: 8 | K15: 9 | L15: 10 | M15: 11 | N15: 12 | O15: 13 | P15: 14 | Q15: 15 | R15: 16 | S15: 17 | T15: 18 | U15: 19 | V15: 20
B16: Discount factor (STPR) | C16: =1/(1+$C5)^(C$15) -> 0.9661835749 | D16: 0.9335107004 | E16: 0.9019427057 | F16: 0.8714422277 | G16: 0.8419731669 | H16: 0.8135006443 | I16: 0.7859909607 | J16: 0.7594115562 | K16: 0.7337309722 | L16: 0.7089188137 | M16: 0.6849457137 | N16: 0.6617832983 | O16: 0.6394041529 | P16: 0.6177817903 | Q16: 0.5968906186 | R16: 0.5767059117 | S16: 0.5572037794 | T16: 0.5383611396 | U16: 0.5201556904 | V16: 0.5025658844
B20: Cost of retiring equipment early
B21: Estimating the capital cost that firms need to write off
B22: Including the installation cost as part of capex for this calculation
C24: Year
C25: 1 | D25: 2 | E25: 3 | F25: 4 | G25: 5 | H25: 6 | I25: 7 | J25: 8 | K25: 9 | L25: 10 | M25: 11 | N25: 12 | O25: 13 | P25: 14 | Q25: 15 | R25: 16 | S25: 17 | T25: 18 | U25: 19 | V25: 20
B27: Cost (Straight line depreciation)
A29: Remaining lifetime | B29: Depreciation
A30: =equipment_lifetime_15-LEFT(B30,2) -> 7 | B30: 0 year old | C30: =IF(C$25<=$A30,equipment_capital_ins/equipment_lifetime,0) -> 2571.428571 | D30: =IF(D$25<=$A30,equipment_capital_ins/equipment_lifetime,0) -> 2571.428571 | E30: 2571.428571 | F30: 2571.428571 | G30: 2571.428571 | H30: 2571.428571 | I30: 2571.428571 | J30: 0 | K30: 0 | L30: 0 | M30: =IF(M$25<=$A30,equipment_capital_ins/equipment_lifetime,0) -> 0 | N30: 0 | O30: 0 | P30: 0 | Q30: 0 | R30: 0 | S30: 0 | T30: 0 | U30: 0 | V30: 0
A31: 6 | B31: 1 year old | C31: 2571.428571 | D31: 2571.428571 | E31: 2571.428571 | F31: 2571.428571 | G31: 2571.428571 | H31: 2571.428571 | I31: 0 | J31: 0 | K31: 0 | L31: 0 | M31: 0 | N31: 0 | O31: 0 | P31: 0 | Q31: 0 | R31: 0 | S31: 0 | T31: 0 | U31: 0 | V31: 0
A32: 5 | B32: 2 year old | C32: 2571.428571 | D32: 2571.428571 | E32: 2571.428571 | F32: 2571.428571 | G32: 2571.428571 | H32: 0 | I32: 0 | J32: 0 | K32: 0 | L32: 0 | M32: 0 | N32: 0 | O32: 0 | P32: 0 | Q32: 0 | R32: 0 | S32: 0 | T32: 0 | U32: 0 | V32: 0
A33: 4 | B33: 3 year old | C33: 2571.428571 | D33: 2571.428571 | E33: 2571.428571 | F33: 2571.428571 | G33: 0 | H33: 0 | I33: 0 | J33: 0 | K33: 0 | L33: 0 | M33: 0 | N33: 0 | O33: 0 | P33: 0 | Q33: 0 | R33: 0 | S33: 0 | T33: 0 | U33: 0 | V33: 0
A34: 3 | B34: 4 year old | C34: 2571.428571 | D34: 2571.428571 | E34: 2571.428571 | F34: 0 | G34: 0 | H34: 0 | I34: 0 | J34: 0 | K34: 0 | L34: 0 | M34: 0 | N34: 0 | O34: 0 | P34: 0 | Q34: 0 | R34: 0 | S34: 0 | T34: 0 | U34: 0 | V34: 0
A35: 2 | B35: 5 year old | C35: 2571.428571 | D35: 2571.428571 | E35: 0 | F35: 0 | G35: 0 | H35: 0 | I35: 0 | J35: 0 | K35: 0 | L35: 0 | M35: 0 | N35: 0 | O35: 0 | P35: 0 | Q35: 0 | R35: 0 | S35: 0 | T35: 0 | U35: 0 | V35: 0
A36: 1 | B36: 6 year old | C36: 2571.428571 | D36: 0 | E36: 0 | F36: 0 | G36: 0 | H36: 0 | I36: 0 | J36: 0 | K36: 0 | L36: 0 | M36: 0 | N36: 0 | O36: 0 | P36: 0 | Q36: 0 | R36: 0 | S36: 0 | T36: 0 | U36: 0 | V36: 0
A37: 0 | B37: 7 year old | C37: 0 | D37: 0 | E37: 0 | F37: 0 | G37: 0 | H37: 0 | I37: 0 | J37: 0 | K37: 0 | L37: 0 | M37: 0 | N37: 0 | O37: 0 | P37: 0 | Q37: 0 | R37: 0 | S37: 0 | T37: 0 | U37: 0 | V37: 0
A38: -1 | B38: 8 year old | C38: 0 | D38: 0 | E38: 0 | F38: 0 | G38: 0 | H38: 0 | I38: 0 | J38: 0 | K38: 0 | L38: 0 | M38: 0 | N38: 0 | O38: 0 | P38: 0 | Q38: 0 | R38: 0 | S38: 0 | T38: 0 | U38: 0 | V38: 0
A39: -2 | B39: 9 year old | C39: 0 | D39: 0 | E39: 0 | F39: 0 | G39: 0 | H39: 0 | I39: 0 | J39: 0 | K39: 0 | L39: 0 | M39: 0 | N39: 0 | O39: 0 | P39: 0 | Q39: 0 | R39: 0 | S39: 0 | T39: 0 | U39: 0 | V39: 0
A40: -3 | B40: 10 year old | C40: =IF(C$25<=$A40,equipment_capital_ins/equipment_lifetime,0) -> 0 | D40: 0 | E40: 0 | F40: 0 | G40: 0 | H40: 0 | I40: 0 | J40: 0 | K40: 0 | L40: 0 | M40: =IF(M$25<=$A40,equipment_capital_ins/equipment_lifetime,0) -> 0 | N40: 0 | O40: 0 | P40: 0 | Q40: 0 | R40: 0 | S40: 0 | T40: 0 | U40: 0 | V40: 0
A41: -4 | B41: 11 year old | C41: 0 | D41: 0 | E41: 0 | F41: 0 | G41: 0 | H41: 0 | I41: 0 | J41: 0 | K41: 0 | L41: 0 | M41: 0 | N41: 0 | O41: 0 | P41: 0 | Q41: 0 | R41: 0 | S41: 0 | T41: 0 | U41: 0 | V41: 0
A42: -5 | B42: 12 year old | C42: 0 | D42: 0 | E42: 0 | F42: 0 | G42: 0 | H42: 0 | I42: 0 | J42: 0 | K42: 0 | L42: 0 | M42: 0 | N42: 0 | O42: 0 | P42: 0 | Q42: 0 | R42: 0 | S42: 0 | T42: 0 | U42: 0 | V42: 0
A43: -6 | B43: 13 year old | C43: 0 | D43: 0 | E43: 0 | F43: 0 | G43: 0 | H43: 0 | I43: 0 | J43: 0 | K43: 0 | L43: 0 | M43: 0 | N43: 0 | O43: 0 | P43: 0 | Q43: 0 | R43: 0 | S43: 0 | T43: 0 | U43: 0 | V43: 0
A44: -7 | B44: 14 year old | C44: 0 | D44: 0 | E44: 0 | F44: 0 | G44: 0 | H44: 0 | I44: 0 | J44: 0 | K44: 0 | L44: 0 | M44: 0 | N44: 0 | O44: 0 | P44: 0 | Q44: 0 | R44: 0 | S44: 0 | T44: 0 | U44: 0 | V44: 0
A45: -8 | B45: 15 year old | C45: 0 | D45: 0 | E45: 0 | F45: 0 | G45: 0 | H45: 0 | I45: 0 | J45: 0 | K45: 0 | L45: 0 | M45: 0 | N45: 0 | O45: 0 | P45: 0 | Q45: 0 | R45: 0 | S45: 0 | T45: 0 | U45: 0 | V45: 0
B47: Financing cost
B48: 0 year old | C48: =IF(equipment_lifetime<C$25,0,SUM(C30:$V30)*finance_rate) -> 1026 | D48: =IF(equipment_lifetime<D$25,0,SUM(D30:$V30)*finance_rate) -> 879.4285714 | E48: =IF(equipment_lifetime<E$25,0,SUM(E30:$V30)*finance_rate) -> 732.8571429 | F48: =IF(equipment_lifetime<F$25,0,SUM(F30:$V30)*finance_rate) -> 586.2857143 | G48: =IF(equipment_lifetime<G$25,0,SUM(G30:$V30)*finance_rate) -> 439.7142857 | H48: =IF(equipment_lifetime<H$25,0,SUM(H30:$V30)*finance_rate) -> 293.1428571 | I48: =IF(equipment_lifetime<I$25,0,SUM(I30:$V30)*finance_rate) -> 146.5714286 | J48: =IF(equipment_lifetime<J$25,0,SUM(J30:$V30)*finance_rate) -> 0 | K48: =IF(equipment_lifetime<K$25,0,SUM(K30:$V30)*finance_rate) -> 0 | L48: =IF(equipment_lifetime<L$25,0,SUM(L30:$V30)*finance_rate) -> 0 | M48: =IF(equipment_lifetime<M$25,0,SUM(M30:$V30)*finance_rate) -> 0 | N48: =IF(equipment_lifetime<N$25,0,SUM(N30:$V30)*finance_rate) -> 0 | O48: =IF(equipment_lifetime<O$25,0,SUM(O30:$V30)*finance_rate) -> 0 | P48: =IF(equipment_lifetime<P$25,0,SUM(P30:$V30)*finance_rate) -> 0 | Q48: =IF(equipment_lifetime<Q$25,0,SUM(Q30:$V30)*finance_rate) -> 0 | R48: =IF(equipment_lifetime<R$25,0,SUM(R30:$V30)*finance_rate) -> 0 | S48: =IF(equipment_lifetime<S$25,0,SUM(S30:$V30)*finance_rate) -> 0 | T48: =IF(equipment_lifetime<T$25,0,SUM(T30:$V30)*finance_rate) -> 0 | U48: =IF(equipment_lifetime<U$25,0,SUM(U30:$V30)*finance_rate) -> 0 | V48: =IF(equipment_lifetime<V$25,0,SUM(V30:$V30)*finance_rate) -> 0
B49: 1 year old | C49: =IF(equipment_lifetime<C$25,0,SUM(C31:$V31)*finance_rate) -> 879.4285714 | D49: =IF(equipment_lifetime<D$25,0,SUM(D31:$V31)*finance_rate) -> 732.8571429 | E49: =IF(equipment_lifetime<E$25,0,SUM(E31:$V31)*finance_rate) -> 586.2857143 | F49: =IF(equipment_lifetime<F$25,0,SUM(F31:$V31)*finance_rate) -> 439.7142857 | G49: =IF(equipment_lifetime<G$25,0,SUM(G31:$V31)*finance_rate) -> 293.1428571 | H49: =IF(equipment_lifetime<H$25,0,SUM(H31:$V31)*finance_rate) -> 146.5714286 | I49: =IF(equipment_lifetime<I$25,0,SUM(I31:$V31)*finance_rate) -> 0 | J49: =IF(equipment_lifetime<J$25,0,SUM(J31:$V31)*finance_rate) -> 0 | K49: =IF(equipment_lifetime<K$25,0,SUM(K31:$V31)*finance_rate) -> 0 | L49: =IF(equipment_lifetime<L$25,0,SUM(L31:$V31)*finance_rate) -> 0 | M49: =IF(equipment_lifetime<M$25,0,SUM(M31:$V31)*finance_rate) -> 0 | N49: =IF(equipment_lifetime<N$25,0,SUM(N31:$V31)*finance_rate) -> 0 | O49: =IF(equipment_lifetime<O$25,0,SUM(O31:$V31)*finance_rate) -> 0 | P49: =IF(equipment_lifetime<P$25,0,SUM(P31:$V31)*finance_rate) -> 0 | Q49: =IF(equipment_lifetime<Q$25,0,SUM(Q31:$V31)*finance_rate) -> 0 | R49: =IF(equipment_lifetime<R$25,0,SUM(R31:$V31)*finance_rate) -> 0 | S49: =IF(equipment_lifetime<S$25,0,SUM(S31:$V31)*finance_rate) -> 0 | T49: =IF(equipment_lifetime<T$25,0,SUM(T31:$V31)*finance_rate) -> 0 | U49: =IF(equipment_lifetime<U$25,0,SUM(U31:$V31)*finance_rate) -> 0 | V49: =IF(equipment_lifetime<V$25,0,SUM(V31:$V31)*finance_rate) -> 0
B50: 2 year old | C50: =IF(equipment_lifetime<C$25,0,SUM(C32:$V32)*finance_rate) -> 732.8571429 | D50: =IF(equipment_lifetime<D$25,0,SUM(D32:$V32)*finance_rate) -> 586.2857143 | E50: =IF(equipment_lifetime<E$25,0,SUM(E32:$V32)*finance_rate) -> 439.7142857 | F50: =IF(equipment_lifetime<F$25,0,SUM(F32:$V32)*finance_rate) -> 293.1428571 | G50: =IF(equipment_lifetime<G$25,0,SUM(G32:$V32)*finance_rate) -> 146.5714286 | H50: =IF(equipment_lifetime<H$25,0,SUM(H32:$V32)*finance_rate) -> 0 | I50: =IF(equipment_lifetime<I$25,0,SUM(I32:$V32)*finance_rate) -> 0 | J50: =IF(equipment_lifetime<J$25,0,SUM(J32:$V32)*finance_rate) -> 0 | K50: =IF(equipment_lifetime<K$25,0,SUM(K32:$V32)*finance_rate) -> 0 | L50: =IF(equipment_lifetime<L$25,0,SUM(L32:$V32)*finance_rate) -> 0 | M50: =IF(equipment_lifetime<M$25,0,SUM(M32:$V32)*finance_rate) -> 0 | N50: =IF(equipment_lifetime<N$25,0,SUM(N32:$V32)*finance_rate) -> 0 | O50: =IF(equipment_lifetime<O$25,0,SUM(O32:$V32)*finance_rate) -> 0 | P50: =IF(equipment_lifetime<P$25,0,SUM(P32:$V32)*finance_rate) -> 0 | Q50: =IF(equipment_lifetime<Q$25,0,SUM(Q32:$V32)*finance_rate) -> 0 | R50: =IF(equipment_lifetime<R$25,0,SUM(R32:$V32)*finance_rate) -> 0 | S50: =IF(equipment_lifetime<S$25,0,SUM(S32:$V32)*finance_rate) -> 0 | T50: =IF(equipment_lifetime<T$25,0,SUM(T32:$V32)*finance_rate) -> 0 | U50: =IF(equipment_lifetime<U$25,0,SUM(U32:$V32)*finance_rate) -> 0 | V50: =IF(equipment_lifetime<V$25,0,SUM(V32:$V32)*finance_rate) -> 0
B51: 3 year old | C51: =IF(equipment_lifetime<C$25,0,SUM(C33:$V33)*finance_rate) -> 586.2857143 | D51: =IF(equipment_lifetime<D$25,0,SUM(D33:$V33)*finance_rate) -> 439.7142857 | E51: =IF(equipment_lifetime<E$25,0,SUM(E33:$V33)*finance_rate) -> 293.1428571 | F51: =IF(equipment_lifetime<F$25,0,SUM(F33:$V33)*finance_rate) -> 146.5714286 | G51: =IF(equipment_lifetime<G$25,0,SUM(G33:$V33)*finance_rate) -> 0 | H51: =IF(equipment_lifetime<H$25,0,SUM(H33:$V33)*finance_rate) -> 0 | I51: =IF(equipment_lifetime<I$25,0,SUM(I33:$V33)*finance_rate) -> 0 | J51: =IF(equipment_lifetime<J$25,0,SUM(J33:$V33)*finance_rate) -> 0 | K51: =IF(equipment_lifetime<K$25,0,SUM(K33:$V33)*finance_rate) -> 0 | L51: =IF(equipment_lifetime<L$25,0,SUM(L33:$V33)*finance_rate) -> 0 | M51: =IF(equipment_lifetime<M$25,0,SUM(M33:$V33)*finance_rate) -> 0 | N51: =IF(equipment_lifetime<N$25,0,SUM(N33:$V33)*finance_rate) -> 0 | O51: =IF(equipment_lifetime<O$25,0,SUM(O33:$V33)*finance_rate) -> 0 | P51: =IF(equipment_lifetime<P$25,0,SUM(P33:$V33)*finance_rate) -> 0 | Q51: =IF(equipment_lifetime<Q$25,0,SUM(Q33:$V33)*finance_rate) -> 0 | R51: =IF(equipment_lifetime<R$25,0,SUM(R33:$V33)*finance_rate) -> 0 | S51: =IF(equipment_lifetime<S$25,0,SUM(S33:$V33)*finance_rate) -> 0 | T51: =IF(equipment_lifetime<T$25,0,SUM(T33:$V33)*finance_rate) -> 0 | U51: =IF(equipment_lifetime<U$25,0,SUM(U33:$V33)*finance_rate) -> 0 | V51: =IF(equipment_lifetime<V$25,0,SUM(V33:$V33)*finance_rate) -> 0
B52: 4 year old | C52: =IF(equipment_lifetime<C$25,0,SUM(C34:$V34)*finance_rate) -> 439.7142857 | D52: =IF(equipment_lifetime<D$25,0,SUM(D34:$V34)*finance_rate) -> 293.1428571 | E52: =IF(equipment_lifetime<E$25,0,SUM(E34:$V34)*finance_rate) -> 146.5714286 | F52: =IF(equipment_lifetime<F$25,0,SUM(F34:$V34)*finance_rate) -> 0 | G52: =IF(equipment_lifetime<G$25,0,SUM(G34:$V34)*finance_rate) -> 0 | H52: =IF(equipment_lifetime<H$25,0,SUM(H34:$V34)*finance_rate) -> 0 | I52: =IF(equipment_lifetime<I$25,0,SUM(I34:$V34)*finance_rate) -> 0 | J52: =IF(equipment_lifetime<J$25,0,SUM(J34:$V34)*finance_rate) -> 0 | K52: =IF(equipment_lifetime<K$25,0,SUM(K34:$V34)*finance_rate) -> 0 | L52: =IF(equipment_lifetime<L$25,0,SUM(L34:$V34)*finance_rate) -> 0 | M52: =IF(equipment_lifetime<M$25,0,SUM(M34:$V34)*finance_rate) -> 0 | N52: =IF(equipment_lifetime<N$25,0,SUM(N34:$V34)*finance_rate) -> 0 | O52: =IF(equipment_lifetime<O$25,0,SUM(O34:$V34)*finance_rate) -> 0 | P52: =IF(equipment_lifetime<P$25,0,SUM(P34:$V34)*finance_rate) -> 0 | Q52: =IF(equipment_lifetime<Q$25,0,SUM(Q34:$V34)*finance_rate) -> 0 | R52: =IF(equipment_lifetime<R$25,0,SUM(R34:$V34)*finance_rate) -> 0 | S52: =IF(equipment_lifetime<S$25,0,SUM(S34:$V34)*finance_rate) -> 0 | T52: =IF(equipment_lifetime<T$25,0,SUM(T34:$V34)*finance_rate) -> 0 | U52: =IF(equipment_lifetime<U$25,0,SUM(U34:$V34)*finance_rate) -> 0 | V52: =IF(equipment_lifetime<V$25,0,SUM(V34:$V34)*finance_rate) -> 0
B53: 5 year old | C53: =IF(equipment_lifetime<C$25,0,SUM(C35:$V35)*finance_rate) -> 293.1428571 | D53: =IF(equipment_lifetime<D$25,0,SUM(D35:$V35)*finance_rate) -> 146.5714286 | E53: =IF(equipment_lifetime<E$25,0,SUM(E35:$V35)*finance_rate) -> 0 | F53: =IF(equipment_lifetime<F$25,0,SUM(F35:$V35)*finance_rate) -> 0 | G53: =IF(equipment_lifetime<G$25,0,SUM(G35:$V35)*finance_rate) -> 0 | H53: =IF(equipment_lifetime<H$25,0,SUM(H35:$V35)*finance_rate) -> 0 | I53: =IF(equipment_lifetime<I$25,0,SUM(I35:$V35)*finance_rate) -> 0 | J53: =IF(equipment_lifetime<J$25,0,SUM(J35:$V35)*finance_rate) -> 0 | K53: =IF(equipment_lifetime<K$25,0,SUM(K35:$V35)*finance_rate) -> 0 | L53: =IF(equipment_lifetime<L$25,0,SUM(L35:$V35)*finance_rate) -> 0 | M53: =IF(equipment_lifetime<M$25,0,SUM(M35:$V35)*finance_rate) -> 0 | N53: =IF(equipment_lifetime<N$25,0,SUM(N35:$V35)*finance_rate) -> 0 | O53: =IF(equipment_lifetime<O$25,0,SUM(O35:$V35)*finance_rate) -> 0 | P53: =IF(equipment_lifetime<P$25,0,SUM(P35:$V35)*finance_rate) -> 0 | Q53: =IF(equipment_lifetime<Q$25,0,SUM(Q35:$V35)*finance_rate) -> 0 | R53: =IF(equipment_lifetime<R$25,0,SUM(R35:$V35)*finance_rate) -> 0 | S53: =IF(equipment_lifetime<S$25,0,SUM(S35:$V35)*finance_rate) -> 0 | T53: =IF(equipment_lifetime<T$25,0,SUM(T35:$V35)*finance_rate) -> 0 | U53: =IF(equipment_lifetime<U$25,0,SUM(U35:$V35)*finance_rate) -> 0 | V53: =IF(equipment_lifetime<V$25,0,SUM(V35:$V35)*finance_rate) -> 0
B54: 6 year old | C54: =IF(equipment_lifetime<C$25,0,SUM(C36:$V36)*finance_rate) -> 146.5714286 | D54: =IF(equipment_lifetime<D$25,0,SUM(D36:$V36)*finance_rate) -> 0 | E54: =IF(equipment_lifetime<E$25,0,SUM(E36:$V36)*finance_rate) -> 0 | F54: =IF(equipment_lifetime<F$25,0,SUM(F36:$V36)*finance_rate) -> 0 | G54: =IF(equipment_lifetime<G$25,0,SUM(G36:$V36)*finance_rate) -> 0 | H54: =IF(equipment_lifetime<H$25,0,SUM(H36:$V36)*finance_rate) -> 0 | I54: =IF(equipment_lifetime<I$25,0,SUM(I36:$V36)*finance_rate) -> 0 | J54: =IF(equipment_lifetime<J$25,0,SUM(J36:$V36)*finance_rate) -> 0 | K54: =IF(equipment_lifetime<K$25,0,SUM(K36:$V36)*finance_rate) -> 0 | L54: =IF(equipment_lifetime<L$25,0,SUM(L36:$V36)*finance_rate) -> 0 | M54: =IF(equipment_lifetime<M$25,0,SUM(M36:$V36)*finance_rate) -> 0 | N54: =IF(equipment_lifetime<N$25,0,SUM(N36:$V36)*finance_rate) -> 0 | O54: =IF(equipment_lifetime<O$25,0,SUM(O36:$V36)*finance_rate) -> 0 | P54: =IF(equipment_lifetime<P$25,0,SUM(P36:$V36)*finance_rate) -> 0 | Q54: =IF(equipment_lifetime<Q$25,0,SUM(Q36:$V36)*finance_rate) -> 0 | R54: =IF(equipment_lifetime<R$25,0,SUM(R36:$V36)*finance_rate) -> 0 | S54: =IF(equipment_lifetime<S$25,0,SUM(S36:$V36)*finance_rate) -> 0 | T54: =IF(equipment_lifetime<T$25,0,SUM(T36:$V36)*finance_rate) -> 0 | U54: =IF(equipment_lifetime<U$25,0,SUM(U36:$V36)*finance_rate) -> 0 | V54: =IF(equipment_lifetime<V$25,0,SUM(V36:$V36)*finance_rate) -> 0
B55: 7 year old | C55: =IF(equipment_lifetime<C$25,0,SUM(C37:$V37)*finance_rate) -> 0 | D55: =IF(equipment_lifetime<D$25,0,SUM(D37:$V37)*finance_rate) -> 0 | E55: =IF(equipment_lifetime<E$25,0,SUM(E37:$V37)*finance_rate) -> 0 | F55: =IF(equipment_lifetime<F$25,0,SUM(F37:$V37)*finance_rate) -> 0 | G55: =IF(equipment_lifetime<G$25,0,SUM(G37:$V37)*finance_rate) -> 0 | H55: =IF(equipment_lifetime<H$25,0,SUM(H37:$V37)*finance_rate) -> 0 | I55: =IF(equipment_lifetime<I$25,0,SUM(I37:$V37)*finance_rate) -> 0 | J55: =IF(equipment_lifetime<J$25,0,SUM(J37:$V37)*finance_rate) -> 0 | K55: =IF(equipment_lifetime<K$25,0,SUM(K37:$V37)*finance_rate) -> 0 | L55: =IF(equipment_lifetime<L$25,0,SUM(L37:$V37)*finance_rate) -> 0 | M55: =IF(equipment_lifetime<M$25,0,SUM(M37:$V37)*finance_rate) -> 0 | N55: =IF(equipment_lifetime<N$25,0,SUM(N37:$V37)*finance_rate) -> 0 | O55: =IF(equipment_lifetime<O$25,0,SUM(O37:$V37)*finance_rate) -> 0 | P55: =IF(equipment_lifetime<P$25,0,SUM(P37:$V37)*finance_rate) -> 0 | Q55: =IF(equipment_lifetime<Q$25,0,SUM(Q37:$V37)*finance_rate) -> 0 | R55: =IF(equipment_lifetime<R$25,0,SUM(R37:$V37)*finance_rate) -> 0 | S55: =IF(equipment_lifetime<S$25,0,SUM(S37:$V37)*finance_rate) -> 0 | T55: =IF(equipment_lifetime<T$25,0,SUM(T37:$V37)*finance_rate) -> 0 | U55: =IF(equipment_lifetime<U$25,0,SUM(U37:$V37)*finance_rate) -> 0 | V55: =IF(equipment_lifetime<V$25,0,SUM(V37:$V37)*finance_rate) -> 0
B56: 8 year old | C56: =IF(equipment_lifetime<C$25,0,SUM(C38:$V38)*finance_rate) -> 0 | D56: =IF(equipment_lifetime<D$25,0,SUM(D38:$V38)*finance_rate) -> 0 | E56: =IF(equipment_lifetime<E$25,0,SUM(E38:$V38)*finance_rate) -> 0 | F56: =IF(equipment_lifetime<F$25,0,SUM(F38:$V38)*finance_rate) -> 0 | G56: =IF(equipment_lifetime<G$25,0,SUM(G38:$V38)*finance_rate) -> 0 | H56: =IF(equipment_lifetime<H$25,0,SUM(H38:$V38)*finance_rate) -> 0 | I56: =IF(equipment_lifetime<I$25,0,SUM(I38:$V38)*finance_rate) -> 0 | J56: =IF(equipment_lifetime<J$25,0,SUM(J38:$V38)*finance_rate) -> 0 | K56: =IF(equipment_lifetime<K$25,0,SUM(K38:$V38)*finance_rate) -> 0 | L56: =IF(equipment_lifetime<L$25,0,SUM(L38:$V38)*finance_rate) -> 0 | M56: =IF(equipment_lifetime<M$25,0,SUM(M38:$V38)*finance_rate) -> 0 | N56: =IF(equipment_lifetime<N$25,0,SUM(N38:$V38)*finance_rate) -> 0 | O56: =IF(equipment_lifetime<O$25,0,SUM(O38:$V38)*finance_rate) -> 0 | P56: =IF(equipment_lifetime<P$25,0,SUM(P38:$V38)*finance_rate) -> 0 | Q56: =IF(equipment_lifetime<Q$25,0,SUM(Q38:$V38)*finance_rate) -> 0 | R56: =IF(equipment_lifetime<R$25,0,SUM(R38:$V38)*finance_rate) -> 0 | S56: =IF(equipment_lifetime<S$25,0,SUM(S38:$V38)*finance_rate) -> 0 | T56: =IF(equipment_lifetime<T$25,0,SUM(T38:$V38)*finance_rate) -> 0 | U56: =IF(equipment_lifetime<U$25,0,SUM(U38:$V38)*finance_rate) -> 0 | V56: =IF(equipment_lifetime<V$25,0,SUM(V38:$V38)*finance_rate) -> 0
B57: 9 year old | C57: =IF(equipment_lifetime<C$25,0,SUM(C39:$V39)*finance_rate) -> 0 | D57: =IF(equipment_lifetime<D$25,0,SUM(D39:$V39)*finance_rate) -> 0 | E57: =IF(equipment_lifetime<E$25,0,SUM(E39:$V39)*finance_rate) -> 0 | F57: =IF(equipment_lifetime<F$25,0,SUM(F39:$V39)*finance_rate) -> 0 | G57: =IF(equipment_lifetime<G$25,0,SUM(G39:$V39)*finance_rate) -> 0 | H57: =IF(equipment_lifetime<H$25,0,SUM(H39:$V39)*finance_rate) -> 0 | I57: =IF(equipment_lifetime<I$25,0,SUM(I39:$V39)*finance_rate) -> 0 | J57: =IF(equipment_lifetime<J$25,0,SUM(J39:$V39)*finance_rate) -> 0 | K57: =IF(equipment_lifetime<K$25,0,SUM(K39:$V39)*finance_rate) -> 0 | L57: =IF(equipment_lifetime<L$25,0,SUM(L39:$V39)*finance_rate) -> 0 | M57: =IF(equipment_lifetime<M$25,0,SUM(M39:$V39)*finance_rate) -> 0 | N57: =IF(equipment_lifetime<N$25,0,SUM(N39:$V39)*finance_rate) -> 0 | O57: =IF(equipment_lifetime<O$25,0,SUM(O39:$V39)*finance_rate) -> 0 | P57: =IF(equipment_lifetime<P$25,0,SUM(P39:$V39)*finance_rate) -> 0 | Q57: =IF(equipment_lifetime<Q$25,0,SUM(Q39:$V39)*finance_rate) -> 0 | R57: =IF(equipment_lifetime<R$25,0,SUM(R39:$V39)*finance_rate) -> 0 | S57: =IF(equipment_lifetime<S$25,0,SUM(S39:$V39)*finance_rate) -> 0 | T57: =IF(equipment_lifetime<T$25,0,SUM(T39:$V39)*finance_rate) -> 0 | U57: =IF(equipment_lifetime<U$25,0,SUM(U39:$V39)*finance_rate) -> 0 | V57: =IF(equipment_lifetime<V$25,0,SUM(V39:$V39)*finance_rate) -> 0
B58: 10 year old | C58: =IF(equipment_lifetime<C$25,0,SUM(C40:$V40)*finance_rate) -> 0 | D58: =IF(equipment_lifetime<D$25,0,SUM(D40:$V40)*finance_rate) -> 0 | E58: =IF(equipment_lifetime<E$25,0,SUM(E40:$V40)*finance_rate) -> 0 | F58: =IF(equipment_lifetime<F$25,0,SUM(F40:$V40)*finance_rate) -> 0 | G58: =IF(equipment_lifetime<G$25,0,SUM(G40:$V40)*finance_rate) -> 0 | H58: =IF(equipment_lifetime<H$25,0,SUM(H40:$V40)*finance_rate) -> 0 | I58: =IF(equipment_lifetime<I$25,0,SUM(I40:$V40)*finance_rate) -> 0 | J58: =IF(equipment_lifetime<J$25,0,SUM(J40:$V40)*finance_rate) -> 0 | K58: =IF(equipment_lifetime<K$25,0,SUM(K40:$V40)*finance_rate) -> 0 | L58: =IF(equipment_lifetime<L$25,0,SUM(L40:$V40)*finance_rate) -> 0 | M58: =IF(equipment_lifetime<M$25,0,SUM(M40:$V40)*finance_rate) -> 0 | N58: =IF(equipment_lifetime<N$25,0,SUM(N40:$V40)*finance_rate) -> 0 | O58: =IF(equipment_lifetime<O$25,0,SUM(O40:$V40)*finance_rate) -> 0 | P58: =IF(equipment_lifetime<P$25,0,SUM(P40:$V40)*finance_rate) -> 0 | Q58: =IF(equipment_lifetime<Q$25,0,SUM(Q40:$V40)*finance_rate) -> 0 | R58: =IF(equipment_lifetime<R$25,0,SUM(R40:$V40)*finance_rate) -> 0 | S58: =IF(equipment_lifetime<S$25,0,SUM(S40:$V40)*finance_rate) -> 0 | T58: =IF(equipment_lifetime<T$25,0,SUM(T40:$V40)*finance_rate) -> 0 | U58: =IF(equipment_lifetime<U$25,0,SUM(U40:$V40)*finance_rate) -> 0 | V58: =IF(equipment_lifetime<V$25,0,SUM(V40:$V40)*finance_rate) -> 0
B59: 11 year old | C59: =IF(equipment_lifetime<C$25,0,SUM(C41:$V41)*finance_rate) -> 0 | D59: =IF(equipment_lifetime<D$25,0,SUM(D41:$V41)*finance_rate) -> 0 | E59: =IF(equipment_lifetime<E$25,0,SUM(E41:$V41)*finance_rate) -> 0 | F59: =IF(equipment_lifetime<F$25,0,SUM(F41:$V41)*finance_rate) -> 0 | G59: =IF(equipment_lifetime<G$25,0,SUM(G41:$V41)*finance_rate) -> 0 | H59: =IF(equipment_lifetime<H$25,0,SUM(H41:$V41)*finance_rate) -> 0 | I59: =IF(equipment_lifetime<I$25,0,SUM(I41:$V41)*finance_rate) -> 0 | J59: =IF(equipment_lifetime<J$25,0,SUM(J41:$V41)*finance_rate) -> 0 | K59: =IF(equipment_lifetime<K$25,0,SUM(K41:$V41)*finance_rate) -> 0 | L59: =IF(equipment_lifetime<L$25,0,SUM(L41:$V41)*finance_rate) -> 0 | M59: =IF(equipment_lifetime<M$25,0,SUM(M41:$V41)*finance_rate) -> 0 | N59: =IF(equipment_lifetime<N$25,0,SUM(N41:$V41)*finance_rate) -> 0 | O59: =IF(equipment_lifetime<O$25,0,SUM(O41:$V41)*finance_rate) -> 0 | P59: =IF(equipment_lifetime<P$25,0,SUM(P41:$V41)*finance_rate) -> 0 | Q59: =IF(equipment_lifetime<Q$25,0,SUM(Q41:$V41)*finance_rate) -> 0 | R59: =IF(equipment_lifetime<R$25,0,SUM(R41:$V41)*finance_rate) -> 0 | S59: =IF(equipment_lifetime<S$25,0,SUM(S41:$V41)*finance_rate) -> 0 | T59: =IF(equipment_lifetime<T$25,0,SUM(T41:$V41)*finance_rate) -> 0 | U59: =IF(equipment_lifetime<U$25,0,SUM(U41:$V41)*finance_rate) -> 0 | V59: =IF(equipment_lifetime<V$25,0,SUM(V41:$V41)*finance_rate) -> 0
B60: 12 year old | C60: =IF(equipment_lifetime<C$25,0,SUM(C42:$V42)*finance_rate) -> 0 | D60: =IF(equipment_lifetime<D$25,0,SUM(D42:$V42)*finance_rate) -> 0 | E60: =IF(equipment_lifetime<E$25,0,SUM(E42:$V42)*finance_rate) -> 0 | F60: =IF(equipment_lifetime<F$25,0,SUM(F42:$V42)*finance_rate) -> 0 | G60: =IF(equipment_lifetime<G$25,0,SUM(G42:$V42)*finance_rate) -> 0 | H60: =IF(equipment_lifetime<H$25,0,SUM(H42:$V42)*finance_rate) -> 0 | I60: =IF(equipment_lifetime<I$25,0,SUM(I42:$V42)*finance_rate) -> 0 | J60: =IF(equipment_lifetime<J$25,0,SUM(J42:$V42)*finance_rate) -> 0 | K60: =IF(equipment_lifetime<K$25,0,SUM(K42:$V42)*finance_rate) -> 0 | L60: =IF(equipment_lifetime<L$25,0,SUM(L42:$V42)*finance_rate) -> 0 | M60: =IF(equipment_lifetime<M$25,0,SUM(M42:$V42)*finance_rate) -> 0 | N60: =IF(equipment_lifetime<N$25,0,SUM(N42:$V42)*finance_rate) -> 0 | O60: =IF(equipment_lifetime<O$25,0,SUM(O42:$V42)*finance_rate) -> 0 | P60: =IF(equipment_lifetime<P$25,0,SUM(P42:$V42)*finance_rate) -> 0 | Q60: =IF(equipment_lifetime<Q$25,0,SUM(Q42:$V42)*finance_rate) -> 0 | R60: =IF(equipment_lifetime<R$25,0,SUM(R42:$V42)*finance_rate) -> 0 | S60: =IF(equipment_lifetime<S$25,0,SUM(S42:$V42)*finance_rate) -> 0 | T60: =IF(equipment_lifetime<T$25,0,SUM(T42:$V42)*finance_rate) -> 0 | U60: =IF(equipment_lifetime<U$25,0,SUM(U42:$V42)*finance_rate) -> 0 | V60: =IF(equipment_lifetime<V$25,0,SUM(V42:$V42)*finance_rate) -> 0
B61: 13 year old | C61: =IF(equipment_lifetime<C$25,0,SUM(C43:$V43)*finance_rate) -> 0 | D61: =IF(equipment_lifetime<D$25,0,SUM(D43:$V43)*finance_rate) -> 0 | E61: =IF(equipment_lifetime<E$25,0,SUM(E43:$V43)*finance_rate) -> 0 | F61: =IF(equipment_lifetime<F$25,0,SUM(F43:$V43)*finance_rate) -> 0 | G61: =IF(equipment_lifetime<G$25,0,SUM(G43:$V43)*finance_rate) -> 0 | H61: =IF(equipment_lifetime<H$25,0,SUM(H43:$V43)*finance_rate) -> 0 | I61: =IF(equipment_lifetime<I$25,0,SUM(I43:$V43)*finance_rate) -> 0 | J61: =IF(equipment_lifetime<J$25,0,SUM(J43:$V43)*finance_rate) -> 0 | K61: =IF(equipment_lifetime<K$25,0,SUM(K43:$V43)*finance_rate) -> 0 | L61: =IF(equipment_lifetime<L$25,0,SUM(L43:$V43)*finance_rate) -> 0 | M61: =IF(equipment_lifetime<M$25,0,SUM(M43:$V43)*finance_rate) -> 0 | N61: =IF(equipment_lifetime<N$25,0,SUM(N43:$V43)*finance_rate) -> 0 | O61: =IF(equipment_lifetime<O$25,0,SUM(O43:$V43)*finance_rate) -> 0 | P61: =IF(equipment_lifetime<P$25,0,SUM(P43:$V43)*finance_rate) -> 0 | Q61: =IF(equipment_lifetime<Q$25,0,SUM(Q43:$V43)*finance_rate) -> 0 | R61: =IF(equipment_lifetime<R$25,0,SUM(R43:$V43)*finance_rate) -> 0 | S61: =IF(equipment_lifetime<S$25,0,SUM(S43:$V43)*finance_rate) -> 0 | T61: =IF(equipment_lifetime<T$25,0,SUM(T43:$V43)*finance_rate) -> 0 | U61: =IF(equipment_lifetime<U$25,0,SUM(U43:$V43)*finance_rate) -> 0 | V61: =IF(equipment_lifetime<V$25,0,SUM(V43:$V43)*finance_rate) -> 0
B62: 14 year old | C62: =IF(equipment_lifetime<C$25,0,SUM(C44:$V44)*finance_rate) -> 0 | D62: =IF(equipment_lifetime<D$25,0,SUM(D44:$V44)*finance_rate) -> 0 | E62: =IF(equipment_lifetime<E$25,0,SUM(E44:$V44)*finance_rate) -> 0 | F62: =IF(equipment_lifetime<F$25,0,SUM(F44:$V44)*finance_rate) -> 0 | G62: =IF(equipment_lifetime<G$25,0,SUM(G44:$V44)*finance_rate) -> 0 | H62: =IF(equipment_lifetime<H$25,0,SUM(H44:$V44)*finance_rate) -> 0 | I62: =IF(equipment_lifetime<I$25,0,SUM(I44:$V44)*finance_rate) -> 0 | J62: =IF(equipment_lifetime<J$25,0,SUM(J44:$V44)*finance_rate) -> 0 | K62: =IF(equipment_lifetime<K$25,0,SUM(K44:$V44)*finance_rate) -> 0 | L62: =IF(equipment_lifetime<L$25,0,SUM(L44:$V44)*finance_rate) -> 0 | M62: =IF(equipment_lifetime<M$25,0,SUM(M44:$V44)*finance_rate) -> 0 | N62: =IF(equipment_lifetime<N$25,0,SUM(N44:$V44)*finance_rate) -> 0 | O62: =IF(equipment_lifetime<O$25,0,SUM(O44:$V44)*finance_rate) -> 0 | P62: =IF(equipment_lifetime<P$25,0,SUM(P44:$V44)*finance_rate) -> 0 | Q62: =IF(equipment_lifetime<Q$25,0,SUM(Q44:$V44)*finance_rate) -> 0 | R62: =IF(equipment_lifetime<R$25,0,SUM(R44:$V44)*finance_rate) -> 0 | S62: =IF(equipment_lifetime<S$25,0,SUM(S44:$V44)*finance_rate) -> 0 | T62: =IF(equipment_lifetime<T$25,0,SUM(T44:$V44)*finance_rate) -> 0 | U62: =IF(equipment_lifetime<U$25,0,SUM(U44:$V44)*finance_rate) -> 0 | V62: =IF(equipment_lifetime<V$25,0,SUM(V44:$V44)*finance_rate) -> 0
B63: 15 year old | C63: =IF(equipment_lifetime<C$25,0,SUM(C45:$V45)*finance_rate) -> 0 | D63: =IF(equipment_lifetime<D$25,0,SUM(D45:$V45)*finance_rate) -> 0 | E63: =IF(equipment_lifetime<E$25,0,SUM(E45:$V45)*finance_rate) -> 0 | F63: =IF(equipment_lifetime<F$25,0,SUM(F45:$V45)*finance_rate) -> 0 | G63: =IF(equipment_lifetime<G$25,0,SUM(G45:$V45)*finance_rate) -> 0 | H63: =IF(equipment_lifetime<H$25,0,SUM(H45:$V45)*finance_rate) -> 0 | I63: =IF(equipment_lifetime<I$25,0,SUM(I45:$V45)*finance_rate) -> 0 | J63: =IF(equipment_lifetime<J$25,0,SUM(J45:$V45)*finance_rate) -> 0 | K63: =IF(equipment_lifetime<K$25,0,SUM(K45:$V45)*finance_rate) -> 0 | L63: =IF(equipment_lifetime<L$25,0,SUM(L45:$V45)*finance_rate) -> 0 | M63: =IF(equipment_lifetime<M$25,0,SUM(M45:$V45)*finance_rate) -> 0 | N63: =IF(equipment_lifetime<N$25,0,SUM(N45:$V45)*finance_rate) -> 0 | O63: =IF(equipment_lifetime<O$25,0,SUM(O45:$V45)*finance_rate) -> 0 | P63: =IF(equipment_lifetime<P$25,0,SUM(P45:$V45)*finance_rate) -> 0 | Q63: =IF(equipment_lifetime<Q$25,0,SUM(Q45:$V45)*finance_rate) -> 0 | R63: =IF(equipment_lifetime<R$25,0,SUM(R45:$V45)*finance_rate) -> 0 | S63: =IF(equipment_lifetime<S$25,0,SUM(S45:$V45)*finance_rate) -> 0 | T63: =IF(equipment_lifetime<T$25,0,SUM(T45:$V45)*finance_rate) -> 0 | U63: =IF(equipment_lifetime<U$25,0,SUM(U45:$V45)*finance_rate) -> 0 | V63: =IF(equipment_lifetime<V$25,0,SUM(V45:$V45)*finance_rate) -> 0
B65: Depreciaton + financing cost
B66: 0 year old | C66: =C30+C48 -> 3597.428571 | D66: 3450.857143 | E66: 3304.285714 | F66: 3157.714286 | G66: 3011.142857 | H66: 2864.571429 | I66: 2718 | J66: 0 | K66: 0 | L66: 0 | M66: 0 | N66: 0 | O66: 0 | P66: 0 | Q66: 0 | R66: 0 | S66: 0 | T66: 0 | U66: 0 | V66: 0
B67: 1 year old | C67: 3450.857143 | D67: 3304.285714 | E67: 3157.714286 | F67: 3011.142857 | G67: 2864.571429 | H67: 2718 | I67: 0 | J67: 0 | K67: 0 | L67: 0 | M67: 0 | N67: 0 | O67: 0 | P67: 0 | Q67: 0 | R67: 0 | S67: 0 | T67: 0 | U67: 0 | V67: 0
B68: 2 year old | C68: 3304.285714 | D68: 3157.714286 | E68: 3011.142857 | F68: 2864.571429 | G68: 2718 | H68: 0 | I68: 0 | J68: 0 | K68: 0 | L68: 0 | M68: 0 | N68: 0 | O68: 0 | P68: 0 | Q68: 0 | R68: 0 | S68: 0 | T68: 0 | U68: 0 | V68: 0
B69: 3 year old | C69: 3157.714286 | D69: 3011.142857 | E69: 2864.571429 | F69: 2718 | G69: 0 | H69: 0 | I69: 0 | J69: 0 | K69: 0 | L69: 0 | M69: 0 | N69: 0 | O69: 0 | P69: 0 | Q69: 0 | R69: 0 | S69: 0 | T69: 0 | U69: 0 | V69: 0
B70: 4 year old | C70: 3011.142857 | D70: 2864.571429 | E70: 2718 | F70: 0 | G70: 0 | H70: 0 | I70: 0 | J70: 0 | K70: 0 | L70: 0 | M70: 0 | N70: 0 | O70: 0 | P70: 0 | Q70: 0 | R70: 0 | S70: 0 | T70: 0 | U70: 0 | V70: 0
B71: 5 year old | C71: 2864.571429 | D71: 2718 | E71: 0 | F71: 0 | G71: 0 | H71: 0 | I71: 0 | J71: 0 | K71: 0 | L71: 0 | M71: 0 | N71: 0 | O71: 0 | P71: 0 | Q71: 0 | R71: 0 | S71: 0 | T71: 0 | U71: 0 | V71: 0
B72: 6 year old | C72: 2718 | D72: 0 | E72: 0 | F72: 0 | G72: 0 | H72: 0 | I72: 0 | J72: 0 | K72: 0 | L72: 0 | M72: 0 | N72: 0 | O72: 0 | P72: 0 | Q72: 0 | R72: 0 | S72: 0 | T72: 0 | U72: 0 | V72: 0
B73: 7 year old | C73: 0 | D73: 0 | E73: 0 | F73: 0 | G73: 0 | H73: 0 | I73: 0 | J73: 0 | K73: 0 | L73: 0 | M73: 0 | N73: 0 | O73: 0 | P73: 0 | Q73: 0 | R73: 0 | S73: 0 | T73: 0 | U73: 0 | V73: 0
B74: 8 year old | C74: 0 | D74: 0 | E74: 0 | F74: 0 | G74: 0 | H74: 0 | I74: 0 | J74: 0 | K74: 0 | L74: 0 | M74: 0 | N74: 0 | O74: 0 | P74: 0 | Q74: 0 | R74: 0 | S74: 0 | T74: 0 | U74: 0 | V74: 0
B75: 9 year old | C75: 0 | D75: 0 | E75: 0 | F75: 0 | G75: 0 | H75: 0 | I75: 0 | J75: 0 | K75: 0 | L75: 0 | M75: 0 | N75: 0 | O75: 0 | P75: 0 | Q75: 0 | R75: 0 | S75: 0 | T75: 0 | U75: 0 | V75: 0
B76: 10 year old | C76: 0 | D76: 0 | E76: 0 | F76: 0 | G76: 0 | H76: 0 | I76: 0 | J76: 0 | K76: 0 | L76: 0 | M76: 0 | N76: 0 | O76: 0 | P76: 0 | Q76: 0 | R76: 0 | S76: 0 | T76: 0 | U76: 0 | V76: 0
B77: 11 year old | C77: 0 | D77: 0 | E77: 0 | F77: 0 | G77: 0 | H77: 0 | I77: 0 | J77: 0 | K77: 0 | L77: 0 | M77: 0 | N77: 0 | O77: 0 | P77: 0 | Q77: 0 | R77: 0 | S77: 0 | T77: 0 | U77: 0 | V77: 0
B78: 12 year old | C78: 0 | D78: 0 | E78: 0 | F78: 0 | G78: 0 | H78: 0 | I78: 0 | J78: 0 | K78: 0 | L78: 0 | M78: 0 | N78: 0 | O78: 0 | P78: 0 | Q78: 0 | R78: =R42+R60 -> 0 | S78: 0 | T78: 0 | U78: 0 | V78: 0
B79: 13 year old | C79: =C43+C61 -> 0 | D79: 0 | E79: 0 | F79: 0 | G79: 0 | H79: 0 | I79: 0 | J79: 0 | K79: 0 | L79: 0 | M79: 0 | N79: 0 | O79: 0 | P79: 0 | Q79: 0 | R79: 0 | S79: 0 | T79: 0 | U79: 0 | V79: 0
B80: 14 year old | C80: 0 | D80: 0 | E80: 0 | F80: 0 | G80: 0 | H80: 0 | I80: 0 | J80: 0 | K80: 0 | L80: 0 | M80: 0 | N80: 0 | O80: 0 | P80: 0 | Q80: 0 | R80: 0 | S80: 0 | T80: 0 | U80: 0 | V80: 0
B81: 15 year old | C81: 0 | D81: 0 | E81: 0 | F81: 0 | G81: 0 | H81: 0 | I81: 0 | J81: 0 | K81: 0 | L81: 0 | M81: 0 | N81: 0 | O81: 0 | P81: 0 | Q81: 0 | R81: 0 | S81: 0 | T81: 0 | U81: 0 | V81: 0
B83: Discounted cost | W83: Years utilisation >> | X83: 0 | Y83: 1 | Z83: 2 | AA83: 3 | AB83: 4 | AC83: 5 | AD83: Revo_utilisation_years
B84: 0 year old | C84: =C66*INDEX($C$16:$V$16, 1, MATCH(C$25,$C$15:$V$15,0)) -> 3475.776398 | D84: 3221.412068 | E84: 2980.276397 | F84: 2751.765572 | G84: 2535.301487 | H84: 2330.330703 | I84: 2136.323431 | J84: 0 | K84: 0 | L84: 0 | M84: 0 | N84: 0 | O84: 0 | P84: 0 | Q84: 0 | R84: 0 | S84: 0 | T84: 0 | U84: 0 | V84: 0 | X84: =SUM(C84:$V84) -> 19431.18606 | Y84: =SUM(D84:$V84) -> 15955.40966 | Z84: =SUM(E84:$V84) -> 12733.99759 | AA84: =SUM(F84:$V84) -> 9753.721193 | AB84: =SUM(G84:$V84) -> 7001.955621 | AC84: =SUM(H84:$V84) -> 4466.654134
B85: 1 year old | C85: =C67*INDEX($C$16:$V$16, 1, MATCH(C$25,$C$15:$V$15,0)) -> 3334.161491 | D85: 3084.586071 | E85: 2848.077367 | F85: 2624.037039 | G85: 2411.892277 | H85: 2211.094751 | I85: 0 | J85: 0 | K85: 0 | L85: 0 | M85: 0 | N85: 0 | O85: 0 | P85: 0 | Q85: 0 | R85: 0 | S85: 0 | T85: 0 | U85: 0 | V85: 0 | X85: =SUM(C85:$V85) -> 16513.849 | Y85: =SUM(D85:$V85) -> 13179.68751 | Z85: =SUM(E85:$V85) -> 10095.10143 | AA85: =SUM(F85:$V85) -> 7247.024068 | AB85: =SUM(G85:$V85) -> 4622.987029 | AC85: =SUM(H85:$V85) -> 2211.094751
B86: 2 year old | C86: =C68*INDEX($C$16:$V$16, 1, MATCH(C$25,$C$15:$V$15,0)) -> 3192.546584 | D86: 2947.760074 | E86: 2715.878336 | F86: 2496.308507 | G86: 2288.483068 | H86: 0 | I86: 0 | J86: 0 | K86: 0 | L86: 0 | M86: 0 | N86: 0 | O86: 0 | P86: 0 | Q86: 0 | R86: 0 | S86: 0 | T86: 0 | U86: 0 | V86: 0 | X86: =SUM(C86:$V86) -> 13640.97657 | Y86: =SUM(D86:$V86) -> 10448.42998 | Z86: =SUM(E86:$V86) -> 7500.66991 | AA86: =SUM(F86:$V86) -> 4784.791575 | AB86: =SUM(G86:$V86) -> 2288.483068 | AC86: =SUM(H86:$V86) -> 0
B87: 3 year old | C87: =C69*INDEX($C$16:$V$16, 1, MATCH(C$25,$C$15:$V$15,0)) -> 3050.931677 | D87: 2810.934077 | E87: 2583.679305 | F87: 2368.579975 | G87: 0 | H87: 0 | I87: 0 | J87: 0 | K87: 0 | L87: 0 | M87: 0 | N87: 0 | O87: 0 | P87: 0 | Q87: 0 | R87: 0 | S87: 0 | T87: 0 | U87: 0 | V87: 0 | X87: =SUM(C87:$V87) -> 10814.12503 | Y87: =SUM(D87:$V87) -> 7763.193357 | Z87: =SUM(E87:$V87) -> 4952.25928 | AA87: =SUM(F87:$V87) -> 2368.579975 | AB87: =SUM(G87:$V87) -> 0 | AC87: =SUM(H87:$V87) -> 0
B88: 4 year old | C88: =C70*INDEX($C$16:$V$16, 1, MATCH(C$25,$C$15:$V$15,0)) -> 2909.31677 | D88: 2674.108081 | E88: 2451.480274 | F88: 0 | G88: 0 | H88: 0 | I88: 0 | J88: 0 | K88: 0 | L88: 0 | M88: 0 | N88: 0 | O88: 0 | P88: 0 | Q88: 0 | R88: 0 | S88: 0 | T88: 0 | U88: 0 | V88: 0 | X88: =SUM(C88:$V88) -> 8034.905125 | Y88: =SUM(D88:$V88) -> 5125.588355 | Z88: =SUM(E88:$V88) -> 2451.480274 | AA88: =SUM(F88:$V88) -> 0 | AB88: =SUM(G88:$V88) -> 0 | AC88: =SUM(H88:$V88) -> 0
B89: 5 year old | C89: =C71*INDEX($C$16:$V$16, 1, MATCH(C$25,$C$15:$V$15,0)) -> 2767.701863 | D89: 2537.282084 | E89: 0 | F89: 0 | G89: 0 | H89: 0 | I89: 0 | J89: 0 | K89: 0 | L89: 0 | M89: 0 | N89: 0 | O89: 0 | P89: 0 | Q89: 0 | R89: 0 | S89: 0 | T89: 0 | U89: 0 | V89: 0 | X89: =SUM(C89:$V89) -> 5304.983947 | Y89: =SUM(D89:$V89) -> 2537.282084 | Z89: =SUM(E89:$V89) -> 0 | AA89: =SUM(F89:$V89) -> 0 | AB89: =SUM(G89:$V89) -> 0 | AC89: =SUM(H89:$V89) -> 0
B90: 6 year old | C90: =C72*INDEX($C$16:$V$16, 1, MATCH(C$25,$C$15:$V$15,0)) -> 2626.086957 | D90: 0 | E90: 0 | F90: 0 | G90: 0 | H90: 0 | I90: 0 | J90: 0 | K90: 0 | L90: 0 | M90: 0 | N90: 0 | O90: 0 | P90: 0 | Q90: 0 | R90: 0 | S90: 0 | T90: 0 | U90: 0 | V90: 0 | X90: =SUM(C90:$V90) -> 2626.086957 | Y90: =SUM(D90:$V90) -> 0 | Z90: =SUM(E90:$V90) -> 0 | AA90: =SUM(F90:$V90) -> 0 | AB90: =SUM(G90:$V90) -> 0 | AC90: =SUM(H90:$V90) -> 0
B91: 7 year old | C91: =C73*INDEX($C$16:$V$16, 1, MATCH(C$25,$C$15:$V$15,0)) -> 0 | D91: 0 | E91: 0 | F91: 0 | G91: 0 | H91: 0 | I91: 0 | J91: 0 | K91: 0 | L91: 0 | M91: 0 | N91: 0 | O91: 0 | P91: 0 | Q91: 0 | R91: 0 | S91: 0 | T91: 0 | U91: 0 | V91: 0 | X91: =SUM(C91:$V91) -> 0 | Y91: =SUM(D91:$V91) -> 0 | Z91: =SUM(E91:$V91) -> 0 | AA91: =SUM(F91:$V91) -> 0 | AB91: =SUM(G91:$V91) -> 0 | AC91: =SUM(H91:$V91) -> 0
B92: 8 year old | C92: =C74*INDEX($C$16:$V$16, 1, MATCH(C$25,$C$15:$V$15,0)) -> 0 | D92: 0 | E92: 0 | F92: 0 | G92: 0 | H92: 0 | I92: 0 | J92: 0 | K92: 0 | L92: 0 | M92: 0 | N92: 0 | O92: 0 | P92: 0 | Q92: 0 | R92: 0 | S92: 0 | T92: 0 | U92: 0 | V92: 0 | X92: =SUM(C92:$V92) -> 0 | Y92: =SUM(D92:$V92) -> 0 | Z92: =SUM(E92:$V92) -> 0 | AA92: =SUM(F92:$V92) -> 0 | AB92: =SUM(G92:$V92) -> 0 | AC92: =SUM(H92:$V92) -> 0
B93: 9 year old | C93: =C75*INDEX($C$16:$V$16, 1, MATCH(C$25,$C$15:$V$15,0)) -> 0 | D93: 0 | E93: 0 | F93: 0 | G93: 0 | H93: 0 | I93: 0 | J93: 0 | K93: 0 | L93: 0 | M93: 0 | N93: 0 | O93: 0 | P93: 0 | Q93: 0 | R93: 0 | S93: 0 | T93: 0 | U93: 0 | V93: 0 | X93: =SUM(C93:$V93) -> 0 | Y93: =SUM(D93:$V93) -> 0 | Z93: =SUM(E93:$V93) -> 0 | AA93: =SUM(F93:$V93) -> 0 | AB93: =SUM(G93:$V93) -> 0 | AC93: =SUM(H93:$V93) -> 0
B94: 10 year old | C94: =C76*INDEX($C$16:$V$16, 1, MATCH(C$25,$C$15:$V$15,0)) -> 0 | D94: 0 | E94: 0 | F94: 0 | G94: 0 | H94: 0 | I94: 0 | J94: 0 | K94: 0 | L94: 0 | M94: 0 | N94: 0 | O94: 0 | P94: 0 | Q94: 0 | R94: 0 | S94: 0 | T94: 0 | U94: 0 | V94: 0 | X94: =SUM(C94:$V94) -> 0 | Y94: =SUM(D94:$V94) -> 0 | Z94: =SUM(E94:$V94) -> 0 | AA94: =SUM(F94:$V94) -> 0 | AB94: =SUM(G94:$V94) -> 0 | AC94: =SUM(H94:$V94) -> 0
B95: 11 year old | C95: =C77*INDEX($C$16:$V$16, 1, MATCH(C$25,$C$15:$V$15,0)) -> 0 | D95: 0 | E95: 0 | F95: 0 | G95: 0 | H95: 0 | I95: 0 | J95: 0 | K95: 0 | L95: 0 | M95: 0 | N95: 0 | O95: 0 | P95: 0 | Q95: 0 | R95: 0 | S95: 0 | T95: 0 | U95: 0 | V95: 0 | X95: =SUM(C95:$V95) -> 0 | Y95: =SUM(D95:$V95) -> 0 | Z95: =SUM(E95:$V95) -> 0 | AA95: =SUM(F95:$V95) -> 0 | AB95: =SUM(G95:$V95) -> 0 | AC95: =SUM(H95:$V95) -> 0
B96: 12 year old | C96: =C78*INDEX($C$16:$V$16, 1, MATCH(C$25,$C$15:$V$15,0)) -> 0 | D96: 0 | E96: 0 | F96: 0 | G96: 0 | H96: 0 | I96: 0 | J96: 0 | K96: 0 | L96: 0 | M96: 0 | N96: 0 | O96: 0 | P96: 0 | Q96: 0 | R96: 0 | S96: 0 | T96: 0 | U96: 0 | V96: 0 | X96: =SUM(C96:$V96) -> 0 | Y96: =SUM(D96:$V96) -> 0 | Z96: =SUM(E96:$V96) -> 0 | AA96: =SUM(F96:$V96) -> 0 | AB96: =SUM(G96:$V96) -> 0 | AC96: =SUM(H96:$V96) -> 0
B97: 13 year old | C97: =C79*INDEX($C$16:$V$16, 1, MATCH(C$25,$C$15:$V$15,0)) -> 0 | D97: 0 | E97: 0 | F97: 0 | G97: 0 | H97: 0 | I97: 0 | J97: 0 | K97: 0 | L97: 0 | M97: 0 | N97: 0 | O97: 0 | P97: 0 | Q97: 0 | R97: 0 | S97: 0 | T97: 0 | U97: 0 | V97: 0 | X97: =SUM(C97:$V97) -> 0 | Y97: =SUM(D97:$V97) -> 0 | Z97: =SUM(E97:$V97) -> 0 | AA97: =SUM(F97:$V97) -> 0 | AB97: =SUM(G97:$V97) -> 0 | AC97: =SUM(H97:$V97) -> 0
B98: 14 year old | C98: =C80*INDEX($C$16:$V$16, 1, MATCH(C$25,$C$15:$V$15,0)) -> 0 | D98: 0 | E98: 0 | F98: 0 | G98: 0 | H98: 0 | I98: 0 | J98: 0 | K98: 0 | L98: 0 | M98: 0 | N98: 0 | O98: 0 | P98: 0 | Q98: 0 | R98: 0 | S98: 0 | T98: 0 | U98: 0 | V98: 0 | X98: =SUM(C98:$V98) -> 0 | Y98: =SUM(D98:$V98) -> 0 | Z98: =SUM(E98:$V98) -> 0 | AA98: =SUM(F98:$V98) -> 0 | AB98: =SUM(G98:$V98) -> 0 | AC98: =SUM(H98:$V98) -> 0
B99: 15 year old | C99: =C81*INDEX($C$16:$V$16, 1, MATCH(C$25,$C$15:$V$15,0)) -> 0 | D99: 0 | E99: 0 | F99: 0 | G99: 0 | H99: 0 | I99: 0 | J99: 0 | K99: 0 | L99: 0 | M99: 0 | N99: 0 | O99: 0 | P99: 0 | Q99: 0 | R99: 0 | S99: 0 | T99: 0 | U99: 0 | V99: 0 | X99: =SUM(C99:$V99) -> 0 | Y99: =SUM(D99:$V99) -> 0 | Z99: =SUM(E99:$V99) -> 0 | AA99: =SUM(F99:$V99) -> 0 | AB99: =SUM(G99:$V99) -> 0 | AC99: =SUM(H99:$V99) -> 0
X101: Average cost per link | Y101: Average cost per link | Z101: Average cost per link | AA101: Average cost per link | AB101: Average cost per link | AC101: Average cost per link
B102: Final outputs in Columns X - AC ----> | X102: =SUM(X84:X99/equipment_lifetime) -> 10909.44467 | Y102: =SUM(Y84:Y99/equipment_lifetime) -> 7858.512992 | Z102: =SUM(Z84:Z99/equipment_lifetime) -> 5390.501213 | AA102: =SUM(AA84:AA99/equipment_lifetime) -> 3450.588116 | AB102: =SUM(AB84:AB99/equipment_lifetime) -> 1987.632245 | AC102: =SUM(AC84:AC99/equipment_lifetime) -> 953.9641265 | AD102: UEL7_revo_options
B104: Cost additional hop | W104: Total 20 yr NPC
A105: =INDEX($C107:$V107,,MATCH((equipment_lifetime+1),$C106:$V106,0))=C107 -> TRUE
C106: 1 | D106: 2 | E106: 3 | F106: 4 | G106: 5 | H106: 6 | I106: 7 | J106: 8 | K106: 9 | L106: 10 | M106: 11 | N106: 12 | O106: 13 | P106: 14 | Q106: 15 | R106: 16 | S106: 17 | T106: 18 | U106: 19 | V106: 20
A107: Rural | B107: Annualised equipment cost | C107: =C66 -> 3597.428571 | D107: =D66 -> 3450.857143 | E107: 3304.285714 | F107: 3157.714286 | G107: 3011.142857 | H107: 2864.571429 | I107: 2718 | J107: =C107 -> 3597.428571 | K107: =D107 -> 3450.857143 | L107: 3304.285714 | M107: 3157.714286 | N107: 3011.142857 | O107: 2864.571429 | P107: 2718 | Q107: =C107 -> 3597.428571 | R107: =D107 -> 3450.857143 | S107: 3304.285714 | T107: 3157.714286 | U107: 3011.142857 | V107: 2864.571429 | W107: =SUM(C107:V107) -> 63594
B108: Annualised site cost | C108: =Cost_SiteRural!C29 -> 13237.82995 | D108: =Cost_SiteRural!D29 -> 12885.23355 | E108: =Cost_SiteRural!E29 -> 12532.63714 | F108: =Cost_SiteRural!F29 -> 12180.04074 | G108: =Cost_SiteRural!G29 -> 11827.44433 | H108: =Cost_SiteRural!H29 -> 11474.84793 | I108: =Cost_SiteRural!I29 -> 11122.25152 | J108: =Cost_SiteRural!J29 -> 10769.65512 | K108: =Cost_SiteRural!K29 -> 10417.05871 | L108: =Cost_SiteRural!L29 -> 10064.46231 | M108: =Cost_SiteRural!M29 -> 9711.865901 | N108: =Cost_SiteRural!N29 -> 9359.269496 | O108: =Cost_SiteRural!O29 -> 9006.673091 | P108: =Cost_SiteRural!P29 -> 8654.076685 | Q108: =Cost_SiteRural!Q29 -> 8301.48028 | R108: =Cost_SiteRural!R29 -> 7948.883875 | S108: =Cost_SiteRural!S29 -> 7596.287469 | T108: =Cost_SiteRural!T29 -> 7243.691064 | U108: =Cost_SiteRural!U29 -> 6891.094659 | V108: =Cost_SiteRural!V29 -> 6538.498253 | W108: =SUM(C108:V108) -> 197763.2821
B109: Opex | C109: ='Cost calculations'!$G$24 -> 4579.483433 | D109: ='Cost calculations'!$G$24 -> 4579.483433 | E109: ='Cost calculations'!$G$24 -> 4579.483433 | F109: ='Cost calculations'!$G$24 -> 4579.483433 | G109: ='Cost calculations'!$G$24 -> 4579.483433 | H109: ='Cost calculations'!$G$24 -> 4579.483433 | I109: ='Cost calculations'!$G$24 -> 4579.483433 | J109: ='Cost calculations'!$G$24 -> 4579.483433 | K109: ='Cost calculations'!$G$24 -> 4579.483433 | L109: ='Cost calculations'!$G$24 -> 4579.483433 | M109: ='Cost calculations'!$G$24 -> 4579.483433 | N109: ='Cost calculations'!$G$24 -> 4579.483433 | O109: ='Cost calculations'!$G$24 -> 4579.483433 | P109: ='Cost calculations'!$G$24 -> 4579.483433 | Q109: ='Cost calculations'!$G$24 -> 4579.483433 | R109: ='Cost calculations'!$G$24 -> 4579.483433 | S109: ='Cost calculations'!$G$24 -> 4579.483433 | T109: ='Cost calculations'!$G$24 -> 4579.483433 | U109: ='Cost calculations'!$G$24 -> 4579.483433 | V109: ='Cost calculations'!$G$24 -> 4579.483433 | W109: =SUM(C109:V109) -> 91589.66866
B110: Link deployment | C110: =IF(C$106>equipment_lifetime,(-C107/equipment_capital_ins*$C$10),0) -> 0 | D110: 0 | E110: 0 | F110: 0 | G110: 0 | H110: 0 | I110: 0 | J110: -199.8571429 | K110: -191.7142857 | L110: -183.5714286 | M110: -175.4285714 | N110: -167.2857143 | O110: -159.1428571 | P110: -151 | Q110: -199.8571429 | R110: -191.7142857 | S110: -183.5714286 | T110: -175.4285714 | U110: -167.2857143 | V110: -159.1428571 | W110: =SUM(C110:V110) -> -2305
B111: Total | C111: =SUM(C107:C110) -> 21414.74196 | D111: =SUM(D107:D110) -> 20915.57413 | E111: 20416.40629 | F111: 19917.23846 | G111: 19418.07062 | H111: 18918.90279 | I111: 18419.73496 | J111: 18746.70998 | K111: 18255.685 | L111: 17764.66003 | M111: 17273.63505 | N111: 16782.61007 | O111: 16291.5851 | P111: 15800.56012 | Q111: 16278.53514 | R111: 15787.51017 | S111: 15296.48519 | T111: 14805.46021 | U111: 14314.43523 | V111: 13823.41026 | W111: =SUM(C111:V111) -> 350641.9507
B112: Net present value | C112: =C111*INDEX($C$16:$V$16, 1, MATCH(C15,$C$15:$V$15,0)) -> 20690.57194 | D112: 19524.91225 | E112: 18414.42873 | F112: 17356.72265 | G112: 16349.49442 | H112: 15390.53961 | I112: 14477.74517 | J112: 14236.4682 | K112: 13394.7615 | L112: 12593.70171 | M112: 11831.50229 | N112: 11106.45105 | O112: 10416.90717 | P112: 9761.298317 | Q112: 9716.504911 | R112: 9104.750443 | S112: 8523.259359 | T112: 7970.684431 | U112: 7445.734942 | V112: 6947.174402
V114: NPC rural hop | W114: =SUM(C112:V112) -> 255253.6135
A115: =INDEX($C117:$V117,,MATCH((equipment_lifetime+1),$C106:$V106,0))=C117 -> TRUE
A117: Urban | B117: Annualised equipment cost | C117: =C66 -> 3597.428571 | D117: =D66 -> 3450.857143 | E117: 3304.285714 | F117: 3157.714286 | G117: 3011.142857 | H117: 2864.571429 | I117: 2718 | J117: =C117 -> 3597.428571 | K117: =D117 -> 3450.857143 | L117: 3304.285714 | M117: 3157.714286 | N117: 3011.142857 | O117: 2864.571429 | P117: 2718 | Q117: =C117 -> 3597.428571 | R117: =D117 -> 3450.857143 | S117: 3304.285714 | T117: 3157.714286 | U117: 3011.142857 | V117: 2864.571429 | W117: =SUM(C117:V117) -> 63594
B118: Annualised site cost | C118: =Cost_SiteUrban!C30 -> 6618.914977 | D118: =Cost_SiteUrban!D30 -> 6442.616775 | E118: =Cost_SiteUrban!E30 -> 6266.318572 | F118: =Cost_SiteUrban!F30 -> 6090.020369 | G118: =Cost_SiteUrban!G30 -> 5913.722167 | H118: =Cost_SiteUrban!H30 -> 5737.423964 | I118: =Cost_SiteUrban!I30 -> 5561.125761 | J118: =Cost_SiteUrban!J30 -> 5384.827559 | K118: =Cost_SiteUrban!K30 -> 5208.529356 | L118: =Cost_SiteUrban!L30 -> 5032.231153 | M118: =Cost_SiteUrban!M30 -> 4855.932951 | N118: =Cost_SiteUrban!N30 -> 4679.634748 | O118: =Cost_SiteUrban!O30 -> 4503.336545 | P118: =Cost_SiteUrban!P30 -> 4327.038343 | Q118: =Cost_SiteUrban!Q30 -> 4150.74014 | R118: =Cost_SiteUrban!R30 -> 3974.441937 | S118: =Cost_SiteUrban!S30 -> 3798.143735 | T118: =Cost_SiteUrban!T30 -> 3621.845532 | U118: =Cost_SiteUrban!U30 -> 3445.547329 | V118: =Cost_SiteUrban!V30 -> 3269.249127 | W118: 98881.64104
B119: Ongoing cost | C119: ='Cost calculations'!$G$25 -> 7765.385281 | D119: ='Cost calculations'!$G$25 -> 7765.385281 | E119: ='Cost calculations'!$G$25 -> 7765.385281 | F119: ='Cost calculations'!$G$25 -> 7765.385281 | G119: ='Cost calculations'!$G$25 -> 7765.385281 | H119: ='Cost calculations'!$G$25 -> 7765.385281 | I119: ='Cost calculations'!$G$25 -> 7765.385281 | J119: ='Cost calculations'!$G$25 -> 7765.385281 | K119: ='Cost calculations'!$G$25 -> 7765.385281 | L119: ='Cost calculations'!$G$25 -> 7765.385281 | M119: ='Cost calculations'!$G$25 -> 7765.385281 | N119: ='Cost calculations'!$G$25 -> 7765.385281 | O119: ='Cost calculations'!$G$25 -> 7765.385281 | P119: ='Cost calculations'!$G$25 -> 7765.385281 | Q119: ='Cost calculations'!$G$25 -> 7765.385281 | R119: ='Cost calculations'!$G$25 -> 7765.385281 | S119: ='Cost calculations'!$G$25 -> 7765.385281 | T119: ='Cost calculations'!$G$25 -> 7765.385281 | U119: ='Cost calculations'!$G$25 -> 7765.385281 | V119: ='Cost calculations'!$G$25 -> 7765.385281 | W119: 155307.7056
B120: Link deployment | C120: =IF(C$106>equipment_lifetime,(-C117/equipment_capital_ins*$C$10),0) -> 0 | D120: 0 | E120: 0 | F120: 0 | G120: 0 | H120: 0 | I120: 0 | J120: -199.8571429 | K120: -191.7142857 | L120: -183.5714286 | M120: -175.4285714 | N120: -167.2857143 | O120: -159.1428571 | P120: -151 | Q120: -199.8571429 | R120: -191.7142857 | S120: -183.5714286 | T120: -175.4285714 | U120: -167.2857143 | V120: -159.1428571 | W120: =SUM(C120:V120) -> -2305
B121: Total | C121: =SUM(C117:C120) -> 17981.72883 | D121: =SUM(D117:D120) -> 17658.8592 | E121: 17335.98957 | F121: 17013.11994 | G121: 16690.25031 | H121: 16367.38067 | I121: 16044.51104 | J121: 16547.78427 | K121: 16233.05749 | L121: 15918.33072 | M121: 15603.60395 | N121: 15288.87717 | O121: 14974.1504 | P121: 14659.42362 | Q121: 15313.69685 | R121: 14998.97008 | S121: 14684.2433 | T121: 14369.51653 | U121: 14054.78975 | V121: 13740.06298 | W121: =SUM(C121:V121) -> 315478.3467
B122: Net present value | C122: =C121*INDEX($C$16:$V$16, 1, MATCH(C106,$C$15:$V$15,0)) -> 17373.65104 | D122: 16484.73402 | E122: 15636.06934 | F122: 14825.95114 | G122: 14052.7429 | H122: 13314.87472 | I122: 12610.84065 | J122: 12566.5786 | K122: 11910.69706 | L122: 11284.80413 | M122: 10687.62164 | N122: 10117.92356 | O122: 9574.533951 | P122: 9056.324971 | Q122: 9140.601986 | R122: 8649.994712 | S122: 8182.115866 | T122: 7735.989293 | U122: 7310.678867 | V122: 6905.286903
V124: NPC urban hop | W124: =SUM(C122:V122) -> 227422.0154

Sheet Discounted cost_8years
A1: Discounted Cost (8 year lifetime)
B4: Finance rate | C4: =finance_rate_Input -> 0.057 | D4: finance_rate
B5: Discount rate | C5: =discount_rate_input -> 0.035 | D5: discount_rate
B7: Capital cost (including installation) | C7: ='Cost calculations'!I33 -> 18000 | D7: equipment_capital_ins
B8: Capital cost - rural site | C8: ='Cost calculations'!C24 -> 123718.037 | D8: rural_site_capital
B9: Capital cost - urban site | C9: ='Cost calculations'!C25 -> 61859.01848 | D9: urban_site_capital
B10: Deployment cost | C10: ='Spectrum cost inputs'!$D$10 -> 1000 | D10: deployment_capital
B12: Lifetime of new equipment | C12: 8 | D12: equipment_lifetime
C14: Years
C15: 1 | D15: 2 | E15: 3 | F15: 4 | G15: 5 | H15: 6 | I15: 7 | J15: 8 | K15: 9 | L15: 10 | M15: 11 | N15: 12 | O15: 13 | P15: 14 | Q15: 15 | R15: 16 | S15: 17 | T15: 18 | U15: 19 | V15: 20
B16: Discount factor (STPR) | C16: =1/(1+$C5)^(C$15) -> 0.9661835749 | D16: 0.9335107004 | E16: 0.9019427057 | F16: 0.8714422277 | G16: 0.8419731669 | H16: 0.8135006443 | I16: 0.7859909607 | J16: 0.7594115562 | K16: 0.7337309722 | L16: 0.7089188137 | M16: 0.6849457137 | N16: 0.6617832983 | O16: 0.6394041529 | P16: 0.6177817903 | Q16: 0.5968906186 | R16: 0.5767059117 | S16: 0.5572037794 | T16: 0.5383611396 | U16: 0.5201556904 | V16: 0.5025658844
B20: Cost of retiring equipment early
B21: Estimating the capital cost that firms need to write off
B22: Including the installation cost as part of capex for this calculation
C24: Year
C25: 1 | D25: 2 | E25: 3 | F25: 4 | G25: 5 | H25: 6 | I25: 7 | J25: 8 | K25: 9 | L25: 10 | M25: 11 | N25: 12 | O25: 13 | P25: 14 | Q25: 15 | R25: 16 | S25: 17 | T25: 18 | U25: 19 | V25: 20
B27: Cost (Straight line depreciation)
A29: Remaining lifetime | B29: Depreciation
A30: =equipment_lifetime_15-LEFT(B30,2) -> 8 | B30: 0 year old | C30: =IF(C$25<=$A30,equipment_capital_ins/equipment_lifetime,0) -> 2250 | D30: 2250 | E30: 2250 | F30: 2250 | G30: 2250 | H30: 2250 | I30: 2250 | J30: 2250 | K30: 0 | L30: 0 | M30: =IF(M$25<=$A30,equipment_capital_ins/equipment_lifetime,0) -> 0 | N30: 0 | O30: 0 | P30: 0 | Q30: 0 | R30: 0 | S30: 0 | T30: 0 | U30: 0 | V30: 0
A31: 7 | B31: 1 year old | C31: 2250 | D31: 2250 | E31: 2250 | F31: 2250 | G31: 2250 | H31: 2250 | I31: 2250 | J31: 0 | K31: 0 | L31: 0 | M31: 0 | N31: 0 | O31: 0 | P31: 0 | Q31: 0 | R31: 0 | S31: 0 | T31: 0 | U31: 0 | V31: 0
A32: 6 | B32: 2 year old | C32: 2250 | D32: 2250 | E32: 2250 | F32: 2250 | G32: 2250 | H32: 2250 | I32: 0 | J32: 0 | K32: 0 | L32: 0 | M32: 0 | N32: 0 | O32: 0 | P32: 0 | Q32: 0 | R32: 0 | S32: 0 | T32: 0 | U32: 0 | V32: 0
A33: 5 | B33: 3 year old | C33: 2250 | D33: 2250 | E33: 2250 | F33: 2250 | G33: 2250 | H33: 0 | I33: 0 | J33: 0 | K33: 0 | L33: 0 | M33: 0 | N33: 0 | O33: 0 | P33: 0 | Q33: 0 | R33: 0 | S33: 0 | T33: 0 | U33: 0 | V33: 0
A34: 4 | B34: 4 year old | C34: 2250 | D34: 2250 | E34: 2250 | F34: 2250 | G34: 0 | H34: 0 | I34: 0 | J34: 0 | K34: 0 | L34: 0 | M34: 0 | N34: 0 | O34: 0 | P34: 0 | Q34: 0 | R34: 0 | S34: 0 | T34: 0 | U34: 0 | V34: 0
A35: 3 | B35: 5 year old | C35: 2250 | D35: 2250 | E35: 2250 | F35: 0 | G35: 0 | H35: 0 | I35: 0 | J35: 0 | K35: 0 | L35: 0 | M35: 0 | N35: 0 | O35: 0 | P35: 0 | Q35: 0 | R35: 0 | S35: 0 | T35: 0 | U35: 0 | V35: 0
A36: 2 | B36: 6 year old | C36: 2250 | D36: 2250 | E36: 0 | F36: 0 | G36: 0 | H36: 0 | I36: 0 | J36: 0 | K36: 0 | L36: 0 | M36: 0 | N36: 0 | O36: 0 | P36: 0 | Q36: 0 | R36: 0 | S36: 0 | T36: 0 | U36: 0 | V36: 0
A37: 1 | B37: 7 year old | C37: 2250 | D37: 0 | E37: 0 | F37: 0 | G37: 0 | H37: 0 | I37: 0 | J37: 0 | K37: 0 | L37: 0 | M37: 0 | N37: 0 | O37: 0 | P37: 0 | Q37: 0 | R37: 0 | S37: 0 | T37: 0 | U37: 0 | V37: 0
A38: 0 | B38: 8 year old | C38: 0 | D38: 0 | E38: 0 | F38: 0 | G38: 0 | H38: 0 | I38: 0 | J38: 0 | K38: 0 | L38: 0 | M38: 0 | N38: 0 | O38: 0 | P38: 0 | Q38: 0 | R38: 0 | S38: 0 | T38: 0 | U38: 0 | V38: 0
A39: -1 | B39: 9 year old | C39: 0 | D39: 0 | E39: 0 | F39: 0 | G39: 0 | H39: 0 | I39: 0 | J39: 0 | K39: 0 | L39: 0 | M39: 0 | N39: 0 | O39: 0 | P39: 0 | Q39: 0 | R39: 0 | S39: 0 | T39: 0 | U39: 0 | V39: 0
A40: -2 | B40: 10 year old | C40: =IF(C$25<=$A40,equipment_capital_ins/equipment_lifetime,0) -> 0 | D40: 0 | E40: 0 | F40: 0 | G40: 0 | H40: 0 | I40: 0 | J40: 0 | K40: 0 | L40: 0 | M40: =IF(M$25<=$A40,equipment_capital_ins/equipment_lifetime,0) -> 0 | N40: 0 | O40: 0 | P40: 0 | Q40: 0 | R40: 0 | S40: 0 | T40: 0 | U40: 0 | V40: 0
A41: -3 | B41: 11 year old | C41: 0 | D41: 0 | E41: 0 | F41: 0 | G41: 0 | H41: 0 | I41: 0 | J41: 0 | K41: 0 | L41: 0 | M41: 0 | N41: 0 | O41: 0 | P41: 0 | Q41: 0 | R41: 0 | S41: 0 | T41: 0 | U41: 0 | V41: 0
A42: -4 | B42: 12 year old | C42: 0 | D42: 0 | E42: 0 | F42: 0 | G42: 0 | H42: 0 | I42: 0 | J42: 0 | K42: 0 | L42: 0 | M42: 0 | N42: 0 | O42: 0 | P42: 0 | Q42: 0 | R42: 0 | S42: 0 | T42: 0 | U42: 0 | V42: 0
A43: -5 | B43: 13 year old | C43: 0 | D43: 0 | E43: 0 | F43: 0 | G43: 0 | H43: 0 | I43: 0 | J43: 0 | K43: 0 | L43: 0 | M43: 0 | N43: 0 | O43: 0 | P43: 0 | Q43: 0 | R43: 0 | S43: 0 | T43: 0 | U43: 0 | V43: 0
A44: -6 | B44: 14 year old | C44: 0 | D44: 0 | E44: 0 | F44: 0 | G44: 0 | H44: 0 | I44: 0 | J44: 0 | K44: 0 | L44: 0 | M44: 0 | N44: 0 | O44: 0 | P44: 0 | Q44: 0 | R44: 0 | S44: 0 | T44: 0 | U44: 0 | V44: 0
A45: -7 | B45: 15 year old | C45: 0 | D45: 0 | E45: 0 | F45: 0 | G45: 0 | H45: 0 | I45: 0 | J45: 0 | K45: 0 | L45: 0 | M45: 0 | N45: 0 | O45: 0 | P45: 0 | Q45: 0 | R45: 0 | S45: 0 | T45: 0 | U45: 0 | V45: 0
B47: Financing cost
B48: 0 year old | C48: =IF(equipment_lifetime<C$25,0,SUM(C30:$V30)*finance_rate) -> 1026 | D48: =IF(equipment_lifetime<D$25,0,SUM(D30:$V30)*finance_rate) -> 897.75 | E48: =IF(equipment_lifetime<E$25,0,SUM(E30:$V30)*finance_rate) -> 769.5 | F48: =IF(equipment_lifetime<F$25,0,SUM(F30:$V30)*finance_rate) -> 641.25 | G48: =IF(equipment_lifetime<G$25,0,SUM(G30:$V30)*finance_rate) -> 513 | H48: =IF(equipment_lifetime<H$25,0,SUM(H30:$V30)*finance_rate) -> 384.75 | I48: =IF(equipment_lifetime<I$25,0,SUM(I30:$V30)*finance_rate) -> 256.5 | J48: =IF(equipment_lifetime<J$25,0,SUM(J30:$V30)*finance_rate) -> 128.25 | K48: =IF(equipment_lifetime<K$25,0,SUM(K30:$V30)*finance_rate) -> 0 | L48: =IF(equipment_lifetime<L$25,0,SUM(L30:$V30)*finance_rate) -> 0 | M48: =IF(equipment_lifetime<M$25,0,SUM(M30:$V30)*finance_rate) -> 0 | N48: =IF(equipment_lifetime<N$25,0,SUM(N30:$V30)*finance_rate) -> 0 | O48: =IF(equipment_lifetime<O$25,0,SUM(O30:$V30)*finance_rate) -> 0 | P48: =IF(equipment_lifetime<P$25,0,SUM(P30:$V30)*finance_rate) -> 0 | Q48: =IF(equipment_lifetime<Q$25,0,SUM(Q30:$V30)*finance_rate) -> 0 | R48: =IF(equipment_lifetime<R$25,0,SUM(R30:$V30)*finance_rate) -> 0 | S48: =IF(equipment_lifetime<S$25,0,SUM(S30:$V30)*finance_rate) -> 0 | T48: =IF(equipment_lifetime<T$25,0,SUM(T30:$V30)*finance_rate) -> 0 | U48: =IF(equipment_lifetime<U$25,0,SUM(U30:$V30)*finance_rate) -> 0 | V48: =IF(equipment_lifetime<V$25,0,SUM(V30:$V30)*finance_rate) -> 0
B49: 1 year old | C49: =IF(equipment_lifetime<C$25,0,SUM(C31:$V31)*finance_rate) -> 897.75 | D49: =IF(equipment_lifetime<D$25,0,SUM(D31:$V31)*finance_rate) -> 769.5 | E49: =IF(equipment_lifetime<E$25,0,SUM(E31:$V31)*finance_rate) -> 641.25 | F49: =IF(equipment_lifetime<F$25,0,SUM(F31:$V31)*finance_rate) -> 513 | G49: =IF(equipment_lifetime<G$25,0,SUM(G31:$V31)*finance_rate) -> 384.75 | H49: =IF(equipment_lifetime<H$25,0,SUM(H31:$V31)*finance_rate) -> 256.5 | I49: =IF(equipment_lifetime<I$25,0,SUM(I31:$V31)*finance_rate) -> 128.25 | J49: =IF(equipment_lifetime<J$25,0,SUM(J31:$V31)*finance_rate) -> 0 | K49: =IF(equipment_lifetime<K$25,0,SUM(K31:$V31)*finance_rate) -> 0 | L49: =IF(equipment_lifetime<L$25,0,SUM(L31:$V31)*finance_rate) -> 0 | M49: =IF(equipment_lifetime<M$25,0,SUM(M31:$V31)*finance_rate) -> 0 | N49: =IF(equipment_lifetime<N$25,0,SUM(N31:$V31)*finance_rate) -> 0 | O49: =IF(equipment_lifetime<O$25,0,SUM(O31:$V31)*finance_rate) -> 0 | P49: =IF(equipment_lifetime<P$25,0,SUM(P31:$V31)*finance_rate) -> 0 | Q49: =IF(equipment_lifetime<Q$25,0,SUM(Q31:$V31)*finance_rate) -> 0 | R49: =IF(equipment_lifetime<R$25,0,SUM(R31:$V31)*finance_rate) -> 0 | S49: =IF(equipment_lifetime<S$25,0,SUM(S31:$V31)*finance_rate) -> 0 | T49: =IF(equipment_lifetime<T$25,0,SUM(T31:$V31)*finance_rate) -> 0 | U49: =IF(equipment_lifetime<U$25,0,SUM(U31:$V31)*finance_rate) -> 0 | V49: =IF(equipment_lifetime<V$25,0,SUM(V31:$V31)*finance_rate) -> 0
B50: 2 year old | C50: =IF(equipment_lifetime<C$25,0,SUM(C32:$V32)*finance_rate) -> 769.5 | D50: =IF(equipment_lifetime<D$25,0,SUM(D32:$V32)*finance_rate) -> 641.25 | E50: =IF(equipment_lifetime<E$25,0,SUM(E32:$V32)*finance_rate) -> 513 | F50: =IF(equipment_lifetime<F$25,0,SUM(F32:$V32)*finance_rate) -> 384.75 | G50: =IF(equipment_lifetime<G$25,0,SUM(G32:$V32)*finance_rate) -> 256.5 | H50: =IF(equipment_lifetime<H$25,0,SUM(H32:$V32)*finance_rate) -> 128.25 | I50: =IF(equipment_lifetime<I$25,0,SUM(I32:$V32)*finance_rate) -> 0 | J50: =IF(equipment_lifetime<J$25,0,SUM(J32:$V32)*finance_rate) -> 0 | K50: =IF(equipment_lifetime<K$25,0,SUM(K32:$V32)*finance_rate) -> 0 | L50: =IF(equipment_lifetime<L$25,0,SUM(L32:$V32)*finance_rate) -> 0 | M50: =IF(equipment_lifetime<M$25,0,SUM(M32:$V32)*finance_rate) -> 0 | N50: =IF(equipment_lifetime<N$25,0,SUM(N32:$V32)*finance_rate) -> 0 | O50: =IF(equipment_lifetime<O$25,0,SUM(O32:$V32)*finance_rate) -> 0 | P50: =IF(equipment_lifetime<P$25,0,SUM(P32:$V32)*finance_rate) -> 0 | Q50: =IF(equipment_lifetime<Q$25,0,SUM(Q32:$V32)*finance_rate) -> 0 | R50: =IF(equipment_lifetime<R$25,0,SUM(R32:$V32)*finance_rate) -> 0 | S50: =IF(equipment_lifetime<S$25,0,SUM(S32:$V32)*finance_rate) -> 0 | T50: =IF(equipment_lifetime<T$25,0,SUM(T32:$V32)*finance_rate) -> 0 | U50: =IF(equipment_lifetime<U$25,0,SUM(U32:$V32)*finance_rate) -> 0 | V50: =IF(equipment_lifetime<V$25,0,SUM(V32:$V32)*finance_rate) -> 0
B51: 3 year old | C51: =IF(equipment_lifetime<C$25,0,SUM(C33:$V33)*finance_rate) -> 641.25 | D51: =IF(equipment_lifetime<D$25,0,SUM(D33:$V33)*finance_rate) -> 513 | E51: =IF(equipment_lifetime<E$25,0,SUM(E33:$V33)*finance_rate) -> 384.75 | F51: =IF(equipment_lifetime<F$25,0,SUM(F33:$V33)*finance_rate) -> 256.5 | G51: =IF(equipment_lifetime<G$25,0,SUM(G33:$V33)*finance_rate) -> 128.25 | H51: =IF(equipment_lifetime<H$25,0,SUM(H33:$V33)*finance_rate) -> 0 | I51: =IF(equipment_lifetime<I$25,0,SUM(I33:$V33)*finance_rate) -> 0 | J51: =IF(equipment_lifetime<J$25,0,SUM(J33:$V33)*finance_rate) -> 0 | K51: =IF(equipment_lifetime<K$25,0,SUM(K33:$V33)*finance_rate) -> 0 | L51: =IF(equipment_lifetime<L$25,0,SUM(L33:$V33)*finance_rate) -> 0 | M51: =IF(equipment_lifetime<M$25,0,SUM(M33:$V33)*finance_rate) -> 0 | N51: =IF(equipment_lifetime<N$25,0,SUM(N33:$V33)*finance_rate) -> 0 | O51: =IF(equipment_lifetime<O$25,0,SUM(O33:$V33)*finance_rate) -> 0 | P51: =IF(equipment_lifetime<P$25,0,SUM(P33:$V33)*finance_rate) -> 0 | Q51: =IF(equipment_lifetime<Q$25,0,SUM(Q33:$V33)*finance_rate) -> 0 | R51: =IF(equipment_lifetime<R$25,0,SUM(R33:$V33)*finance_rate) -> 0 | S51: =IF(equipment_lifetime<S$25,0,SUM(S33:$V33)*finance_rate) -> 0 | T51: =IF(equipment_lifetime<T$25,0,SUM(T33:$V33)*finance_rate) -> 0 | U51: =IF(equipment_lifetime<U$25,0,SUM(U33:$V33)*finance_rate) -> 0 | V51: =IF(equipment_lifetime<V$25,0,SUM(V33:$V33)*finance_rate) -> 0
B52: 4 year old | C52: =IF(equipment_lifetime<C$25,0,SUM(C34:$V34)*finance_rate) -> 513 | D52: =IF(equipment_lifetime<D$25,0,SUM(D34:$V34)*finance_rate) -> 384.75 | E52: =IF(equipment_lifetime<E$25,0,SUM(E34:$V34)*finance_rate) -> 256.5 | F52: =IF(equipment_lifetime<F$25,0,SUM(F34:$V34)*finance_rate) -> 128.25 | G52: =IF(equipment_lifetime<G$25,0,SUM(G34:$V34)*finance_rate) -> 0 | H52: =IF(equipment_lifetime<H$25,0,SUM(H34:$V34)*finance_rate) -> 0 | I52: =IF(equipment_lifetime<I$25,0,SUM(I34:$V34)*finance_rate) -> 0 | J52: =IF(equipment_lifetime<J$25,0,SUM(J34:$V34)*finance_rate) -> 0 | K52: =IF(equipment_lifetime<K$25,0,SUM(K34:$V34)*finance_rate) -> 0 | L52: =IF(equipment_lifetime<L$25,0,SUM(L34:$V34)*finance_rate) -> 0 | M52: =IF(equipment_lifetime<M$25,0,SUM(M34:$V34)*finance_rate) -> 0 | N52: =IF(equipment_lifetime<N$25,0,SUM(N34:$V34)*finance_rate) -> 0 | O52: =IF(equipment_lifetime<O$25,0,SUM(O34:$V34)*finance_rate) -> 0 | P52: =IF(equipment_lifetime<P$25,0,SUM(P34:$V34)*finance_rate) -> 0 | Q52: =IF(equipment_lifetime<Q$25,0,SUM(Q34:$V34)*finance_rate) -> 0 | R52: =IF(equipment_lifetime<R$25,0,SUM(R34:$V34)*finance_rate) -> 0 | S52: =IF(equipment_lifetime<S$25,0,SUM(S34:$V34)*finance_rate) -> 0 | T52: =IF(equipment_lifetime<T$25,0,SUM(T34:$V34)*finance_rate) -> 0 | U52: =IF(equipment_lifetime<U$25,0,SUM(U34:$V34)*finance_rate) -> 0 | V52: =IF(equipment_lifetime<V$25,0,SUM(V34:$V34)*finance_rate) -> 0
B53: 5 year old | C53: =IF(equipment_lifetime<C$25,0,SUM(C35:$V35)*finance_rate) -> 384.75 | D53: =IF(equipment_lifetime<D$25,0,SUM(D35:$V35)*finance_rate) -> 256.5 | E53: =IF(equipment_lifetime<E$25,0,SUM(E35:$V35)*finance_rate) -> 128.25 | F53: =IF(equipment_lifetime<F$25,0,SUM(F35:$V35)*finance_rate) -> 0 | G53: =IF(equipment_lifetime<G$25,0,SUM(G35:$V35)*finance_rate) -> 0 | H53: =IF(equipment_lifetime<H$25,0,SUM(H35:$V35)*finance_rate) -> 0 | I53: =IF(equipment_lifetime<I$25,0,SUM(I35:$V35)*finance_rate) -> 0 | J53: =IF(equipment_lifetime<J$25,0,SUM(J35:$V35)*finance_rate) -> 0 | K53: =IF(equipment_lifetime<K$25,0,SUM(K35:$V35)*finance_rate) -> 0 | L53: =IF(equipment_lifetime<L$25,0,SUM(L35:$V35)*finance_rate) -> 0 | M53: =IF(equipment_lifetime<M$25,0,SUM(M35:$V35)*finance_rate) -> 0 | N53: =IF(equipment_lifetime<N$25,0,SUM(N35:$V35)*finance_rate) -> 0 | O53: =IF(equipment_lifetime<O$25,0,SUM(O35:$V35)*finance_rate) -> 0 | P53: =IF(equipment_lifetime<P$25,0,SUM(P35:$V35)*finance_rate) -> 0 | Q53: =IF(equipment_lifetime<Q$25,0,SUM(Q35:$V35)*finance_rate) -> 0 | R53: =IF(equipment_lifetime<R$25,0,SUM(R35:$V35)*finance_rate) -> 0 | S53: =IF(equipment_lifetime<S$25,0,SUM(S35:$V35)*finance_rate) -> 0 | T53: =IF(equipment_lifetime<T$25,0,SUM(T35:$V35)*finance_rate) -> 0 | U53: =IF(equipment_lifetime<U$25,0,SUM(U35:$V35)*finance_rate) -> 0 | V53: =IF(equipment_lifetime<V$25,0,SUM(V35:$V35)*finance_rate) -> 0
B54: 6 year old | C54: =IF(equipment_lifetime<C$25,0,SUM(C36:$V36)*finance_rate) -> 256.5 | D54: =IF(equipment_lifetime<D$25,0,SUM(D36:$V36)*finance_rate) -> 128.25 | E54: =IF(equipment_lifetime<E$25,0,SUM(E36:$V36)*finance_rate) -> 0 | F54: =IF(equipment_lifetime<F$25,0,SUM(F36:$V36)*finance_rate) -> 0 | G54: =IF(equipment_lifetime<G$25,0,SUM(G36:$V36)*finance_rate) -> 0 | H54: =IF(equipment_lifetime<H$25,0,SUM(H36:$V36)*finance_rate) -> 0 | I54: =IF(equipment_lifetime<I$25,0,SUM(I36:$V36)*finance_rate) -> 0 | J54: =IF(equipment_lifetime<J$25,0,SUM(J36:$V36)*finance_rate) -> 0 | K54: =IF(equipment_lifetime<K$25,0,SUM(K36:$V36)*finance_rate) -> 0 | L54: =IF(equipment_lifetime<L$25,0,SUM(L36:$V36)*finance_rate) -> 0 | M54: =IF(equipment_lifetime<M$25,0,SUM(M36:$V36)*finance_rate) -> 0 | N54: =IF(equipment_lifetime<N$25,0,SUM(N36:$V36)*finance_rate) -> 0 | O54: =IF(equipment_lifetime<O$25,0,SUM(O36:$V36)*finance_rate) -> 0 | P54: =IF(equipment_lifetime<P$25,0,SUM(P36:$V36)*finance_rate) -> 0 | Q54: =IF(equipment_lifetime<Q$25,0,SUM(Q36:$V36)*finance_rate) -> 0 | R54: =IF(equipment_lifetime<R$25,0,SUM(R36:$V36)*finance_rate) -> 0 | S54: =IF(equipment_lifetime<S$25,0,SUM(S36:$V36)*finance_rate) -> 0 | T54: =IF(equipment_lifetime<T$25,0,SUM(T36:$V36)*finance_rate) -> 0 | U54: =IF(equipment_lifetime<U$25,0,SUM(U36:$V36)*finance_rate) -> 0 | V54: =IF(equipment_lifetime<V$25,0,SUM(V36:$V36)*finance_rate) -> 0
B55: 7 year old | C55: =IF(equipment_lifetime<C$25,0,SUM(C37:$V37)*finance_rate) -> 128.25 | D55: =IF(equipment_lifetime<D$25,0,SUM(D37:$V37)*finance_rate) -> 0 | E55: =IF(equipment_lifetime<E$25,0,SUM(E37:$V37)*finance_rate) -> 0 | F55: =IF(equipment_lifetime<F$25,0,SUM(F37:$V37)*finance_rate) -> 0 | G55: =IF(equipment_lifetime<G$25,0,SUM(G37:$V37)*finance_rate) -> 0 | H55: =IF(equipment_lifetime<H$25,0,SUM(H37:$V37)*finance_rate) -> 0 | I55: =IF(equipment_lifetime<I$25,0,SUM(I37:$V37)*finance_rate) -> 0 | J55: =IF(equipment_lifetime<J$25,0,SUM(J37:$V37)*finance_rate) -> 0 | K55: =IF(equipment_lifetime<K$25,0,SUM(K37:$V37)*finance_rate) -> 0 | L55: =IF(equipment_lifetime<L$25,0,SUM(L37:$V37)*finance_rate) -> 0 | M55: =IF(equipment_lifetime<M$25,0,SUM(M37:$V37)*finance_rate) -> 0 | N55: =IF(equipment_lifetime<N$25,0,SUM(N37:$V37)*finance_rate) -> 0 | O55: =IF(equipment_lifetime<O$25,0,SUM(O37:$V37)*finance_rate) -> 0 | P55: =IF(equipment_lifetime<P$25,0,SUM(P37:$V37)*finance_rate) -> 0 | Q55: =IF(equipment_lifetime<Q$25,0,SUM(Q37:$V37)*finance_rate) -> 0 | R55: =IF(equipment_lifetime<R$25,0,SUM(R37:$V37)*finance_rate) -> 0 | S55: =IF(equipment_lifetime<S$25,0,SUM(S37:$V37)*finance_rate) -> 0 | T55: =IF(equipment_lifetime<T$25,0,SUM(T37:$V37)*finance_rate) -> 0 | U55: =IF(equipment_lifetime<U$25,0,SUM(U37:$V37)*finance_rate) -> 0 | V55: =IF(equipment_lifetime<V$25,0,SUM(V37:$V37)*finance_rate) -> 0
B56: 8 year old | C56: =IF(equipment_lifetime<C$25,0,SUM(C38:$V38)*finance_rate) -> 0 | D56: =IF(equipment_lifetime<D$25,0,SUM(D38:$V38)*finance_rate) -> 0 | E56: =IF(equipment_lifetime<E$25,0,SUM(E38:$V38)*finance_rate) -> 0 | F56: =IF(equipment_lifetime<F$25,0,SUM(F38:$V38)*finance_rate) -> 0 | G56: =IF(equipment_lifetime<G$25,0,SUM(G38:$V38)*finance_rate) -> 0 | H56: =IF(equipment_lifetime<H$25,0,SUM(H38:$V38)*finance_rate) -> 0 | I56: =IF(equipment_lifetime<I$25,0,SUM(I38:$V38)*finance_rate) -> 0 | J56: =IF(equipment_lifetime<J$25,0,SUM(J38:$V38)*finance_rate) -> 0 | K56: =IF(equipment_lifetime<K$25,0,SUM(K38:$V38)*finance_rate) -> 0 | L56: =IF(equipment_lifetime<L$25,0,SUM(L38:$V38)*finance_rate) -> 0 | M56: =IF(equipment_lifetime<M$25,0,SUM(M38:$V38)*finance_rate) -> 0 | N56: =IF(equipment_lifetime<N$25,0,SUM(N38:$V38)*finance_rate) -> 0 | O56: =IF(equipment_lifetime<O$25,0,SUM(O38:$V38)*finance_rate) -> 0 | P56: =IF(equipment_lifetime<P$25,0,SUM(P38:$V38)*finance_rate) -> 0 | Q56: =IF(equipment_lifetime<Q$25,0,SUM(Q38:$V38)*finance_rate) -> 0 | R56: =IF(equipment_lifetime<R$25,0,SUM(R38:$V38)*finance_rate) -> 0 | S56: =IF(equipment_lifetime<S$25,0,SUM(S38:$V38)*finance_rate) -> 0 | T56: =IF(equipment_lifetime<T$25,0,SUM(T38:$V38)*finance_rate) -> 0 | U56: =IF(equipment_lifetime<U$25,0,SUM(U38:$V38)*finance_rate) -> 0 | V56: =IF(equipment_lifetime<V$25,0,SUM(V38:$V38)*finance_rate) -> 0
B57: 9 year old | C57: =IF(equipment_lifetime<C$25,0,SUM(C39:$V39)*finance_rate) -> 0 | D57: =IF(equipment_lifetime<D$25,0,SUM(D39:$V39)*finance_rate) -> 0 | E57: =IF(equipment_lifetime<E$25,0,SUM(E39:$V39)*finance_rate) -> 0 | F57: =IF(equipment_lifetime<F$25,0,SUM(F39:$V39)*finance_rate) -> 0 | G57: =IF(equipment_lifetime<G$25,0,SUM(G39:$V39)*finance_rate) -> 0 | H57: =IF(equipment_lifetime<H$25,0,SUM(H39:$V39)*finance_rate) -> 0 | I57: =IF(equipment_lifetime<I$25,0,SUM(I39:$V39)*finance_rate) -> 0 | J57: =IF(equipment_lifetime<J$25,0,SUM(J39:$V39)*finance_rate) -> 0 | K57: =IF(equipment_lifetime<K$25,0,SUM(K39:$V39)*finance_rate) -> 0 | L57: =IF(equipment_lifetime<L$25,0,SUM(L39:$V39)*finance_rate) -> 0 | M57: =IF(equipment_lifetime<M$25,0,SUM(M39:$V39)*finance_rate) -> 0 | N57: =IF(equipment_lifetime<N$25,0,SUM(N39:$V39)*finance_rate) -> 0 | O57: =IF(equipment_lifetime<O$25,0,SUM(O39:$V39)*finance_rate) -> 0 | P57: =IF(equipment_lifetime<P$25,0,SUM(P39:$V39)*finance_rate) -> 0 | Q57: =IF(equipment_lifetime<Q$25,0,SUM(Q39:$V39)*finance_rate) -> 0 | R57: =IF(equipment_lifetime<R$25,0,SUM(R39:$V39)*finance_rate) -> 0 | S57: =IF(equipment_lifetime<S$25,0,SUM(S39:$V39)*finance_rate) -> 0 | T57: =IF(equipment_lifetime<T$25,0,SUM(T39:$V39)*finance_rate) -> 0 | U57: =IF(equipment_lifetime<U$25,0,SUM(U39:$V39)*finance_rate) -> 0 | V57: =IF(equipment_lifetime<V$25,0,SUM(V39:$V39)*finance_rate) -> 0
B58: 10 year old | C58: =IF(equipment_lifetime<C$25,0,SUM(C40:$V40)*finance_rate) -> 0 | D58: =IF(equipment_lifetime<D$25,0,SUM(D40:$V40)*finance_rate) -> 0 | E58: =IF(equipment_lifetime<E$25,0,SUM(E40:$V40)*finance_rate) -> 0 | F58: =IF(equipment_lifetime<F$25,0,SUM(F40:$V40)*finance_rate) -> 0 | G58: =IF(equipment_lifetime<G$25,0,SUM(G40:$V40)*finance_rate) -> 0 | H58: =IF(equipment_lifetime<H$25,0,SUM(H40:$V40)*finance_rate) -> 0 | I58: =IF(equipment_lifetime<I$25,0,SUM(I40:$V40)*finance_rate) -> 0 | J58: =IF(equipment_lifetime<J$25,0,SUM(J40:$V40)*finance_rate) -> 0 | K58: =IF(equipment_lifetime<K$25,0,SUM(K40:$V40)*finance_rate) -> 0 | L58: =IF(equipment_lifetime<L$25,0,SUM(L40:$V40)*finance_rate) -> 0 | M58: =IF(equipment_lifetime<M$25,0,SUM(M40:$V40)*finance_rate) -> 0 | N58: =IF(equipment_lifetime<N$25,0,SUM(N40:$V40)*finance_rate) -> 0 | O58: =IF(equipment_lifetime<O$25,0,SUM(O40:$V40)*finance_rate) -> 0 | P58: =IF(equipment_lifetime<P$25,0,SUM(P40:$V40)*finance_rate) -> 0 | Q58: =IF(equipment_lifetime<Q$25,0,SUM(Q40:$V40)*finance_rate) -> 0 | R58: =IF(equipment_lifetime<R$25,0,SUM(R40:$V40)*finance_rate) -> 0 | S58: =IF(equipment_lifetime<S$25,0,SUM(S40:$V40)*finance_rate) -> 0 | T58: =IF(equipment_lifetime<T$25,0,SUM(T40:$V40)*finance_rate) -> 0 | U58: =IF(equipment_lifetime<U$25,0,SUM(U40:$V40)*finance_rate) -> 0 | V58: =IF(equipment_lifetime<V$25,0,SUM(V40:$V40)*finance_rate) -> 0
B59: 11 year old | C59: =IF(equipment_lifetime<C$25,0,SUM(C41:$V41)*finance_rate) -> 0 | D59: =IF(equipment_lifetime<D$25,0,SUM(D41:$V41)*finance_rate) -> 0 | E59: =IF(equipment_lifetime<E$25,0,SUM(E41:$V41)*finance_rate) -> 0 | F59: =IF(equipment_lifetime<F$25,0,SUM(F41:$V41)*finance_rate) -> 0 | G59: =IF(equipment_lifetime<G$25,0,SUM(G41:$V41)*finance_rate) -> 0 | H59: =IF(equipment_lifetime<H$25,0,SUM(H41:$V41)*finance_rate) -> 0 | I59: =IF(equipment_lifetime<I$25,0,SUM(I41:$V41)*finance_rate) -> 0 | J59: =IF(equipment_lifetime<J$25,0,SUM(J41:$V41)*finance_rate) -> 0 | K59: =IF(equipment_lifetime<K$25,0,SUM(K41:$V41)*finance_rate) -> 0 | L59: =IF(equipment_lifetime<L$25,0,SUM(L41:$V41)*finance_rate) -> 0 | M59: =IF(equipment_lifetime<M$25,0,SUM(M41:$V41)*finance_rate) -> 0 | N59: =IF(equipment_lifetime<N$25,0,SUM(N41:$V41)*finance_rate) -> 0 | O59: =IF(equipment_lifetime<O$25,0,SUM(O41:$V41)*finance_rate) -> 0 | P59: =IF(equipment_lifetime<P$25,0,SUM(P41:$V41)*finance_rate) -> 0 | Q59: =IF(equipment_lifetime<Q$25,0,SUM(Q41:$V41)*finance_rate) -> 0 | R59: =IF(equipment_lifetime<R$25,0,SUM(R41:$V41)*finance_rate) -> 0 | S59: =IF(equipment_lifetime<S$25,0,SUM(S41:$V41)*finance_rate) -> 0 | T59: =IF(equipment_lifetime<T$25,0,SUM(T41:$V41)*finance_rate) -> 0 | U59: =IF(equipment_lifetime<U$25,0,SUM(U41:$V41)*finance_rate) -> 0 | V59: =IF(equipment_lifetime<V$25,0,SUM(V41:$V41)*finance_rate) -> 0
B60: 12 year old | C60: =IF(equipment_lifetime<C$25,0,SUM(C42:$V42)*finance_rate) -> 0 | D60: =IF(equipment_lifetime<D$25,0,SUM(D42:$V42)*finance_rate) -> 0 | E60: =IF(equipment_lifetime<E$25,0,SUM(E42:$V42)*finance_rate) -> 0 | F60: =IF(equipment_lifetime<F$25,0,SUM(F42:$V42)*finance_rate) -> 0 | G60: =IF(equipment_lifetime<G$25,0,SUM(G42:$V42)*finance_rate) -> 0 | H60: =IF(equipment_lifetime<H$25,0,SUM(H42:$V42)*finance_rate) -> 0 | I60: =IF(equipment_lifetime<I$25,0,SUM(I42:$V42)*finance_rate) -> 0 | J60: =IF(equipment_lifetime<J$25,0,SUM(J42:$V42)*finance_rate) -> 0 | K60: =IF(equipment_lifetime<K$25,0,SUM(K42:$V42)*finance_rate) -> 0 | L60: =IF(equipment_lifetime<L$25,0,SUM(L42:$V42)*finance_rate) -> 0 | M60: =IF(equipment_lifetime<M$25,0,SUM(M42:$V42)*finance_rate) -> 0 | N60: =IF(equipment_lifetime<N$25,0,SUM(N42:$V42)*finance_rate) -> 0 | O60: =IF(equipment_lifetime<O$25,0,SUM(O42:$V42)*finance_rate) -> 0 | P60: =IF(equipment_lifetime<P$25,0,SUM(P42:$V42)*finance_rate) -> 0 | Q60: =IF(equipment_lifetime<Q$25,0,SUM(Q42:$V42)*finance_rate) -> 0 | R60: =IF(equipment_lifetime<R$25,0,SUM(R42:$V42)*finance_rate) -> 0 | S60: =IF(equipment_lifetime<S$25,0,SUM(S42:$V42)*finance_rate) -> 0 | T60: =IF(equipment_lifetime<T$25,0,SUM(T42:$V42)*finance_rate) -> 0 | U60: =IF(equipment_lifetime<U$25,0,SUM(U42:$V42)*finance_rate) -> 0 | V60: =IF(equipment_lifetime<V$25,0,SUM(V42:$V42)*finance_rate) -> 0
B61: 13 year old | C61: =IF(equipment_lifetime<C$25,0,SUM(C43:$V43)*finance_rate) -> 0 | D61: =IF(equipment_lifetime<D$25,0,SUM(D43:$V43)*finance_rate) -> 0 | E61: =IF(equipment_lifetime<E$25,0,SUM(E43:$V43)*finance_rate) -> 0 | F61: =IF(equipment_lifetime<F$25,0,SUM(F43:$V43)*finance_rate) -> 0 | G61: =IF(equipment_lifetime<G$25,0,SUM(G43:$V43)*finance_rate) -> 0 | H61: =IF(equipment_lifetime<H$25,0,SUM(H43:$V43)*finance_rate) -> 0 | I61: =IF(equipment_lifetime<I$25,0,SUM(I43:$V43)*finance_rate) -> 0 | J61: =IF(equipment_lifetime<J$25,0,SUM(J43:$V43)*finance_rate) -> 0 | K61: =IF(equipment_lifetime<K$25,0,SUM(K43:$V43)*finance_rate) -> 0 | L61: =IF(equipment_lifetime<L$25,0,SUM(L43:$V43)*finance_rate) -> 0 | M61: =IF(equipment_lifetime<M$25,0,SUM(M43:$V43)*finance_rate) -> 0 | N61: =IF(equipment_lifetime<N$25,0,SUM(N43:$V43)*finance_rate) -> 0 | O61: =IF(equipment_lifetime<O$25,0,SUM(O43:$V43)*finance_rate) -> 0 | P61: =IF(equipment_lifetime<P$25,0,SUM(P43:$V43)*finance_rate) -> 0 | Q61: =IF(equipment_lifetime<Q$25,0,SUM(Q43:$V43)*finance_rate) -> 0 | R61: =IF(equipment_lifetime<R$25,0,SUM(R43:$V43)*finance_rate) -> 0 | S61: =IF(equipment_lifetime<S$25,0,SUM(S43:$V43)*finance_rate) -> 0 | T61: =IF(equipment_lifetime<T$25,0,SUM(T43:$V43)*finance_rate) -> 0 | U61: =IF(equipment_lifetime<U$25,0,SUM(U43:$V43)*finance_rate) -> 0 | V61: =IF(equipment_lifetime<V$25,0,SUM(V43:$V43)*finance_rate) -> 0
B62: 14 year old | C62: =IF(equipment_lifetime<C$25,0,SUM(C44:$V44)*finance_rate) -> 0 | D62: =IF(equipment_lifetime<D$25,0,SUM(D44:$V44)*finance_rate) -> 0 | E62: =IF(equipment_lifetime<E$25,0,SUM(E44:$V44)*finance_rate) -> 0 | F62: =IF(equipment_lifetime<F$25,0,SUM(F44:$V44)*finance_rate) -> 0 | G62: =IF(equipment_lifetime<G$25,0,SUM(G44:$V44)*finance_rate) -> 0 | H62: =IF(equipment_lifetime<H$25,0,SUM(H44:$V44)*finance_rate) -> 0 | I62: =IF(equipment_lifetime<I$25,0,SUM(I44:$V44)*finance_rate) -> 0 | J62: =IF(equipment_lifetime<J$25,0,SUM(J44:$V44)*finance_rate) -> 0 | K62: =IF(equipment_lifetime<K$25,0,SUM(K44:$V44)*finance_rate) -> 0 | L62: =IF(equipment_lifetime<L$25,0,SUM(L44:$V44)*finance_rate) -> 0 | M62: =IF(equipment_lifetime<M$25,0,SUM(M44:$V44)*finance_rate) -> 0 | N62: =IF(equipment_lifetime<N$25,0,SUM(N44:$V44)*finance_rate) -> 0 | O62: =IF(equipment_lifetime<O$25,0,SUM(O44:$V44)*finance_rate) -> 0 | P62: =IF(equipment_lifetime<P$25,0,SUM(P44:$V44)*finance_rate) -> 0 | Q62: =IF(equipment_lifetime<Q$25,0,SUM(Q44:$V44)*finance_rate) -> 0 | R62: =IF(equipment_lifetime<R$25,0,SUM(R44:$V44)*finance_rate) -> 0 | S62: =IF(equipment_lifetime<S$25,0,SUM(S44:$V44)*finance_rate) -> 0 | T62: =IF(equipment_lifetime<T$25,0,SUM(T44:$V44)*finance_rate) -> 0 | U62: =IF(equipment_lifetime<U$25,0,SUM(U44:$V44)*finance_rate) -> 0 | V62: =IF(equipment_lifetime<V$25,0,SUM(V44:$V44)*finance_rate) -> 0
B63: 15 year old | C63: =IF(equipment_lifetime<C$25,0,SUM(C45:$V45)*finance_rate) -> 0 | D63: =IF(equipment_lifetime<D$25,0,SUM(D45:$V45)*finance_rate) -> 0 | E63: =IF(equipment_lifetime<E$25,0,SUM(E45:$V45)*finance_rate) -> 0 | F63: =IF(equipment_lifetime<F$25,0,SUM(F45:$V45)*finance_rate) -> 0 | G63: =IF(equipment_lifetime<G$25,0,SUM(G45:$V45)*finance_rate) -> 0 | H63: =IF(equipment_lifetime<H$25,0,SUM(H45:$V45)*finance_rate) -> 0 | I63: =IF(equipment_lifetime<I$25,0,SUM(I45:$V45)*finance_rate) -> 0 | J63: =IF(equipment_lifetime<J$25,0,SUM(J45:$V45)*finance_rate) -> 0 | K63: =IF(equipment_lifetime<K$25,0,SUM(K45:$V45)*finance_rate) -> 0 | L63: =IF(equipment_lifetime<L$25,0,SUM(L45:$V45)*finance_rate) -> 0 | M63: =IF(equipment_lifetime<M$25,0,SUM(M45:$V45)*finance_rate) -> 0 | N63: =IF(equipment_lifetime<N$25,0,SUM(N45:$V45)*finance_rate) -> 0 | O63: =IF(equipment_lifetime<O$25,0,SUM(O45:$V45)*finance_rate) -> 0 | P63: =IF(equipment_lifetime<P$25,0,SUM(P45:$V45)*finance_rate) -> 0 | Q63: =IF(equipment_lifetime<Q$25,0,SUM(Q45:$V45)*finance_rate) -> 0 | R63: =IF(equipment_lifetime<R$25,0,SUM(R45:$V45)*finance_rate) -> 0 | S63: =IF(equipment_lifetime<S$25,0,SUM(S45:$V45)*finance_rate) -> 0 | T63: =IF(equipment_lifetime<T$25,0,SUM(T45:$V45)*finance_rate) -> 0 | U63: =IF(equipment_lifetime<U$25,0,SUM(U45:$V45)*finance_rate) -> 0 | V63: =IF(equipment_lifetime<V$25,0,SUM(V45:$V45)*finance_rate) -> 0
B65: Depreciaton + financing cost
B66: 0 year old | C66: =C30+C48 -> 3276 | D66: 3147.75 | E66: 3019.5 | F66: 2891.25 | G66: 2763 | H66: 2634.75 | I66: 2506.5 | J66: 2378.25 | K66: 0 | L66: 0 | M66: 0 | N66: 0 | O66: 0 | P66: 0 | Q66: 0 | R66: 0 | S66: 0 | T66: 0 | U66: 0 | V66: 0
B67: 1 year old | C67: 3147.75 | D67: 3019.5 | E67: 2891.25 | F67: 2763 | G67: 2634.75 | H67: 2506.5 | I67: 2378.25 | J67: 0 | K67: 0 | L67: 0 | M67: 0 | N67: 0 | O67: 0 | P67: 0 | Q67: 0 | R67: 0 | S67: 0 | T67: 0 | U67: 0 | V67: 0
B68: 2 year old | C68: 3019.5 | D68: 2891.25 | E68: 2763 | F68: 2634.75 | G68: 2506.5 | H68: 2378.25 | I68: 0 | J68: 0 | K68: 0 | L68: 0 | M68: 0 | N68: 0 | O68: 0 | P68: 0 | Q68: 0 | R68: 0 | S68: 0 | T68: 0 | U68: 0 | V68: 0
B69: 3 year old | C69: 2891.25 | D69: 2763 | E69: 2634.75 | F69: 2506.5 | G69: 2378.25 | H69: 0 | I69: 0 | J69: 0 | K69: 0 | L69: 0 | M69: 0 | N69: 0 | O69: 0 | P69: 0 | Q69: 0 | R69: 0 | S69: 0 | T69: 0 | U69: 0 | V69: 0
B70: 4 year old | C70: 2763 | D70: 2634.75 | E70: 2506.5 | F70: 2378.25 | G70: 0 | H70: 0 | I70: 0 | J70: 0 | K70: 0 | L70: 0 | M70: 0 | N70: 0 | O70: 0 | P70: 0 | Q70: 0 | R70: 0 | S70: 0 | T70: 0 | U70: 0 | V70: 0
B71: 5 year old | C71: 2634.75 | D71: 2506.5 | E71: 2378.25 | F71: 0 | G71: 0 | H71: 0 | I71: 0 | J71: 0 | K71: 0 | L71: 0 | M71: 0 | N71: 0 | O71: 0 | P71: 0 | Q71: 0 | R71: 0 | S71: 0 | T71: 0 | U71: 0 | V71: 0
B72: 6 year old | C72: 2506.5 | D72: 2378.25 | E72: 0 | F72: 0 | G72: 0 | H72: 0 | I72: 0 | J72: 0 | K72: 0 | L72: 0 | M72: 0 | N72: 0 | O72: 0 | P72: 0 | Q72: 0 | R72: 0 | S72: 0 | T72: 0 | U72: 0 | V72: 0
B73: 7 year old | C73: 2378.25 | D73: 0 | E73: 0 | F73: 0 | G73: 0 | H73: 0 | I73: 0 | J73: 0 | K73: 0 | L73: 0 | M73: 0 | N73: 0 | O73: 0 | P73: 0 | Q73: 0 | R73: 0 | S73: 0 | T73: 0 | U73: 0 | V73: 0
B74: 8 year old | C74: 0 | D74: 0 | E74: 0 | F74: 0 | G74: 0 | H74: 0 | I74: 0 | J74: 0 | K74: 0 | L74: 0 | M74: 0 | N74: 0 | O74: 0 | P74: 0 | Q74: 0 | R74: 0 | S74: 0 | T74: 0 | U74: 0 | V74: 0
B75: 9 year old | C75: 0 | D75: 0 | E75: 0 | F75: 0 | G75: 0 | H75: 0 | I75: 0 | J75: 0 | K75: 0 | L75: 0 | M75: 0 | N75: 0 | O75: 0 | P75: 0 | Q75: 0 | R75: 0 | S75: 0 | T75: 0 | U75: 0 | V75: 0
B76: 10 year old | C76: 0 | D76: 0 | E76: 0 | F76: 0 | G76: 0 | H76: 0 | I76: 0 | J76: 0 | K76: 0 | L76: 0 | M76: 0 | N76: 0 | O76: 0 | P76: 0 | Q76: 0 | R76: 0 | S76: 0 | T76: 0 | U76: 0 | V76: 0
B77: 11 year old | C77: 0 | D77: 0 | E77: 0 | F77: 0 | G77: 0 | H77: 0 | I77: 0 | J77: 0 | K77: 0 | L77: 0 | M77: 0 | N77: 0 | O77: 0 | P77: 0 | Q77: 0 | R77: 0 | S77: 0 | T77: 0 | U77: 0 | V77: 0
B78: 12 year old | C78: 0 | D78: 0 | E78: 0 | F78: 0 | G78: 0 | H78: 0 | I78: 0 | J78: 0 | K78: 0 | L78: 0 | M78: 0 | N78: 0 | O78: 0 | P78: 0 | Q78: 0 | R78: =R42+R60 -> 0 | S78: 0 | T78: 0 | U78: 0 | V78: 0
B79: 13 year old | C79: =C43+C61 -> 0 | D79: 0 | E79: 0 | F79: 0 | G79: 0 | H79: 0 | I79: 0 | J79: 0 | K79: 0 | L79: 0 | M79: 0 | N79: 0 | O79: 0 | P79: 0 | Q79: 0 | R79: 0 | S79: 0 | T79: 0 | U79: 0 | V79: 0
B80: 14 year old | C80: 0 | D80: 0 | E80: 0 | F80: 0 | G80: 0 | H80: 0 | I80: 0 | J80: 0 | K80: 0 | L80: 0 | M80: 0 | N80: 0 | O80: 0 | P80: 0 | Q80: 0 | R80: 0 | S80: 0 | T80: 0 | U80: 0 | V80: 0
B81: 15 year old | C81: 0 | D81: 0 | E81: 0 | F81: 0 | G81: 0 | H81: 0 | I81: 0 | J81: 0 | K81: 0 | L81: 0 | M81: 0 | N81: 0 | O81: 0 | P81: 0 | Q81: 0 | R81: 0 | S81: 0 | T81: 0 | U81: 0 | V81: 0
B83: Discounted cost | W83: Years utilisation >> | X83: =Revo_utilisation_years -> 0 | Y83: 1 | Z83: 2 | AA83: 3 | AB83: 4 | AC83: 5
B84: 0 year old | C84: =C66*INDEX($C$16:$V$16, 1, MATCH(C$25,$C$15:$V$15,0)) -> 3165.217391 | D84: 2938.458307 | E84: 2723.416 | F84: 2519.557341 | G84: 2326.37186 | H84: 2143.370823 | I84: 1970.086343 | J84: 1806.070534 | K84: 0 | L84: 0 | M84: 0 | N84: 0 | O84: 0 | P84: 0 | Q84: 0 | R84: 0 | S84: 0 | T84: 0 | U84: 0 | V84: 0 | X84: =SUM(C84:$V84) -> 19592.5486 | Y84: =SUM(D84:$V84) -> 16427.33121 | Z84: =SUM(E84:$V84) -> 13488.8729 | AA84: =SUM(F84:$V84) -> 10765.4569 | AB84: =SUM(G84:$V84) -> 8245.899559 | AC84: =SUM(H84:$V84) -> 5919.527699
B85: 1 year old | C85: =C67*INDEX($C$16:$V$16, 1, MATCH(C$25,$C$15:$V$15,0)) -> 3041.304348 | D85: 2818.73556 | E85: 2607.741848 | F85: 2407.794875 | G85: 2218.388801 | H85: 2039.039365 | I85: 1869.283002 | J85: 0 | K85: 0 | L85: 0 | M85: 0 | N85: 0 | O85: 0 | P85: 0 | Q85: 0 | R85: 0 | S85: 0 | T85: 0 | U85: 0 | V85: 0 | X85: =SUM(C85:$V85) -> 17002.2878 | Y85: =SUM(D85:$V85) -> 13960.98345 | Z85: =SUM(E85:$V85) -> 11142.24789 | AA85: =SUM(F85:$V85) -> 8534.506044 | AB85: =SUM(G85:$V85) -> 6126.711169 | AC85: =SUM(H85:$V85) -> 3908.322367
B86: 2 year old | C86: =C68*INDEX($C$16:$V$16, 1, MATCH(C$25,$C$15:$V$15,0)) -> 2917.391304 | D86: 2699.012812 | E86: 2492.067696 | F86: 2296.032409 | G86: 2110.405743 | H86: 1934.707907 | I86: 0 | J86: 0 | K86: 0 | L86: 0 | M86: 0 | N86: 0 | O86: 0 | P86: 0 | Q86: 0 | R86: 0 | S86: 0 | T86: 0 | U86: 0 | V86: 0 | X86: =SUM(C86:$V86) -> 14449.61787 | Y86: =SUM(D86:$V86) -> 11532.22657 | Z86: =SUM(E86:$V86) -> 8833.213755 | AA86: =SUM(F86:$V86) -> 6341.146059 | AB86: =SUM(G86:$V86) -> 4045.11365 | AC86: =SUM(H86:$V86) -> 1934.707907
B87: 3 year old | C87: =C69*INDEX($C$16:$V$16, 1, MATCH(C$25,$C$15:$V$15,0)) -> 2793.478261 | D87: 2579.290065 | E87: 2376.393544 | F87: 2184.269944 | G87: 2002.422684 | H87: 0 | I87: 0 | J87: 0 | K87: 0 | L87: 0 | M87: 0 | N87: 0 | O87: 0 | P87: 0 | Q87: 0 | R87: 0 | S87: 0 | T87: 0 | U87: 0 | V87: 0 | X87: =SUM(C87:$V87) -> 11935.8545 | Y87: =SUM(D87:$V87) -> 9142.376237 | Z87: =SUM(E87:$V87) -> 6563.086172 | AA87: =SUM(F87:$V87) -> 4186.692628 | AB87: =SUM(G87:$V87) -> 2002.422684 | AC87: =SUM(H87:$V87) -> 0
B88: 4 year old | C88: =C70*INDEX($C$16:$V$16, 1, MATCH(C$25,$C$15:$V$15,0)) -> 2669.565217 | D88: 2459.567318 | E88: 2260.719392 | F88: 2072.507478 | G88: 0 | H88: 0 | I88: 0 | J88: 0 | K88: 0 | L88: 0 | M88: 0 | N88: 0 | O88: 0 | P88: 0 | Q88: 0 | R88: 0 | S88: 0 | T88: 0 | U88: 0 | V88: 0 | X88: =SUM(C88:$V88) -> 9462.359405 | Y88: =SUM(D88:$V88) -> 6792.794188 | Z88: =SUM(E88:$V88) -> 4333.22687 | AA88: =SUM(F88:$V88) -> 2072.507478 | AB88: =SUM(G88:$V88) -> 0 | AC88: =SUM(H88:$V88) -> 0
B89: 5 year old | C89: =C71*INDEX($C$16:$V$16, 1, MATCH(C$25,$C$15:$V$15,0)) -> 2545.652174 | D89: 2339.84457 | E89: 2145.04524 | F89: 0 | G89: 0 | H89: 0 | I89: 0 | J89: 0 | K89: 0 | L89: 0 | M89: 0 | N89: 0 | O89: 0 | P89: 0 | Q89: 0 | R89: 0 | S89: 0 | T89: 0 | U89: 0 | V89: 0 | X89: =SUM(C89:$V89) -> 7030.541984 | Y89: =SUM(D89:$V89) -> 4484.88981 | Z89: =SUM(E89:$V89) -> 2145.04524 | AA89: =SUM(F89:$V89) -> 0 | AB89: =SUM(G89:$V89) -> 0 | AC89: =SUM(H89:$V89) -> 0
B90: 6 year old | C90: =C72*INDEX($C$16:$V$16, 1, MATCH(C$25,$C$15:$V$15,0)) -> 2421.73913 | D90: 2220.121823 | E90: 0 | F90: 0 | G90: 0 | H90: 0 | I90: 0 | J90: 0 | K90: 0 | L90: 0 | M90: 0 | N90: 0 | O90: 0 | P90: 0 | Q90: 0 | R90: 0 | S90: 0 | T90: 0 | U90: 0 | V90: 0 | X90: =SUM(C90:$V90) -> 4641.860954 | Y90: =SUM(D90:$V90) -> 2220.121823 | Z90: =SUM(E90:$V90) -> 0 | AA90: =SUM(F90:$V90) -> 0 | AB90: =SUM(G90:$V90) -> 0 | AC90: =SUM(H90:$V90) -> 0
B91: 7 year old | C91: =C73*INDEX($C$16:$V$16, 1, MATCH(C$25,$C$15:$V$15,0)) -> 2297.826087 | D91: 0 | E91: 0 | F91: 0 | G91: 0 | H91: 0 | I91: 0 | J91: 0 | K91: 0 | L91: 0 | M91: 0 | N91: 0 | O91: 0 | P91: 0 | Q91: 0 | R91: 0 | S91: 0 | T91: 0 | U91: 0 | V91: 0 | X91: =SUM(C91:$V91) -> 2297.826087 | Y91: =SUM(D91:$V91) -> 0 | Z91: =SUM(E91:$V91) -> 0 | AA91: =SUM(F91:$V91) -> 0 | AB91: =SUM(G91:$V91) -> 0 | AC91: =SUM(H91:$V91) -> 0
B92: 8 year old | C92: =C74*INDEX($C$16:$V$16, 1, MATCH(C$25,$C$15:$V$15,0)) -> 0 | D92: 0 | E92: 0 | F92: 0 | G92: 0 | H92: 0 | I92: 0 | J92: 0 | K92: 0 | L92: 0 | M92: 0 | N92: 0 | O92: 0 | P92: 0 | Q92: 0 | R92: 0 | S92: 0 | T92: 0 | U92: 0 | V92: 0 | X92: =SUM(C92:$V92) -> 0 | Y92: =SUM(D92:$V92) -> 0 | Z92: =SUM(E92:$V92) -> 0 | AA92: =SUM(F92:$V92) -> 0 | AB92: =SUM(G92:$V92) -> 0 | AC92: =SUM(H92:$V92) -> 0
B93: 9 year old | C93: =C75*INDEX($C$16:$V$16, 1, MATCH(C$25,$C$15:$V$15,0)) -> 0 | D93: 0 | E93: 0 | F93: 0 | G93: 0 | H93: 0 | I93: 0 | J93: 0 | K93: 0 | L93: 0 | M93: 0 | N93: 0 | O93: 0 | P93: 0 | Q93: 0 | R93: 0 | S93: 0 | T93: 0 | U93: 0 | V93: 0 | X93: =SUM(C93:$V93) -> 0 | Y93: =SUM(D93:$V93) -> 0 | Z93: =SUM(E93:$V93) -> 0 | AA93: =SUM(F93:$V93) -> 0 | AB93: =SUM(G93:$V93) -> 0 | AC93: =SUM(H93:$V93) -> 0
B94: 10 year old | C94: =C76*INDEX($C$16:$V$16, 1, MATCH(C$25,$C$15:$V$15,0)) -> 0 | D94: 0 | E94: 0 | F94: 0 | G94: 0 | H94: 0 | I94: 0 | J94: 0 | K94: 0 | L94: 0 | M94: 0 | N94: 0 | O94: 0 | P94: 0 | Q94: 0 | R94: 0 | S94: 0 | T94: 0 | U94: 0 | V94: 0 | X94: =SUM(C94:$V94) -> 0 | Y94: =SUM(D94:$V94) -> 0 | Z94: =SUM(E94:$V94) -> 0 | AA94: =SUM(F94:$V94) -> 0 | AB94: =SUM(G94:$V94) -> 0 | AC94: =SUM(H94:$V94) -> 0
B95: 11 year old | C95: =C77*INDEX($C$16:$V$16, 1, MATCH(C$25,$C$15:$V$15,0)) -> 0 | D95: 0 | E95: 0 | F95: 0 | G95: 0 | H95: 0 | I95: 0 | J95: 0 | K95: 0 | L95: 0 | M95: 0 | N95: 0 | O95: 0 | P95: 0 | Q95: 0 | R95: 0 | S95: 0 | T95: 0 | U95: 0 | V95: 0 | X95: =SUM(C95:$V95) -> 0 | Y95: =SUM(D95:$V95) -> 0 | Z95: =SUM(E95:$V95) -> 0 | AA95: =SUM(F95:$V95) -> 0 | AB95: =SUM(G95:$V95) -> 0 | AC95: =SUM(H95:$V95) -> 0
B96: 12 year old | C96: =C78*INDEX($C$16:$V$16, 1, MATCH(C$25,$C$15:$V$15,0)) -> 0 | D96: 0 | E96: 0 | F96: 0 | G96: 0 | H96: 0 | I96: 0 | J96: 0 | K96: 0 | L96: 0 | M96: 0 | N96: 0 | O96: 0 | P96: 0 | Q96: 0 | R96: 0 | S96: 0 | T96: 0 | U96: 0 | V96: 0 | X96: =SUM(C96:$V96) -> 0 | Y96: =SUM(D96:$V96) -> 0 | Z96: =SUM(E96:$V96) -> 0 | AA96: =SUM(F96:$V96) -> 0 | AB96: =SUM(G96:$V96) -> 0 | AC96: =SUM(H96:$V96) -> 0
B97: 13 year old | C97: =C79*INDEX($C$16:$V$16, 1, MATCH(C$25,$C$15:$V$15,0)) -> 0 | D97: 0 | E97: 0 | F97: 0 | G97: 0 | H97: 0 | I97: 0 | J97: 0 | K97: 0 | L97: 0 | M97: 0 | N97: 0 | O97: 0 | P97: 0 | Q97: 0 | R97: 0 | S97: 0 | T97: 0 | U97: 0 | V97: 0 | X97: =SUM(C97:$V97) -> 0 | Y97: =SUM(D97:$V97) -> 0 | Z97: =SUM(E97:$V97) -> 0 | AA97: =SUM(F97:$V97) -> 0 | AB97: =SUM(G97:$V97) -> 0 | AC97: =SUM(H97:$V97) -> 0
B98: 14 year old | C98: =C80*INDEX($C$16:$V$16, 1, MATCH(C$25,$C$15:$V$15,0)) -> 0 | D98: 0 | E98: 0 | F98: 0 | G98: 0 | H98: 0 | I98: 0 | J98: 0 | K98: 0 | L98: 0 | M98: 0 | N98: 0 | O98: 0 | P98: 0 | Q98: 0 | R98: 0 | S98: 0 | T98: 0 | U98: 0 | V98: 0 | X98: =SUM(C98:$V98) -> 0 | Y98: =SUM(D98:$V98) -> 0 | Z98: =SUM(E98:$V98) -> 0 | AA98: =SUM(F98:$V98) -> 0 | AB98: =SUM(G98:$V98) -> 0 | AC98: =SUM(H98:$V98) -> 0
B99: 15 year old | C99: =C81*INDEX($C$16:$V$16, 1, MATCH(C$25,$C$15:$V$15,0)) -> 0 | D99: 0 | E99: 0 | F99: 0 | G99: 0 | H99: 0 | I99: 0 | J99: 0 | K99: 0 | L99: 0 | M99: 0 | N99: 0 | O99: 0 | P99: 0 | Q99: 0 | R99: 0 | S99: 0 | T99: 0 | U99: 0 | V99: 0 | X99: =SUM(C99:$V99) -> 0 | Y99: =SUM(D99:$V99) -> 0 | Z99: =SUM(E99:$V99) -> 0 | AA99: =SUM(F99:$V99) -> 0 | AB99: =SUM(G99:$V99) -> 0 | AC99: =SUM(H99:$V99) -> 0
X101: Average cost per link | AC101: Average cost per link
B102: Final outputs in Columns X - AC ----> | X102: =SUM(X84:X99/equipment_lifetime) -> 10801.61215 | Y102: =SUM(Y84:Y99/equipment_lifetime) -> 8070.09041 | Z102: =SUM(Z84:Z99/equipment_lifetime) -> 5813.211603 | AA102: =SUM(AA84:AA99/equipment_lifetime) -> 3987.538639 | AB102: =SUM(AB84:AB99/equipment_lifetime) -> 2552.518383 | AC102: =SUM(AC84:AC99/equipment_lifetime) -> 1470.319747 | AD102: UEL8_revo_options
B104: Cost additional hop | W104: Total 20 yr NPC
A105: =INDEX($C107:$V107,,MATCH((equipment_lifetime+1),$C106:$V106,0))=C107 -> TRUE
C106: 1 | D106: 2 | E106: 3 | F106: 4 | G106: 5 | H106: 6 | I106: 7 | J106: 8 | K106: 9 | L106: 10 | M106: 11 | N106: 12 | O106: 13 | P106: 14 | Q106: 15 | R106: 16 | S106: 17 | T106: 18 | U106: 19 | V106: 20
A107: Rural | B107: Annualised equipment cost | C107: =C66 -> 3276 | D107: =D66 -> 3147.75 | E107: 3019.5 | F107: 2891.25 | G107: 2763 | H107: 2634.75 | I107: 2506.5 | J107: 2378.25 | K107: =C107 -> 3276 | L107: =D107 -> 3147.75 | M107: 3019.5 | N107: 2891.25 | O107: 2763 | P107: 2634.75 | Q107: 2506.5 | R107: 2378.25 | S107: =C107 -> 3276 | T107: =D107 -> 3147.75 | U107: 3019.5 | V107: 2891.25 | W107: =SUM(C107:V107) -> 57568.5
B108: Annualised site cost | C108: =Cost_SiteRural!C29 -> 13237.82995 | D108: =Cost_SiteRural!D29 -> 12885.23355 | E108: =Cost_SiteRural!E29 -> 12532.63714 | F108: =Cost_SiteRural!F29 -> 12180.04074 | G108: =Cost_SiteRural!G29 -> 11827.44433 | H108: =Cost_SiteRural!H29 -> 11474.84793 | I108: =Cost_SiteRural!I29 -> 11122.25152 | J108: =Cost_SiteRural!J29 -> 10769.65512 | K108: =Cost_SiteRural!K29 -> 10417.05871 | L108: =Cost_SiteRural!L29 -> 10064.46231 | M108: =Cost_SiteRural!M29 -> 9711.865901 | N108: =Cost_SiteRural!N29 -> 9359.269496 | O108: =Cost_SiteRural!O29 -> 9006.673091 | P108: =Cost_SiteRural!P29 -> 8654.076685 | Q108: =Cost_SiteRural!Q29 -> 8301.48028 | R108: =Cost_SiteRural!R29 -> 7948.883875 | S108: =Cost_SiteRural!S29 -> 7596.287469 | T108: =Cost_SiteRural!T29 -> 7243.691064 | U108: =Cost_SiteRural!U29 -> 6891.094659 | V108: =Cost_SiteRural!V29 -> 6538.498253 | W108: =SUM(C108:V108) -> 197763.2821
B109: Opex | C109: ='Cost calculations'!$G$24 -> 4579.483433 | D109: ='Cost calculations'!$G$24 -> 4579.483433 | E109: ='Cost calculations'!$G$24 -> 4579.483433 | F109: ='Cost calculations'!$G$24 -> 4579.483433 | G109: ='Cost calculations'!$G$24 -> 4579.483433 | H109: ='Cost calculations'!$G$24 -> 4579.483433 | I109: ='Cost calculations'!$G$24 -> 4579.483433 | J109: ='Cost calculations'!$G$24 -> 4579.483433 | K109: ='Cost calculations'!$G$24 -> 4579.483433 | L109: ='Cost calculations'!$G$24 -> 4579.483433 | M109: ='Cost calculations'!$G$24 -> 4579.483433 | N109: ='Cost calculations'!$G$24 -> 4579.483433 | O109: ='Cost calculations'!$G$24 -> 4579.483433 | P109: ='Cost calculations'!$G$24 -> 4579.483433 | Q109: ='Cost calculations'!$G$24 -> 4579.483433 | R109: ='Cost calculations'!$G$24 -> 4579.483433 | S109: ='Cost calculations'!$G$24 -> 4579.483433 | T109: ='Cost calculations'!$G$24 -> 4579.483433 | U109: ='Cost calculations'!$G$24 -> 4579.483433 | V109: ='Cost calculations'!$G$24 -> 4579.483433 | W109: =SUM(C109:V109) -> 91589.66866
B110: Link deployment | C110: =IF(C$106>equipment_lifetime,(-C107/equipment_capital_ins*$C$10),0) -> 0 | D110: 0 | E110: 0 | F110: 0 | G110: 0 | H110: 0 | I110: 0 | J110: 0 | K110: -182 | L110: -174.875 | M110: -167.75 | N110: -160.625 | O110: -153.5 | P110: -146.375 | Q110: -139.25 | R110: -132.125 | S110: -182 | T110: -174.875 | U110: -167.75 | V110: -160.625 | W110: =SUM(C110:V110) -> -1941.75
B111: Total | C111: =SUM(C107:C110) -> 21093.31339 | D111: =SUM(D107:D110) -> 20612.46698 | E111: 20131.62058 | F111: 19650.77417 | G111: 19169.92777 | H111: 18689.08136 | I111: 18208.23496 | J111: 17727.38855 | K111: 18090.54215 | L111: 17616.82074 | M111: 17143.09933 | N111: 16669.37793 | O111: 16195.65652 | P111: 15721.93512 | Q111: 15248.21371 | R111: 14774.49231 | S111: 15269.7709 | T111: 14796.0495 | U111: 14322.32809 | V111: 13848.60669 | W111: =SUM(C111:V111) -> 344979.7007
B112: Net present value | C112: =C111*INDEX($C$16:$V$16, 1, MATCH(C15,$C$15:$V$15,0)) -> 20380.01294 | D112: 19241.95849 | E112: 18157.56833 | F112: 17124.51442 | G112: 16140.56479 | H112: 15203.57973 | I112: 14311.50809 | J112: 13462.38373 | K112: 13273.59108 | L112: 12488.89566 | M112: 11742.09241 | N112: 11031.51591 | O112: 10355.57004 | P112: 9712.725224 | Q112: 9101.515716 | R112: 8520.537057 | S112: 8508.374058 | T112: 7965.618068 | U112: 7449.840457 | V112: 6959.837268
V114: NPC rural hop | W114: =SUM(C112:V112) -> 251132.2034
A115: =INDEX($C117:$V117,,MATCH((equipment_lifetime+1),$C106:$V106,0))=C117 -> TRUE
A117: Urban | B117: Annualised equipment cost | C117: =C66 -> 3276 | D117: =D66 -> 3147.75 | E117: 3019.5 | F117: 2891.25 | G117: 2763 | H117: 2634.75 | I117: 2506.5 | J117: 2378.25 | K117: =C117 -> 3276 | L117: =D117 -> 3147.75 | M117: 3019.5 | N117: 2891.25 | O117: 2763 | P117: 2634.75 | Q117: 2506.5 | R117: 2378.25 | S117: =C117 -> 3276 | T117: =D117 -> 3147.75 | U117: 3019.5 | V117: 2891.25 | W117: =SUM(C117:V117) -> 57568.5
B118: Annualised site cost | C118: =Cost_SiteUrban!C30 -> 6618.914977 | D118: =Cost_SiteUrban!D30 -> 6442.616775 | E118: =Cost_SiteUrban!E30 -> 6266.318572 | F118: =Cost_SiteUrban!F30 -> 6090.020369 | G118: =Cost_SiteUrban!G30 -> 5913.722167 | H118: =Cost_SiteUrban!H30 -> 5737.423964 | I118: =Cost_SiteUrban!I30 -> 5561.125761 | J118: =Cost_SiteUrban!J30 -> 5384.827559 | K118: =Cost_SiteUrban!K30 -> 5208.529356 | L118: =Cost_SiteUrban!L30 -> 5032.231153 | M118: =Cost_SiteUrban!M30 -> 4855.932951 | N118: =Cost_SiteUrban!N30 -> 4679.634748 | O118: =Cost_SiteUrban!O30 -> 4503.336545 | P118: =Cost_SiteUrban!P30 -> 4327.038343 | Q118: =Cost_SiteUrban!Q30 -> 4150.74014 | R118: =Cost_SiteUrban!R30 -> 3974.441937 | S118: =Cost_SiteUrban!S30 -> 3798.143735 | T118: =Cost_SiteUrban!T30 -> 3621.845532 | U118: =Cost_SiteUrban!U30 -> 3445.547329 | V118: =Cost_SiteUrban!V30 -> 3269.249127 | W118: 98881.64104
B119: Ongoing cost | C119: ='Cost calculations'!$G$25 -> 7765.385281 | D119: ='Cost calculations'!$G$25 -> 7765.385281 | E119: ='Cost calculations'!$G$25 -> 7765.385281 | F119: ='Cost calculations'!$G$25 -> 7765.385281 | G119: ='Cost calculations'!$G$25 -> 7765.385281 | H119: ='Cost calculations'!$G$25 -> 7765.385281 | I119: ='Cost calculations'!$G$25 -> 7765.385281 | J119: ='Cost calculations'!$G$25 -> 7765.385281 | K119: ='Cost calculations'!$G$25 -> 7765.385281 | L119: ='Cost calculations'!$G$25 -> 7765.385281 | M119: ='Cost calculations'!$G$25 -> 7765.385281 | N119: ='Cost calculations'!$G$25 -> 7765.385281 | O119: ='Cost calculations'!$G$25 -> 7765.385281 | P119: ='Cost calculations'!$G$25 -> 7765.385281 | Q119: ='Cost calculations'!$G$25 -> 7765.385281 | R119: ='Cost calculations'!$G$25 -> 7765.385281 | S119: ='Cost calculations'!$G$25 -> 7765.385281 | T119: ='Cost calculations'!$G$25 -> 7765.385281 | U119: ='Cost calculations'!$G$25 -> 7765.385281 | V119: ='Cost calculations'!$G$25 -> 7765.385281 | W119: 155307.7056
B120: Link deployment | C120: =IF(C$106>equipment_lifetime,(-C117/equipment_capital_ins*$C$10),0) -> 0 | D120: 0 | E120: 0 | F120: 0 | G120: 0 | H120: 0 | I120: 0 | J120: 0 | K120: -182 | L120: -174.875 | M120: -167.75 | N120: -160.625 | O120: -153.5 | P120: -146.375 | Q120: -139.25 | R120: -132.125 | S120: -182 | T120: -174.875 | U120: -167.75 | V120: -160.625 | W120: =SUM(C120:V120) -> -1941.75
B121: Total | C121: =SUM(C117:C120) -> 17660.30026 | D121: =SUM(D117:D120) -> 17355.75206 | E121: =SUM(E117:E120) -> 17051.20385 | F121: =SUM(F117:F120) -> 16746.65565 | G121: =SUM(G117:G120) -> 16442.10745 | H121: =SUM(H117:H120) -> 16137.55925 | I121: =SUM(I117:I120) -> 15833.01104 | J121: =SUM(J117:J120) -> 15528.46284 | K121: =SUM(K117:K120) -> 16067.91464 | L121: =SUM(L117:L120) -> 15770.49143 | M121: =SUM(M117:M120) -> 15473.06823 | N121: =SUM(N117:N120) -> 15175.64503 | O121: =SUM(O117:O120) -> 14878.22183 | P121: =SUM(P117:P120) -> 14580.79862 | Q121: =SUM(Q117:Q120) -> 14283.37542 | R121: =SUM(R117:R120) -> 13985.95222 | S121: =SUM(S117:S120) -> 14657.52902 | T121: =SUM(T117:T120) -> 14360.10581 | U121: =SUM(U117:U120) -> 14062.68261 | V121: =SUM(V117:V120) -> 13765.25941 | W121: =SUM(C121:V121) -> 309816.0967
B122: Net present value | C122: =C121*INDEX($C$16:$V$16, 1, MATCH(C106,$C$15:$V$15,0)) -> 17063.09204 | D122: 16201.78026 | E122: 15379.20894 | F122: 14593.74291 | G122: 13843.81328 | H122: 13127.91484 | I122: 12444.60356 | J122: 11792.49413 | K122: 11789.52663 | L122: 11179.99808 | M122: 10598.21176 | N122: 10042.98842 | O122: 9513.196824 | P122: 9007.751878 | Q122: 8525.612791 | R122: 8065.781325 | S122: 8167.230565 | T122: 7730.92293 | U122: 7314.784382 | V122: 6917.949769
V124: NPC urban hop | W124: =SUM(C122:V122) -> 223300.6053

Sheet Discounted cost_9years
A1: Discounted Cost (9 year lifetime)
B4: Finance rate | C4: =finance_rate_Input -> 0.057 | D4: finance_rate
B5: Discount rate | C5: =discount_rate_input -> 0.035 | D5: discount_rate
B7: Capital cost (including installation) | C7: ='Cost calculations'!I33 -> 18000 | D7: equipment_capital_ins
B8: Capital cost - rural site | C8: ='Cost calculations'!C24 -> 123718.037 | D8: rural_site_capital
B9: Capital cost - urban site | C9: ='Cost calculations'!C25 -> 61859.01848 | D9: urban_site_capital
B10: Deployment cost | C10: ='Spectrum cost inputs'!$D$10 -> 1000 | D10: deployment_capital
B12: Lifetime of new equipment | C12: 9 | D12: equipment_lifetime
C14: Years
C15: 1 | D15: 2 | E15: 3 | F15: 4 | G15: 5 | H15: 6 | I15: 7 | J15: 8 | K15: 9 | L15: 10 | M15: 11 | N15: 12 | O15: 13 | P15: 14 | Q15: 15 | R15: 16 | S15: 17 | T15: 18 | U15: 19 | V15: 20
B16: Discount factor (STPR) | C16: =1/(1+$C5)^(C$15) -> 0.9661835749 | D16: 0.9335107004 | E16: 0.9019427057 | F16: 0.8714422277 | G16: 0.8419731669 | H16: 0.8135006443 | I16: 0.7859909607 | J16: 0.7594115562 | K16: 0.7337309722 | L16: 0.7089188137 | M16: 0.6849457137 | N16: 0.6617832983 | O16: 0.6394041529 | P16: 0.6177817903 | Q16: 0.5968906186 | R16: 0.5767059117 | S16: 0.5572037794 | T16: 0.5383611396 | U16: 0.5201556904 | V16: 0.5025658844
B20: Cost of retiring equipment early
B21: Estimating the capital cost that firms need to write off
B22: Including the installation cost as part of capex for this calculation
C24: Year
C25: 1 | D25: 2 | E25: 3 | F25: 4 | G25: 5 | H25: 6 | I25: 7 | J25: 8 | K25: 9 | L25: 10 | M25: 11 | N25: 12 | O25: 13 | P25: 14 | Q25: 15 | R25: 16 | S25: 17 | T25: 18 | U25: 19 | V25: 20
B27: Cost (Straight line depreciation)
A29: Remaining lifetime | B29: Depreciation
A30: =equipment_lifetime_15-LEFT(B30,2) -> 9 | B30: 0 year old | C30: =IF(C$25<=$A30,equipment_capital_ins/equipment_lifetime,0) -> 2000 | D30: 2000 | E30: 2000 | F30: 2000 | G30: 2000 | H30: 2000 | I30: 2000 | J30: 2000 | K30: 2000 | L30: 0 | M30: =IF(M$25<=$A30,equipment_capital_ins/equipment_lifetime,0) -> 0 | N30: 0 | O30: 0 | P30: 0 | Q30: 0 | R30: 0 | S30: 0 | T30: 0 | U30: 0 | V30: 0
A31: 8 | B31: 1 year old | C31: 2000 | D31: 2000 | E31: 2000 | F31: 2000 | G31: 2000 | H31: 2000 | I31: 2000 | J31: 2000 | K31: 0 | L31: 0 | M31: 0 | N31: 0 | O31: 0 | P31: 0 | Q31: 0 | R31: 0 | S31: 0 | T31: 0 | U31: 0 | V31: 0
A32: 7 | B32: 2 year old | C32: 2000 | D32: 2000 | E32: 2000 | F32: 2000 | G32: 2000 | H32: 2000 | I32: 2000 | J32: 0 | K32: 0 | L32: 0 | M32: 0 | N32: 0 | O32: 0 | P32: 0 | Q32: 0 | R32: 0 | S32: 0 | T32: 0 | U32: 0 | V32: 0
A33: 6 | B33: 3 year old | C33: 2000 | D33: 2000 | E33: 2000 | F33: 2000 | G33: 2000 | H33: 2000 | I33: 0 | J33: 0 | K33: 0 | L33: 0 | M33: 0 | N33: 0 | O33: 0 | P33: 0 | Q33: 0 | R33: 0 | S33: 0 | T33: 0 | U33: 0 | V33: 0
A34: 5 | B34: 4 year old | C34: 2000 | D34: 2000 | E34: 2000 | F34: 2000 | G34: 2000 | H34: 0 | I34: 0 | J34: 0 | K34: 0 | L34: 0 | M34: 0 | N34: 0 | O34: 0 | P34: 0 | Q34: 0 | R34: 0 | S34: 0 | T34: 0 | U34: 0 | V34: 0
A35: 4 | B35: 5 year old | C35: 2000 | D35: 2000 | E35: 2000 | F35: 2000 | G35: 0 | H35: 0 | I35: 0 | J35: 0 | K35: 0 | L35: 0 | M35: 0 | N35: 0 | O35: 0 | P35: 0 | Q35: 0 | R35: 0 | S35: 0 | T35: 0 | U35: 0 | V35: 0
A36: 3 | B36: 6 year old | C36: 2000 | D36: 2000 | E36: 2000 | F36: 0 | G36: 0 | H36: 0 | I36: 0 | J36: 0 | K36: 0 | L36: 0 | M36: 0 | N36: 0 | O36: 0 | P36: 0 | Q36: 0 | R36: 0 | S36: 0 | T36: 0 | U36: 0 | V36: 0
A37: 2 | B37: 7 year old | C37: 2000 | D37: 2000 | E37: 0 | F37: 0 | G37: 0 | H37: 0 | I37: 0 | J37: 0 | K37: 0 | L37: 0 | M37: 0 | N37: 0 | O37: 0 | P37: 0 | Q37: 0 | R37: 0 | S37: 0 | T37: 0 | U37: 0 | V37: 0
A38: 1 | B38: 8 year old | C38: 2000 | D38: 0 | E38: 0 | F38: 0 | G38: 0 | H38: 0 | I38: 0 | J38: 0 | K38: 0 | L38: 0 | M38: 0 | N38: 0 | O38: 0 | P38: 0 | Q38: 0 | R38: 0 | S38: 0 | T38: 0 | U38: 0 | V38: 0
A39: 0 | B39: 9 year old | C39: 0 | D39: 0 | E39: 0 | F39: 0 | G39: 0 | H39: 0 | I39: 0 | J39: 0 | K39: 0 | L39: 0 | M39: 0 | N39: 0 | O39: 0 | P39: 0 | Q39: 0 | R39: 0 | S39: 0 | T39: 0 | U39: 0 | V39: 0
A40: -1 | B40: 10 year old | C40: =IF(C$25<=$A40,equipment_capital_ins/equipment_lifetime,0) -> 0 | D40: 0 | E40: 0 | F40: 0 | G40: 0 | H40: 0 | I40: 0 | J40: 0 | K40: 0 | L40: 0 | M40: =IF(M$25<=$A40,equipment_capital_ins/equipment_lifetime,0) -> 0 | N40: 0 | O40: 0 | P40: 0 | Q40: 0 | R40: 0 | S40: 0 | T40: 0 | U40: 0 | V40: 0
A41: -2 | B41: 11 year old | C41: 0 | D41: 0 | E41: 0 | F41: 0 | G41: 0 | H41: 0 | I41: 0 | J41: 0 | K41: 0 | L41: 0 | M41: 0 | N41: 0 | O41: 0 | P41: 0 | Q41: 0 | R41: 0 | S41: 0 | T41: 0 | U41: 0 | V41: 0
A42: -3 | B42: 12 year old | C42: 0 | D42: 0 | E42: 0 | F42: 0 | G42: 0 | H42: 0 | I42: 0 | J42: 0 | K42: 0 | L42: 0 | M42: 0 | N42: 0 | O42: 0 | P42: 0 | Q42: 0 | R42: 0 | S42: 0 | T42: 0 | U42: 0 | V42: 0
A43: -4 | B43: 13 year old | C43: 0 | D43: 0 | E43: 0 | F43: 0 | G43: 0 | H43: 0 | I43: 0 | J43: 0 | K43: 0 | L43: 0 | M43: 0 | N43: 0 | O43: 0 | P43: 0 | Q43: 0 | R43: 0 | S43: 0 | T43: 0 | U43: 0 | V43: 0
A44: -5 | B44: 14 year old | C44: 0 | D44: 0 | E44: 0 | F44: 0 | G44: 0 | H44: 0 | I44: 0 | J44: 0 | K44: 0 | L44: 0 | M44: 0 | N44: 0 | O44: 0 | P44: 0 | Q44: 0 | R44: 0 | S44: 0 | T44: 0 | U44: 0 | V44: 0
A45: -6 | B45: 15 year old | C45: 0 | D45: 0 | E45: 0 | F45: 0 | G45: 0 | H45: 0 | I45: 0 | J45: 0 | K45: 0 | L45: 0 | M45: 0 | N45: 0 | O45: 0 | P45: 0 | Q45: 0 | R45: 0 | S45: 0 | T45: 0 | U45: 0 | V45: 0
B47: Financing cost
B48: 0 year old | C48: =IF(equipment_lifetime<C$25,0,SUM(C30:$V30)*finance_rate) -> 1026 | D48: =IF(equipment_lifetime<D$25,0,SUM(D30:$V30)*finance_rate) -> 912 | E48: =IF(equipment_lifetime<E$25,0,SUM(E30:$V30)*finance_rate) -> 798 | F48: =IF(equipment_lifetime<F$25,0,SUM(F30:$V30)*finance_rate) -> 684 | G48: =IF(equipment_lifetime<G$25,0,SUM(G30:$V30)*finance_rate) -> 570 | H48: =IF(equipment_lifetime<H$25,0,SUM(H30:$V30)*finance_rate) -> 456 | I48: =IF(equipment_lifetime<I$25,0,SUM(I30:$V30)*finance_rate) -> 342 | J48: =IF(equipment_lifetime<J$25,0,SUM(J30:$V30)*finance_rate) -> 228 | K48: =IF(equipment_lifetime<K$25,0,SUM(K30:$V30)*finance_rate) -> 114 | L48: =IF(equipment_lifetime<L$25,0,SUM(L30:$V30)*finance_rate) -> 0 | M48: =IF(equipment_lifetime<M$25,0,SUM(M30:$V30)*finance_rate) -> 0 | N48: =IF(equipment_lifetime<N$25,0,SUM(N30:$V30)*finance_rate) -> 0 | O48: =IF(equipment_lifetime<O$25,0,SUM(O30:$V30)*finance_rate) -> 0 | P48: =IF(equipment_lifetime<P$25,0,SUM(P30:$V30)*finance_rate) -> 0 | Q48: =IF(equipment_lifetime<Q$25,0,SUM(Q30:$V30)*finance_rate) -> 0 | R48: =IF(equipment_lifetime<R$25,0,SUM(R30:$V30)*finance_rate) -> 0 | S48: =IF(equipment_lifetime<S$25,0,SUM(S30:$V30)*finance_rate) -> 0 | T48: =IF(equipment_lifetime<T$25,0,SUM(T30:$V30)*finance_rate) -> 0 | U48: =IF(equipment_lifetime<U$25,0,SUM(U30:$V30)*finance_rate) -> 0 | V48: =IF(equipment_lifetime<V$25,0,SUM(V30:$V30)*finance_rate) -> 0
B49: 1 year old | C49: =IF(equipment_lifetime<C$25,0,SUM(C31:$V31)*finance_rate) -> 912 | D49: =IF(equipment_lifetime<D$25,0,SUM(D31:$V31)*finance_rate) -> 798 | E49: =IF(equipment_lifetime<E$25,0,SUM(E31:$V31)*finance_rate) -> 684 | F49: =IF(equipment_lifetime<F$25,0,SUM(F31:$V31)*finance_rate) -> 570 | G49: =IF(equipment_lifetime<G$25,0,SUM(G31:$V31)*finance_rate) -> 456 | H49: =IF(equipment_lifetime<H$25,0,SUM(H31:$V31)*finance_rate) -> 342 | I49: =IF(equipment_lifetime<I$25,0,SUM(I31:$V31)*finance_rate) -> 228 | J49: =IF(equipment_lifetime<J$25,0,SUM(J31:$V31)*finance_rate) -> 114 | K49: =IF(equipment_lifetime<K$25,0,SUM(K31:$V31)*finance_rate) -> 0 | L49: =IF(equipment_lifetime<L$25,0,SUM(L31:$V31)*finance_rate) -> 0 | M49: =IF(equipment_lifetime<M$25,0,SUM(M31:$V31)*finance_rate) -> 0 | N49: =IF(equipment_lifetime<N$25,0,SUM(N31:$V31)*finance_rate) -> 0 | O49: =IF(equipment_lifetime<O$25,0,SUM(O31:$V31)*finance_rate) -> 0 | P49: =IF(equipment_lifetime<P$25,0,SUM(P31:$V31)*finance_rate) -> 0 | Q49: =IF(equipment_lifetime<Q$25,0,SUM(Q31:$V31)*finance_rate) -> 0 | R49: =IF(equipment_lifetime<R$25,0,SUM(R31:$V31)*finance_rate) -> 0 | S49: =IF(equipment_lifetime<S$25,0,SUM(S31:$V31)*finance_rate) -> 0 | T49: =IF(equipment_lifetime<T$25,0,SUM(T31:$V31)*finance_rate) -> 0 | U49: =IF(equipment_lifetime<U$25,0,SUM(U31:$V31)*finance_rate) -> 0 | V49: =IF(equipment_lifetime<V$25,0,SUM(V31:$V31)*finance_rate) -> 0
B50: 2 year old | C50: =IF(equipment_lifetime<C$25,0,SUM(C32:$V32)*finance_rate) -> 798 | D50: =IF(equipment_lifetime<D$25,0,SUM(D32:$V32)*finance_rate) -> 684 | E50: =IF(equipment_lifetime<E$25,0,SUM(E32:$V32)*finance_rate) -> 570 | F50: =IF(equipment_lifetime<F$25,0,SUM(F32:$V32)*finance_rate) -> 456 | G50: =IF(equipment_lifetime<G$25,0,SUM(G32:$V32)*finance_rate) -> 342 | H50: =IF(equipment_lifetime<H$25,0,SUM(H32:$V32)*finance_rate) -> 228 | I50: =IF(equipment_lifetime<I$25,0,SUM(I32:$V32)*finance_rate) -> 114 | J50: =IF(equipment_lifetime<J$25,0,SUM(J32:$V32)*finance_rate) -> 0 | K50: =IF(equipment_lifetime<K$25,0,SUM(K32:$V32)*finance_rate) -> 0 | L50: =IF(equipment_lifetime<L$25,0,SUM(L32:$V32)*finance_rate) -> 0 | M50: =IF(equipment_lifetime<M$25,0,SUM(M32:$V32)*finance_rate) -> 0 | N50: =IF(equipment_lifetime<N$25,0,SUM(N32:$V32)*finance_rate) -> 0 | O50: =IF(equipment_lifetime<O$25,0,SUM(O32:$V32)*finance_rate) -> 0 | P50: =IF(equipment_lifetime<P$25,0,SUM(P32:$V32)*finance_rate) -> 0 | Q50: =IF(equipment_lifetime<Q$25,0,SUM(Q32:$V32)*finance_rate) -> 0 | R50: =IF(equipment_lifetime<R$25,0,SUM(R32:$V32)*finance_rate) -> 0 | S50: =IF(equipment_lifetime<S$25,0,SUM(S32:$V32)*finance_rate) -> 0 | T50: =IF(equipment_lifetime<T$25,0,SUM(T32:$V32)*finance_rate) -> 0 | U50: =IF(equipment_lifetime<U$25,0,SUM(U32:$V32)*finance_rate) -> 0 | V50: =IF(equipment_lifetime<V$25,0,SUM(V32:$V32)*finance_rate) -> 0
B51: 3 year old | C51: =IF(equipment_lifetime<C$25,0,SUM(C33:$V33)*finance_rate) -> 684 | D51: =IF(equipment_lifetime<D$25,0,SUM(D33:$V33)*finance_rate) -> 570 | E51: =IF(equipment_lifetime<E$25,0,SUM(E33:$V33)*finance_rate) -> 456 | F51: =IF(equipment_lifetime<F$25,0,SUM(F33:$V33)*finance_rate) -> 342 | G51: =IF(equipment_lifetime<G$25,0,SUM(G33:$V33)*finance_rate) -> 228 | H51: =IF(equipment_lifetime<H$25,0,SUM(H33:$V33)*finance_rate) -> 114 | I51: =IF(equipment_lifetime<I$25,0,SUM(I33:$V33)*finance_rate) -> 0 | J51: =IF(equipment_lifetime<J$25,0,SUM(J33:$V33)*finance_rate) -> 0 | K51: =IF(equipment_lifetime<K$25,0,SUM(K33:$V33)*finance_rate) -> 0 | L51: =IF(equipment_lifetime<L$25,0,SUM(L33:$V33)*finance_rate) -> 0 | M51: =IF(equipment_lifetime<M$25,0,SUM(M33:$V33)*finance_rate) -> 0 | N51: =IF(equipment_lifetime<N$25,0,SUM(N33:$V33)*finance_rate) -> 0 | O51: =IF(equipment_lifetime<O$25,0,SUM(O33:$V33)*finance_rate) -> 0 | P51: =IF(equipment_lifetime<P$25,0,SUM(P33:$V33)*finance_rate) -> 0 | Q51: =IF(equipment_lifetime<Q$25,0,SUM(Q33:$V33)*finance_rate) -> 0 | R51: =IF(equipment_lifetime<R$25,0,SUM(R33:$V33)*finance_rate) -> 0 | S51: =IF(equipment_lifetime<S$25,0,SUM(S33:$V33)*finance_rate) -> 0 | T51: =IF(equipment_lifetime<T$25,0,SUM(T33:$V33)*finance_rate) -> 0 | U51: =IF(equipment_lifetime<U$25,0,SUM(U33:$V33)*finance_rate) -> 0 | V51: =IF(equipment_lifetime<V$25,0,SUM(V33:$V33)*finance_rate) -> 0
B52: 4 year old | C52: =IF(equipment_lifetime<C$25,0,SUM(C34:$V34)*finance_rate) -> 570 | D52: =IF(equipment_lifetime<D$25,0,SUM(D34:$V34)*finance_rate) -> 456 | E52: =IF(equipment_lifetime<E$25,0,SUM(E34:$V34)*finance_rate) -> 342 | F52: =IF(equipment_lifetime<F$25,0,SUM(F34:$V34)*finance_rate) -> 228 | G52: =IF(equipment_lifetime<G$25,0,SUM(G34:$V34)*finance_rate) -> 114 | H52: =IF(equipment_lifetime<H$25,0,SUM(H34:$V34)*finance_rate) -> 0 | I52: =IF(equipment_lifetime<I$25,0,SUM(I34:$V34)*finance_rate) -> 0 | J52: =IF(equipment_lifetime<J$25,0,SUM(J34:$V34)*finance_rate) -> 0 | K52: =IF(equipment_lifetime<K$25,0,SUM(K34:$V34)*finance_rate) -> 0 | L52: =IF(equipment_lifetime<L$25,0,SUM(L34:$V34)*finance_rate) -> 0 | M52: =IF(equipment_lifetime<M$25,0,SUM(M34:$V34)*finance_rate) -> 0 | N52: =IF(equipment_lifetime<N$25,0,SUM(N34:$V34)*finance_rate) -> 0 | O52: =IF(equipment_lifetime<O$25,0,SUM(O34:$V34)*finance_rate) -> 0 | P52: =IF(equipment_lifetime<P$25,0,SUM(P34:$V34)*finance_rate) -> 0 | Q52: =IF(equipment_lifetime<Q$25,0,SUM(Q34:$V34)*finance_rate) -> 0 | R52: =IF(equipment_lifetime<R$25,0,SUM(R34:$V34)*finance_rate) -> 0 | S52: =IF(equipment_lifetime<S$25,0,SUM(S34:$V34)*finance_rate) -> 0 | T52: =IF(equipment_lifetime<T$25,0,SUM(T34:$V34)*finance_rate) -> 0 | U52: =IF(equipment_lifetime<U$25,0,SUM(U34:$V34)*finance_rate) -> 0 | V52: =IF(equipment_lifetime<V$25,0,SUM(V34:$V34)*finance_rate) -> 0
B53: 5 year old | C53: =IF(equipment_lifetime<C$25,0,SUM(C35:$V35)*finance_rate) -> 456 | D53: =IF(equipment_lifetime<D$25,0,SUM(D35:$V35)*finance_rate) -> 342 | E53: =IF(equipment_lifetime<E$25,0,SUM(E35:$V35)*finance_rate) -> 228 | F53: =IF(equipment_lifetime<F$25,0,SUM(F35:$V35)*finance_rate) -> 114 | G53: =IF(equipment_lifetime<G$25,0,SUM(G35:$V35)*finance_rate) -> 0 | H53: =IF(equipment_lifetime<H$25,0,SUM(H35:$V35)*finance_rate) -> 0 | I53: =IF(equipment_lifetime<I$25,0,SUM(I35:$V35)*finance_rate) -> 0 | J53: =IF(equipment_lifetime<J$25,0,SUM(J35:$V35)*finance_rate) -> 0 | K53: =IF(equipment_lifetime<K$25,0,SUM(K35:$V35)*finance_rate) -> 0 | L53: =IF(equipment_lifetime<L$25,0,SUM(L35:$V35)*finance_rate) -> 0 | M53: =IF(equipment_lifetime<M$25,0,SUM(M35:$V35)*finance_rate) -> 0 | N53: =IF(equipment_lifetime<N$25,0,SUM(N35:$V35)*finance_rate) -> 0 | O53: =IF(equipment_lifetime<O$25,0,SUM(O35:$V35)*finance_rate) -> 0 | P53: =IF(equipment_lifetime<P$25,0,SUM(P35:$V35)*finance_rate) -> 0 | Q53: =IF(equipment_lifetime<Q$25,0,SUM(Q35:$V35)*finance_rate) -> 0 | R53: =IF(equipment_lifetime<R$25,0,SUM(R35:$V35)*finance_rate) -> 0 | S53: =IF(equipment_lifetime<S$25,0,SUM(S35:$V35)*finance_rate) -> 0 | T53: =IF(equipment_lifetime<T$25,0,SUM(T35:$V35)*finance_rate) -> 0 | U53: =IF(equipment_lifetime<U$25,0,SUM(U35:$V35)*finance_rate) -> 0 | V53: =IF(equipment_lifetime<V$25,0,SUM(V35:$V35)*finance_rate) -> 0
B54: 6 year old | C54: =IF(equipment_lifetime<C$25,0,SUM(C36:$V36)*finance_rate) -> 342 | D54: =IF(equipment_lifetime<D$25,0,SUM(D36:$V36)*finance_rate) -> 228 | E54: =IF(equipment_lifetime<E$25,0,SUM(E36:$V36)*finance_rate) -> 114 | F54: =IF(equipment_lifetime<F$25,0,SUM(F36:$V36)*finance_rate) -> 0 | G54: =IF(equipment_lifetime<G$25,0,SUM(G36:$V36)*finance_rate) -> 0 | H54: =IF(equipment_lifetime<H$25,0,SUM(H36:$V36)*finance_rate) -> 0 | I54: =IF(equipment_lifetime<I$25,0,SUM(I36:$V36)*finance_rate) -> 0 | J54: =IF(equipment_lifetime<J$25,0,SUM(J36:$V36)*finance_rate) -> 0 | K54: =IF(equipment_lifetime<K$25,0,SUM(K36:$V36)*finance_rate) -> 0 | L54: =IF(equipment_lifetime<L$25,0,SUM(L36:$V36)*finance_rate) -> 0 | M54: =IF(equipment_lifetime<M$25,0,SUM(M36:$V36)*finance_rate) -> 0 | N54: =IF(equipment_lifetime<N$25,0,SUM(N36:$V36)*finance_rate) -> 0 | O54: =IF(equipment_lifetime<O$25,0,SUM(O36:$V36)*finance_rate) -> 0 | P54: =IF(equipment_lifetime<P$25,0,SUM(P36:$V36)*finance_rate) -> 0 | Q54: =IF(equipment_lifetime<Q$25,0,SUM(Q36:$V36)*finance_rate) -> 0 | R54: =IF(equipment_lifetime<R$25,0,SUM(R36:$V36)*finance_rate) -> 0 | S54: =IF(equipment_lifetime<S$25,0,SUM(S36:$V36)*finance_rate) -> 0 | T54: =IF(equipment_lifetime<T$25,0,SUM(T36:$V36)*finance_rate) -> 0 | U54: =IF(equipment_lifetime<U$25,0,SUM(U36:$V36)*finance_rate) -> 0 | V54: =IF(equipment_lifetime<V$25,0,SUM(V36:$V36)*finance_rate) -> 0
B55: 7 year old | C55: =IF(equipment_lifetime<C$25,0,SUM(C37:$V37)*finance_rate) -> 228 | D55: =IF(equipment_lifetime<D$25,0,SUM(D37:$V37)*finance_rate) -> 114 | E55: =IF(equipment_lifetime<E$25,0,SUM(E37:$V37)*finance_rate) -> 0 | F55: =IF(equipment_lifetime<F$25,0,SUM(F37:$V37)*finance_rate) -> 0 | G55: =IF(equipment_lifetime<G$25,0,SUM(G37:$V37)*finance_rate) -> 0 | H55: =IF(equipment_lifetime<H$25,0,SUM(H37:$V37)*finance_rate) -> 0 | I55: =IF(equipment_lifetime<I$25,0,SUM(I37:$V37)*finance_rate) -> 0 | J55: =IF(equipment_lifetime<J$25,0,SUM(J37:$V37)*finance_rate) -> 0 | K55: =IF(equipment_lifetime<K$25,0,SUM(K37:$V37)*finance_rate) -> 0 | L55: =IF(equipment_lifetime<L$25,0,SUM(L37:$V37)*finance_rate) -> 0 | M55: =IF(equipment_lifetime<M$25,0,SUM(M37:$V37)*finance_rate) -> 0 | N55: =IF(equipment_lifetime<N$25,0,SUM(N37:$V37)*finance_rate) -> 0 | O55: =IF(equipment_lifetime<O$25,0,SUM(O37:$V37)*finance_rate) -> 0 | P55: =IF(equipment_lifetime<P$25,0,SUM(P37:$V37)*finance_rate) -> 0 | Q55: =IF(equipment_lifetime<Q$25,0,SUM(Q37:$V37)*finance_rate) -> 0 | R55: =IF(equipment_lifetime<R$25,0,SUM(R37:$V37)*finance_rate) -> 0 | S55: =IF(equipment_lifetime<S$25,0,SUM(S37:$V37)*finance_rate) -> 0 | T55: =IF(equipment_lifetime<T$25,0,SUM(T37:$V37)*finance_rate) -> 0 | U55: =IF(equipment_lifetime<U$25,0,SUM(U37:$V37)*finance_rate) -> 0 | V55: =IF(equipment_lifetime<V$25,0,SUM(V37:$V37)*finance_rate) -> 0
B56: 8 year old | C56: =IF(equipment_lifetime<C$25,0,SUM(C38:$V38)*finance_rate) -> 114 | D56: =IF(equipment_lifetime<D$25,0,SUM(D38:$V38)*finance_rate) -> 0 | E56: =IF(equipment_lifetime<E$25,0,SUM(E38:$V38)*finance_rate) -> 0 | F56: =IF(equipment_lifetime<F$25,0,SUM(F38:$V38)*finance_rate) -> 0 | G56: =IF(equipment_lifetime<G$25,0,SUM(G38:$V38)*finance_rate) -> 0 | H56: =IF(equipment_lifetime<H$25,0,SUM(H38:$V38)*finance_rate) -> 0 | I56: =IF(equipment_lifetime<I$25,0,SUM(I38:$V38)*finance_rate) -> 0 | J56: =IF(equipment_lifetime<J$25,0,SUM(J38:$V38)*finance_rate) -> 0 | K56: =IF(equipment_lifetime<K$25,0,SUM(K38:$V38)*finance_rate) -> 0 | L56: =IF(equipment_lifetime<L$25,0,SUM(L38:$V38)*finance_rate) -> 0 | M56: =IF(equipment_lifetime<M$25,0,SUM(M38:$V38)*finance_rate) -> 0 | N56: =IF(equipment_lifetime<N$25,0,SUM(N38:$V38)*finance_rate) -> 0 | O56: =IF(equipment_lifetime<O$25,0,SUM(O38:$V38)*finance_rate) -> 0 | P56: =IF(equipment_lifetime<P$25,0,SUM(P38:$V38)*finance_rate) -> 0 | Q56: =IF(equipment_lifetime<Q$25,0,SUM(Q38:$V38)*finance_rate) -> 0 | R56: =IF(equipment_lifetime<R$25,0,SUM(R38:$V38)*finance_rate) -> 0 | S56: =IF(equipment_lifetime<S$25,0,SUM(S38:$V38)*finance_rate) -> 0 | T56: =IF(equipment_lifetime<T$25,0,SUM(T38:$V38)*finance_rate) -> 0 | U56: =IF(equipment_lifetime<U$25,0,SUM(U38:$V38)*finance_rate) -> 0 | V56: =IF(equipment_lifetime<V$25,0,SUM(V38:$V38)*finance_rate) -> 0
B57: 9 year old | C57: =IF(equipment_lifetime<C$25,0,SUM(C39:$V39)*finance_rate) -> 0 | D57: =IF(equipment_lifetime<D$25,0,SUM(D39:$V39)*finance_rate) -> 0 | E57: =IF(equipment_lifetime<E$25,0,SUM(E39:$V39)*finance_rate) -> 0 | F57: =IF(equipment_lifetime<F$25,0,SUM(F39:$V39)*finance_rate) -> 0 | G57: =IF(equipment_lifetime<G$25,0,SUM(G39:$V39)*finance_rate) -> 0 | H57: =IF(equipment_lifetime<H$25,0,SUM(H39:$V39)*finance_rate) -> 0 | I57: =IF(equipment_lifetime<I$25,0,SUM(I39:$V39)*finance_rate) -> 0 | J57: =IF(equipment_lifetime<J$25,0,SUM(J39:$V39)*finance_rate) -> 0 | K57: =IF(equipment_lifetime<K$25,0,SUM(K39:$V39)*finance_rate) -> 0 | L57: =IF(equipment_lifetime<L$25,0,SUM(L39:$V39)*finance_rate) -> 0 | M57: =IF(equipment_lifetime<M$25,0,SUM(M39:$V39)*finance_rate) -> 0 | N57: =IF(equipment_lifetime<N$25,0,SUM(N39:$V39)*finance_rate) -> 0 | O57: =IF(equipment_lifetime<O$25,0,SUM(O39:$V39)*finance_rate) -> 0 | P57: =IF(equipment_lifetime<P$25,0,SUM(P39:$V39)*finance_rate) -> 0 | Q57: =IF(equipment_lifetime<Q$25,0,SUM(Q39:$V39)*finance_rate) -> 0 | R57: =IF(equipment_lifetime<R$25,0,SUM(R39:$V39)*finance_rate) -> 0 | S57: =IF(equipment_lifetime<S$25,0,SUM(S39:$V39)*finance_rate) -> 0 | T57: =IF(equipment_lifetime<T$25,0,SUM(T39:$V39)*finance_rate) -> 0 | U57: =IF(equipment_lifetime<U$25,0,SUM(U39:$V39)*finance_rate) -> 0 | V57: =IF(equipment_lifetime<V$25,0,SUM(V39:$V39)*finance_rate) -> 0
B58: 10 year old | C58: =IF(equipment_lifetime<C$25,0,SUM(C40:$V40)*finance_rate) -> 0 | D58: =IF(equipment_lifetime<D$25,0,SUM(D40:$V40)*finance_rate) -> 0 | E58: =IF(equipment_lifetime<E$25,0,SUM(E40:$V40)*finance_rate) -> 0 | F58: =IF(equipment_lifetime<F$25,0,SUM(F40:$V40)*finance_rate) -> 0 | G58: =IF(equipment_lifetime<G$25,0,SUM(G40:$V40)*finance_rate) -> 0 | H58: =IF(equipment_lifetime<H$25,0,SUM(H40:$V40)*finance_rate) -> 0 | I58: =IF(equipment_lifetime<I$25,0,SUM(I40:$V40)*finance_rate) -> 0 | J58: =IF(equipment_lifetime<J$25,0,SUM(J40:$V40)*finance_rate) -> 0 | K58: =IF(equipment_lifetime<K$25,0,SUM(K40:$V40)*finance_rate) -> 0 | L58: =IF(equipment_lifetime<L$25,0,SUM(L40:$V40)*finance_rate) -> 0 | M58: =IF(equipment_lifetime<M$25,0,SUM(M40:$V40)*finance_rate) -> 0 | N58: =IF(equipment_lifetime<N$25,0,SUM(N40:$V40)*finance_rate) -> 0 | O58: =IF(equipment_lifetime<O$25,0,SUM(O40:$V40)*finance_rate) -> 0 | P58: =IF(equipment_lifetime<P$25,0,SUM(P40:$V40)*finance_rate) -> 0 | Q58: =IF(equipment_lifetime<Q$25,0,SUM(Q40:$V40)*finance_rate) -> 0 | R58: =IF(equipment_lifetime<R$25,0,SUM(R40:$V40)*finance_rate) -> 0 | S58: =IF(equipment_lifetime<S$25,0,SUM(S40:$V40)*finance_rate) -> 0 | T58: =IF(equipment_lifetime<T$25,0,SUM(T40:$V40)*finance_rate) -> 0 | U58: =IF(equipment_lifetime<U$25,0,SUM(U40:$V40)*finance_rate) -> 0 | V58: =IF(equipment_lifetime<V$25,0,SUM(V40:$V40)*finance_rate) -> 0
B59: 11 year old | C59: =IF(equipment_lifetime<C$25,0,SUM(C41:$V41)*finance_rate) -> 0 | D59: =IF(equipment_lifetime<D$25,0,SUM(D41:$V41)*finance_rate) -> 0 | E59: =IF(equipment_lifetime<E$25,0,SUM(E41:$V41)*finance_rate) -> 0 | F59: =IF(equipment_lifetime<F$25,0,SUM(F41:$V41)*finance_rate) -> 0 | G59: =IF(equipment_lifetime<G$25,0,SUM(G41:$V41)*finance_rate) -> 0 | H59: =IF(equipment_lifetime<H$25,0,SUM(H41:$V41)*finance_rate) -> 0 | I59: =IF(equipment_lifetime<I$25,0,SUM(I41:$V41)*finance_rate) -> 0 | J59: =IF(equipment_lifetime<J$25,0,SUM(J41:$V41)*finance_rate) -> 0 | K59: =IF(equipment_lifetime<K$25,0,SUM(K41:$V41)*finance_rate) -> 0 | L59: =IF(equipment_lifetime<L$25,0,SUM(L41:$V41)*finance_rate) -> 0 | M59: =IF(equipment_lifetime<M$25,0,SUM(M41:$V41)*finance_rate) -> 0 | N59: =IF(equipment_lifetime<N$25,0,SUM(N41:$V41)*finance_rate) -> 0 | O59: =IF(equipment_lifetime<O$25,0,SUM(O41:$V41)*finance_rate) -> 0 | P59: =IF(equipment_lifetime<P$25,0,SUM(P41:$V41)*finance_rate) -> 0 | Q59: =IF(equipment_lifetime<Q$25,0,SUM(Q41:$V41)*finance_rate) -> 0 | R59: =IF(equipment_lifetime<R$25,0,SUM(R41:$V41)*finance_rate) -> 0 | S59: =IF(equipment_lifetime<S$25,0,SUM(S41:$V41)*finance_rate) -> 0 | T59: =IF(equipment_lifetime<T$25,0,SUM(T41:$V41)*finance_rate) -> 0 | U59: =IF(equipment_lifetime<U$25,0,SUM(U41:$V41)*finance_rate) -> 0 | V59: =IF(equipment_lifetime<V$25,0,SUM(V41:$V41)*finance_rate) -> 0
B60: 12 year old | C60: =IF(equipment_lifetime<C$25,0,SUM(C42:$V42)*finance_rate) -> 0 | D60: =IF(equipment_lifetime<D$25,0,SUM(D42:$V42)*finance_rate) -> 0 | E60: =IF(equipment_lifetime<E$25,0,SUM(E42:$V42)*finance_rate) -> 0 | F60: =IF(equipment_lifetime<F$25,0,SUM(F42:$V42)*finance_rate) -> 0 | G60: =IF(equipment_lifetime<G$25,0,SUM(G42:$V42)*finance_rate) -> 0 | H60: =IF(equipment_lifetime<H$25,0,SUM(H42:$V42)*finance_rate) -> 0 | I60: =IF(equipment_lifetime<I$25,0,SUM(I42:$V42)*finance_rate) -> 0 | J60: =IF(equipment_lifetime<J$25,0,SUM(J42:$V42)*finance_rate) -> 0 | K60: =IF(equipment_lifetime<K$25,0,SUM(K42:$V42)*finance_rate) -> 0 | L60: =IF(equipment_lifetime<L$25,0,SUM(L42:$V42)*finance_rate) -> 0 | M60: =IF(equipment_lifetime<M$25,0,SUM(M42:$V42)*finance_rate) -> 0 | N60: =IF(equipment_lifetime<N$25,0,SUM(N42:$V42)*finance_rate) -> 0 | O60: =IF(equipment_lifetime<O$25,0,SUM(O42:$V42)*finance_rate) -> 0 | P60: =IF(equipment_lifetime<P$25,0,SUM(P42:$V42)*finance_rate) -> 0 | Q60: =IF(equipment_lifetime<Q$25,0,SUM(Q42:$V42)*finance_rate) -> 0 | R60: =IF(equipment_lifetime<R$25,0,SUM(R42:$V42)*finance_rate) -> 0 | S60: =IF(equipment_lifetime<S$25,0,SUM(S42:$V42)*finance_rate) -> 0 | T60: =IF(equipment_lifetime<T$25,0,SUM(T42:$V42)*finance_rate) -> 0 | U60: =IF(equipment_lifetime<U$25,0,SUM(U42:$V42)*finance_rate) -> 0 | V60: =IF(equipment_lifetime<V$25,0,SUM(V42:$V42)*finance_rate) -> 0
B61: 13 year old | C61: =IF(equipment_lifetime<C$25,0,SUM(C43:$V43)*finance_rate) -> 0 | D61: =IF(equipment_lifetime<D$25,0,SUM(D43:$V43)*finance_rate) -> 0 | E61: =IF(equipment_lifetime<E$25,0,SUM(E43:$V43)*finance_rate) -> 0 | F61: =IF(equipment_lifetime<F$25,0,SUM(F43:$V43)*finance_rate) -> 0 | G61: =IF(equipment_lifetime<G$25,0,SUM(G43:$V43)*finance_rate) -> 0 | H61: =IF(equipment_lifetime<H$25,0,SUM(H43:$V43)*finance_rate) -> 0 | I61: =IF(equipment_lifetime<I$25,0,SUM(I43:$V43)*finance_rate) -> 0 | J61: =IF(equipment_lifetime<J$25,0,SUM(J43:$V43)*finance_rate) -> 0 | K61: =IF(equipment_lifetime<K$25,0,SUM(K43:$V43)*finance_rate) -> 0 | L61: =IF(equipment_lifetime<L$25,0,SUM(L43:$V43)*finance_rate) -> 0 | M61: =IF(equipment_lifetime<M$25,0,SUM(M43:$V43)*finance_rate) -> 0 | N61: =IF(equipment_lifetime<N$25,0,SUM(N43:$V43)*finance_rate) -> 0 | O61: =IF(equipment_lifetime<O$25,0,SUM(O43:$V43)*finance_rate) -> 0 | P61: =IF(equipment_lifetime<P$25,0,SUM(P43:$V43)*finance_rate) -> 0 | Q61: =IF(equipment_lifetime<Q$25,0,SUM(Q43:$V43)*finance_rate) -> 0 | R61: =IF(equipment_lifetime<R$25,0,SUM(R43:$V43)*finance_rate) -> 0 | S61: =IF(equipment_lifetime<S$25,0,SUM(S43:$V43)*finance_rate) -> 0 | T61: =IF(equipment_lifetime<T$25,0,SUM(T43:$V43)*finance_rate) -> 0 | U61: =IF(equipment_lifetime<U$25,0,SUM(U43:$V43)*finance_rate) -> 0 | V61: =IF(equipment_lifetime<V$25,0,SUM(V43:$V43)*finance_rate) -> 0
B62: 14 year old | C62: =IF(equipment_lifetime<C$25,0,SUM(C44:$V44)*finance_rate) -> 0 | D62: =IF(equipment_lifetime<D$25,0,SUM(D44:$V44)*finance_rate) -> 0 | E62: =IF(equipment_lifetime<E$25,0,SUM(E44:$V44)*finance_rate) -> 0 | F62: =IF(equipment_lifetime<F$25,0,SUM(F44:$V44)*finance_rate) -> 0 | G62: =IF(equipment_lifetime<G$25,0,SUM(G44:$V44)*finance_rate) -> 0 | H62: =IF(equipment_lifetime<H$25,0,SUM(H44:$V44)*finance_rate) -> 0 | I62: =IF(equipment_lifetime<I$25,0,SUM(I44:$V44)*finance_rate) -> 0 | J62: =IF(equipment_lifetime<J$25,0,SUM(J44:$V44)*finance_rate) -> 0 | K62: =IF(equipment_lifetime<K$25,0,SUM(K44:$V44)*finance_rate) -> 0 | L62: =IF(equipment_lifetime<L$25,0,SUM(L44:$V44)*finance_rate) -> 0 | M62: =IF(equipment_lifetime<M$25,0,SUM(M44:$V44)*finance_rate) -> 0 | N62: =IF(equipment_lifetime<N$25,0,SUM(N44:$V44)*finance_rate) -> 0 | O62: =IF(equipment_lifetime<O$25,0,SUM(O44:$V44)*finance_rate) -> 0 | P62: =IF(equipment_lifetime<P$25,0,SUM(P44:$V44)*finance_rate) -> 0 | Q62: =IF(equipment_lifetime<Q$25,0,SUM(Q44:$V44)*finance_rate) -> 0 | R62: =IF(equipment_lifetime<R$25,0,SUM(R44:$V44)*finance_rate) -> 0 | S62: =IF(equipment_lifetime<S$25,0,SUM(S44:$V44)*finance_rate) -> 0 | T62: =IF(equipment_lifetime<T$25,0,SUM(T44:$V44)*finance_rate) -> 0 | U62: =IF(equipment_lifetime<U$25,0,SUM(U44:$V44)*finance_rate) -> 0 | V62: =IF(equipment_lifetime<V$25,0,SUM(V44:$V44)*finance_rate) -> 0
B63: 15 year old | C63: =IF(equipment_lifetime<C$25,0,SUM(C45:$V45)*finance_rate) -> 0 | D63: =IF(equipment_lifetime<D$25,0,SUM(D45:$V45)*finance_rate) -> 0 | E63: =IF(equipment_lifetime<E$25,0,SUM(E45:$V45)*finance_rate) -> 0 | F63: =IF(equipment_lifetime<F$25,0,SUM(F45:$V45)*finance_rate) -> 0 | G63: =IF(equipment_lifetime<G$25,0,SUM(G45:$V45)*finance_rate) -> 0 | H63: =IF(equipment_lifetime<H$25,0,SUM(H45:$V45)*finance_rate) -> 0 | I63: =IF(equipment_lifetime<I$25,0,SUM(I45:$V45)*finance_rate) -> 0 | J63: =IF(equipment_lifetime<J$25,0,SUM(J45:$V45)*finance_rate) -> 0 | K63: =IF(equipment_lifetime<K$25,0,SUM(K45:$V45)*finance_rate) -> 0 | L63: =IF(equipment_lifetime<L$25,0,SUM(L45:$V45)*finance_rate) -> 0 | M63: =IF(equipment_lifetime<M$25,0,SUM(M45:$V45)*finance_rate) -> 0 | N63: =IF(equipment_lifetime<N$25,0,SUM(N45:$V45)*finance_rate) -> 0 | O63: =IF(equipment_lifetime<O$25,0,SUM(O45:$V45)*finance_rate) -> 0 | P63: =IF(equipment_lifetime<P$25,0,SUM(P45:$V45)*finance_rate) -> 0 | Q63: =IF(equipment_lifetime<Q$25,0,SUM(Q45:$V45)*finance_rate) -> 0 | R63: =IF(equipment_lifetime<R$25,0,SUM(R45:$V45)*finance_rate) -> 0 | S63: =IF(equipment_lifetime<S$25,0,SUM(S45:$V45)*finance_rate) -> 0 | T63: =IF(equipment_lifetime<T$25,0,SUM(T45:$V45)*finance_rate) -> 0 | U63: =IF(equipment_lifetime<U$25,0,SUM(U45:$V45)*finance_rate) -> 0 | V63: =IF(equipment_lifetime<V$25,0,SUM(V45:$V45)*finance_rate) -> 0
B65: Depreciaton + financing cost
B66: 0 year old | C66: =C30+C48 -> 3026 | D66: 2912 | E66: 2798 | F66: 2684 | G66: 2570 | H66: 2456 | I66: 2342 | J66: 2228 | K66: 2114 | L66: 0 | M66: 0 | N66: 0 | O66: 0 | P66: 0 | Q66: 0 | R66: 0 | S66: 0 | T66: 0 | U66: 0 | V66: 0
B67: 1 year old | C67: 2912 | D67: 2798 | E67: 2684 | F67: 2570 | G67: 2456 | H67: 2342 | I67: 2228 | J67: 2114 | K67: 0 | L67: 0 | M67: 0 | N67: 0 | O67: 0 | P67: 0 | Q67: 0 | R67: 0 | S67: 0 | T67: 0 | U67: 0 | V67: 0
B68: 2 year old | C68: 2798 | D68: 2684 | E68: 2570 | F68: 2456 | G68: 2342 | H68: 2228 | I68: 2114 | J68: 0 | K68: 0 | L68: 0 | M68: 0 | N68: 0 | O68: 0 | P68: 0 | Q68: 0 | R68: 0 | S68: 0 | T68: 0 | U68: 0 | V68: 0
B69: 3 year old | C69: 2684 | D69: 2570 | E69: 2456 | F69: 2342 | G69: 2228 | H69: 2114 | I69: 0 | J69: 0 | K69: 0 | L69: 0 | M69: 0 | N69: 0 | O69: 0 | P69: 0 | Q69: 0 | R69: 0 | S69: 0 | T69: 0 | U69: 0 | V69: 0
B70: 4 year old | C70: 2570 | D70: 2456 | E70: 2342 | F70: 2228 | G70: 2114 | H70: 0 | I70: 0 | J70: 0 | K70: 0 | L70: 0 | M70: 0 | N70: 0 | O70: 0 | P70: 0 | Q70: 0 | R70: 0 | S70: 0 | T70: 0 | U70: 0 | V70: 0
B71: 5 year old | C71: 2456 | D71: 2342 | E71: 2228 | F71: 2114 | G71: 0 | H71: 0 | I71: 0 | J71: 0 | K71: 0 | L71: 0 | M71: 0 | N71: 0 | O71: 0 | P71: 0 | Q71: 0 | R71: 0 | S71: 0 | T71: 0 | U71: 0 | V71: 0
B72: 6 year old | C72: 2342 | D72: 2228 | E72: 2114 | F72: 0 | G72: 0 | H72: 0 | I72: 0 | J72: 0 | K72: 0 | L72: 0 | M72: 0 | N72: 0 | O72: 0 | P72: 0 | Q72: 0 | R72: 0 | S72: 0 | T72: 0 | U72: 0 | V72: 0
B73: 7 year old | C73: 2228 | D73: 2114 | E73: 0 | F73: 0 | G73: 0 | H73: 0 | I73: 0 | J73: 0 | K73: 0 | L73: 0 | M73: 0 | N73: 0 | O73: 0 | P73: 0 | Q73: 0 | R73: 0 | S73: 0 | T73: 0 | U73: 0 | V73: 0
B74: 8 year old | C74: 2114 | D74: 0 | E74: 0 | F74: 0 | G74: 0 | H74: 0 | I74: 0 | J74: 0 | K74: 0 | L74: 0 | M74: 0 | N74: 0 | O74: 0 | P74: 0 | Q74: 0 | R74: 0 | S74: 0 | T74: 0 | U74: 0 | V74: 0
B75: 9 year old | C75: 0 | D75: 0 | E75: 0 | F75: 0 | G75: 0 | H75: 0 | I75: 0 | J75: 0 | K75: 0 | L75: 0 | M75: 0 | N75: 0 | O75: 0 | P75: 0 | Q75: 0 | R75: 0 | S75: 0 | T75: 0 | U75: 0 | V75: 0
B76: 10 year old | C76: 0 | D76: 0 | E76: 0 | F76: 0 | G76: 0 | H76: 0 | I76: 0 | J76: 0 | K76: 0 | L76: 0 | M76: 0 | N76: 0 | O76: 0 | P76: 0 | Q76: 0 | R76: 0 | S76: 0 | T76: 0 | U76: 0 | V76: 0
B77: 11 year old | C77: 0 | D77: 0 | E77: 0 | F77: 0 | G77: 0 | H77: 0 | I77: 0 | J77: 0 | K77: 0 | L77: 0 | M77: 0 | N77: 0 | O77: 0 | P77: 0 | Q77: 0 | R77: 0 | S77: 0 | T77: 0 | U77: 0 | V77: 0
B78: 12 year old | C78: 0 | D78: 0 | E78: 0 | F78: 0 | G78: 0 | H78: 0 | I78: 0 | J78: 0 | K78: 0 | L78: 0 | M78: 0 | N78: 0 | O78: 0 | P78: 0 | Q78: 0 | R78: =R42+R60 -> 0 | S78: 0 | T78: 0 | U78: 0 | V78: 0
B79: 13 year old | C79: =C43+C61 -> 0 | D79: 0 | E79: 0 | F79: 0 | G79: 0 | H79: 0 | I79: 0 | J79: 0 | K79: 0 | L79: 0 | M79: 0 | N79: 0 | O79: 0 | P79: 0 | Q79: 0 | R79: 0 | S79: 0 | T79: 0 | U79: 0 | V79: 0
B80: 14 year old | C80: 0 | D80: 0 | E80: 0 | F80: 0 | G80: 0 | H80: 0 | I80: 0 | J80: 0 | K80: 0 | L80: 0 | M80: 0 | N80: 0 | O80: 0 | P80: 0 | Q80: 0 | R80: 0 | S80: 0 | T80: 0 | U80: 0 | V80: 0
B81: 15 year old | C81: 0 | D81: 0 | E81: 0 | F81: 0 | G81: 0 | H81: 0 | I81: 0 | J81: 0 | K81: 0 | L81: 0 | M81: 0 | N81: 0 | O81: 0 | P81: 0 | Q81: 0 | R81: 0 | S81: 0 | T81: 0 | U81: 0 | V81: 0
B83: Discounted cost | W83: Years utilisation >> | X83: =Revo_utilisation_years -> 0 | Y83: 1 | Z83: 2 | AA83: 3 | AB83: 4 | AC83: 5
B84: 0 year old | C84: =C66*INDEX($C$16:$V$16, 1, MATCH(C$25,$C$15:$V$15,0)) -> 2923.671498 | D84: 2718.383159 | E84: 2523.63569 | F84: 2338.950939 | G84: 2163.871039 | H84: 1997.957582 | I84: 1840.79083 | J84: 1691.968947 | K84: 1551.107275 | L84: 0 | M84: 0 | N84: 0 | O84: 0 | P84: 0 | Q84: 0 | R84: 0 | S84: 0 | T84: 0 | U84: 0 | V84: 0 | X84: =SUM(C84:$V84) -> 19750.33696 | Y84: =SUM(D84:$V84) -> 16826.66546 | Z84: =SUM(E84:$V84) -> 14108.2823 | AA84: =SUM(F84:$V84) -> 11584.64661 | AB84: =SUM(G84:$V84) -> 9245.695674 | AC84: =SUM(H84:$V84) -> 7081.824635
B85: 1 year old | C85: =C67*INDEX($C$16:$V$16, 1, MATCH(C$25,$C$15:$V$15,0)) -> 2813.52657 | D85: 2611.96294 | E85: 2420.814222 | F85: 2239.606525 | G85: 2067.886098 | H85: 1905.218509 | I85: 1751.18786 | J85: 1605.39603 | K85: 0 | L85: 0 | M85: 0 | N85: 0 | O85: 0 | P85: 0 | Q85: 0 | R85: 0 | S85: 0 | T85: 0 | U85: 0 | V85: 0 | X85: =SUM(C85:$V85) -> 17415.59875 | Y85: =SUM(D85:$V85) -> 14602.07218 | Z85: =SUM(E85:$V85) -> 11990.10924 | AA85: =SUM(F85:$V85) -> 9569.295022 | AB85: =SUM(G85:$V85) -> 7329.688497 | AC85: =SUM(H85:$V85) -> 5261.802399
B86: 2 year old | C86: =C68*INDEX($C$16:$V$16, 1, MATCH(C$25,$C$15:$V$15,0)) -> 2703.381643 | D86: 2505.54272 | E86: 2317.992754 | F86: 2140.262111 | G86: 1971.901157 | H86: 1812.479436 | I86: 1661.584891 | J86: 0 | K86: 0 | L86: 0 | M86: 0 | N86: 0 | O86: 0 | P86: 0 | Q86: 0 | R86: 0 | S86: 0 | T86: 0 | U86: 0 | V86: 0 | X86: =SUM(C86:$V86) -> 15113.14471 | Y86: =SUM(D86:$V86) -> 12409.76307 | Z86: =SUM(E86:$V86) -> 9904.220348 | AA86: =SUM(F86:$V86) -> 7586.227594 | AB86: =SUM(G86:$V86) -> 5445.965483 | AC86: =SUM(H86:$V86) -> 3474.064326
B87: 3 year old | C87: =C69*INDEX($C$16:$V$16, 1, MATCH(C$25,$C$15:$V$15,0)) -> 2593.236715 | D87: 2399.1225 | E87: 2215.171285 | F87: 2040.917697 | G87: 1875.916216 | H87: 1719.740362 | I87: 0 | J87: 0 | K87: 0 | L87: 0 | M87: 0 | N87: 0 | O87: 0 | P87: 0 | Q87: 0 | R87: 0 | S87: 0 | T87: 0 | U87: 0 | V87: 0 | X87: =SUM(C87:$V87) -> 12844.10478 | Y87: =SUM(D87:$V87) -> 10250.86806 | Z87: =SUM(E87:$V87) -> 7851.74556 | AA87: =SUM(F87:$V87) -> 5636.574275 | AB87: =SUM(G87:$V87) -> 3595.656578 | AC87: =SUM(H87:$V87) -> 1719.740362
B88: 4 year old | C88: =C70*INDEX($C$16:$V$16, 1, MATCH(C$25,$C$15:$V$15,0)) -> 2483.091787 | D88: 2292.70228 | E88: 2112.349817 | F88: 1941.573283 | G88: 1779.931275 | H88: 0 | I88: 0 | J88: 0 | K88: 0 | L88: 0 | M88: 0 | N88: 0 | O88: 0 | P88: 0 | Q88: 0 | R88: 0 | S88: 0 | T88: 0 | U88: 0 | V88: 0 | X88: =SUM(C88:$V88) -> 10609.64844 | Y88: =SUM(D88:$V88) -> 8126.556655 | Z88: =SUM(E88:$V88) -> 5833.854375 | AA88: =SUM(F88:$V88) -> 3721.504558 | AB88: =SUM(G88:$V88) -> 1779.931275 | AC88: =SUM(H88:$V88) -> 0
B89: 5 year old | C89: =C71*INDEX($C$16:$V$16, 1, MATCH(C$25,$C$15:$V$15,0)) -> 2372.94686 | D89: 2186.28206 | E89: 2009.528348 | F89: 1842.228869 | G89: 0 | H89: 0 | I89: 0 | J89: 0 | K89: 0 | L89: 0 | M89: 0 | N89: 0 | O89: 0 | P89: 0 | Q89: 0 | R89: 0 | S89: 0 | T89: 0 | U89: 0 | V89: 0 | X89: =SUM(C89:$V89) -> 8410.986138 | Y89: =SUM(D89:$V89) -> 6038.039278 | Z89: =SUM(E89:$V89) -> 3851.757218 | AA89: =SUM(F89:$V89) -> 1842.228869 | AB89: =SUM(G89:$V89) -> 0 | AC89: =SUM(H89:$V89) -> 0
B90: 6 year old | C90: =C72*INDEX($C$16:$V$16, 1, MATCH(C$25,$C$15:$V$15,0)) -> 2262.801932 | D90: 2079.86184 | E90: 1906.70688 | F90: 0 | G90: 0 | H90: 0 | I90: 0 | J90: 0 | K90: 0 | L90: 0 | M90: 0 | N90: 0 | O90: 0 | P90: 0 | Q90: 0 | R90: 0 | S90: 0 | T90: 0 | U90: 0 | V90: 0 | X90: =SUM(C90:$V90) -> 6249.370653 | Y90: =SUM(D90:$V90) -> 3986.56872 | Z90: =SUM(E90:$V90) -> 1906.70688 | AA90: =SUM(F90:$V90) -> 0 | AB90: =SUM(G90:$V90) -> 0 | AC90: =SUM(H90:$V90) -> 0
B91: 7 year old | C91: =C73*INDEX($C$16:$V$16, 1, MATCH(C$25,$C$15:$V$15,0)) -> 2152.657005 | D91: 1973.441621 | E91: 0 | F91: 0 | G91: 0 | H91: 0 | I91: 0 | J91: 0 | K91: 0 | L91: 0 | M91: 0 | N91: 0 | O91: 0 | P91: 0 | Q91: 0 | R91: 0 | S91: 0 | T91: 0 | U91: 0 | V91: 0 | X91: =SUM(C91:$V91) -> 4126.098625 | Y91: =SUM(D91:$V91) -> 1973.441621 | Z91: =SUM(E91:$V91) -> 0 | AA91: =SUM(F91:$V91) -> 0 | AB91: =SUM(G91:$V91) -> 0 | AC91: =SUM(H91:$V91) -> 0
B92: 8 year old | C92: =C74*INDEX($C$16:$V$16, 1, MATCH(C$25,$C$15:$V$15,0)) -> 2042.512077 | D92: 0 | E92: 0 | F92: 0 | G92: 0 | H92: 0 | I92: 0 | J92: 0 | K92: 0 | L92: 0 | M92: 0 | N92: 0 | O92: 0 | P92: 0 | Q92: 0 | R92: 0 | S92: 0 | T92: 0 | U92: 0 | V92: 0 | X92: =SUM(C92:$V92) -> 2042.512077 | Y92: =SUM(D92:$V92) -> 0 | Z92: =SUM(E92:$V92) -> 0 | AA92: =SUM(F92:$V92) -> 0 | AB92: =SUM(G92:$V92) -> 0 | AC92: =SUM(H92:$V92) -> 0
B93: 9 year old | C93: =C75*INDEX($C$16:$V$16, 1, MATCH(C$25,$C$15:$V$15,0)) -> 0 | D93: 0 | E93: 0 | F93: 0 | G93: 0 | H93: 0 | I93: 0 | J93: 0 | K93: 0 | L93: 0 | M93: 0 | N93: 0 | O93: 0 | P93: 0 | Q93: 0 | R93: 0 | S93: 0 | T93: 0 | U93: 0 | V93: 0 | X93: =SUM(C93:$V93) -> 0 | Y93: =SUM(D93:$V93) -> 0 | Z93: =SUM(E93:$V93) -> 0 | AA93: =SUM(F93:$V93) -> 0 | AB93: =SUM(G93:$V93) -> 0 | AC93: =SUM(H93:$V93) -> 0
B94: 10 year old | C94: =C76*INDEX($C$16:$V$16, 1, MATCH(C$25,$C$15:$V$15,0)) -> 0 | D94: 0 | E94: 0 | F94: 0 | G94: 0 | H94: 0 | I94: 0 | J94: 0 | K94: 0 | L94: 0 | M94: 0 | N94: 0 | O94: 0 | P94: 0 | Q94: 0 | R94: 0 | S94: 0 | T94: 0 | U94: 0 | V94: 0 | X94: =SUM(C94:$V94) -> 0 | Y94: =SUM(D94:$V94) -> 0 | Z94: =SUM(E94:$V94) -> 0 | AA94: =SUM(F94:$V94) -> 0 | AB94: =SUM(G94:$V94) -> 0 | AC94: =SUM(H94:$V94) -> 0
B95: 11 year old | C95: =C77*INDEX($C$16:$V$16, 1, MATCH(C$25,$C$15:$V$15,0)) -> 0 | D95: 0 | E95: 0 | F95: 0 | G95: 0 | H95: 0 | I95: 0 | J95: 0 | K95: 0 | L95: 0 | M95: 0 | N95: 0 | O95: 0 | P95: 0 | Q95: 0 | R95: 0 | S95: 0 | T95: 0 | U95: 0 | V95: 0 | X95: =SUM(C95:$V95) -> 0 | Y95: =SUM(D95:$V95) -> 0 | Z95: =SUM(E95:$V95) -> 0 | AA95: =SUM(F95:$V95) -> 0 | AB95: =SUM(G95:$V95) -> 0 | AC95: =SUM(H95:$V95) -> 0
B96: 12 year old | C96: =C78*INDEX($C$16:$V$16, 1, MATCH(C$25,$C$15:$V$15,0)) -> 0 | D96: 0 | E96: 0 | F96: 0 | G96: 0 | H96: 0 | I96: 0 | J96: 0 | K96: 0 | L96: 0 | M96: 0 | N96: 0 | O96: 0 | P96: 0 | Q96: 0 | R96: 0 | S96: 0 | T96: 0 | U96: 0 | V96: 0 | X96: =SUM(C96:$V96) -> 0 | Y96: =SUM(D96:$V96) -> 0 | Z96: =SUM(E96:$V96) -> 0 | AA96: =SUM(F96:$V96) -> 0 | AB96: =SUM(G96:$V96) -> 0 | AC96: =SUM(H96:$V96) -> 0
B97: 13 year old | C97: =C79*INDEX($C$16:$V$16, 1, MATCH(C$25,$C$15:$V$15,0)) -> 0 | D97: 0 | E97: 0 | F97: 0 | G97: 0 | H97: 0 | I97: 0 | J97: 0 | K97: 0 | L97: 0 | M97: 0 | N97: 0 | O97: 0 | P97: 0 | Q97: 0 | R97: 0 | S97: 0 | T97: 0 | U97: 0 | V97: 0 | X97: =SUM(C97:$V97) -> 0 | Y97: =SUM(D97:$V97) -> 0 | Z97: =SUM(E97:$V97) -> 0 | AA97: =SUM(F97:$V97) -> 0 | AB97: =SUM(G97:$V97) -> 0 | AC97: =SUM(H97:$V97) -> 0
B98: 14 year old | C98: =C80*INDEX($C$16:$V$16, 1, MATCH(C$25,$C$15:$V$15,0)) -> 0 | D98: 0 | E98: 0 | F98: 0 | G98: 0 | H98: 0 | I98: 0 | J98: 0 | K98: 0 | L98: 0 | M98: 0 | N98: 0 | O98: 0 | P98: 0 | Q98: 0 | R98: 0 | S98: 0 | T98: 0 | U98: 0 | V98: 0 | X98: =SUM(C98:$V98) -> 0 | Y98: =SUM(D98:$V98) -> 0 | Z98: =SUM(E98:$V98) -> 0 | AA98: =SUM(F98:$V98) -> 0 | AB98: =SUM(G98:$V98) -> 0 | AC98: =SUM(H98:$V98) -> 0
B99: 15 year old | C99: =C81*INDEX($C$16:$V$16, 1, MATCH(C$25,$C$15:$V$15,0)) -> 0 | D99: 0 | E99: 0 | F99: 0 | G99: 0 | H99: 0 | I99: 0 | J99: 0 | K99: 0 | L99: 0 | M99: 0 | N99: 0 | O99: 0 | P99: 0 | Q99: 0 | R99: 0 | S99: 0 | T99: 0 | U99: 0 | V99: 0 | X99: =SUM(C99:$V99) -> 0 | Y99: =SUM(D99:$V99) -> 0 | Z99: =SUM(E99:$V99) -> 0 | AA99: =SUM(F99:$V99) -> 0 | AB99: =SUM(G99:$V99) -> 0 | AC99: =SUM(H99:$V99) -> 0
X101: Average cost per link | Y101: Average cost per link | Z101: Average cost per link | AA101: Average cost per link | AB101: Average cost per link | AC101: Average cost per link
B102: Final outputs in Columns X - AC ----> | X102: =SUM(X84:X99/equipment_lifetime) -> 10729.08901 | Y102: =SUM(Y84:Y99/equipment_lifetime) -> 8245.997228 | Z102: =SUM(Z84:Z99/equipment_lifetime) -> 6160.74177 | AA102: =SUM(AA84:AA99/equipment_lifetime) -> 4437.83077 | AB102: =SUM(AB84:AB99/equipment_lifetime) -> 3044.104167 | AC102: =SUM(AC84:AC99/equipment_lifetime) -> 1948.603525 | AD102: UEL9_revo_options
B104: Cost additional hop | W104: Total 20 yr NPC
A105: =INDEX($C107:$V107,,MATCH((equipment_lifetime+1),$C106:$V106,0))=C107 -> TRUE
C106: 1 | D106: 2 | E106: 3 | F106: 4 | G106: 5 | H106: 6 | I106: 7 | J106: 8 | K106: 9 | L106: 10 | M106: 11 | N106: 12 | O106: 13 | P106: 14 | Q106: 15 | R106: 16 | S106: 17 | T106: 18 | U106: 19 | V106: 20
A107: Rural | B107: Annualised equipment cost | C107: =C66 -> 3026 | D107: =D66 -> 2912 | E107: 2798 | F107: 2684 | G107: 2570 | H107: 2456 | I107: 2342 | J107: 2228 | K107: 2114 | L107: =C107 -> 3026 | M107: =D107 -> 2912 | N107: 2798 | O107: 2684 | P107: 2570 | Q107: 2456 | R107: 2342 | S107: 2228 | T107: 2114 | U107: =C107 -> 3026 | V107: =D107 -> 2912 | W107: =SUM(C107:V107) -> 52198
B108: Annualised site cost | C108: =Cost_SiteRural!C29 -> 13237.82995 | D108: =Cost_SiteRural!D29 -> 12885.23355 | E108: =Cost_SiteRural!E29 -> 12532.63714 | F108: =Cost_SiteRural!F29 -> 12180.04074 | G108: =Cost_SiteRural!G29 -> 11827.44433 | H108: =Cost_SiteRural!H29 -> 11474.84793 | I108: =Cost_SiteRural!I29 -> 11122.25152 | J108: =Cost_SiteRural!J29 -> 10769.65512 | K108: =Cost_SiteRural!K29 -> 10417.05871 | L108: =Cost_SiteRural!L29 -> 10064.46231 | M108: =Cost_SiteRural!M29 -> 9711.865901 | N108: =Cost_SiteRural!N29 -> 9359.269496 | O108: =Cost_SiteRural!O29 -> 9006.673091 | P108: =Cost_SiteRural!P29 -> 8654.076685 | Q108: =Cost_SiteRural!Q29 -> 8301.48028 | R108: =Cost_SiteRural!R29 -> 7948.883875 | S108: =Cost_SiteRural!S29 -> 7596.287469 | T108: =Cost_SiteRural!T29 -> 7243.691064 | U108: =Cost_SiteRural!U29 -> 6891.094659 | V108: =Cost_SiteRural!V29 -> 6538.498253 | W108: =SUM(C108:V108) -> 197763.2821
B109: Opex | C109: ='Cost calculations'!$G$24 -> 4579.483433 | D109: ='Cost calculations'!$G$24 -> 4579.483433 | E109: ='Cost calculations'!$G$24 -> 4579.483433 | F109: ='Cost calculations'!$G$24 -> 4579.483433 | G109: ='Cost calculations'!$G$24 -> 4579.483433 | H109: ='Cost calculations'!$G$24 -> 4579.483433 | I109: ='Cost calculations'!$G$24 -> 4579.483433 | J109: ='Cost calculations'!$G$24 -> 4579.483433 | K109: ='Cost calculations'!$G$24 -> 4579.483433 | L109: ='Cost calculations'!$G$24 -> 4579.483433 | M109: ='Cost calculations'!$G$24 -> 4579.483433 | N109: ='Cost calculations'!$G$24 -> 4579.483433 | O109: ='Cost calculations'!$G$24 -> 4579.483433 | P109: ='Cost calculations'!$G$24 -> 4579.483433 | Q109: ='Cost calculations'!$G$24 -> 4579.483433 | R109: ='Cost calculations'!$G$24 -> 4579.483433 | S109: ='Cost calculations'!$G$24 -> 4579.483433 | T109: ='Cost calculations'!$G$24 -> 4579.483433 | U109: ='Cost calculations'!$G$24 -> 4579.483433 | V109: ='Cost calculations'!$G$24 -> 4579.483433 | W109: =SUM(C109:V109) -> 91589.66866
B110: Link deployment | C110: =IF(C$106>equipment_lifetime,(-C107/equipment_capital_ins*$C$10),0) -> 0 | D110: 0 | E110: 0 | F110: 0 | G110: 0 | H110: 0 | I110: 0 | J110: 0 | K110: 0 | L110: -168.1111111 | M110: -161.7777778 | N110: -155.4444444 | O110: -149.1111111 | P110: -142.7777778 | Q110: -136.4444444 | R110: -130.1111111 | S110: -123.7777778 | T110: -117.4444444 | U110: -168.1111111 | V110: -161.7777778 | W110: =SUM(C110:V110) -> -1614.888889
B111: Total | C111: =SUM(C107:C110) -> 20843.31339 | D111: =SUM(D107:D110) -> 20376.71698 | E111: 19910.12058 | F111: 19443.52417 | G111: 18976.92777 | H111: 18510.33136 | I111: 18043.73496 | J111: 17577.13855 | K111: 17110.54215 | L111: 17501.83463 | M111: 17041.57156 | N111: 16581.30848 | O111: 16121.04541 | P111: 15660.78234 | Q111: 15200.51927 | R111: 14740.2562 | S111: 14279.99312 | T111: 13819.73005 | U111: 14328.46698 | V111: 13868.20391 | W111: =SUM(C111:V111) -> 339936.0619
B112: Net present value | C112: =C111*INDEX($C$16:$V$16, 1, MATCH(C15,$C$15:$V$15,0)) -> 20138.46704 | D112: 19021.88334 | E112: 17957.78802 | F112: 16943.90802 | G112: 15978.06397 | H112: 15058.16649 | I112: 14182.21257 | J112: 13348.28214 | K112: 12554.53472 | L112: 12407.37984 | M112: 11672.55139 | N112: 10973.23302 | O112: 10307.86339 | P112: 9674.946152 | Q112: 9073.04735 | R112: 8500.792889 | S112: 7956.866139 | T112: 7440.005619 | U112: 7453.033635 | V112: 6969.686163
V114: NPC rural hop | W114: =SUM(C112:V112) -> 247612.7119
A115: =INDEX($C117:$V117,,MATCH((equipment_lifetime+1),$C106:$V106,0))=C117 -> TRUE
A117: Urban | B117: Annualised equipment cost | C117: =C66 -> 3026 | D117: =D66 -> 2912 | E117: 2798 | F117: 2684 | G117: 2570 | H117: 2456 | I117: 2342 | J117: 2228 | K117: 2114 | L117: =C117 -> 3026 | M117: =D117 -> 2912 | N117: 2798 | O117: 2684 | P117: 2570 | Q117: 2456 | R117: 2342 | S117: 2228 | T117: 2114 | U117: =C117 -> 3026 | V117: =D117 -> 2912 | W117: =SUM(C117:V117) -> 52198
B118: Annualised site cost | C118: =Cost_SiteUrban!C30 -> 6618.914977 | D118: =Cost_SiteUrban!D30 -> 6442.616775 | E118: =Cost_SiteUrban!E30 -> 6266.318572 | F118: =Cost_SiteUrban!F30 -> 6090.020369 | G118: =Cost_SiteUrban!G30 -> 5913.722167 | H118: =Cost_SiteUrban!H30 -> 5737.423964 | I118: =Cost_SiteUrban!I30 -> 5561.125761 | J118: =Cost_SiteUrban!J30 -> 5384.827559 | K118: =Cost_SiteUrban!K30 -> 5208.529356 | L118: =Cost_SiteUrban!L30 -> 5032.231153 | M118: =Cost_SiteUrban!M30 -> 4855.932951 | N118: =Cost_SiteUrban!N30 -> 4679.634748 | O118: =Cost_SiteUrban!O30 -> 4503.336545 | P118: =Cost_SiteUrban!P30 -> 4327.038343 | Q118: =Cost_SiteUrban!Q30 -> 4150.74014 | R118: =Cost_SiteUrban!R30 -> 3974.441937 | S118: =Cost_SiteUrban!S30 -> 3798.143735 | T118: =Cost_SiteUrban!T30 -> 3621.845532 | U118: =Cost_SiteUrban!U30 -> 3445.547329 | V118: =Cost_SiteUrban!V30 -> 3269.249127 | W118: 98881.64104
B119: Ongoing cost | C119: ='Cost calculations'!$G$25 -> 7765.385281 | D119: ='Cost calculations'!$G$25 -> 7765.385281 | E119: ='Cost calculations'!$G$25 -> 7765.385281 | F119: ='Cost calculations'!$G$25 -> 7765.385281 | G119: ='Cost calculations'!$G$25 -> 7765.385281 | H119: ='Cost calculations'!$G$25 -> 7765.385281 | I119: ='Cost calculations'!$G$25 -> 7765.385281 | J119: ='Cost calculations'!$G$25 -> 7765.385281 | K119: ='Cost calculations'!$G$25 -> 7765.385281 | L119: ='Cost calculations'!$G$25 -> 7765.385281 | M119: ='Cost calculations'!$G$25 -> 7765.385281 | N119: ='Cost calculations'!$G$25 -> 7765.385281 | O119: ='Cost calculations'!$G$25 -> 7765.385281 | P119: ='Cost calculations'!$G$25 -> 7765.385281 | Q119: ='Cost calculations'!$G$25 -> 7765.385281 | R119: ='Cost calculations'!$G$25 -> 7765.385281 | S119: ='Cost calculations'!$G$25 -> 7765.385281 | T119: ='Cost calculations'!$G$25 -> 7765.385281 | U119: ='Cost calculations'!$G$25 -> 7765.385281 | V119: ='Cost calculations'!$G$25 -> 7765.385281 | W119: 155307.7056
B120: Link deployment | C120: =IF(C$106>equipment_lifetime,(-C117/equipment_capital_ins*$C$10),0) -> 0 | D120: 0 | E120: 0 | F120: 0 | G120: 0 | H120: 0 | I120: 0 | J120: 0 | K120: 0 | L120: -168.1111111 | M120: -161.7777778 | N120: -155.4444444 | O120: -149.1111111 | P120: -142.7777778 | Q120: -136.4444444 | R120: -130.1111111 | S120: -123.7777778 | T120: -117.4444444 | U120: -168.1111111 | V120: -161.7777778 | W120: =SUM(C120:V120) -> -1614.888889
B121: Total | C121: =SUM(C117:C120) -> 17410.30026 | D121: =SUM(D117:D120) -> 17120.00206 | E121: 16829.70385 | F121: 16539.40565 | G121: 16249.10745 | H121: 15958.80925 | I121: 15668.51104 | J121: 15378.21284 | K121: 15087.91464 | L121: 15655.50532 | M121: 15371.54045 | N121: 15087.57558 | O121: 14803.61072 | P121: 14519.64585 | Q121: 14235.68098 | R121: 13951.71611 | S121: 13667.75124 | T121: 13383.78637 | U121: 14068.8215 | V121: 13784.85663 | W121: =SUM(C121:V121) -> 304772.4578
B122: Net present value | C122: =C121*INDEX($C$16:$V$16, 1, MATCH(C106,$C$15:$V$15,0)) -> 16821.54614 | D122: 15981.70511 | E122: 15179.42863 | F122: 14413.1365 | G122: 13681.31246 | H122: 12982.5016 | I122: 12315.30805 | J122: 11678.39254 | K122: 11070.47028 | L122: 11098.48226 | M122: 10528.67075 | N122: 9984.705534 | O122: 9465.49017 | P122: 8969.972805 | Q122: 8497.144425 | R122: 8046.037158 | S122: 7615.722646 | T122: 7205.310481 | U122: 7317.97756 | V122: 6927.798664
V124: NPC urban hop | W124: =SUM(C122:V122) -> 219781.1138

Sheet Discounted cost_10years
A1: Discounted Cost (10 year lifetime)
B4: Finance rate | C4: =finance_rate_Input -> 0.057 | D4: finance_rate
B5: Discount rate | C5: =discount_rate_input -> 0.035 | D5: discount_rate
B7: Capital cost (including installation) | C7: ='Cost calculations'!I33 -> 18000 | D7: equipment_capital_ins
B8: Capital cost - rural site | C8: ='Cost calculations'!C24 -> 123718.037 | D8: rural_site_capital
B9: Capital cost - urban site | C9: ='Cost calculations'!C25 -> 61859.01848 | D9: urban_site_capital
B10: Deployment cost | C10: ='Spectrum cost inputs'!$D$10 -> 1000 | D10: deployment_capital
B12: Lifetime of new equipment | C12: 10 | D12: equipment_lifetime
C14: Years
C15: 1 | D15: 2 | E15: 3 | F15: 4 | G15: 5 | H15: 6 | I15: 7 | J15: 8 | K15: 9 | L15: 10 | M15: 11 | N15: 12 | O15: 13 | P15: 14 | Q15: 15 | R15: 16 | S15: 17 | T15: 18 | U15: 19 | V15: 20
B16: Discount factor (STPR) | C16: =1/(1+$C5)^(C$15) -> 0.9661835749 | D16: 0.9335107004 | E16: 0.9019427057 | F16: 0.8714422277 | G16: 0.8419731669 | H16: 0.8135006443 | I16: 0.7859909607 | J16: 0.7594115562 | K16: 0.7337309722 | L16: 0.7089188137 | M16: 0.6849457137 | N16: 0.6617832983 | O16: 0.6394041529 | P16: 0.6177817903 | Q16: 0.5968906186 | R16: 0.5767059117 | S16: 0.5572037794 | T16: 0.5383611396 | U16: 0.5201556904 | V16: 0.5025658844
B20: Cost of retiring equipment early
B21: Estimating the capital cost that firms need to write off
B22: Including the installation cost as part of capex for this calculation
C24: Year
C25: 1 | D25: 2 | E25: 3 | F25: 4 | G25: 5 | H25: 6 | I25: 7 | J25: 8 | K25: 9 | L25: 10 | M25: 11 | N25: 12 | O25: 13 | P25: 14 | Q25: 15 | R25: 16 | S25: 17 | T25: 18 | U25: 19 | V25: 20
B27: Cost (Straight line depreciation)
A29: Remaining lifetime | B29: Depreciation
A30: =equipment_lifetime_15-LEFT(B30,2) -> 10 | B30: 0 year old | C30: =IF(C$25<=$A30,equipment_capital_ins/equipment_lifetime,0) -> 1800 | D30: 1800 | E30: 1800 | F30: 1800 | G30: 1800 | H30: 1800 | I30: 1800 | J30: 1800 | K30: 1800 | L30: 1800 | M30: =IF(M$25<=$A30,equipment_capital_ins/equipment_lifetime,0) -> 0 | N30: 0 | O30: 0 | P30: 0 | Q30: 0 | R30: 0 | S30: 0 | T30: 0 | U30: 0 | V30: 0
A31: 9 | B31: 1 year old | C31: 1800 | D31: 1800 | E31: 1800 | F31: 1800 | G31: 1800 | H31: 1800 | I31: 1800 | J31: 1800 | K31: 1800 | L31: 0 | M31: 0 | N31: 0 | O31: 0 | P31: 0 | Q31: 0 | R31: 0 | S31: 0 | T31: 0 | U31: 0 | V31: 0
A32: 8 | B32: 2 year old | C32: 1800 | D32: 1800 | E32: 1800 | F32: 1800 | G32: 1800 | H32: 1800 | I32: 1800 | J32: 1800 | K32: 0 | L32: 0 | M32: 0 | N32: 0 | O32: 0 | P32: 0 | Q32: 0 | R32: 0 | S32: 0 | T32: 0 | U32: 0 | V32: 0
A33: 7 | B33: 3 year old | C33: 1800 | D33: 1800 | E33: 1800 | F33: 1800 | G33: 1800 | H33: 1800 | I33: 1800 | J33: 0 | K33: 0 | L33: 0 | M33: 0 | N33: 0 | O33: 0 | P33: 0 | Q33: 0 | R33: 0 | S33: 0 | T33: 0 | U33: 0 | V33: 0
A34: 6 | B34: 4 year old | C34: 1800 | D34: 1800 | E34: 1800 | F34: 1800 | G34: 1800 | H34: 1800 | I34: 0 | J34: 0 | K34: 0 | L34: 0 | M34: 0 | N34: 0 | O34: 0 | P34: 0 | Q34: 0 | R34: 0 | S34: 0 | T34: 0 | U34: 0 | V34: 0
A35: 5 | B35: 5 year old | C35: 1800 | D35: 1800 | E35: 1800 | F35: 1800 | G35: 1800 | H35: 0 | I35: 0 | J35: 0 | K35: 0 | L35: 0 | M35: 0 | N35: 0 | O35: 0 | P35: 0 | Q35: 0 | R35: 0 | S35: 0 | T35: 0 | U35: 0 | V35: 0
A36: 4 | B36: 6 year old | C36: 1800 | D36: 1800 | E36: 1800 | F36: 1800 | G36: 0 | H36: 0 | I36: 0 | J36: 0 | K36: 0 | L36: 0 | M36: 0 | N36: 0 | O36: 0 | P36: 0 | Q36: 0 | R36: 0 | S36: 0 | T36: 0 | U36: 0 | V36: 0
A37: 3 | B37: 7 year old | C37: 1800 | D37: 1800 | E37: 1800 | F37: 0 | G37: 0 | H37: 0 | I37: 0 | J37: 0 | K37: 0 | L37: 0 | M37: 0 | N37: 0 | O37: 0 | P37: 0 | Q37: 0 | R37: 0 | S37: 0 | T37: 0 | U37: 0 | V37: 0
A38: 2 | B38: 8 year old | C38: 1800 | D38: 1800 | E38: 0 | F38: 0 | G38: 0 | H38: 0 | I38: 0 | J38: 0 | K38: 0 | L38: 0 | M38: 0 | N38: 0 | O38: 0 | P38: 0 | Q38: 0 | R38: 0 | S38: 0 | T38: 0 | U38: 0 | V38: 0
A39: 1 | B39: 9 year old | C39: 1800 | D39: 0 | E39: 0 | F39: 0 | G39: 0 | H39: 0 | I39: 0 | J39: 0 | K39: 0 | L39: 0 | M39: 0 | N39: 0 | O39: 0 | P39: 0 | Q39: 0 | R39: 0 | S39: 0 | T39: 0 | U39: 0 | V39: 0
A40: 0 | B40: 10 year old | C40: =IF(C$25<=$A40,equipment_capital_ins/equipment_lifetime,0) -> 0 | D40: 0 | E40: 0 | F40: 0 | G40: 0 | H40: 0 | I40: 0 | J40: 0 | K40: 0 | L40: 0 | M40: =IF(M$25<=$A40,equipment_capital_ins/equipment_lifetime,0) -> 0 | N40: 0 | O40: 0 | P40: 0 | Q40: 0 | R40: 0 | S40: 0 | T40: 0 | U40: 0 | V40: 0
A41: -1 | B41: 11 year old | C41: 0 | D41: 0 | E41: 0 | F41: 0 | G41: 0 | H41: 0 | I41: 0 | J41: 0 | K41: 0 | L41: 0 | M41: 0 | N41: 0 | O41: 0 | P41: 0 | Q41: 0 | R41: 0 | S41: 0 | T41: 0 | U41: 0 | V41: 0
A42: -2 | B42: 12 year old | C42: 0 | D42: 0 | E42: 0 | F42: 0 | G42: 0 | H42: 0 | I42: 0 | J42: 0 | K42: 0 | L42: 0 | M42: 0 | N42: 0 | O42: 0 | P42: 0 | Q42: 0 | R42: 0 | S42: 0 | T42: 0 | U42: 0 | V42: 0
A43: -3 | B43: 13 year old | C43: 0 | D43: 0 | E43: 0 | F43: 0 | G43: 0 | H43: 0 | I43: 0 | J43: 0 | K43: 0 | L43: 0 | M43: 0 | N43: 0 | O43: 0 | P43: 0 | Q43: 0 | R43: 0 | S43: 0 | T43: 0 | U43: 0 | V43: 0
A44: -4 | B44: 14 year old | C44: 0 | D44: 0 | E44: 0 | F44: 0 | G44: 0 | H44: 0 | I44: 0 | J44: 0 | K44: 0 | L44: 0 | M44: 0 | N44: 0 | O44: 0 | P44: 0 | Q44: 0 | R44: 0 | S44: 0 | T44: 0 | U44: 0 | V44: 0
A45: -5 | B45: 15 year old | C45: 0 | D45: 0 | E45: 0 | F45: 0 | G45: 0 | H45: 0 | I45: 0 | J45: 0 | K45: 0 | L45: 0 | M45: 0 | N45: 0 | O45: 0 | P45: 0 | Q45: 0 | R45: 0 | S45: 0 | T45: 0 | U45: 0 | V45: 0
B47: Financing cost
B48: 0 year old | C48: =IF(equipment_lifetime<C$25,0,SUM(C30:$V30)*finance_rate) -> 1026 | D48: =IF(equipment_lifetime<D$25,0,SUM(D30:$V30)*finance_rate) -> 923.4 | E48: =IF(equipment_lifetime<E$25,0,SUM(E30:$V30)*finance_rate) -> 820.8 | F48: =IF(equipment_lifetime<F$25,0,SUM(F30:$V30)*finance_rate) -> 718.2 | G48: =IF(equipment_lifetime<G$25,0,SUM(G30:$V30)*finance_rate) -> 615.6 | H48: =IF(equipment_lifetime<H$25,0,SUM(H30:$V30)*finance_rate) -> 513 | I48: =IF(equipment_lifetime<I$25,0,SUM(I30:$V30)*finance_rate) -> 410.4 | J48: =IF(equipment_lifetime<J$25,0,SUM(J30:$V30)*finance_rate) -> 307.8 | K48: =IF(equipment_lifetime<K$25,0,SUM(K30:$V30)*finance_rate) -> 205.2 | L48: =IF(equipment_lifetime<L$25,0,SUM(L30:$V30)*finance_rate) -> 102.6 | M48: =IF(equipment_lifetime<M$25,0,SUM(M30:$V30)*finance_rate) -> 0 | N48: =IF(equipment_lifetime<N$25,0,SUM(N30:$V30)*finance_rate) -> 0 | O48: =IF(equipment_lifetime<O$25,0,SUM(O30:$V30)*finance_rate) -> 0 | P48: =IF(equipment_lifetime<P$25,0,SUM(P30:$V30)*finance_rate) -> 0 | Q48: =IF(equipment_lifetime<Q$25,0,SUM(Q30:$V30)*finance_rate) -> 0 | R48: =IF(equipment_lifetime<R$25,0,SUM(R30:$V30)*finance_rate) -> 0 | S48: =IF(equipment_lifetime<S$25,0,SUM(S30:$V30)*finance_rate) -> 0 | T48: =IF(equipment_lifetime<T$25,0,SUM(T30:$V30)*finance_rate) -> 0 | U48: =IF(equipment_lifetime<U$25,0,SUM(U30:$V30)*finance_rate) -> 0 | V48: =IF(equipment_lifetime<V$25,0,SUM(V30:$V30)*finance_rate) -> 0
B49: 1 year old | C49: =IF(equipment_lifetime<C$25,0,SUM(C31:$V31)*finance_rate) -> 923.4 | D49: =IF(equipment_lifetime<D$25,0,SUM(D31:$V31)*finance_rate) -> 820.8 | E49: =IF(equipment_lifetime<E$25,0,SUM(E31:$V31)*finance_rate) -> 718.2 | F49: =IF(equipment_lifetime<F$25,0,SUM(F31:$V31)*finance_rate) -> 615.6 | G49: =IF(equipment_lifetime<G$25,0,SUM(G31:$V31)*finance_rate) -> 513 | H49: =IF(equipment_lifetime<H$25,0,SUM(H31:$V31)*finance_rate) -> 410.4 | I49: =IF(equipment_lifetime<I$25,0,SUM(I31:$V31)*finance_rate) -> 307.8 | J49: =IF(equipment_lifetime<J$25,0,SUM(J31:$V31)*finance_rate) -> 205.2 | K49: =IF(equipment_lifetime<K$25,0,SUM(K31:$V31)*finance_rate) -> 102.6 | L49: =IF(equipment_lifetime<L$25,0,SUM(L31:$V31)*finance_rate) -> 0 | M49: =IF(equipment_lifetime<M$25,0,SUM(M31:$V31)*finance_rate) -> 0 | N49: =IF(equipment_lifetime<N$25,0,SUM(N31:$V31)*finance_rate) -> 0 | O49: =IF(equipment_lifetime<O$25,0,SUM(O31:$V31)*finance_rate) -> 0 | P49: =IF(equipment_lifetime<P$25,0,SUM(P31:$V31)*finance_rate) -> 0 | Q49: =IF(equipment_lifetime<Q$25,0,SUM(Q31:$V31)*finance_rate) -> 0 | R49: =IF(equipment_lifetime<R$25,0,SUM(R31:$V31)*finance_rate) -> 0 | S49: =IF(equipment_lifetime<S$25,0,SUM(S31:$V31)*finance_rate) -> 0 | T49: =IF(equipment_lifetime<T$25,0,SUM(T31:$V31)*finance_rate) -> 0 | U49: =IF(equipment_lifetime<U$25,0,SUM(U31:$V31)*finance_rate) -> 0 | V49: =IF(equipment_lifetime<V$25,0,SUM(V31:$V31)*finance_rate) -> 0
B50: 2 year old | C50: =IF(equipment_lifetime<C$25,0,SUM(C32:$V32)*finance_rate) -> 820.8 | D50: =IF(equipment_lifetime<D$25,0,SUM(D32:$V32)*finance_rate) -> 718.2 | E50: =IF(equipment_lifetime<E$25,0,SUM(E32:$V32)*finance_rate) -> 615.6 | F50: =IF(equipment_lifetime<F$25,0,SUM(F32:$V32)*finance_rate) -> 513 | G50: =IF(equipment_lifetime<G$25,0,SUM(G32:$V32)*finance_rate) -> 410.4 | H50: =IF(equipment_lifetime<H$25,0,SUM(H32:$V32)*finance_rate) -> 307.8 | I50: =IF(equipment_lifetime<I$25,0,SUM(I32:$V32)*finance_rate) -> 205.2 | J50: =IF(equipment_lifetime<J$25,0,SUM(J32:$V32)*finance_rate) -> 102.6 | K50: =IF(equipment_lifetime<K$25,0,SUM(K32:$V32)*finance_rate) -> 0 | L50: =IF(equipment_lifetime<L$25,0,SUM(L32:$V32)*finance_rate) -> 0 | M50: =IF(equipment_lifetime<M$25,0,SUM(M32:$V32)*finance_rate) -> 0 | N50: =IF(equipment_lifetime<N$25,0,SUM(N32:$V32)*finance_rate) -> 0 | O50: =IF(equipment_lifetime<O$25,0,SUM(O32:$V32)*finance_rate) -> 0 | P50: =IF(equipment_lifetime<P$25,0,SUM(P32:$V32)*finance_rate) -> 0 | Q50: =IF(equipment_lifetime<Q$25,0,SUM(Q32:$V32)*finance_rate) -> 0 | R50: =IF(equipment_lifetime<R$25,0,SUM(R32:$V32)*finance_rate) -> 0 | S50: =IF(equipment_lifetime<S$25,0,SUM(S32:$V32)*finance_rate) -> 0 | T50: =IF(equipment_lifetime<T$25,0,SUM(T32:$V32)*finance_rate) -> 0 | U50: =IF(equipment_lifetime<U$25,0,SUM(U32:$V32)*finance_rate) -> 0 | V50: =IF(equipment_lifetime<V$25,0,SUM(V32:$V32)*finance_rate) -> 0
B51: 3 year old | C51: =IF(equipment_lifetime<C$25,0,SUM(C33:$V33)*finance_rate) -> 718.2 | D51: =IF(equipment_lifetime<D$25,0,SUM(D33:$V33)*finance_rate) -> 615.6 | E51: =IF(equipment_lifetime<E$25,0,SUM(E33:$V33)*finance_rate) -> 513 | F51: =IF(equipment_lifetime<F$25,0,SUM(F33:$V33)*finance_rate) -> 410.4 | G51: =IF(equipment_lifetime<G$25,0,SUM(G33:$V33)*finance_rate) -> 307.8 | H51: =IF(equipment_lifetime<H$25,0,SUM(H33:$V33)*finance_rate) -> 205.2 | I51: =IF(equipment_lifetime<I$25,0,SUM(I33:$V33)*finance_rate) -> 102.6 | J51: =IF(equipment_lifetime<J$25,0,SUM(J33:$V33)*finance_rate) -> 0 | K51: =IF(equipment_lifetime<K$25,0,SUM(K33:$V33)*finance_rate) -> 0 | L51: =IF(equipment_lifetime<L$25,0,SUM(L33:$V33)*finance_rate) -> 0 | M51: =IF(equipment_lifetime<M$25,0,SUM(M33:$V33)*finance_rate) -> 0 | N51: =IF(equipment_lifetime<N$25,0,SUM(N33:$V33)*finance_rate) -> 0 | O51: =IF(equipment_lifetime<O$25,0,SUM(O33:$V33)*finance_rate) -> 0 | P51: =IF(equipment_lifetime<P$25,0,SUM(P33:$V33)*finance_rate) -> 0 | Q51: =IF(equipment_lifetime<Q$25,0,SUM(Q33:$V33)*finance_rate) -> 0 | R51: =IF(equipment_lifetime<R$25,0,SUM(R33:$V33)*finance_rate) -> 0 | S51: =IF(equipment_lifetime<S$25,0,SUM(S33:$V33)*finance_rate) -> 0 | T51: =IF(equipment_lifetime<T$25,0,SUM(T33:$V33)*finance_rate) -> 0 | U51: =IF(equipment_lifetime<U$25,0,SUM(U33:$V33)*finance_rate) -> 0 | V51: =IF(equipment_lifetime<V$25,0,SUM(V33:$V33)*finance_rate) -> 0
B52: 4 year old | C52: =IF(equipment_lifetime<C$25,0,SUM(C34:$V34)*finance_rate) -> 615.6 | D52: =IF(equipment_lifetime<D$25,0,SUM(D34:$V34)*finance_rate) -> 513 | E52: =IF(equipment_lifetime<E$25,0,SUM(E34:$V34)*finance_rate) -> 410.4 | F52: =IF(equipment_lifetime<F$25,0,SUM(F34:$V34)*finance_rate) -> 307.8 | G52: =IF(equipment_lifetime<G$25,0,SUM(G34:$V34)*finance_rate) -> 205.2 | H52: =IF(equipment_lifetime<H$25,0,SUM(H34:$V34)*finance_rate) -> 102.6 | I52: =IF(equipment_lifetime<I$25,0,SUM(I34:$V34)*finance_rate) -> 0 | J52: =IF(equipment_lifetime<J$25,0,SUM(J34:$V34)*finance_rate) -> 0 | K52: =IF(equipment_lifetime<K$25,0,SUM(K34:$V34)*finance_rate) -> 0 | L52: =IF(equipment_lifetime<L$25,0,SUM(L34:$V34)*finance_rate) -> 0 | M52: =IF(equipment_lifetime<M$25,0,SUM(M34:$V34)*finance_rate) -> 0 | N52: =IF(equipment_lifetime<N$25,0,SUM(N34:$V34)*finance_rate) -> 0 | O52: =IF(equipment_lifetime<O$25,0,SUM(O34:$V34)*finance_rate) -> 0 | P52: =IF(equipment_lifetime<P$25,0,SUM(P34:$V34)*finance_rate) -> 0 | Q52: =IF(equipment_lifetime<Q$25,0,SUM(Q34:$V34)*finance_rate) -> 0 | R52: =IF(equipment_lifetime<R$25,0,SUM(R34:$V34)*finance_rate) -> 0 | S52: =IF(equipment_lifetime<S$25,0,SUM(S34:$V34)*finance_rate) -> 0 | T52: =IF(equipment_lifetime<T$25,0,SUM(T34:$V34)*finance_rate) -> 0 | U52: =IF(equipment_lifetime<U$25,0,SUM(U34:$V34)*finance_rate) -> 0 | V52: =IF(equipment_lifetime<V$25,0,SUM(V34:$V34)*finance_rate) -> 0
B53: 5 year old | C53: =IF(equipment_lifetime<C$25,0,SUM(C35:$V35)*finance_rate) -> 513 | D53: =IF(equipment_lifetime<D$25,0,SUM(D35:$V35)*finance_rate) -> 410.4 | E53: =IF(equipment_lifetime<E$25,0,SUM(E35:$V35)*finance_rate) -> 307.8 | F53: =IF(equipment_lifetime<F$25,0,SUM(F35:$V35)*finance_rate) -> 205.2 | G53: =IF(equipment_lifetime<G$25,0,SUM(G35:$V35)*finance_rate) -> 102.6 | H53: =IF(equipment_lifetime<H$25,0,SUM(H35:$V35)*finance_rate) -> 0 | I53: =IF(equipment_lifetime<I$25,0,SUM(I35:$V35)*finance_rate) -> 0 | J53: =IF(equipment_lifetime<J$25,0,SUM(J35:$V35)*finance_rate) -> 0 | K53: =IF(equipment_lifetime<K$25,0,SUM(K35:$V35)*finance_rate) -> 0 | L53: =IF(equipment_lifetime<L$25,0,SUM(L35:$V35)*finance_rate) -> 0 | M53: =IF(equipment_lifetime<M$25,0,SUM(M35:$V35)*finance_rate) -> 0 | N53: =IF(equipment_lifetime<N$25,0,SUM(N35:$V35)*finance_rate) -> 0 | O53: =IF(equipment_lifetime<O$25,0,SUM(O35:$V35)*finance_rate) -> 0 | P53: =IF(equipment_lifetime<P$25,0,SUM(P35:$V35)*finance_rate) -> 0 | Q53: =IF(equipment_lifetime<Q$25,0,SUM(Q35:$V35)*finance_rate) -> 0 | R53: =IF(equipment_lifetime<R$25,0,SUM(R35:$V35)*finance_rate) -> 0 | S53: =IF(equipment_lifetime<S$25,0,SUM(S35:$V35)*finance_rate) -> 0 | T53: =IF(equipment_lifetime<T$25,0,SUM(T35:$V35)*finance_rate) -> 0 | U53: =IF(equipment_lifetime<U$25,0,SUM(U35:$V35)*finance_rate) -> 0 | V53: =IF(equipment_lifetime<V$25,0,SUM(V35:$V35)*finance_rate) -> 0
B54: 6 year old | C54: =IF(equipment_lifetime<C$25,0,SUM(C36:$V36)*finance_rate) -> 410.4 | D54: =IF(equipment_lifetime<D$25,0,SUM(D36:$V36)*finance_rate) -> 307.8 | E54: =IF(equipment_lifetime<E$25,0,SUM(E36:$V36)*finance_rate) -> 205.2 | F54: =IF(equipment_lifetime<F$25,0,SUM(F36:$V36)*finance_rate) -> 102.6 | G54: =IF(equipment_lifetime<G$25,0,SUM(G36:$V36)*finance_rate) -> 0 | H54: =IF(equipment_lifetime<H$25,0,SUM(H36:$V36)*finance_rate) -> 0 | I54: =IF(equipment_lifetime<I$25,0,SUM(I36:$V36)*finance_rate) -> 0 | J54: =IF(equipment_lifetime<J$25,0,SUM(J36:$V36)*finance_rate) -> 0 | K54: =IF(equipment_lifetime<K$25,0,SUM(K36:$V36)*finance_rate) -> 0 | L54: =IF(equipment_lifetime<L$25,0,SUM(L36:$V36)*finance_rate) -> 0 | M54: =IF(equipment_lifetime<M$25,0,SUM(M36:$V36)*finance_rate) -> 0 | N54: =IF(equipment_lifetime<N$25,0,SUM(N36:$V36)*finance_rate) -> 0 | O54: =IF(equipment_lifetime<O$25,0,SUM(O36:$V36)*finance_rate) -> 0 | P54: =IF(equipment_lifetime<P$25,0,SUM(P36:$V36)*finance_rate) -> 0 | Q54: =IF(equipment_lifetime<Q$25,0,SUM(Q36:$V36)*finance_rate) -> 0 | R54: =IF(equipment_lifetime<R$25,0,SUM(R36:$V36)*finance_rate) -> 0 | S54: =IF(equipment_lifetime<S$25,0,SUM(S36:$V36)*finance_rate) -> 0 | T54: =IF(equipment_lifetime<T$25,0,SUM(T36:$V36)*finance_rate) -> 0 | U54: =IF(equipment_lifetime<U$25,0,SUM(U36:$V36)*finance_rate) -> 0 | V54: =IF(equipment_lifetime<V$25,0,SUM(V36:$V36)*finance_rate) -> 0
B55: 7 year old | C55: =IF(equipment_lifetime<C$25,0,SUM(C37:$V37)*finance_rate) -> 307.8 | D55: =IF(equipment_lifetime<D$25,0,SUM(D37:$V37)*finance_rate) -> 205.2 | E55: =IF(equipment_lifetime<E$25,0,SUM(E37:$V37)*finance_rate) -> 102.6 | F55: =IF(equipment_lifetime<F$25,0,SUM(F37:$V37)*finance_rate) -> 0 | G55: =IF(equipment_lifetime<G$25,0,SUM(G37:$V37)*finance_rate) -> 0 | H55: =IF(equipment_lifetime<H$25,0,SUM(H37:$V37)*finance_rate) -> 0 | I55: =IF(equipment_lifetime<I$25,0,SUM(I37:$V37)*finance_rate) -> 0 | J55: =IF(equipment_lifetime<J$25,0,SUM(J37:$V37)*finance_rate) -> 0 | K55: =IF(equipment_lifetime<K$25,0,SUM(K37:$V37)*finance_rate) -> 0 | L55: =IF(equipment_lifetime<L$25,0,SUM(L37:$V37)*finance_rate) -> 0 | M55: =IF(equipment_lifetime<M$25,0,SUM(M37:$V37)*finance_rate) -> 0 | N55: =IF(equipment_lifetime<N$25,0,SUM(N37:$V37)*finance_rate) -> 0 | O55: =IF(equipment_lifetime<O$25,0,SUM(O37:$V37)*finance_rate) -> 0 | P55: =IF(equipment_lifetime<P$25,0,SUM(P37:$V37)*finance_rate) -> 0 | Q55: =IF(equipment_lifetime<Q$25,0,SUM(Q37:$V37)*finance_rate) -> 0 | R55: =IF(equipment_lifetime<R$25,0,SUM(R37:$V37)*finance_rate) -> 0 | S55: =IF(equipment_lifetime<S$25,0,SUM(S37:$V37)*finance_rate) -> 0 | T55: =IF(equipment_lifetime<T$25,0,SUM(T37:$V37)*finance_rate) -> 0 | U55: =IF(equipment_lifetime<U$25,0,SUM(U37:$V37)*finance_rate) -> 0 | V55: =IF(equipment_lifetime<V$25,0,SUM(V37:$V37)*finance_rate) -> 0
B56: 8 year old | C56: =IF(equipment_lifetime<C$25,0,SUM(C38:$V38)*finance_rate) -> 205.2 | D56: =IF(equipment_lifetime<D$25,0,SUM(D38:$V38)*finance_rate) -> 102.6 | E56: =IF(equipment_lifetime<E$25,0,SUM(E38:$V38)*finance_rate) -> 0 | F56: =IF(equipment_lifetime<F$25,0,SUM(F38:$V38)*finance_rate) -> 0 | G56: =IF(equipment_lifetime<G$25,0,SUM(G38:$V38)*finance_rate) -> 0 | H56: =IF(equipment_lifetime<H$25,0,SUM(H38:$V38)*finance_rate) -> 0 | I56: =IF(equipment_lifetime<I$25,0,SUM(I38:$V38)*finance_rate) -> 0 | J56: =IF(equipment_lifetime<J$25,0,SUM(J38:$V38)*finance_rate) -> 0 | K56: =IF(equipment_lifetime<K$25,0,SUM(K38:$V38)*finance_rate) -> 0 | L56: =IF(equipment_lifetime<L$25,0,SUM(L38:$V38)*finance_rate) -> 0 | M56: =IF(equipment_lifetime<M$25,0,SUM(M38:$V38)*finance_rate) -> 0 | N56: =IF(equipment_lifetime<N$25,0,SUM(N38:$V38)*finance_rate) -> 0 | O56: =IF(equipment_lifetime<O$25,0,SUM(O38:$V38)*finance_rate) -> 0 | P56: =IF(equipment_lifetime<P$25,0,SUM(P38:$V38)*finance_rate) -> 0 | Q56: =IF(equipment_lifetime<Q$25,0,SUM(Q38:$V38)*finance_rate) -> 0 | R56: =IF(equipment_lifetime<R$25,0,SUM(R38:$V38)*finance_rate) -> 0 | S56: =IF(equipment_lifetime<S$25,0,SUM(S38:$V38)*finance_rate) -> 0 | T56: =IF(equipment_lifetime<T$25,0,SUM(T38:$V38)*finance_rate) -> 0 | U56: =IF(equipment_lifetime<U$25,0,SUM(U38:$V38)*finance_rate) -> 0 | V56: =IF(equipment_lifetime<V$25,0,SUM(V38:$V38)*finance_rate) -> 0
B57: 9 year old | C57: =IF(equipment_lifetime<C$25,0,SUM(C39:$V39)*finance_rate) -> 102.6 | D57: =IF(equipment_lifetime<D$25,0,SUM(D39:$V39)*finance_rate) -> 0 | E57: =IF(equipment_lifetime<E$25,0,SUM(E39:$V39)*finance_rate) -> 0 | F57: =IF(equipment_lifetime<F$25,0,SUM(F39:$V39)*finance_rate) -> 0 | G57: =IF(equipment_lifetime<G$25,0,SUM(G39:$V39)*finance_rate) -> 0 | H57: =IF(equipment_lifetime<H$25,0,SUM(H39:$V39)*finance_rate) -> 0 | I57: =IF(equipment_lifetime<I$25,0,SUM(I39:$V39)*finance_rate) -> 0 | J57: =IF(equipment_lifetime<J$25,0,SUM(J39:$V39)*finance_rate) -> 0 | K57: =IF(equipment_lifetime<K$25,0,SUM(K39:$V39)*finance_rate) -> 0 | L57: =IF(equipment_lifetime<L$25,0,SUM(L39:$V39)*finance_rate) -> 0 | M57: =IF(equipment_lifetime<M$25,0,SUM(M39:$V39)*finance_rate) -> 0 | N57: =IF(equipment_lifetime<N$25,0,SUM(N39:$V39)*finance_rate) -> 0 | O57: =IF(equipment_lifetime<O$25,0,SUM(O39:$V39)*finance_rate) -> 0 | P57: =IF(equipment_lifetime<P$25,0,SUM(P39:$V39)*finance_rate) -> 0 | Q57: =IF(equipment_lifetime<Q$25,0,SUM(Q39:$V39)*finance_rate) -> 0 | R57: =IF(equipment_lifetime<R$25,0,SUM(R39:$V39)*finance_rate) -> 0 | S57: =IF(equipment_lifetime<S$25,0,SUM(S39:$V39)*finance_rate) -> 0 | T57: =IF(equipment_lifetime<T$25,0,SUM(T39:$V39)*finance_rate) -> 0 | U57: =IF(equipment_lifetime<U$25,0,SUM(U39:$V39)*finance_rate) -> 0 | V57: =IF(equipment_lifetime<V$25,0,SUM(V39:$V39)*finance_rate) -> 0
B58: 10 year old | C58: =IF(equipment_lifetime<C$25,0,SUM(C40:$V40)*finance_rate) -> 0 | D58: =IF(equipment_lifetime<D$25,0,SUM(D40:$V40)*finance_rate) -> 0 | E58: =IF(equipment_lifetime<E$25,0,SUM(E40:$V40)*finance_rate) -> 0 | F58: =IF(equipment_lifetime<F$25,0,SUM(F40:$V40)*finance_rate) -> 0 | G58: =IF(equipment_lifetime<G$25,0,SUM(G40:$V40)*finance_rate) -> 0 | H58: =IF(equipment_lifetime<H$25,0,SUM(H40:$V40)*finance_rate) -> 0 | I58: =IF(equipment_lifetime<I$25,0,SUM(I40:$V40)*finance_rate) -> 0 | J58: =IF(equipment_lifetime<J$25,0,SUM(J40:$V40)*finance_rate) -> 0 | K58: =IF(equipment_lifetime<K$25,0,SUM(K40:$V40)*finance_rate) -> 0 | L58: =IF(equipment_lifetime<L$25,0,SUM(L40:$V40)*finance_rate) -> 0 | M58: =IF(equipment_lifetime<M$25,0,SUM(M40:$V40)*finance_rate) -> 0 | N58: =IF(equipment_lifetime<N$25,0,SUM(N40:$V40)*finance_rate) -> 0 | O58: =IF(equipment_lifetime<O$25,0,SUM(O40:$V40)*finance_rate) -> 0 | P58: =IF(equipment_lifetime<P$25,0,SUM(P40:$V40)*finance_rate) -> 0 | Q58: =IF(equipment_lifetime<Q$25,0,SUM(Q40:$V40)*finance_rate) -> 0 | R58: =IF(equipment_lifetime<R$25,0,SUM(R40:$V40)*finance_rate) -> 0 | S58: =IF(equipment_lifetime<S$25,0,SUM(S40:$V40)*finance_rate) -> 0 | T58: =IF(equipment_lifetime<T$25,0,SUM(T40:$V40)*finance_rate) -> 0 | U58: =IF(equipment_lifetime<U$25,0,SUM(U40:$V40)*finance_rate) -> 0 | V58: =IF(equipment_lifetime<V$25,0,SUM(V40:$V40)*finance_rate) -> 0
B59: 11 year old | C59: =IF(equipment_lifetime<C$25,0,SUM(C41:$V41)*finance_rate) -> 0 | D59: =IF(equipment_lifetime<D$25,0,SUM(D41:$V41)*finance_rate) -> 0 | E59: =IF(equipment_lifetime<E$25,0,SUM(E41:$V41)*finance_rate) -> 0 | F59: =IF(equipment_lifetime<F$25,0,SUM(F41:$V41)*finance_rate) -> 0 | G59: =IF(equipment_lifetime<G$25,0,SUM(G41:$V41)*finance_rate) -> 0 | H59: =IF(equipment_lifetime<H$25,0,SUM(H41:$V41)*finance_rate) -> 0 | I59: =IF(equipment_lifetime<I$25,0,SUM(I41:$V41)*finance_rate) -> 0 | J59: =IF(equipment_lifetime<J$25,0,SUM(J41:$V41)*finance_rate) -> 0 | K59: =IF(equipment_lifetime<K$25,0,SUM(K41:$V41)*finance_rate) -> 0 | L59: =IF(equipment_lifetime<L$25,0,SUM(L41:$V41)*finance_rate) -> 0 | M59: =IF(equipment_lifetime<M$25,0,SUM(M41:$V41)*finance_rate) -> 0 | N59: =IF(equipment_lifetime<N$25,0,SUM(N41:$V41)*finance_rate) -> 0 | O59: =IF(equipment_lifetime<O$25,0,SUM(O41:$V41)*finance_rate) -> 0 | P59: =IF(equipment_lifetime<P$25,0,SUM(P41:$V41)*finance_rate) -> 0 | Q59: =IF(equipment_lifetime<Q$25,0,SUM(Q41:$V41)*finance_rate) -> 0 | R59: =IF(equipment_lifetime<R$25,0,SUM(R41:$V41)*finance_rate) -> 0 | S59: =IF(equipment_lifetime<S$25,0,SUM(S41:$V41)*finance_rate) -> 0 | T59: =IF(equipment_lifetime<T$25,0,SUM(T41:$V41)*finance_rate) -> 0 | U59: =IF(equipment_lifetime<U$25,0,SUM(U41:$V41)*finance_rate) -> 0 | V59: =IF(equipment_lifetime<V$25,0,SUM(V41:$V41)*finance_rate) -> 0
